Workbook

Sheet 【シート関連図・作成手順】
C4: シート構成
C5: 本様式には、「基準年度算定報告書」「診断報告書」「実施計画書」の3種類が用意されています。
C6: シート名の変更やシートの削除をしないように注意してください（ただし、使用しなかった対策個票シートは削除してください。）。
C8: ■算定報告書 | V8: ■ | W8: 診断報告書 | AI8: ■ | AJ8: 診断報告書・実施計画書共通
C9: 1 | E9: 基本情報等 | V9: 411 | X9: 工場・事業場概要 | AI9: --- | AK9: 表紙
C10: 2 | E10: 敷地境界等 | V10: 413 | X10: 対策実施状況 | AI10: --- | AK10: 主要機器の排出量
C11: 3 | E11: 算定体制 | V11: 414 | X11: 計測実施記録 | AI11: --- | AK11: 対策個票1～12
C12: 4 | E12: 排出源リスト | V12: 421 | X12: 現状の課題 | AI12: --- | AK12: 排出係数・単価表
C13: 5 | E13: モニタリングポイント | V13: 422 | X13: 提案対策一覧 | AI13: --- | AK13: 支援実施記録
C14: 6-1 | E14: CO2排出量①（工場・事業場全体） | V14: 431 | X14: 報告会議事録 | AI14: --- | AK14: 【参考】対策メニューリスト
C15: 6-2 | E15: CO2排出量②（工場・事業場全体） | AI15: --- | AK15: 事業報告書用データ転記元シート
C16: 6-3 | E16: CO2排出量③（工場・事業場全体） | V16: ■ | W16: 実施計画書
C17: 6-4 | E17: CO2排出量_総括（工場・事業場全体） | V17: 511 | X17: 脱炭素化計画
C18: 7-1 | E18: CO2排出量①（主要なシステム系統） | V18: 512 | X18: 排出量（対策なし）根拠
C19: 7-2 | E19: CO2排出量②（主要なシステム系統） | V19: 513 | X19: 設備CO2削減計画
C20: 7-3 | E20: CO2排出量③（主要なシステム系統） | V20: 521 | X20: 実施体制
C21: 7-4 | E21: CO2排出量_総括（主要なシステム系統） | V21: 522 | X21: 実施計画
C22: 8 | E22: 備考 | V22: 523 | X22: 投資回収計画
V23: 524 | X23: 設備構成比較
V24: 542 | X24: 法定耐用年数
C26: 「算定報告書」の作成
C28: 「SHIFT事業：実施ルール」、「SHIFT事業：モニタリング報告ガイドライン」を参照し、入力してください。
C30: ＜作成時の注意点＞
C31: ・ | D31: 算定報告書では、エネルギー起源のCO2排出だけでなく、廃棄物の焼却・使用等に伴うCO2排出、工業プロセスに伴うCO2排出も含めて算定します。
C32: ・ | D32: 特別な断りがない限り、算定報告書提出日現在の情報を記載してください。
C33: ・ | D33: 左側（印刷エリア）にて直接入力/選択してください。
D34: 入力／選択／自動計算のセル色凡例は、次の通りです。 | Y34: セル色凡例 | AE34: 直接入力 | AJ34: 選択 | AN34: 自動計算
C35: ・ | D35: 記入例は別ファイルで用意されていますので、参考にしてください。
C36: ・ | D36: 各シートに作成時のポイントや、注意事項が説明されていますので、必ず目を通すようにしてください。
C37: ・ | D37: 保護がかけられていないシートにおいては、計算式の削除等に注意し、セルの結合・削除や行列の挿入・削除をしないようにしてください。
D38: （行の挿入方法が注記されている場合には、その方法に従って行を挿入することができます。）
C39: ・ | D39: 体裁を調整した場合には、［改ページプレビュー］にて印刷範囲の確認（再設定）をしてください。
C40: ・ | D40: シート上部にある【セル色表示／非表示】にチェックを入れると、上記のセル色が非表示になります。
D41: 左側（印刷エリア）を印刷する際に活用してください。
C43: 「診断報告書/実施計画書」の作成
C44: 成果物として「実施計画書A/B」または「実施計画書A/B/C」を作成する場合は、「１．診断報告書を作成する」から始めてください。
C45: 成果物として「実施計画書C」を作成する場合は、診断報告書の作成は不要のため、「２－２．実施計画書Cを作成する」を参照してください。
B47: １．診断報告書を作成する
C48: ① | D48: [表紙]にて「診断報告書」を選択し、支援機関名を入力してください。
C49: ② | D49: [411工場・事業場概要]にて、工場・事業場のCO2排出状況やエネルギー使用状況を示してください。（※基準年度CO2排出量及び基準年度エネルギー使用量（GJ換算値）は、「算定報告書」にて算出された値が自動転記されます。）
C50: ③ | D50: [主要機器の排出量]にて、工場・事業場の主要機器とCO2排出状況を把握し、エネルギーフロー図を作成してください。
D51: 選定した主要機器の活動種別及び排出係数については、[排出係数・単価表]にて入力しておく必要があります。
C52: ④ | D52: [413対策実施状況]に記載の項目について、工場・事業場の現状を把握し、現状に合った対策の提案予定を記録してください。
C53: ⑤ | D53: [414計測実施記録]にて、診断において実施した計測の対象、目的、項目、期間等を記録してください。
C54: ⑥ | D54: [421現状の課題]に、診断により検出された現状の課題と、対応する対策提案を入力してください。
C55: ⑦ | D55: [対策個票]の１～４ページ目（4.実施方法）までを作成してください。
D56: 個票番号は「診断報告書」と「実施計画書」で変更せず共通の番号を使用してください。
D57: 対策個票は12シートが用意されています。対策個票を増やしたい場合は支援機関窓口まで問い合わせてください。
C58: ⑧ | D58: [排出係数・単価表]にて、対策個票で使用する活動種別について、係数、単価及び単価の根拠を入力してください。
D59: ③の段階で選択及び入力した活動種別と係数をそのまま使用することができます。⑦と⑧は、適宜平行して作業してください。
C60: ⑨ | D60: [422提案対策一覧]を作成してください。
C61: ⑩ | D61: 診断結果報告会を開催し、[431報告会議事録]に報告会実施状況及び報告会の結果を記録してください。
C62: ⑪ | D62: [支援実施記録]にて実績等を入力してください。
C63: ⑫ | D63: 本ファイルを「診断報告書」として保存してください。
B65: ２．実施計画書を作成する
C66: [表紙]にて「実施計画書A/B」、「実施計画書C」、または「実施計画書A/B/C」を選択すると、各実施計画書に該当するシート一式が表示されます。
C67: 「実施計画書A/B」の作成は２－１．を、「実施計画書C」の作成は２－２．を、「実施計画書A/B/C」の作成は２－３．を参照してください。
B68: ２－１．実施計画書A/Bを作成する
C69: ① | D69: 「診断報告書」ファイルをコピーし、実施計画書用に別名保存してください。
C70: ② | D70: [表紙］にて「実施計画書A/B」を選択してください。実施計画書A/B用のシートが表示されます。
C71: ③ | D71: [511脱炭素化計画]にて、計画年度、目標年度を入力/選択してください。
C72: ④ | D72: [512排出量(対策なし)根拠]にて、計画年度における対策を実施しない場合のCO2排出量とエネルギー使用量（GJ換算値）、及びその算出根拠を入力してください。
D73: （※基準年度CO2排出量及び基準年度エネルギー使用量（GJ換算値）は、「算定報告書」にて算出された値が自動転記されます。）
C74: ⑤ | D74: 「診断報告書」で作成した[対策個票]のうち、実施計画書に反映する[対策個票]について未作成の５～６ページ目（5.実施計画、6.更新設備仕様・見積書）を作成してください。７～８ページ目（7.報告時の～、8.導入した設備～、9.既存診断利用～）は作成不要です（実施計画書C該当項目のため）。
D75: これらの［対策個票］の１～４ページ目（4.実施方法）については、診断結果報告会等における事業者との協議内容に基づき、必要に応じて修正してください。
D76: 「実施計画書」に反映しない対策個票は削除してください（残したい場合には、シート名冒頭に「423」をつけて非表示にしてください（例：423対策個票1））。
D77: 「診断報告書」及び「実施計画書」のいずれでも使用していない対策個票シートは、ファイル容量を下げるためにシートごと削除してください。
C78: ⑥ | D78: [排出係数・単価表]は「診断報告書」で作成したものをそのまま使用し、必要に応じて活動種別の追加、係数、単価及び単価の根拠を入力してください。
D79: ⑤と⑥は、適宜平行して作業してください。
C80: ⑦ | D80: [511脱炭素化計画]の3表にある「対策個票番号」の欄にて、本計画に含める対策個票の番号を選択してください。必要な情報が呼び込まれます。
D81: 主要システム系統に関連する対策については、当該欄に○をつけてください。
C82: ⑧ | D82: [511脱炭素化計画]の3表にて計画年度以降の活動予定、および2表の入力をしてください。
C83: ⑨ | D83: [522実施計画]および[523投資回収計画]は、手順⑦まで行うことにより自動的に作成されます。
C84: ⑩ | D84: [542法定耐用年数]にて、対策個票の番号を選択してください。個票から必要な情報が呼込まれます。
C85: ⑪ | D85: [支援実施記録]にて支援機関の支援実績等を入力してください。
C86: ⑫ | D86: [521実施体制]、[524設備構成比較]は独立しているため、実施計画書全体の作成進捗状況に応じて、適宜作成してください。
C87: ⑬ | D87: 本ファイルを「実施計画書A/B」として保存してください。
B88: ２－２．実施計画書Cを作成する
C89: ① | D89: [表紙］にて「実施計画書C」を選択してください。実施計画書C用のシートが表示されます。
C90: ② | D90: [主要機器の排出量]にて、工場・事業場の主要機器とCO2排出状況を把握し、エネルギーフロー図を作成してください。
D91: 選定した主要機器の活動種別及び排出係数については、[排出係数・単価表]にて入力しておく必要があります。
C92: ③ | D92: [対策個票]の１～４ページ目（4.実施方法まで）、６～８ページ目（6.更新設備仕様～、7.報告時の～、8.導入した設備～）を作成してください。
D93: ５ページ目（5.実施計画）は作成不要です（実施計画書A/B該当項目のため）。８ページ目（9.既存診断利用～）は該当する場合にのみ作成してください。
D94: 使用しない対策個票シートは、ファイル容量を下げるためにシートごと削除してください。
C95: ④ | D95: [排出係数・単価表]にて、対策個票で使用する活動種別について、係数、単価及び単価の根拠を入力してください。
D96: ②の段階で選択及び入力した活動種別と係数をそのまま使用することができます。③と④は、適宜平行して作業してください。
C97: ⑤ | D97: [513設備CO2削減計画]にて、本計画に含める対策個票の番号を選択してください。必要な情報が呼込まれます。
D98: 「申請予定補助金」の欄と「LED照明設備・再エネ設備」の欄については、対策ごとに該当する選択肢をプルダウンから選択してください。
D99: 「申請予定補助金」欄には、初期状態では対策個票の５ページ目（5.実施計画）を参照する計算式が入っていますが、実施計画書Cでは対策個票の５ページ目（5.実施計画）を作成しないため、ここでは計算式を削除してプルダウンを利用してください。
C100: ⑥ | D100: [542法定耐用年数]にて、対策個票の番号を選択してください。個票から必要な情報が呼込まれます。
C101: ⑦ | D101: [支援実施記録]にて支援機関の支援実績等を入力してください。
C102: ⑧ | D102: [524設備構成比較]は独立しているため、実施計画書全体の作成進捗状況に応じて、適宜作成してください。
C103: ⑨ | D103: 本ファイルを「実施計画書C」として保存してください。
B104: ２－３．実施計画書A/B/Cを作成する
C105: ① | D105: 「診断報告書」ファイルをコピーし、実施計画書用に別名保存してください。
C106: ② | D106: [表紙］にて「実施計画書A/B/C」を選択してください。実施計画書A/B/C用のシートが表示されます。
C107: ③ | D107: [511脱炭素化計画]にて、計画年度、目標年度を入力/選択してください。
C108: ④ | D108: [512排出量(対策なし)根拠]にて、計画年度における対策を実施しない場合のCO2排出量とエネルギー使用量（GJ換算値）、及びその算出根拠を入力してください。
D109: （※基準年度CO2排出量及び基準年度エネルギー使用量（GJ換算値）は、「算定報告書」にて算出された値が自動転記されます。）
C110: ⑤ | D110: 「診断報告書」で作成した[対策個票]のうち、実施計画書に反映する[対策個票]について未作成の５～８ページ目（5.実施計画、6.更新設備仕様・見積書、7.報告時の～、8.導入した設備～、9.既存診断利用～）を作成してください。
D111: なお、７～８ページ目（7.報告時の～、8.導入した設備～、9.既存診断利用～）は、[513設備CO2削減計画]に含まれない対策については作成不要です。
D112: これらの［対策個票］の１～４ページ目（4.実施方法まで）については、診断結果報告会等における事業者との協議内容に基づき、必要に応じて修正してください。
D113: 「実施計画書」に反映しない対策個票は削除してください（残したい場合には、シート名冒頭に「423」をつけて非表示にしてください（例：423対策個票1））。
D114: 「診断報告書」及び「実施計画書」のいずれでも使用していない対策個票シートは、ファイル容量を下げるためにシートごと削除してください。
C115: ⑥ | D115: [排出係数・単価表]は「診断報告書」で作成したものをそのまま使用し、必要に応じて活動種別の追加、係数、単価及び単価の根拠を入力してください。
D116: ⑤と⑥は、適宜平行して作業してください。
C117: ⑦ | D117: [511脱炭素化計画]の3表にある「対策個票番号」の欄にて、本計画に含める対策個票の番号を選択してください。必要な情報が呼び込まれます。
D118: 主要システム系統に関連する対策については、当該欄に○をつけてください。
C119: ⑧ | D119: [511脱炭素化計画]の3表にて計画年度以降の活動予定、および2表の入力をしてください。
C120: ⑨ | D120: [513設備CO2削減計画]にて、本計画に含める対策個票の番号を選択してください。必要な情報が呼込まれます。
D121: 「申請予定補助金」の欄には、対策個票の５ページ目（5.実施計画）を参照する計算式が入っています。計算式を削除してしまった場合は、対策個票の5ページ目で選択したものと同じものをプルダウンから選択してください。
D122: 「LED照明設備・再エネ設備」の欄については、該当する選択肢をプルダウンから選択してください。
C123: ⑩ | D123: [522実施計画]および[523投資回収計画]は、手順⑧まで行うことにより自動的に作成されます。
C124: ⑪ | D124: [542法定耐用年数]にて、対策個票の番号を選択してください。個票から必要な情報が呼込まれます。
C125: ⑫ | D125: [支援実施記録]にて支援機関の支援実績等を入力してください。
C126: ⑬ | D126: [521実施体制]、[524設備構成比較]は独立しているため、実施計画書全体の作成進捗状況に応じて、適宜作成してください。
C127: ⑭ | D127: 本ファイルを「実施計画書A/B/C」として保存してください。
C129: ＜作成時の注意点＞
C130: ・ | D130: 診断報告書/実施計画書で扱うCO2はすべて、エネルギー起源CO2です。
C131: ・ | D131: 左側（印刷エリア）にて直接入力/選択してください。
D132: 入力／選択／自動計算のセル色凡例は、次の通りです。 | Y132: セル色凡例 | AE132: 直接入力 | AJ132: 選択 | AN132: 自動計算
C133: ・ | D133: 右側には記入例および注記が記載されています。（セルのメモやテキストボックスによる注記は移動することができます）
D134: 作成時のポイントや、注意事項が説明されていますので、必ず目を通すようにしてください。
C135: ・ | D135: 保護がかけられていないシートにおいては、計算式の削除等に注意し、セルの結合・削除や行列の挿入・削除をしないようにしてください。
D136: （行の挿入方法が注記されている場合には、その方法に従って行を挿入することができます。）
C137: ・ | D137: 体裁を調整した場合には、［改ページプレビュー］にて印刷範囲の確認（再設定）をしてください。
C138: ・ | D138: 保護がかけられているシートの自由筆記項目（例：対策個票の3.年間活動量の算出根拠）について、用意されている記入欄では不足する場合、用意されている記入欄には簡潔に概要を記入した上で、別紙として新しく挿入したシートには詳細を記入してください。
D139: その際、自由筆記項目記入欄には該当する別紙のシート名を明記してください。
C140: ・ | D140: シート上部にある【セル色表示／非表示】にチェックを入れると、上記のセル色が非表示になります。
D141: 左側（印刷エリア）を印刷する際に活用してください。
C143: 計算式による自動転記に基づいたシート相関図
AN144: 凡例 | AQ144: データ元 | AY144: 反映先

Sheet 1. 基本情報等
C2: Ver. | AC2: 提出年月日（yy/mm/nn） | AD2: 2024-04-20 | CB2: セル色の表示／非表示
CB3: FALSE
B7: SHIFT事業 第4期 基準年度CO2排出量算定報告書
M9: （単独参加者用）
B11: 1. 基本情報
B12: 目標保有者のうち主体的に削減を行う者に関する基本情報
C14: 目標保有者の名称 | K14: ABC工業株式会社
C15: 工場・事業場の名称 | K15: ABC工業株式会社SHIFT工場
C16: 工場・事業場の所在地 | K16: 〒120-・・・ 東京都足立区・・・
C17: 業種等 | D17: 事業所形態（工場/事業場） | K17: 工場
D18: 分類番号：産業分類名 ※日本標準産業分類 （令和6年4月改定）より | K18: 211 ガラス・同製品製造業
D19: 事業場 の種類 （工場の場合は記入不要） | E19: 主たる用途
E20: 建物の延床面積（㎡） | S20: =SUM(S21:AD25) -> 0 | AE20: ㎡
G21: 用途別内訳 | K21: 事務所 | AE21: ㎡
K22: 学校 | AE22: ㎡
K23: ホテル | AE23: ㎡
K24: 病院 | AE24: ㎡
K25: 店舗 | AE25: ㎡
B27: その他の目標保有者に関する情報
C28: その他の目標保有者の名称 | N28: 役割
C29: XYZ エネルギー株式会社 | N29: A工場の補助対象設備（コジェネ）設置者である。なお、設置後の補助対象設備でのエネルギー使用量のモニタリングはABC 工業株式会社が行う。
B35: 削減協力者に関する情報
C36: 削減協力者の名称 | N36: 削減協力者の位置付け
C37: 株式会社△△△ | N37: ABC工業株式会社SHIFT工場内で製品加工の一部を実施している事業者。
C44: ※目標保有者以外に、削減事業に協力する法人（テナント等）を記入してください。

Sheet 2. 敷地境界等
B2: 2. | C2: 敷地境界等に関する情報
BA5: セル色の表示／非表示
B6: 敷地図及び排出源 | BA6: FALSE
B50: 敷地境界の識別方法 | J50: 工場立地法の届出書類より識別
B52: 排出源の特定方法 | J52: 消防法届出と設備リストにより特定、調達・購入品リストを確認。 （燃料使用施設については、消防法届出を元に特定したほか、新たな設備の追加や廃止があれば、特定した排出源の見直しを行っている。更に、毎月、調達・購入品リストを確認して、算定対象となる物品を購入していないかを確認している。）
B54: 基準年度中の 変更 | F54: 敷地境界 | H54: 無 | J54: 変更の概要
F56: 排出源 | H56: 有 | J56: 変更の概要 | N56: ガスボイラ―4台を平成30年4月に導入した。
B58: 算定対象範囲 (バウンダリ) 外への供給 | F58: 電気 | H58: 有 | J58: 供給形態 | N58: B | P58: 供給先 | S58: 隣接する冷温商事に電気を供給している。
F60: 熱 | H60: 有 | J60: 供給形態 | N60: B | P60: 供給先 | S60: 隣接する冷温商事に熱を供給している。
B62: 1） 電気・熱の工場・事業場外への供給に関しては、以下の供給形態を選択してください。
B63: A：工場・事業場内で燃料を使用して電気や熱を発生させ、工場・事業場外へ供給した場合
B64: B：電気事業者や熱供給業者から電気や熱の供給を受け、工場・事業場外へ供給した場合

Sheet 3. 算定体制
CD1: セル色の表示／非表示
B2: 3. | C2: 算定体制 | CD2: FALSE
B4: 算定責任者
B5: 氏名 | F5: 田中 太郎 | P5: 部署・役職 | T5: 総務部 部長
B8: 算定担当者
B9: 氏名 | L9: 部署・役職 | X9: 電話 | AF9: メールアドレス
B10: 佐藤 花子 | L10: 総務部 | X10: ○○○○-□□-△△△△ | AF10: sato-hanako@○○.co.jp
B12: 算定体制
B62: ※ CO2排出量算定のための組織体制図を図示してください。図示にあたっては、算定に使用するデータの
B63: 収集過程がわかるように、「算定責任者」及び「算定担当者」の役割も含めて明示してください。

Sheet 4. 排出源リスト
B2: 4. | C2: 排出源に関する情報 | AE2: セル色の表示／非表示
AE3: FALSE
C4: 排出源No. | D4: 排出源 | E4: 排出源の 種類 | F4: 算定対象 | I4: 対象外とする理由 (「C.その他」を選択した場合には、 右列の備考欄に理由を入力してください） | K4: 外部 供給 | L4: 備考
F5: 令和3 | G5: 令和4 | H5: 令和5
F6: 年度 | G6: 年度 | H6: 年度
C7: 1 | D7: 中央受電所 | E7: ② | F7: ○ | G7: ○ | H7: ○ | J7: =IFERROR(VLOOKUP(I7,$AI$23:$AJ$25,2,FALSE),"←記号を選択してください") -> ←記号を選択してください
C8: 2 | D8: ボイラ―（4台） | E8: ① | F8: × | G8: ○ (変更有) | H8: ○ | J8: =IFERROR(VLOOKUP(I8,$AI$23:$AJ$25,2,FALSE),"←記号を選択してください") -> ←記号を選択してください
C9: 3 | D9: ガラス溶融炉 | E9: ① | F9: ○ | G9: ○ | H9: ○ | J9: ←記号を選択してください
C10: 4 | D10: コージェネレーション | E10: ① | F10: ○ | G10: ○ | H10: ○ | J10: ←記号を選択してください | K10: ○ | L10: 電気・熱の一部を外部へ供給
C11: 5 | D11: 生石灰製造用ロータリーキルン | E11: ④ | F11: ○ | G11: ○ | H11: ○ | J11: ←記号を選択してください
C12: 6 | D12: 廃棄物焼却炉 | E12: ③ | F12: × | G12: × | H12: × | I12: B | J12: 実施ルールで規定された算定対象活動に含まれないため
C13: 7 | D13: 廃棄物焼却炉 | E13: ① | F13: ○ | G13: ○ | H13: ○ | J13: ←記号を選択してください | L13: 助燃用としてA重油を使用
C14: 8 | D14: 芝刈り機 | E14: ① | F14: × | G14: × | H14: × | I14: A | J14: 少量排出源に該当するため
J15: ←記号を選択してください
J16: ←記号を選択してください
J17: ←記号を選択してください
J18: ←記号を選択してください
J19: ←記号を選択してください
B21: 1) | C21: 排出源の種類（詳しくは、実施ルール「３．排出量の算定」を参照）：①～④のいずれかを選択してください。
C22: ①燃料の使用に伴うCO2排出、②電気・熱の使用に伴うCO2排出、③廃棄物の焼却・使用等に伴うCO2排出、④工業プロセスに伴うCO2排出 | AE22: 排出源の種類 | AG22: 算定対象 | AI22: 対象外の理由
B23: 2) | C23: 算定対象：以下のいずれかを選択してください。 | AE23: ①燃料の使用 | AG23: ○ | AI23: A | AJ23: 少量排出源に該当するため
C24: 実施ルールに基づきCO2排出量を算定・検証し、自社のCO2排出量に含める活動に該当する場合には「○」、該当しない場合には「×」を選択してください。 | AE24: ②電気・熱の使用 | AG24: ○ (変更有) | AI24: B | AJ24: 実施ルールで規定された算定対象活動に含まれないため
C25: 年度の途中で設備の統廃合による使用中止、新設による使用開始等の変更があった場合には、「○（変更有）」を選択してください。 | AE25: ③廃棄物の焼却・使用等 | AG25: × | AI25: C | AJ25: その他 （備考欄に理由を入力してください）
B26: 3) | C26: 算定の対象外とする理由：以下のいずれかを選択してください。 | AE26: ④工業プロセス
C27: A：少量排出源に該当するため、B：実施ルールで規定された算定対象活動に含まれないため、C：その他 (「C.」を選択した場合には、理由を備考欄に記載する)
B28: 4) | C28: 外部供給：
C29: 自らが外部に電気・熱を供給している排出源に該当する場合には「○」を選択してください。
B30: 5) | C30: 同種、かつ、同一のモニタリングポイントを共有する複数の排出源は、排出源NO.を一つにまとめて記載することができます。
B31: 6) | C31: 記入欄が足りない場合には、左の行番号をクリックして行全体を選択し、右クリックで「挿入」を選択することで行を追加してください。その上で、J列の数式を適用ください。

Sheet 5. モニタリングポイント
B2: 5. | C2: モニタリングポイント | BB2: セル色の表示／非表示
BB3: FALSE
C4: モニタリングポイントNo. | D4: 排出源No. | E4: 活動種別 | F4: 活動量 | K4: 単位発熱量 | M4: 排出係数 | O4: 備考 | BZ4: 活動種別＆単位発熱量種別 | CA4: 活動種別＆排出係数種別
F5: データ 把握方法 | G5: 自社管理計量器 | I5: 自己 Tier | J5: 単位 変更 | K5: 種別 | L5: 自己 Tier | M5: 種別 | N5: 自己 Tier
G6: 種類 | H6: 精度
A7: =VLOOKUP(E7,非表示_活動量と単位!$D$8:$E$75,2,FALSE) -> 1 | C7: 1 | D7: 1 | E7: 系統電力 | F7: A-1 | J7: 無 | L7: =IFERROR(VLOOKUP(K7,$CF$102:$CG$104,2,FALSE),"") ->  | M7: デフォルト値 | N7: =IFERROR(VLOOKUP(M7,$CF$102:$CG$104,2,FALSE),"") -> Tier 1 | BZ7: =$E7&$K7 -> 系統電力 | CA7: =$E7&$M7 -> 系統電力デフォルト値
A8: =VLOOKUP(E8,非表示_活動量と単位!$D$8:$E$75,2,FALSE) -> 0 | C8: 2 | D8: 2 | E8: 都市ガス | F8: A-1 | J8: 無 | K8: 供給会社提供値等 | L8: Tier 2 | M8: デフォルト値 | N8: Tier 1 | O8: 計測時体積を標準状態体積へ換算した。（供給会社に確認し、ゲージ圧は0.981kPaとした。温度は、平成29年度は17.1℃、平成30年度は16.6℃、平成31年度は16.4℃を用いた。) | BZ8: =$E8&$K8 -> 都市ガス供給会社提供値等 | CA8: =$E8&$M8 -> 都市ガスデフォルト値
A9: =VLOOKUP(E9,非表示_活動量と単位!$D$8:$E$75,2,FALSE) -> 0 | C9: 3 | D9: 3 | E9: A重油 | F9: A-1 | J9: 無 | K9: デフォルト値 | L9: Tier 1 | M9: デフォルト値 | N9: Tier 1 | O9: 在庫変動の影響は軽微のため、パターンＡ-1で把握した。 | BZ9: A重油デフォルト値 | CA9: A重油デフォルト値
A10: =VLOOKUP(E10,非表示_活動量と単位!$D$8:$E$75,2,FALSE) -> 0 | C10: 4 | D10: 4 | E10: A重油 | F10: A-1 | J10: 無 | K10: デフォルト値 | L10: Tier 1 | M10: デフォルト値 | N10: Tier 1 | O10: 在庫変動の影響は軽微のため、パターンＡ-1で把握した。 | BZ10: A重油デフォルト値 | CA10: A重油デフォルト値
A11: =VLOOKUP(E11,非表示_活動量と単位!$D$8:$E$75,2,FALSE) -> 1 | C11: 5 | D11: 4 | E11: 所内消費電力 | F11: B | G11: 普通電力量計 | H11: 検定付 | I11: Tier 3 | J11: 無 | O11: 所内消費按分用 | BZ11: 所内消費電力 | CA11: 所内消費電力
A12: =VLOOKUP(E12,非表示_活動量と単位!$D$8:$E$75,2,FALSE) -> 1 | C12: 6 | D12: 4 | E12: 外部供給電力 | F12: B | G12: 普通電力量計 | H12: 検定付 | I12: Tier 3 | J12: 無 | O12: 所内消費按分用 | BZ12: 外部供給電力 | CA12: 外部供給電力
A13: =VLOOKUP(E13,非表示_活動量と単位!$D$8:$E$75,2,FALSE) -> 1 | C13: 7 | D13: 4 | E13: 所内消費熱 | F13: B | G13: 蒸気流量計 | H13: 検定付 | I13: Tier 3 | J13: 無 | O13: 所内消費按分用 | BZ13: 所内消費熱 | CA13: 所内消費熱
A14: =VLOOKUP(E14,非表示_活動量と単位!$D$8:$E$75,2,FALSE) -> 1 | C14: 8 | D14: 4 | E14: 外部供給熱 | F14: B | G14: 蒸気流量計 | H14: 検定付 | I14: Tier 3 | J14: 無 | O14: 所内消費按分用 | BZ14: 外部供給熱 | CA14: 外部供給熱
A15: =VLOOKUP(E15,非表示_活動量と単位!$D$8:$E$75,2,FALSE) -> 1 | C15: 9 | D15: 5 | E15: 生石灰の製造（原料：石灰石） | F15: その他 | G15: ホッパースケール | H15: 未検定 | J15: 無 | M15: デフォルト値 | N15: Tier 1 | BZ15: 生石灰の製造（原料：石灰石） | CA15: 生石灰の製造（原料：石灰石）デフォルト値
A16: =VLOOKUP(E16,非表示_活動量と単位!$D$8:$E$75,2,FALSE) -> 0 | C16: 10 | D16: 7 | E16: A重油 | F16: A-2 | J16: 無 | K16: デフォルト値 | L16: Tier 1 | M16: デフォルト値 | N16: Tier 1 | O16: 購買伝票 | BZ16: A重油デフォルト値 | CA16: A重油デフォルト値
A17: =VLOOKUP(E17,非表示_活動量と単位!$D$8:$E$75,2,FALSE) -> 0 | C17: 11 | D17: 7 | E17: A重油 | F17: A-2 | J17: 無 | K17: デフォルト値 | L17: Tier 1 | M17: デフォルト値 | N17: Tier 1 | O17: 重油タンク在庫量 | BZ17: A重油デフォルト値 | CA17: A重油デフォルト値
A18: =VLOOKUP(E18,非表示_活動量と単位!$D$8:$E$75,2,FALSE) -> 
A19: =VLOOKUP(E19,非表示_活動量と単位!$D$8:$E$75,2,FALSE) -> 
A20: =VLOOKUP(E20,非表示_活動量と単位!$D$8:$E$75,2,FALSE) -> 
A21: =VLOOKUP(E21,非表示_活動量と単位!$D$8:$E$75,2,FALSE) -> 
A22: =VLOOKUP(E22,非表示_活動量と単位!$D$8:$E$75,2,FALSE) -> 
A23: =VLOOKUP(E23,非表示_活動量と単位!$D$8:$E$75,2,FALSE) -> 
A24: =VLOOKUP(E24,非表示_活動量と単位!$D$8:$E$75,2,FALSE) -> 
A25: =VLOOKUP(E25,非表示_活動量と単位!$D$8:$E$75,2,FALSE) -> 
A26: =VLOOKUP(E26,非表示_活動量と単位!$D$8:$E$75,2,FALSE) -> 
B28: 1) | C28: 活動種別
C29: 選択肢に該当するものがない場合は「その他」を選択し、備考欄に具体的に記載してください。
B30: 2) | C30: データ把握方法（詳しくはモニタリング報告ガイドライン第I部4.1参照）
C31: A-1：購買量に基づく方法、A-2：購買量と在庫量変化に基づく方法、B：実測に基づく方法、その他：左記以外
B32: 3) | C32: 自社管理計量器の種類及び精度
C33: データ把握方法が「B：実測」又は「その他」の場合に記入してください（モニタリング報告ガイドライン第I部4.3参照)。
C34: 精度の定義については、モニタリング報告ガイドライン第I部4.5参照してください。
B35: 4) | C35: 活動量の自己Tier
C36: データ把握方法が「B：実測」の場合に記入してください（モニタリング報告ガイドライン第I部4.3参照）。
B37: 5) | C37: 単位変更
C38: 都市ガスやLPGなどについて、標準状態への換算や、体積→重量換算等、伝票の値や実測値の単位変更の有無を示してください。
C39: 「有」を選択した場合には、備考に換算係数の把握方法等を記載してください。
B40: 6) | C40: 欄が足りない場合には、空欄行全体を選択（行番号をクリック）し、コピーした後、「コピーしたセルの挿入」により行を追加（表内に挿入）してください。
BY101: 活動種別 | BZ101: 条件付き書式用
BY102: 系統電力 | BZ102: 1 | CB102: A-1 | CD102: Tier 1 | CF102: デフォルト値 | CG102: Tier 1
BY103: 輸入原料炭 | BZ103: 0 | CB103: A-2 | CD103: Tier 2 | CF103: 供給会社提供値等 | CG103: Tier 2
BY104: 国産一般炭 | BZ104: 0 | CB104: B | CD104: Tier 3 | CF104: 実測値 | CG104: Tier 3
BY105: 輸入一般炭 | BZ105: 0 | CB105: その他 | CD105: Tier 4
BY106: 輸入無煙炭 | BZ106: 0
BY107: コークス | BZ107: 0
BY108: 原油 | BZ108: 0 | CB108: A-1：購買量
BY109: ガソリン | BZ109: 0 | CB109: A-2：購買量と在庫量
BY110: ナフサ | BZ110: 0 | CB110: B：実測
BY111: ジェット燃料 | BZ111: 0 | CB111: その他
BY112: 灯油 | BZ112: 0
BY113: 軽油 | BZ113: 0
BY114: A重油 | BZ114: 0
BY115: B重油 | BZ115: 0
BY116: C重油 | BZ116: 0
BY117: 潤滑油 | BZ117: 0
BY118: オイルコークス | BZ118: 0
BY119: LPG | BZ119: 0
BY120: 天然ガス | BZ120: 0
BY121: LNG | BZ121: 0
BY122: 都市ガス | BZ122: 0
BY123: コールタール | BZ123: 0
BY124: アスファルト | BZ124: 0
BY125: NGL・コンデンセート | BZ125: 0
BY126: 製油所ガス | BZ126: 0
BY127: コークス炉ガス | BZ127: 0
BY128: 高炉ガス | BZ128: 0
BY129: 転炉ガス | BZ129: 0
BY130: 産業用蒸気 | BZ130: 1
BY131: 温水 | BZ131: 1
BY132: 冷水 | BZ132: 1
BY133: 蒸気（産業用以外） | BZ133: 1
BY134: 所内消費電力 | BZ134: 1
BY135: 外部供給電力 | BZ135: 1
BY136: 所内消費熱 | BZ136: 1
BY137: 外部供給熱 | BZ137: 1
BY138: ①廃油 | BZ138: 1
BY139: ②廃合成繊維 | BZ139: 1
BY140: ③廃ゴムタイヤ | BZ140: 1
BY141: ④ ②③以外の廃プラスチック類（産業廃棄物） | BZ141: 1
BY142: ⑤ ②③④以外の廃プラスチック類（一般廃棄物） | BZ142: 1
BY143: 廃油から製造される燃料油 | BZ143: 1
BY144: 廃プラスチック類から製造される燃料油 | BZ144: 1
BY145: ごみ固形燃料（RPF） | BZ145: 1
BY146: ごみ固形燃料（RDF） | BZ146: 1
BY147: セメントの製造 | BZ147: 1
BY148: 生石灰の製造 | BZ148: 1
BY149: 石灰石（タンカル）・ドロマイトの使用 | BZ149: 1
BY150: ソーダ灰の製造 | BZ150: 1
BY151: ソーダ灰の使用 | BZ151: 1
BY152: アンモニアの製造（原料：石炭） | BZ152: 1
BY153: アンモニアの製造（原料：ナフサ） | BZ153: 1
BY154: アンモニアの製造（原料：オイルコークス） | BZ154: 1
BY155: アンモニアの製造（原料：LPG） | BZ155: 1
BY156: アンモニアの製造（原料：LNG） | BZ156: 1
BY157: アンモニアの製造（原料：天然ガス(LNG除く)） | BZ157: 1
BY158: アンモニアの製造（原料：コークス炉ガス） | BZ158: 1
BY159: アンモニアの製造（原料：石油系炭化水素ガス） | BZ159: 1
BY160: シリコンカーバイドの製造 | BZ160: 1
BY161: カルシウムカーバイドの製造（石灰石起源・還元剤起源） | BZ161: 1
BY162: エチレンの製造 | BZ162: 1
BY163: カルシウムカーバイドを原料としたアセチレンの使用（燃焼） | BZ163: 1
BY164: 電気炉を使用した粗鋼の製造 | BZ164: 1
BY165: 液化炭酸ガスの使用 | BZ165: 1
BY166: その他（要：備考欄への詳細記載） | BZ166: 0

Sheet 6-1. CO2排出量①
B2: =MID(CELL("filename",C2),FIND("]",CELL("filename",C2))+1,3)&"．" -> 6-1． | C2: 年間CO2排出量（工場・事業場全体） | E2: =IF(OR('4. 排出源リスト'!F5="",'4. 排出源リスト'!F5="---"),"---"&"年度",'4. 排出源リスト'!F5&"年度") -> 令和3年度 | BN2: セル色の表示／非表示
BN3: FALSE
C4: モニタリング ポイント No. | D4: 活動種別 | E4: 活動量 | G4: 単位発熱量 | I4: CO2排出係数 | K4: CO2排出量 [t-CO2] | L4: 備考 | M4: 活動量 | N4: 年度開始 時点の 在庫量 | O4: 月別の購買量 ※「活動量」の単位（F列）と整合するように記入ください。 | AA4: 年度終了 時点の 在庫量 | AB4: 製品中への注入量 | AC4: GJ換算
E6: 量 | F6: 単位 | G6: 係数 | H6: 単位 | I6: 係数 | J6: 単位 | M6: 把握対象 | O6: ４月 | P6: ５月 | Q6: ６月 | R6: ７月 | S6: ８月 | T6: ９月 | U6: １０月 | V6: １１月 | W6: １２月 | X6: １月 | Y6: ２月 | Z6: ３月 | AC6: 対象 | AD6: GJ換算量
A7: =VLOOKUP(D7,非表示_活動量と単位!$D$8:$E$75,2,FALSE) -> 1 | C7: 1 | D7: =IF($C7="","",VLOOKUP($C7,モニタリングポイント,3,FALSE)) -> 系統電力 | E7: =(SUM(O7:Z7)+(N7-AA7)-AB7) -> 480000 | F7: =IF($D7="","",VLOOKUP($D7,活動の種別と単位,4,FALSE)) -> kWh | G7: =IF($D7="","",IF(VLOOKUP($C7,モニタリングポイント,9,FALSE)="デフォルト値",VLOOKUP($D7,デフォルト値,3,FALSE),"")) ->  | H7: =IF($D7="","",VLOOKUP($D7,活動の種別と単位,5,FALSE)) -> --- | I7: =IF($D7="","",IF(VLOOKUP($C7,モニタリングポイント,11,FALSE)="デフォルト値",VLOOKUP($D7,デフォルト値,5,FALSE),"")) -> 0.000436 | J7: =IF($D7="","",VLOOKUP($D7,活動の種別と単位,6,FALSE)) -> t-CO2/kWh | K7: =IF($D7="","",IF($A7=0,E7*G7*I7,E7*I7)) -> 209.28 | M7: =IF($D7="","",VLOOKUP($D7,活動の種別と単位,3,FALSE)) -> 使用量 | O7: 40000 | P7: 40000 | Q7: 40000 | R7: 40000 | S7: 40000 | T7: 40000 | U7: 40000 | V7: 40000 | W7: 40000 | X7: 40000 | Y7: 40000 | Z7: 40000 | AC7: =IF($D7="","",VLOOKUP($D7,活動の種別と単位,7,FALSE)) -> 対象 | AD7: =IF($D7="","",IF(AC7="---","---",IF(OR($D7="系統電力",$D7="産業用蒸気",$D7="温水",$D7="冷水",$D7="蒸気（産業用以外）"),E7*VLOOKUP($D7,GJ換算係数,2,FALSE),E7*G7))) -> 4147.2
A8: =VLOOKUP(D8,非表示_活動量と単位!$D$8:$E$75,2,FALSE) -> 0 | C8: 2 | D8: 都市ガス | E8: =(SUM(O8:Z8)+(N8-AA8)-AB8) -> 120 | F8: 千Nm3 | G8: 45 | H8: =IF($D8="","",VLOOKUP($D8,活動の種別と単位,5,FALSE)) -> GJ/千Nm3 | I8: 0.0513 | J8: t-CO2/GJ | K8: 277.02 | M8: 使用量 | O8: 10 | P8: 10 | Q8: 10 | R8: 10 | S8: 10 | T8: 10 | U8: 10 | V8: 10 | W8: 10 | X8: 10 | Y8: 10 | Z8: 10 | AC8: =IF($D8="","",VLOOKUP($D8,活動の種別と単位,7,FALSE)) -> 対象 | AD8: 5400
A9: =VLOOKUP(D9,非表示_活動量と単位!$D$8:$E$75,2,FALSE) -> 0 | C9: 3 | D9: A重油 | E9: 900 | F9: kl | G9: =IF($D9="","",IF(VLOOKUP($C9,モニタリングポイント,9,FALSE)="デフォルト値",VLOOKUP($D9,デフォルト値,3,FALSE),"")) -> 38.9 | H9: GJ/kl | I9: 0.0708 | J9: t-CO2/GJ | K9: 2478.708 | M9: 使用量 | O9: 300 | R9: 300 | V9: 300 | AC9: 対象 | AD9: 35010
A10: =VLOOKUP(D10,非表示_活動量と単位!$D$8:$E$75,2,FALSE) -> 0 | C10: 4 | D10: A重油 | E10: 120 | F10: kl | G10: 38.9 | H10: GJ/kl | I10: 0.0708 | J10: t-CO2/GJ | K10: 330.4944 | L10: モニタリングポイント4～8。活動量は所内消費電力、所内消費熱分（按分方法は8.備考参照） | M10: 使用量 | Z10: 120 | AC10: 対象 | AD10: 4668
A11: =VLOOKUP(D11,非表示_活動量と単位!$D$8:$E$75,2,FALSE) -> 1 | C11: 9 | D11: 生石灰の製造（原料：石灰石） | E11: 2100 | F11: t | H11: --- | I11: 0.428 | J11: t-CO2/t | K11: =IF($D11="","",IF($A11=0,E11*G11*I11,E11*I11)) -> 898.8 | M11: 原料使用量 | O11: 500 | R11: 600 | V11: 500 | Z11: 500 | AC11: --- | AD11: =IF($D11="","",IF(AC11="---","---",IF(OR($D11="系統電力",$D11="産業用蒸気",$D11="温水",$D11="冷水",$D11="蒸気（産業用以外）"),E11*VLOOKUP($D11,GJ換算係数,2,FALSE),E11*G11))) -> ---
A12: =VLOOKUP(D12,非表示_活動量と単位!$D$8:$E$75,2,FALSE) -> 0 | C12: 10 | D12: A重油 | E12: 220 | F12: kl | G12: 38.9 | H12: GJ/kl | I12: 0.0708 | J12: t-CO2/GJ | K12: 605.9064 | M12: 使用量 | O12: 30 | P12: 15 | Q12: 15 | R12: 15 | S12: 30 | T12: 15 | U12: 15 | V12: 15 | W12: 30 | X12: 15 | Y12: 15 | Z12: 20 | AA12: 10 | AC12: 対象 | AD12: 8558
A13: =VLOOKUP(D13,非表示_活動量と単位!$D$8:$E$75,2,FALSE) -> 0 | C13: 11 | D13: A重油 | E13: 30 | F13: kl | G13: 38.9 | H13: GJ/kl | I13: 0.0708 | J13: t-CO2/GJ | K13: 82.6236 | M13: 使用量 | N13: 30 | AC13: 対象 | AD13: 1167
A14: =VLOOKUP(D14,非表示_活動量と単位!$D$8:$E$75,2,FALSE) ->  | E14: 0
A15: =VLOOKUP(D15,非表示_活動量と単位!$D$8:$E$75,2,FALSE) ->  | E15: 0
A16: =VLOOKUP(D16,非表示_活動量と単位!$D$8:$E$75,2,FALSE) ->  | E16: 0
A17: =VLOOKUP(D17,非表示_活動量と単位!$D$8:$E$75,2,FALSE) ->  | E17: 0
A18: =VLOOKUP(D18,非表示_活動量と単位!$D$8:$E$75,2,FALSE) ->  | E18: 0
A19: =VLOOKUP(D19,非表示_活動量と単位!$D$8:$E$75,2,FALSE) ->  | E19: 0
A20: =VLOOKUP(D20,非表示_活動量と単位!$D$8:$E$75,2,FALSE) ->  | E20: 0 | K20: =IF($D20="","",IF($A20=0,E20*G20*I20,E20*I20)) -> 
A21: =VLOOKUP(D21,非表示_活動量と単位!$D$8:$E$75,2,FALSE) ->  | E21: 0
A22: =IF($G22="",1,0) -> 1 | D22: その他（要：備考欄への詳細記載） | E22: 0 | K22: =IF($C22="","",IF($A22=0,E22*G22*I22,E22*I22)) ->  | AC22: --- | AD22: ---
A23: 1 | D23: その他（要：備考欄への詳細記載） | E23: 0 | K23: =IF($C23="","",IF($A23=0,E23*G23*I23,E23*I23)) ->  | AC23: --- | AD23: =IF($D23="","",IF(AC23="---","---",IF(OR($D23="系統電力",$D23="産業用蒸気",$D23="温水",$D23="冷水",$D23="蒸気（産業用以外）"),E23*VLOOKUP($D23,GJ換算係数,2,FALSE),E23*G23))) -> ---
A24: 1 | D24: その他（要：備考欄への詳細記載） | E24: 0 | AC24: --- | AD24: ---
A25: 1 | D25: その他（要：備考欄への詳細記載） | E25: 0 | AC25: --- | AD25: ---
A26: 1 | D26: その他（要：備考欄への詳細記載） | E26: 0 | AC26: --- | AD26: ---
A27: 1 | D27: その他（要：備考欄への詳細記載） | E27: 0 | AC27: --- | AD27: =IF($D27="","",IF(AC27="---","---",IF(OR($D27="系統電力",$D27="産業用蒸気",$D27="温水",$D27="冷水",$D27="蒸気（産業用以外）"),E27*VLOOKUP($D27,GJ換算係数,2,FALSE),E27*G27))) -> ---
A28: 1 | D28: その他（要：備考欄への詳細記載） | E28: 0 | AC28: --- | AD28: ---
A29: 1 | D29: その他（要：備考欄への詳細記載） | E29: 0 | AC29: --- | AD29: =IF($D29="","",IF(AC29="---","---",IF(OR($D29="系統電力",$D29="産業用蒸気",$D29="温水",$D29="冷水",$D29="蒸気（産業用以外）"),E29*VLOOKUP($D29,GJ換算係数,2,FALSE),E29*G29))) -> ---
A30: 1 | D30: その他（要：備考欄への詳細記載） | E30: 0 | AC30: --- | AD30: ---
A31: 1 | D31: その他（要：備考欄への詳細記載） | E31: 0 | AC31: --- | AD31: ---
I32: CO2排出量の合計 | K32: =IF(COUNTIF($E$2,"---*"),"---",SUM($K$7:$K$31)+SUM($K$48:$K$102)) -> 4882.8324 | AC32: GJ換算量の合計(b) | AD32: =IF(COUNTIF($E$2,"---*"),"---",SUM($AD$7:$AD$31)+SUM($AD$48:$AD$102)) -> 58950.2
I33: エネルギー起源 CO2排出量の合計(a) | K33: =IF(COUNTIF($E$2,"---*"),"---",SUMIFS(K7:K31,AC7:AC31,"対象")+SUMIFS(K48:K102,AC48:AC102,"対象")) -> 3984.0324 | AC33: 脱炭素化指標(a)/(b) | AD33: =IFERROR(K33/AD32,"---") -> 0.06758301753
B35: 1） | C35: 年度開始時点の在庫量（N列）・月別の購買量（O～Z列）・年度終了時点の在庫量（AA列）・製品中への注入量（AB列）は活動量単位未満を切り捨てずに入力してください。
B36: 2) | C36: 電気・熱を工場・事業場外に供給している場合の活動量
C37: A：工場・事業場内で燃料を使用して電気や熱を発生させ、工場・事業場外へ供給した場合
C38: →所内消費分の活動量を計算し、活動量欄に記載してください。計算根拠は「8. 備考」に記載してください。（記入例及びモニタリング報告ガイドライン第II部1.4.1を参照）
C39: B：電気事業者や熱供給業者から電気や熱の供給を受け、工場・事業場外へ供給した場合
C40: →外部への供給量をマイナスの値として活動量欄に記載ください。（記入例及びモニタリング報告ガイドライン第II部1.4.2を参照）
B41: 3) | C41: 活動種別が「その他」の場合には、指定されている行を使用し、活動量単位や係数等の必要な情報を入力してください。
B42: 4) | C42: 記入欄が足りない場合には、下表に記入してください。
C45: モニタリング ポイント No. | D45: 活動種別 | E45: 活動量 | G45: 単位発熱量 | I45: CO2排出係数 | K45: CO2排出量 [t-CO2] | L45: 備考 | M45: 活動量 | N45: 年度開始 時点の 在庫量 | O45: 月別の購買量 ※「活動量」の単位（F列）と整合するように記入ください。 | AA45: 年度終了 時点の 在庫量 | AB45: 製品中への注入量 | AC45: GJ換算
E47: 量 | F47: 単位 | G47: 係数 | H47: 単位 | I47: 係数 | J47: 単位 | M47: 把握対象 | O47: ４月 | P47: ５月 | Q47: ６月 | R47: ７月 | S47: ８月 | T47: ９月 | U47: １０月 | V47: １１月 | W47: １２月 | X47: １月 | Y47: ２月 | Z47: ３月 | AC47: 対象 | AD47: GJ換算量
A48: =VLOOKUP(D48,非表示_活動量と単位!$D$8:$E$75,2,FALSE) ->  | D48: =IF($C48="","",VLOOKUP($C48,モニタリングポイント,3,FALSE)) ->  | E48: =TRUNC((SUM(O48:Z48)+(N48-AA48)-AB48),0) -> 0 | F48: =IF($D48="","",VLOOKUP($D48,活動の種別と単位,4,FALSE)) ->  | G48: =IF($D48="","",IF(VLOOKUP($C48,モニタリングポイント,9,FALSE)="デフォルト値",VLOOKUP($D48,デフォルト値,3,FALSE),"")) ->  | H48: =IF($D48="","",VLOOKUP($D48,活動の種別と単位,5,FALSE)) ->  | I48: =IF($D48="","",IF(VLOOKUP($C48,モニタリングポイント,11,FALSE)="デフォルト値",VLOOKUP($D48,デフォルト値,5,FALSE),"")) ->  | J48: =IF($D48="","",VLOOKUP($D48,活動の種別と単位,6,FALSE)) ->  | K48: =IF($D48="","",IF($A48=0,E48*G48*I48,E48*I48)) ->  | M48: =IF($D48="","",VLOOKUP($D48,活動の種別と単位,3,FALSE)) ->  | AC48: =IF($D48="","",VLOOKUP($D48,活動の種別と単位,7,FALSE)) ->  | AD48: =IF($D48="","",IF(AC48="---","---",IF(OR($D48="系統電力",$D48="産業用蒸気",$D48="温水",$D48="冷水",$D48="蒸気（産業用以外）"),E48*VLOOKUP($D48,GJ換算係数,2,FALSE),E48*G48))) -> 
A49: =VLOOKUP(D49,非表示_活動量と単位!$D$8:$E$75,2,FALSE) ->  | E49: 0 | K49: =IF($D49="","",IF($A49=0,E49*G49*I49,E49*I49)) ->  | AD49: =IF($D49="","",IF(AC49="---","---",IF(OR($D49="系統電力",$D49="産業用蒸気",$D49="温水",$D49="冷水",$D49="蒸気（産業用以外）"),E49*VLOOKUP($D49,GJ換算係数,2,FALSE),E49*G49))) -> 
A50: =VLOOKUP(D50,非表示_活動量と単位!$D$8:$E$75,2,FALSE) ->  | E50: 0
A51: =VLOOKUP(D51,非表示_活動量と単位!$D$8:$E$75,2,FALSE) ->  | E51: 0
A52: =VLOOKUP(D52,非表示_活動量と単位!$D$8:$E$75,2,FALSE) ->  | E52: 0
A53: =VLOOKUP(D53,非表示_活動量と単位!$D$8:$E$75,2,FALSE) ->  | E53: 0
A54: =VLOOKUP(D54,非表示_活動量と単位!$D$8:$E$75,2,FALSE) ->  | E54: 0
A55: =VLOOKUP(D55,非表示_活動量と単位!$D$8:$E$75,2,FALSE) ->  | E55: 0
A56: =VLOOKUP(D56,非表示_活動量と単位!$D$8:$E$75,2,FALSE) ->  | E56: 0
A57: =VLOOKUP(D57,非表示_活動量と単位!$D$8:$E$75,2,FALSE) ->  | E57: 0
A58: =VLOOKUP(D58,非表示_活動量と単位!$D$8:$E$75,2,FALSE) ->  | E58: 0
A59: =VLOOKUP(D59,非表示_活動量と単位!$D$8:$E$75,2,FALSE) ->  | E59: 0
A60: =VLOOKUP(D60,非表示_活動量と単位!$D$8:$E$75,2,FALSE) ->  | E60: 0
A61: =VLOOKUP(D61,非表示_活動量と単位!$D$8:$E$75,2,FALSE) ->  | E61: 0
A62: =VLOOKUP(D62,非表示_活動量と単位!$D$8:$E$75,2,FALSE) ->  | E62: 0
A63: =VLOOKUP(D63,非表示_活動量と単位!$D$8:$E$75,2,FALSE) ->  | E63: 0
A64: =VLOOKUP(D64,非表示_活動量と単位!$D$8:$E$75,2,FALSE) ->  | E64: 0
A65: =VLOOKUP(D65,非表示_活動量と単位!$D$8:$E$75,2,FALSE) ->  | E65: 0
A66: =VLOOKUP(D66,非表示_活動量と単位!$D$8:$E$75,2,FALSE) ->  | E66: 0
A67: =VLOOKUP(D67,非表示_活動量と単位!$D$8:$E$75,2,FALSE) ->  | E67: 0
A68: =VLOOKUP(D68,非表示_活動量と単位!$D$8:$E$75,2,FALSE) ->  | E68: 0
A69: =VLOOKUP(D69,非表示_活動量と単位!$D$8:$E$75,2,FALSE) ->  | E69: 0
A70: =VLOOKUP(D70,非表示_活動量と単位!$D$8:$E$75,2,FALSE) ->  | E70: 0 | AD70: =IF($D70="","",IF(AC70="---","---",IF(OR($D70="系統電力",$D70="産業用蒸気",$D70="温水",$D70="冷水",$D70="蒸気（産業用以外）"),E70*VLOOKUP($D70,GJ換算係数,2,FALSE),E70*G70))) -> 
A71: =VLOOKUP(D71,非表示_活動量と単位!$D$8:$E$75,2,FALSE) ->  | E71: 0
A72: =VLOOKUP(D72,非表示_活動量と単位!$D$8:$E$75,2,FALSE) ->  | E72: 0
A73: =VLOOKUP(D73,非表示_活動量と単位!$D$8:$E$75,2,FALSE) ->  | E73: 0
A74: =VLOOKUP(D74,非表示_活動量と単位!$D$8:$E$75,2,FALSE) ->  | E74: 0
A75: =VLOOKUP(D75,非表示_活動量と単位!$D$8:$E$75,2,FALSE) ->  | E75: 0
A76: =VLOOKUP(D76,非表示_活動量と単位!$D$8:$E$75,2,FALSE) ->  | E76: 0
A77: =VLOOKUP(D77,非表示_活動量と単位!$D$8:$E$75,2,FALSE) ->  | E77: 0
A78: =VLOOKUP(D78,非表示_活動量と単位!$D$8:$E$75,2,FALSE) ->  | E78: 0
A79: =VLOOKUP(D79,非表示_活動量と単位!$D$8:$E$75,2,FALSE) ->  | E79: 0
A80: =VLOOKUP(D80,非表示_活動量と単位!$D$8:$E$75,2,FALSE) ->  | D80: =IF($C80="","",VLOOKUP($C80,モニタリングポイント,3,FALSE)) ->  | E80: 0 | G80: =IF($D80="","",IF(VLOOKUP($C80,モニタリングポイント,9,FALSE)="デフォルト値",VLOOKUP($D80,デフォルト値,3,FALSE),"")) ->  | I80: =IF($D80="","",IF(VLOOKUP($C80,モニタリングポイント,11,FALSE)="デフォルト値",VLOOKUP($D80,デフォルト値,5,FALSE),"")) -> 
A81: =VLOOKUP(D81,非表示_活動量と単位!$D$8:$E$75,2,FALSE) ->  | E81: 0
A82: =VLOOKUP(D82,非表示_活動量と単位!$D$8:$E$75,2,FALSE) ->  | E82: 0
A83: =VLOOKUP(D83,非表示_活動量と単位!$D$8:$E$75,2,FALSE) ->  | E83: 0
A84: =VLOOKUP(D84,非表示_活動量と単位!$D$8:$E$75,2,FALSE) ->  | E84: 0
A85: =VLOOKUP(D85,非表示_活動量と単位!$D$8:$E$75,2,FALSE) ->  | E85: 0
A86: =VLOOKUP(D86,非表示_活動量と単位!$D$8:$E$75,2,FALSE) ->  | E86: 0
A87: =VLOOKUP(D87,非表示_活動量と単位!$D$8:$E$75,2,FALSE) ->  | E87: 0
A88: =VLOOKUP(D88,非表示_活動量と単位!$D$8:$E$75,2,FALSE) ->  | E88: 0 | AD88: =IF($D88="","",IF(AC88="---","---",IF(OR($D88="系統電力",$D88="産業用蒸気",$D88="温水",$D88="冷水",$D88="蒸気（産業用以外）"),E88*VLOOKUP($D88,GJ換算係数,2,FALSE),E88*G88))) -> 
A89: =VLOOKUP(D89,非表示_活動量と単位!$D$8:$E$75,2,FALSE) ->  | E89: 0
A90: =VLOOKUP(D90,非表示_活動量と単位!$D$8:$E$75,2,FALSE) ->  | E90: 0
A91: =VLOOKUP(D91,非表示_活動量と単位!$D$8:$E$75,2,FALSE) ->  | E91: 0
A92: =VLOOKUP(D92,非表示_活動量と単位!$D$8:$E$75,2,FALSE) ->  | E92: 0
A93: =VLOOKUP(D93,非表示_活動量と単位!$D$8:$E$75,2,FALSE) ->  | E93: 0
A94: =VLOOKUP(D94,非表示_活動量と単位!$D$8:$E$75,2,FALSE) ->  | E94: 0
A95: =VLOOKUP(D95,非表示_活動量と単位!$D$8:$E$75,2,FALSE) ->  | E95: 0
A96: =VLOOKUP(D96,非表示_活動量と単位!$D$8:$E$75,2,FALSE) ->  | E96: 0
A97: =VLOOKUP(D97,非表示_活動量と単位!$D$8:$E$75,2,FALSE) ->  | E97: 0
A98: =VLOOKUP(D98,非表示_活動量と単位!$D$8:$E$75,2,FALSE) ->  | E98: 0
A99: =VLOOKUP(D99,非表示_活動量と単位!$D$8:$E$75,2,FALSE) ->  | E99: 0
A100: =VLOOKUP(D100,非表示_活動量と単位!$D$8:$E$75,2,FALSE) ->  | E100: 0
A101: =VLOOKUP(D101,非表示_活動量と単位!$D$8:$E$75,2,FALSE) ->  | E101: 0
A102: =VLOOKUP(D102,非表示_活動量と単位!$D$8:$E$75,2,FALSE) ->  | E102: 0
DJ117: 単位
DJ118: t
DJ119: kl
DJ120: 千Nm3
DJ121: kWh
DJ122: GJ

Sheet 6-2. CO2排出量②
B2: =MID(CELL("filename",C2),FIND("]",CELL("filename",C2))+1,3)&"．" -> 6-2． | C2: 年間CO2排出量（工場・事業場全体） | E2: =IF(OR('4. 排出源リスト'!G5="",'4. 排出源リスト'!G5="---"),"---"&"年度",'4. 排出源リスト'!G5&"年度") -> 令和4年度 | BP2: セル色の表示／非表示
BP3: FALSE
C4: モニタリング ポイント No. | D4: 活動種別 | E4: 活動量 | G4: 単位発熱量 | I4: CO2排出係数 | K4: CO2排出量 [t-CO2] | L4: 備考 | M4: 活動量 | N4: 年度開始 時点の 在庫量 | O4: 月別の購買量 ※「活動量」の単位（F列）と整合するように記入ください。 | AA4: 年度終了 時点の 在庫量 | AB4: 製品中への注入量 | AC4: GJ換算
E6: 量 | F6: 単位 | G6: 係数 | H6: 単位 | I6: 係数 | J6: 単位 | M6: 把握対象 | O6: ４月 | P6: ５月 | Q6: ６月 | R6: ７月 | S6: ８月 | T6: ９月 | U6: １０月 | V6: １１月 | W6: １２月 | X6: １月 | Y6: ２月 | Z6: ３月 | AC6: 対象 | AD6: GJ換算量
A7: =VLOOKUP(D7,非表示_活動量と単位!$D$8:$E$75,2,FALSE) -> 1 | C7: 1 | D7: =IF($C7="","",VLOOKUP($C7,モニタリングポイント,3,FALSE)) -> 系統電力 | E7: =(SUM(O7:Z7)+(N7-AA7)-AB7) -> 490000 | F7: =IF($D7="","",VLOOKUP($D7,活動の種別と単位,4,FALSE)) -> kWh | G7: =IF($D7="","",IF(VLOOKUP($C7,モニタリングポイント,9,FALSE)="デフォルト値",VLOOKUP($D7,デフォルト値,3,FALSE),"")) ->  | H7: =IF($D7="","",VLOOKUP($D7,活動の種別と単位,5,FALSE)) -> --- | I7: =IF($D7="","",IF(VLOOKUP($C7,モニタリングポイント,11,FALSE)="デフォルト値",VLOOKUP($D7,デフォルト値,5,FALSE),"")) -> 0.000436 | J7: =IF($D7="","",VLOOKUP($D7,活動の種別と単位,6,FALSE)) -> t-CO2/kWh | K7: =IF($D7="","",IF($A7=0,E7*G7*I7,E7*I7)) -> 213.64 | M7: =IF($D7="","",VLOOKUP($D7,活動の種別と単位,3,FALSE)) -> 使用量 | O7: 40000 | P7: 40000 | Q7: 40000 | R7: 40000 | S7: 50000 | T7: 40000 | U7: 40000 | V7: 40000 | W7: 40000 | X7: 40000 | Y7: 40000 | Z7: 40000 | AC7: =IF($D7="","",VLOOKUP($D7,活動の種別と単位,7,FALSE)) -> 対象 | AD7: =IF($D7="","",IF(AC7="---","---",IF(OR($D7="系統電力",$D7="産業用蒸気",$D7="温水",$D7="冷水",$D7="蒸気（産業用以外）"),E7*VLOOKUP($D7,GJ換算係数,2,FALSE),E7*G7))) -> 4233.6
A8: =VLOOKUP(D8,非表示_活動量と単位!$D$8:$E$75,2,FALSE) -> 0 | C8: 2 | D8: 都市ガス | E8: =(SUM(O8:Z8)+(N8-AA8)-AB8) -> 420 | F8: 千Nm3 | G8: 45 | H8: GJ/千Nm3 | I8: 0.0513 | J8: t-CO2/GJ | K8: =IF($D8="","",IF($A8=0,E8*G8*I8,E8*I8)) -> 969.57 | M8: 使用量 | O8: 30 | P8: 30 | Q8: 50 | R8: 50 | S8: 50 | T8: 30 | U8: 30 | V8: 30 | W8: 30 | X8: 30 | Y8: 30 | Z8: 30 | AC8: 対象 | AD8: =IF($D8="","",IF(AC8="---","---",IF(OR($D8="系統電力",$D8="産業用蒸気",$D8="温水",$D8="冷水",$D8="蒸気（産業用以外）"),E8*VLOOKUP($D8,GJ換算係数,2,FALSE),E8*G8))) -> 18900
A9: =VLOOKUP(D9,非表示_活動量と単位!$D$8:$E$75,2,FALSE) -> 0 | C9: 3 | D9: A重油 | E9: 1000 | F9: kl | G9: 38.9 | H9: GJ/kl | I9: 0.0708 | J9: t-CO2/GJ | K9: 2754.12 | M9: 使用量 | O9: 400 | R9: 300 | V9: 300 | AC9: 対象 | AD9: 38900
A10: =VLOOKUP(D10,非表示_活動量と単位!$D$8:$E$75,2,FALSE) -> 0 | C10: 4 | D10: A重油 | E10: 190 | F10: kl | G10: 38.9 | H10: GJ/kl | I10: 0.0708 | J10: t-CO2/GJ | K10: 523.2828 | L10: モニタリングポイント4～8。活動量は所内消費電力、所内消費熱分（按分方法は8.備考参照） | M10: 使用量 | Z10: 190 | AC10: 対象 | AD10: 7391
A11: =VLOOKUP(D11,非表示_活動量と単位!$D$8:$E$75,2,FALSE) -> 1 | C11: 9 | D11: 生石灰の製造（原料：石灰石） | E11: 2100 | F11: t | H11: --- | I11: 0.428 | J11: t-CO2/t | K11: 898.8 | M11: 原料使用量 | O11: 500 | R11: 600 | V11: 500 | Z11: 500 | AC11: --- | AD11: ---
A12: =VLOOKUP(D12,非表示_活動量と単位!$D$8:$E$75,2,FALSE) -> 0 | C12: 10 | D12: A重油 | E12: 155 | F12: kl | G12: 38.9 | H12: GJ/kl | I12: 0.0708 | J12: t-CO2/GJ | K12: 426.8886 | M12: 使用量 | O12: 20 | P12: 10 | Q12: 10 | R12: 15 | S12: 15 | T12: 10 | U12: 15 | V12: 15 | W12: 15 | X12: 10 | Y12: 10 | Z12: 10 | AC12: 対象 | AD12: 6029.5
A13: =VLOOKUP(D13,非表示_活動量と単位!$D$8:$E$75,2,FALSE) -> 0 | C13: 11 | D13: A重油 | E13: -5 | F13: kl | G13: 38.9 | H13: GJ/kl | I13: 0.0708 | J13: t-CO2/GJ | K13: -13.7706 | M13: 使用量 | N13: 10 | AA13: 15 | AC13: 対象 | AD13: -194.5
A14: =VLOOKUP(D14,非表示_活動量と単位!$D$8:$E$75,2,FALSE) ->  | E14: 0 | G14: =IF($D14="","",IF(VLOOKUP($C14,モニタリングポイント,9,FALSE)="デフォルト値",VLOOKUP($D14,デフォルト値,3,FALSE),"")) -> 
A15: =VLOOKUP(D15,非表示_活動量と単位!$D$8:$E$75,2,FALSE) ->  | E15: 0
A16: =VLOOKUP(D16,非表示_活動量と単位!$D$8:$E$75,2,FALSE) ->  | E16: 0
A17: =VLOOKUP(D17,非表示_活動量と単位!$D$8:$E$75,2,FALSE) ->  | E17: 0 | I17: =IF($D17="","",IF(VLOOKUP($C17,モニタリングポイント,11,FALSE)="デフォルト値",VLOOKUP($D17,デフォルト値,5,FALSE),"")) -> 
A18: =VLOOKUP(D18,非表示_活動量と単位!$D$8:$E$75,2,FALSE) ->  | E18: 0
A19: =VLOOKUP(D19,非表示_活動量と単位!$D$8:$E$75,2,FALSE) ->  | E19: 0
A20: =VLOOKUP(D20,非表示_活動量と単位!$D$8:$E$75,2,FALSE) ->  | E20: 0
A21: =VLOOKUP(D21,非表示_活動量と単位!$D$8:$E$75,2,FALSE) ->  | E21: 0 | K21: =IF($D21="","",IF($A21=0,E21*G21*I21,E21*I21)) -> 
A22: =IF($G22="",1,0) -> 1 | D22: その他（要：備考欄への詳細記載） | E22: =(SUM(O22:Z22)+(N22-AA22)-AB22) -> 0 | K22: =IF($C22="","",IF($A22=0,E22*G22*I22,E22*I22)) ->  | AC22: --- | AD22: ---
A23: 1 | D23: その他（要：備考欄への詳細記載） | E23: =(SUM(O23:Z23)+(N23-AA23)-AB23) -> 0 | K23: =IF($C23="","",IF($A23=0,E23*G23*I23,E23*I23)) ->  | AC23: --- | AD23: =IF($D23="","",IF(AC23="---","---",IF(OR($D23="系統電力",$D23="産業用蒸気",$D23="温水",$D23="冷水",$D23="蒸気（産業用以外）"),E23*VLOOKUP($D23,GJ換算係数,2,FALSE),E23*G23))) -> ---
A24: 1 | D24: その他（要：備考欄への詳細記載） | E24: 0 | AC24: --- | AD24: ---
A25: 1 | D25: その他（要：備考欄への詳細記載） | E25: 0 | AC25: --- | AD25: ---
A26: 1 | D26: その他（要：備考欄への詳細記載） | E26: 0 | AC26: --- | AD26: ---
A27: 1 | D27: その他（要：備考欄への詳細記載） | E27: 0 | AC27: --- | AD27: ---
A28: 1 | D28: その他（要：備考欄への詳細記載） | E28: 0 | AC28: --- | AD28: =IF($D28="","",IF(AC28="---","---",IF(OR($D28="系統電力",$D28="産業用蒸気",$D28="温水",$D28="冷水",$D28="蒸気（産業用以外）"),E28*VLOOKUP($D28,GJ換算係数,2,FALSE),E28*G28))) -> ---
A29: 1 | D29: その他（要：備考欄への詳細記載） | E29: 0 | AC29: --- | AD29: =IF($D29="","",IF(AC29="---","---",IF(OR($D29="系統電力",$D29="産業用蒸気",$D29="温水",$D29="冷水",$D29="蒸気（産業用以外）"),E29*VLOOKUP($D29,GJ換算係数,2,FALSE),E29*G29))) -> ---
A30: 1 | D30: その他（要：備考欄への詳細記載） | E30: 0 | AC30: --- | AD30: ---
A31: 1 | D31: その他（要：備考欄への詳細記載） | E31: 0 | AC31: --- | AD31: ---
I32: CO2排出量の合計 | K32: =IF(COUNTIF($E$2,"---*"),"---",SUM($K$7:$K$31)+SUM($K$48:$K$102)) -> 5772.5308 | AC32: GJ換算量の合計(b) | AD32: =IF(COUNTIF($E$2,"---*"),"---",SUM($AD$7:$AD$31)+SUM($AD$48:$AD$102)) -> 75259.6
I33: エネルギー起源 CO2排出量の合計(a) | K33: =IF(COUNTIF($E$2,"---*"),"---",SUMIFS(K7:K31,AC7:AC31,"対象")+SUMIFS(K48:K102,AC48:AC102,"対象")) -> 4873.7308 | AC33: 脱炭素化指標(a)/(b) | AD33: =IFERROR(K33/AD32,"---") -> 0.06475892511
B35: 1） | C35: 年度開始時点の在庫量（N列）・月別の購買量（O～Z列）・年度終了時点の在庫量（AA列）・製品中への注入量（AB列）は活動量単位未満を切り捨てずに入力してください。
B36: 2) | C36: 電気・熱を工場・事業場外に供給している場合の活動量
C37: A：工場・事業場内で燃料を使用して電気や熱を発生させ、工場・事業場外へ供給した場合
C38: →所内消費分の活動量を計算し、活動量欄に記載してください。計算根拠は「8. 備考」に記載してください。（記入例及びモニタリング報告ガイドライン第II部1.4.1を参照）
C39: B：電気事業者や熱供給業者から電気や熱の供給を受け、工場・事業場外へ供給した場合
C40: →外部への供給量をマイナスの値として活動量欄に記載ください。（記入例及びモニタリング報告ガイドライン第II部1.4.2を参照）
B41: 3) | C41: 活動種別が「その他」の場合には、指定されている行を使用し、活動量単位や係数等の必要な情報を入力してください。
B42: 4) | C42: 記入欄が足りない場合には、下表に記入してください。
C45: モニタリング ポイント No. | D45: 活動種別 | E45: 活動量 | G45: 単位発熱量 | I45: CO2排出係数 | K45: CO2排出量 [t-CO2] | L45: 備考 | M45: 活動量 | N45: 年度開始 時点の 在庫量 | O45: 月別の購買量 ※「活動量」の単位（F列）と整合するように記入ください。 | AA45: 年度終了 時点の 在庫量 | AB45: 製品中への注入量 | AC45: GJ換算
E47: 量 | F47: 単位 | G47: 係数 | H47: 単位 | I47: 係数 | J47: 単位 | M47: 把握対象 | O47: ４月 | P47: ５月 | Q47: ６月 | R47: ７月 | S47: ８月 | T47: ９月 | U47: １０月 | V47: １１月 | W47: １２月 | X47: １月 | Y47: ２月 | Z47: ３月 | AC47: 対象 | AD47: GJ換算量
A48: =VLOOKUP(D48,非表示_活動量と単位!$D$8:$E$75,2,FALSE) ->  | D48: =IF($C48="","",VLOOKUP($C48,モニタリングポイント,3,FALSE)) ->  | E48: =TRUNC((SUM(O48:Z48)+(N48-AA48)-AB48),0) -> 0 | F48: =IF($D48="","",VLOOKUP($D48,活動の種別と単位,4,FALSE)) ->  | G48: =IF($D48="","",IF(VLOOKUP($C48,モニタリングポイント,9,FALSE)="デフォルト値",VLOOKUP($D48,デフォルト値,3,FALSE),"")) ->  | H48: =IF($D48="","",VLOOKUP($D48,活動の種別と単位,5,FALSE)) ->  | I48: =IF($D48="","",IF(VLOOKUP($C48,モニタリングポイント,11,FALSE)="デフォルト値",VLOOKUP($D48,デフォルト値,5,FALSE),"")) ->  | J48: =IF($D48="","",VLOOKUP($D48,活動の種別と単位,6,FALSE)) ->  | K48: =IF($D48="","",IF($A48=0,E48*G48*I48,E48*I48)) ->  | M48: =IF($D48="","",VLOOKUP($D48,活動の種別と単位,3,FALSE)) ->  | AC48: =IF($D48="","",VLOOKUP($D48,活動の種別と単位,7,FALSE)) ->  | AD48: =IF($D48="","",IF(AC48="---","---",IF(OR($D48="系統電力",$D48="産業用蒸気",$D48="温水",$D48="冷水",$D48="蒸気（産業用以外）"),E48*VLOOKUP($D48,GJ換算係数,2,FALSE),E48*G48))) -> 
A49: =VLOOKUP(D49,非表示_活動量と単位!$D$8:$E$75,2,FALSE) ->  | E49: 0 | K49: =IF($D49="","",IF($A49=0,E49*G49*I49,E49*I49)) -> 
A50: =VLOOKUP(D50,非表示_活動量と単位!$D$8:$E$75,2,FALSE) ->  | E50: 0
A51: =VLOOKUP(D51,非表示_活動量と単位!$D$8:$E$75,2,FALSE) ->  | E51: 0
A52: =VLOOKUP(D52,非表示_活動量と単位!$D$8:$E$75,2,FALSE) ->  | E52: 0
A53: =VLOOKUP(D53,非表示_活動量と単位!$D$8:$E$75,2,FALSE) ->  | E53: 0
A54: =VLOOKUP(D54,非表示_活動量と単位!$D$8:$E$75,2,FALSE) ->  | E54: 0
A55: =VLOOKUP(D55,非表示_活動量と単位!$D$8:$E$75,2,FALSE) ->  | E55: 0
A56: =VLOOKUP(D56,非表示_活動量と単位!$D$8:$E$75,2,FALSE) ->  | E56: 0
A57: =VLOOKUP(D57,非表示_活動量と単位!$D$8:$E$75,2,FALSE) ->  | E57: 0
A58: =VLOOKUP(D58,非表示_活動量と単位!$D$8:$E$75,2,FALSE) ->  | E58: 0
A59: =VLOOKUP(D59,非表示_活動量と単位!$D$8:$E$75,2,FALSE) ->  | E59: 0 | AD59: =IF($D59="","",IF(AC59="---","---",IF(OR($D59="系統電力",$D59="産業用蒸気",$D59="温水",$D59="冷水",$D59="蒸気（産業用以外）"),E59*VLOOKUP($D59,GJ換算係数,2,FALSE),E59*G59))) -> 
A60: =VLOOKUP(D60,非表示_活動量と単位!$D$8:$E$75,2,FALSE) ->  | E60: 0
A61: =VLOOKUP(D61,非表示_活動量と単位!$D$8:$E$75,2,FALSE) ->  | E61: 0
A62: =VLOOKUP(D62,非表示_活動量と単位!$D$8:$E$75,2,FALSE) ->  | E62: 0
A63: =VLOOKUP(D63,非表示_活動量と単位!$D$8:$E$75,2,FALSE) ->  | E63: 0
A64: =VLOOKUP(D64,非表示_活動量と単位!$D$8:$E$75,2,FALSE) ->  | E64: 0
A65: =VLOOKUP(D65,非表示_活動量と単位!$D$8:$E$75,2,FALSE) ->  | E65: 0
A66: =VLOOKUP(D66,非表示_活動量と単位!$D$8:$E$75,2,FALSE) ->  | E66: 0
A67: =VLOOKUP(D67,非表示_活動量と単位!$D$8:$E$75,2,FALSE) ->  | E67: 0
A68: =VLOOKUP(D68,非表示_活動量と単位!$D$8:$E$75,2,FALSE) ->  | E68: 0
A69: =VLOOKUP(D69,非表示_活動量と単位!$D$8:$E$75,2,FALSE) ->  | E69: 0
A70: =VLOOKUP(D70,非表示_活動量と単位!$D$8:$E$75,2,FALSE) ->  | E70: 0
A71: =VLOOKUP(D71,非表示_活動量と単位!$D$8:$E$75,2,FALSE) ->  | E71: 0 | AD71: =IF($D71="","",IF(AC71="---","---",IF(OR($D71="系統電力",$D71="産業用蒸気",$D71="温水",$D71="冷水",$D71="蒸気（産業用以外）"),E71*VLOOKUP($D71,GJ換算係数,2,FALSE),E71*G71))) -> 
A72: =VLOOKUP(D72,非表示_活動量と単位!$D$8:$E$75,2,FALSE) ->  | E72: 0
A73: =VLOOKUP(D73,非表示_活動量と単位!$D$8:$E$75,2,FALSE) ->  | E73: 0
A74: =VLOOKUP(D74,非表示_活動量と単位!$D$8:$E$75,2,FALSE) ->  | E74: 0
A75: =VLOOKUP(D75,非表示_活動量と単位!$D$8:$E$75,2,FALSE) ->  | E75: 0
A76: =VLOOKUP(D76,非表示_活動量と単位!$D$8:$E$75,2,FALSE) ->  | E76: 0
A77: =VLOOKUP(D77,非表示_活動量と単位!$D$8:$E$75,2,FALSE) ->  | E77: 0
A78: =VLOOKUP(D78,非表示_活動量と単位!$D$8:$E$75,2,FALSE) ->  | E78: 0
A79: =VLOOKUP(D79,非表示_活動量と単位!$D$8:$E$75,2,FALSE) ->  | E79: 0
A80: =VLOOKUP(D80,非表示_活動量と単位!$D$8:$E$75,2,FALSE) ->  | E80: 0
A81: =VLOOKUP(D81,非表示_活動量と単位!$D$8:$E$75,2,FALSE) ->  | E81: 0
A82: =VLOOKUP(D82,非表示_活動量と単位!$D$8:$E$75,2,FALSE) ->  | E82: 0
A83: =VLOOKUP(D83,非表示_活動量と単位!$D$8:$E$75,2,FALSE) ->  | E83: 0
A84: =VLOOKUP(D84,非表示_活動量と単位!$D$8:$E$75,2,FALSE) ->  | E84: 0 | AD84: =IF($D84="","",IF(AC84="---","---",IF(OR($D84="系統電力",$D84="産業用蒸気",$D84="温水",$D84="冷水",$D84="蒸気（産業用以外）"),E84*VLOOKUP($D84,GJ換算係数,2,FALSE),E84*G84))) -> 
A85: =VLOOKUP(D85,非表示_活動量と単位!$D$8:$E$75,2,FALSE) ->  | E85: 0
A86: =VLOOKUP(D86,非表示_活動量と単位!$D$8:$E$75,2,FALSE) ->  | E86: 0
A87: =VLOOKUP(D87,非表示_活動量と単位!$D$8:$E$75,2,FALSE) ->  | E87: 0
A88: =VLOOKUP(D88,非表示_活動量と単位!$D$8:$E$75,2,FALSE) ->  | E88: 0
A89: =VLOOKUP(D89,非表示_活動量と単位!$D$8:$E$75,2,FALSE) ->  | E89: 0
A90: =VLOOKUP(D90,非表示_活動量と単位!$D$8:$E$75,2,FALSE) ->  | E90: 0
A91: =VLOOKUP(D91,非表示_活動量と単位!$D$8:$E$75,2,FALSE) ->  | E91: 0
A92: =VLOOKUP(D92,非表示_活動量と単位!$D$8:$E$75,2,FALSE) ->  | E92: 0
A93: =VLOOKUP(D93,非表示_活動量と単位!$D$8:$E$75,2,FALSE) ->  | E93: 0
A94: =VLOOKUP(D94,非表示_活動量と単位!$D$8:$E$75,2,FALSE) ->  | E94: 0
A95: =VLOOKUP(D95,非表示_活動量と単位!$D$8:$E$75,2,FALSE) ->  | E95: 0
A96: =VLOOKUP(D96,非表示_活動量と単位!$D$8:$E$75,2,FALSE) ->  | E96: 0
A97: =VLOOKUP(D97,非表示_活動量と単位!$D$8:$E$75,2,FALSE) ->  | E97: 0
A98: =VLOOKUP(D98,非表示_活動量と単位!$D$8:$E$75,2,FALSE) ->  | E98: 0
A99: =VLOOKUP(D99,非表示_活動量と単位!$D$8:$E$75,2,FALSE) ->  | E99: 0
A100: =VLOOKUP(D100,非表示_活動量と単位!$D$8:$E$75,2,FALSE) ->  | E100: 0
A101: =VLOOKUP(D101,非表示_活動量と単位!$D$8:$E$75,2,FALSE) ->  | E101: 0
A102: =VLOOKUP(D102,非表示_活動量と単位!$D$8:$E$75,2,FALSE) ->  | E102: 0 | AD102: =IF($D102="","",IF(AC102="---","---",IF(OR($D102="系統電力",$D102="産業用蒸気",$D102="温水",$D102="冷水",$D102="蒸気（産業用以外）"),E102*VLOOKUP($D102,GJ換算係数,2,FALSE),E102*G102))) -> 
DL147: 単位
DL148: t
DL149: kl
DL150: 千Nm3
DL151: kWh
DL152: GJ

Sheet 6-3. CO2排出量③
B2: =MID(CELL("filename",C2),FIND("]",CELL("filename",C2))+1,3)&"．" -> 6-3． | C2: 年間CO2排出量（工場・事業場全体） | E2: =IF(OR('4. 排出源リスト'!H5="",'4. 排出源リスト'!H5="---"),"---"&"年度",'4. 排出源リスト'!H5&"年度") -> 令和5年度 | BP2: セル色の表示／非表示
BP3: FALSE
C4: モニタリング ポイント No. | D4: 活動種別 | E4: 活動量 | G4: 単位発熱量 | I4: CO2排出係数 | K4: CO2排出量 [t-CO2] | L4: 備考 | M4: 活動量 | N4: 年度開始 時点の 在庫量 | O4: 月別の購買量 ※「活動量」の単位（F列）と整合するように記入ください。 | AA4: 年度終了 時点の 在庫量 | AB4: 製品中への注入量 | AC4: GJ換算
E6: 量 | F6: 単位 | G6: 係数 | H6: 単位 | I6: 係数 | J6: 単位 | M6: 把握対象 | O6: ４月 | P6: ５月 | Q6: ６月 | R6: ７月 | S6: ８月 | T6: ９月 | U6: １０月 | V6: １１月 | W6: １２月 | X6: １月 | Y6: ２月 | Z6: ３月 | AC6: 対象 | AD6: GJ換算量
A7: =VLOOKUP(D7,非表示_活動量と単位!$D$8:$E$75,2,FALSE) -> 1 | C7: 1 | D7: =IF($C7="","",VLOOKUP($C7,モニタリングポイント,3,FALSE)) -> 系統電力 | E7: =(SUM(O7:Z7)+(N7-AA7)-AB7) -> 490000 | F7: =IF($D7="","",VLOOKUP($D7,活動の種別と単位,4,FALSE)) -> kWh | G7: =IF($D7="","",IF(VLOOKUP($C7,モニタリングポイント,9,FALSE)="デフォルト値",VLOOKUP($D7,デフォルト値,3,FALSE),"")) ->  | H7: =IF($D7="","",VLOOKUP($D7,活動の種別と単位,5,FALSE)) -> --- | I7: =IF($D7="","",IF(VLOOKUP($C7,モニタリングポイント,11,FALSE)="デフォルト値",VLOOKUP($D7,デフォルト値,5,FALSE),"")) -> 0.000436 | J7: =IF($D7="","",VLOOKUP($D7,活動の種別と単位,6,FALSE)) -> t-CO2/kWh | K7: =IF($D7="","",IF($A7=0,E7*G7*I7,E7*I7)) -> 213.64 | M7: =IF($D7="","",VLOOKUP($D7,活動の種別と単位,3,FALSE)) -> 使用量 | O7: 40000 | P7: 40000 | Q7: 40000 | R7: 40000 | S7: 50000 | T7: 40000 | U7: 40000 | V7: 40000 | W7: 40000 | X7: 40000 | Y7: 40000 | Z7: 40000 | AC7: =IF($D7="","",VLOOKUP($D7,活動の種別と単位,7,FALSE)) -> 対象 | AD7: =IF($D7="","",IF(AC7="---","---",IF(OR($D7="系統電力",$D7="産業用蒸気",$D7="温水",$D7="冷水",$D7="蒸気（産業用以外）"),E7*VLOOKUP($D7,GJ換算係数,2,FALSE),E7*G7))) -> 4233.6
A8: =VLOOKUP(D8,非表示_活動量と単位!$D$8:$E$75,2,FALSE) -> 0 | C8: 2 | D8: 都市ガス | E8: =(SUM(O8:Z8)+(N8-AA8)-AB8) -> 450 | F8: 千Nm3 | G8: 45 | H8: GJ/千Nm3 | I8: 0.0513 | J8: t-CO2/GJ | K8: =IF($D8="","",IF($A8=0,E8*G8*I8,E8*I8)) -> 1038.825 | M8: 使用量 | O8: 30 | P8: 30 | Q8: 50 | R8: 50 | S8: 50 | T8: 30 | U8: 40 | V8: 30 | W8: 40 | X8: 40 | Y8: 30 | Z8: 30 | AC8: 対象 | AD8: 20250
A9: =VLOOKUP(D9,非表示_活動量と単位!$D$8:$E$75,2,FALSE) -> 0 | C9: 3 | D9: A重油 | E9: 800 | F9: kl | G9: 38.9 | H9: GJ/kl | I9: 0.0708 | J9: t-CO2/GJ | K9: 2203.296 | M9: 使用量 | O9: 200 | R9: 300 | V9: 300 | AC9: 対象 | AD9: 31120
A10: =VLOOKUP(D10,非表示_活動量と単位!$D$8:$E$75,2,FALSE) -> 0 | C10: 4 | D10: A重油 | E10: 190 | F10: kl | G10: 38.9 | H10: GJ/kl | I10: 0.0708 | J10: t-CO2/GJ | K10: 523.2828 | L10: モニタリングポイント4～8。活動量は所内消費電力、所内消費熱分（按分方法は8.備考参照） | M10: 使用量 | Z10: 190 | AC10: 対象 | AD10: 7391
A11: =VLOOKUP(D11,非表示_活動量と単位!$D$8:$E$75,2,FALSE) -> 1 | C11: 9 | D11: 生石灰の製造（原料：石灰石） | E11: 2100 | F11: t | H11: --- | I11: 0.428 | J11: t-CO2/t | K11: 898.8 | M11: 原料使用量 | O11: 500 | R11: 600 | V11: 500 | Z11: 500 | AC11: --- | AD11: =IF($D11="","",IF(AC11="---","---",IF(OR($D11="系統電力",$D11="産業用蒸気",$D11="温水",$D11="冷水",$D11="蒸気（産業用以外）"),E11*VLOOKUP($D11,GJ換算係数,2,FALSE),E11*G11))) -> ---
A12: =VLOOKUP(D12,非表示_活動量と単位!$D$8:$E$75,2,FALSE) -> 0 | C12: 10 | D12: A重油 | E12: 100 | F12: kl | G12: 38.9 | H12: GJ/kl | I12: 0.0708 | J12: t-CO2/GJ | K12: 275.412 | M12: 使用量 | O12: 5 | P12: 5 | Q12: 5 | R12: 10 | S12: 5 | T12: 10 | U12: 5 | V12: 10 | W12: 15 | X12: 10 | Y12: 10 | Z12: 10 | AC12: 対象 | AD12: 3890
A13: =VLOOKUP(D13,非表示_活動量と単位!$D$8:$E$75,2,FALSE) -> 0 | C13: 11 | D13: A重油 | E13: 10 | F13: kl | G13: 38.9 | H13: GJ/kl | I13: 0.0708 | J13: t-CO2/GJ | K13: 27.5412 | M13: 使用量 | N13: 15 | AA13: 5 | AC13: 対象 | AD13: 389
A14: =VLOOKUP(D14,非表示_活動量と単位!$D$8:$E$75,2,FALSE) ->  | E14: 0
A15: =VLOOKUP(D15,非表示_活動量と単位!$D$8:$E$75,2,FALSE) ->  | E15: 0
A16: =VLOOKUP(D16,非表示_活動量と単位!$D$8:$E$75,2,FALSE) ->  | E16: 0
A17: =VLOOKUP(D17,非表示_活動量と単位!$D$8:$E$75,2,FALSE) ->  | E17: 0
A18: =VLOOKUP(D18,非表示_活動量と単位!$D$8:$E$75,2,FALSE) ->  | E18: 0
A19: =VLOOKUP(D19,非表示_活動量と単位!$D$8:$E$75,2,FALSE) ->  | E19: 0
A20: =VLOOKUP(D20,非表示_活動量と単位!$D$8:$E$75,2,FALSE) ->  | E20: 0
A21: =VLOOKUP(D21,非表示_活動量と単位!$D$8:$E$75,2,FALSE) ->  | E21: 0 | K21: =IF($D21="","",IF($A21=0,E21*G21*I21,E21*I21)) -> 
A22: =IF($G22="",1,0) -> 1 | D22: その他（要：備考欄への詳細記載） | E22: =(SUM(O22:Z22)+(N22-AA22)-AB22) -> 0 | K22: =IF($C22="","",IF($A22=0,E22*G22*I22,E22*I22)) ->  | AC22: --- | AD22: ---
A23: 1 | D23: その他（要：備考欄への詳細記載） | E23: =(SUM(O23:Z23)+(N23-AA23)-AB23) -> 0 | K23: =IF($C23="","",IF($A23=0,E23*G23*I23,E23*I23)) ->  | AC23: --- | AD23: =IF($D23="","",IF(AC23="---","---",IF(OR($D23="系統電力",$D23="産業用蒸気",$D23="温水",$D23="冷水",$D23="蒸気（産業用以外）"),E23*VLOOKUP($D23,GJ換算係数,2,FALSE),E23*G23))) -> ---
A24: 1 | D24: その他（要：備考欄への詳細記載） | E24: 0 | AC24: --- | AD24: ---
A25: 1 | D25: その他（要：備考欄への詳細記載） | E25: 0 | AC25: --- | AD25: =IF($D25="","",IF(AC25="---","---",IF(OR($D25="系統電力",$D25="産業用蒸気",$D25="温水",$D25="冷水",$D25="蒸気（産業用以外）"),E25*VLOOKUP($D25,GJ換算係数,2,FALSE),E25*G25))) -> ---
A26: 1 | D26: その他（要：備考欄への詳細記載） | E26: 0 | AC26: --- | AD26: ---
A27: 1 | D27: その他（要：備考欄への詳細記載） | E27: 0 | AC27: --- | AD27: ---
A28: 1 | D28: その他（要：備考欄への詳細記載） | E28: 0 | AC28: --- | AD28: =IF($D28="","",IF(AC28="---","---",IF(OR($D28="系統電力",$D28="産業用蒸気",$D28="温水",$D28="冷水",$D28="蒸気（産業用以外）"),E28*VLOOKUP($D28,GJ換算係数,2,FALSE),E28*G28))) -> ---
A29: 1 | D29: その他（要：備考欄への詳細記載） | E29: 0 | AC29: --- | AD29: =IF($D29="","",IF(AC29="---","---",IF(OR($D29="系統電力",$D29="産業用蒸気",$D29="温水",$D29="冷水",$D29="蒸気（産業用以外）"),E29*VLOOKUP($D29,GJ換算係数,2,FALSE),E29*G29))) -> ---
A30: 1 | D30: その他（要：備考欄への詳細記載） | E30: 0 | AC30: --- | AD30: ---
A31: 1 | D31: その他（要：備考欄への詳細記載） | E31: 0 | AC31: --- | AD31: ---
I32: CO2排出量の合計 | K32: =IF(COUNTIF($E$2,"---*"),"---",SUM($K$7:$K$31)+SUM($K$48:$K$102)) -> 5180.797 | AC32: GJ換算量の合計(b) | AD32: =IF(COUNTIF($E$2,"---*"),"---",SUM($AD$7:$AD$31)+SUM($AD$48:$AD$102)) -> 67273.6
I33: エネルギー起源 CO2排出量の合計(a) | K33: =IF(COUNTIF($E$2,"---*"),"---",SUMIFS(K7:K31,AC7:AC31,"対象")+SUMIFS(K48:K102,AC48:AC102,"対象")) -> 4281.997 | AC33: 脱炭素化指標(a)/(b) | AD33: =IFERROR(K33/AD32,"---") -> 0.06365048102
B35: 1） | C35: 年度開始時点の在庫量（N列）・月別の購買量（O～Z列）・年度終了時点の在庫量（AA列）・製品中への注入量（AB列）は活動量単位未満を切り捨てずに入力してください。
B36: 2) | C36: 電気・熱を工場・事業場外に供給している場合の活動量
C37: A：工場・事業場内で燃料を使用して電気や熱を発生させ、工場・事業場外へ供給した場合
C38: →所内消費分の活動量を計算し、活動量欄に記載してください。計算根拠は「8. 備考」に記載してください。（記入例及びモニタリング報告ガイドライン第II部1.4.1を参照）
C39: B：電気事業者や熱供給業者から電気や熱の供給を受け、工場・事業場外へ供給した場合
C40: →外部への供給量をマイナスの値として活動量欄に記載ください。（記入例及びモニタリング報告ガイドライン第II部1.4.2を参照）
B41: 3) | C41: 活動種別が「その他」の場合には、指定されている行を使用し、活動量単位や係数等の必要な情報を入力してください。
B42: 4) | C42: 記入欄が足りない場合には、下表に記入してください。
C45: モニタリング ポイント No. | D45: 活動種別 | E45: 活動量 | G45: 単位発熱量 | I45: CO2排出係数 | K45: CO2排出量 [t-CO2] | L45: 備考 | M45: 活動量 | N45: 年度開始 時点の 在庫量 | O45: 月別の購買量 ※「活動量」の単位（F列）と整合するように記入ください。 | AA45: 年度終了 時点の 在庫量 | AB45: 製品中への注入量 | AC45: GJ換算
E47: 量 | F47: 単位 | G47: 係数 | H47: 単位 | I47: 係数 | J47: 単位 | M47: 把握対象 | O47: ４月 | P47: ５月 | Q47: ６月 | R47: ７月 | S47: ８月 | T47: ９月 | U47: １０月 | V47: １１月 | W47: １２月 | X47: １月 | Y47: ２月 | Z47: ３月 | AC47: 対象 | AD47: GJ換算量
A48: =VLOOKUP(D48,非表示_活動量と単位!$D$8:$E$75,2,FALSE) ->  | D48: =IF($C48="","",VLOOKUP($C48,モニタリングポイント,3,FALSE)) ->  | E48: =TRUNC((SUM(O48:Z48)+(N48-AA48)-AB48),0) -> 0 | F48: =IF($D48="","",VLOOKUP($D48,活動の種別と単位,4,FALSE)) ->  | G48: =IF($D48="","",IF(VLOOKUP($C48,モニタリングポイント,9,FALSE)="デフォルト値",VLOOKUP($D48,デフォルト値,3,FALSE),"")) ->  | H48: =IF($D48="","",VLOOKUP($D48,活動の種別と単位,5,FALSE)) ->  | I48: =IF($D48="","",IF(VLOOKUP($C48,モニタリングポイント,11,FALSE)="デフォルト値",VLOOKUP($D48,デフォルト値,5,FALSE),"")) ->  | J48: =IF($D48="","",VLOOKUP($D48,活動の種別と単位,6,FALSE)) ->  | K48: =IF($D48="","",IF($A48=0,E48*G48*I48,E48*I48)) ->  | M48: =IF($D48="","",VLOOKUP($D48,活動の種別と単位,3,FALSE)) ->  | AC48: =IF($D48="","",VLOOKUP($D48,活動の種別と単位,7,FALSE)) ->  | AD48: =IF($D48="","",IF(AC48="---","---",IF(OR($D48="系統電力",$D48="産業用蒸気",$D48="温水",$D48="冷水",$D48="蒸気（産業用以外）"),E48*VLOOKUP($D48,GJ換算係数,2,FALSE),E48*G48))) -> 
A49: =VLOOKUP(D49,非表示_活動量と単位!$D$8:$E$75,2,FALSE) ->  | E49: 0 | K49: =IF($D49="","",IF($A49=0,E49*G49*I49,E49*I49)) -> 
A50: =VLOOKUP(D50,非表示_活動量と単位!$D$8:$E$75,2,FALSE) ->  | E50: 0
A51: =VLOOKUP(D51,非表示_活動量と単位!$D$8:$E$75,2,FALSE) ->  | E51: 0
A52: =VLOOKUP(D52,非表示_活動量と単位!$D$8:$E$75,2,FALSE) ->  | E52: 0
A53: =VLOOKUP(D53,非表示_活動量と単位!$D$8:$E$75,2,FALSE) ->  | E53: 0
A54: =VLOOKUP(D54,非表示_活動量と単位!$D$8:$E$75,2,FALSE) ->  | E54: 0
A55: =VLOOKUP(D55,非表示_活動量と単位!$D$8:$E$75,2,FALSE) ->  | E55: 0
A56: =VLOOKUP(D56,非表示_活動量と単位!$D$8:$E$75,2,FALSE) ->  | E56: 0
A57: =VLOOKUP(D57,非表示_活動量と単位!$D$8:$E$75,2,FALSE) ->  | E57: 0
A58: =VLOOKUP(D58,非表示_活動量と単位!$D$8:$E$75,2,FALSE) ->  | E58: 0
A59: =VLOOKUP(D59,非表示_活動量と単位!$D$8:$E$75,2,FALSE) ->  | E59: 0
A60: =VLOOKUP(D60,非表示_活動量と単位!$D$8:$E$75,2,FALSE) ->  | E60: 0
A61: =VLOOKUP(D61,非表示_活動量と単位!$D$8:$E$75,2,FALSE) ->  | E61: 0
A62: =VLOOKUP(D62,非表示_活動量と単位!$D$8:$E$75,2,FALSE) ->  | E62: 0
A63: =VLOOKUP(D63,非表示_活動量と単位!$D$8:$E$75,2,FALSE) ->  | E63: 0
A64: =VLOOKUP(D64,非表示_活動量と単位!$D$8:$E$75,2,FALSE) ->  | E64: 0
A65: =VLOOKUP(D65,非表示_活動量と単位!$D$8:$E$75,2,FALSE) ->  | E65: 0
A66: =VLOOKUP(D66,非表示_活動量と単位!$D$8:$E$75,2,FALSE) ->  | E66: 0
A67: =VLOOKUP(D67,非表示_活動量と単位!$D$8:$E$75,2,FALSE) ->  | E67: 0
A68: =VLOOKUP(D68,非表示_活動量と単位!$D$8:$E$75,2,FALSE) ->  | E68: 0
A69: =VLOOKUP(D69,非表示_活動量と単位!$D$8:$E$75,2,FALSE) ->  | E69: 0
A70: =VLOOKUP(D70,非表示_活動量と単位!$D$8:$E$75,2,FALSE) ->  | E70: 0
A71: =VLOOKUP(D71,非表示_活動量と単位!$D$8:$E$75,2,FALSE) ->  | E71: 0
A72: =VLOOKUP(D72,非表示_活動量と単位!$D$8:$E$75,2,FALSE) ->  | E72: 0
A73: =VLOOKUP(D73,非表示_活動量と単位!$D$8:$E$75,2,FALSE) ->  | E73: 0
A74: =VLOOKUP(D74,非表示_活動量と単位!$D$8:$E$75,2,FALSE) ->  | E74: 0
A75: =VLOOKUP(D75,非表示_活動量と単位!$D$8:$E$75,2,FALSE) ->  | E75: 0
A76: =VLOOKUP(D76,非表示_活動量と単位!$D$8:$E$75,2,FALSE) ->  | E76: 0
A77: =VLOOKUP(D77,非表示_活動量と単位!$D$8:$E$75,2,FALSE) ->  | E77: 0
A78: =VLOOKUP(D78,非表示_活動量と単位!$D$8:$E$75,2,FALSE) ->  | E78: 0
A79: =VLOOKUP(D79,非表示_活動量と単位!$D$8:$E$75,2,FALSE) ->  | E79: 0
A80: =VLOOKUP(D80,非表示_活動量と単位!$D$8:$E$75,2,FALSE) ->  | E80: 0
A81: =VLOOKUP(D81,非表示_活動量と単位!$D$8:$E$75,2,FALSE) ->  | E81: 0
A82: =VLOOKUP(D82,非表示_活動量と単位!$D$8:$E$75,2,FALSE) ->  | E82: 0
A83: =VLOOKUP(D83,非表示_活動量と単位!$D$8:$E$75,2,FALSE) ->  | E83: 0
A84: =VLOOKUP(D84,非表示_活動量と単位!$D$8:$E$75,2,FALSE) ->  | E84: 0
A85: =VLOOKUP(D85,非表示_活動量と単位!$D$8:$E$75,2,FALSE) ->  | E85: 0
A86: =VLOOKUP(D86,非表示_活動量と単位!$D$8:$E$75,2,FALSE) ->  | E86: 0
A87: =VLOOKUP(D87,非表示_活動量と単位!$D$8:$E$75,2,FALSE) ->  | E87: 0
A88: =VLOOKUP(D88,非表示_活動量と単位!$D$8:$E$75,2,FALSE) ->  | E88: 0
A89: =VLOOKUP(D89,非表示_活動量と単位!$D$8:$E$75,2,FALSE) ->  | E89: 0
A90: =VLOOKUP(D90,非表示_活動量と単位!$D$8:$E$75,2,FALSE) ->  | E90: 0
A91: =VLOOKUP(D91,非表示_活動量と単位!$D$8:$E$75,2,FALSE) ->  | E91: 0
A92: =VLOOKUP(D92,非表示_活動量と単位!$D$8:$E$75,2,FALSE) ->  | E92: 0
A93: =VLOOKUP(D93,非表示_活動量と単位!$D$8:$E$75,2,FALSE) ->  | E93: 0
A94: =VLOOKUP(D94,非表示_活動量と単位!$D$8:$E$75,2,FALSE) ->  | E94: 0
A95: =VLOOKUP(D95,非表示_活動量と単位!$D$8:$E$75,2,FALSE) ->  | E95: 0
A96: =VLOOKUP(D96,非表示_活動量と単位!$D$8:$E$75,2,FALSE) ->  | E96: 0
A97: =VLOOKUP(D97,非表示_活動量と単位!$D$8:$E$75,2,FALSE) ->  | E97: 0
A98: =VLOOKUP(D98,非表示_活動量と単位!$D$8:$E$75,2,FALSE) ->  | E98: 0
A99: =VLOOKUP(D99,非表示_活動量と単位!$D$8:$E$75,2,FALSE) ->  | E99: 0
A100: =VLOOKUP(D100,非表示_活動量と単位!$D$8:$E$75,2,FALSE) ->  | E100: 0
A101: =VLOOKUP(D101,非表示_活動量と単位!$D$8:$E$75,2,FALSE) ->  | E101: 0
A102: =VLOOKUP(D102,非表示_活動量と単位!$D$8:$E$75,2,FALSE) ->  | E102: 0
DL107: 単位
DL108: t
DL109: kl
DL110: 千Nm3
DL111: kWh
DL112: GJ

Sheet 6-4. CO2排出量_総括
B2: =MID(CELL("filename",C2),FIND("]",CELL("filename",C2))+1,3)&"．" -> 6-4． | D2: CO2排出量（工場・事業場全体）【総括】 | AO2: セル色の表示／非表示
AO3: FALSE
B5: 算定年度 | H5: CO2排出量 | K5: エネルギー起源 CO2排出量 | N5: エネルギー使用量 | P5: 脱炭素化指標 | Q5: 備考
B7: ='6-1. CO2排出量①'!E2 -> 令和3年度 | C7: ='[1]6-1. CO2排出量①'!F32 -> 0 | D7: ='[1]6-1. CO2排出量①'!G32 -> 0 | E7: ='[1]6-1. CO2排出量①'!H32 -> 0 | F7: ='[1]6-1. CO2排出量①'!I32 -> CO2排出量の合計 | G7: ='[1]6-1. CO2排出量①'!J32 -> 0 | H7: ='6-1. CO2排出量①'!K32 -> 4882.8324 | I7: t-CO2 | K7: ='6-1. CO2排出量①'!K33 -> 3984.0324 | L7: t-CO2 | N7: ='6-1. CO2排出量①'!AD32 -> 58950.2 | O7: GJ | P7: =IFERROR('6-1. CO2排出量①'!AD33,"---") -> 0.06758301753
B8: ='6-2. CO2排出量②'!E2 -> 令和4年度 | C8: ='[1]6-2. CO2排出量②'!F32 -> 0 | D8: ='[1]6-2. CO2排出量②'!G32 -> 0 | E8: ='[1]6-2. CO2排出量②'!H32 -> 0 | F8: ='[1]6-2. CO2排出量②'!I32 -> CO2排出量の合計 | G8: ='[1]6-2. CO2排出量②'!J32 -> 0 | H8: ='6-2. CO2排出量②'!K32 -> 5772.5308 | I8: t-CO2 | K8: ='6-2. CO2排出量②'!K33 -> 4873.7308 | L8: t-CO2 | N8: ='6-2. CO2排出量②'!AD32 -> 75259.6 | O8: GJ | P8: =IFERROR('6-2. CO2排出量②'!AD33,"---") -> 0.06475892511
B9: ='6-3. CO2排出量③'!E2 -> 令和5年度 | C9: ='[1]6-3. CO2排出量③'!F32 -> 0 | D9: ='[1]6-3. CO2排出量③'!G32 -> 0 | E9: ='[1]6-3. CO2排出量③'!H32 -> 0 | F9: ='[1]6-3. CO2排出量③'!I32 -> CO2排出量の合計 | G9: ='[1]6-3. CO2排出量③'!J32 -> 0 | H9: ='6-3. CO2排出量③'!K32 -> 5180.797 | I9: t-CO2 | K9: ='6-3. CO2排出量③'!K33 -> 4281.997 | L9: t-CO2 | N9: ='6-3. CO2排出量③'!AD32 -> 67273.6 | O9: GJ | P9: =IFERROR('6-3. CO2排出量③'!AD33,"---") -> 0.06365048102
B10: 合計 | H10: =IF(COUNTIF($B$7:$G$9,"---*")=3,"---",SUM(H7:H9)) -> 15836.1602 | I10: t-CO2 | K10: =IF(COUNTIF($B$7:$G$9,"---*")=3,"---",SUM(K7:K9)) -> 13139.7602 | L10: t-CO2 | N10: =IF(COUNTIF($B$7:$G$9,"---*")=3,"---",SUM(N7:N9)) -> 201483.4 | O10: GJ | P10: ---
B11: 基準年度値 （平均値） | H11: =IFERROR(AVERAGE(H7:H9),"---") -> 5278.720067 | I11: t-CO2 | K11: =IFERROR(AVERAGE(K7:K9),"---") -> 4379.920067 | L11: t-CO2 | N11: =IFERROR(AVERAGE(N7:N9),"---") -> 67161.13333 | O11: GJ | P11: =IFERROR(K11/N11,"---") -> 0.0652151006
B16: 排出削減目標量 | H16: =IFERROR(ROUNDDOWN(HLOOKUP("目標年度",削減目標,6,FALSE),0),"") -> 0 | I16: t-CO2
B17: 排出目標量 | H17: =IF(H16="","",H11-H16) -> 5278.720067 | I17: t-CO2
B18: ※ | C18: 排出削減目標量は「511脱炭素化計画」の「1．脱炭素化計画」の工場・事業場全体・目標年度・対基準年度CO2削減量に記載の値です（変更不可）。
C19: 排出削減目標量は、小数点以下を切り捨てた整数値で表示されているため、「511脱炭素化計画」に表示されている数値と一致しない可能性があります。
B22: 【年度ごとの生産数量等】
B23: 算定年度 | H23: 生産数量等（数値） | K23: 単位（例：t、時間） | N23: 備考（例：生産量、営業時間等）
B24: =B7 -> 令和3年度 | H24: 1900 | K24: t | N24: ガラス生産量
B25: =B8 -> 令和4年度 | H25: 2000 | K25: t | N25: ガラス生産量
B26: =B9 -> 令和5年度 | H26: 2250 | K26: t | N26: ガラス生産量

Sheet 7-1. CO2排出量①
B2: =MID(CELL("filename",C2),FIND("]",CELL("filename",C2))+1,3)&"．" -> 7-1． | C2: 年間CO2排出量（主要なシステム系統） | E2: =IF(OR('4. 排出源リスト'!F5="",'4. 排出源リスト'!F5="---"),"---"&"年度",'4. 排出源リスト'!F5&"年度") -> 令和3年度 | BD2: セル色の表示／非表示
BD3: FALSE
C4: モニタリング ポイント No. | D4: 活動種別 | E4: 活動量 | G4: 単位発熱量 | I4: CO2排出係数 | K4: CO2排出量 [t-CO2] | L4: 備考 | M4: 活動量 | N4: GJ換算
E6: 量 | F6: 単位 | G6: 係数 | H6: 単位 | I6: 係数 | J6: 単位 | M6: 把握対象 | N6: 対象 | O6: GJ換算量
A7: =VLOOKUP(D7,非表示_活動量と単位!$D$8:$E$75,2,FALSE) -> 1 | C7: 1 | D7: =IF($C7="","",VLOOKUP($C7,モニタリングポイント,3,FALSE)) -> 系統電力 | E7: 200000 | F7: =IF($D7="","",VLOOKUP($D7,活動の種別と単位,4,FALSE)) -> kWh | G7: =IF($D7="","",IF(VLOOKUP($C7,モニタリングポイント,9,FALSE)="デフォルト値",VLOOKUP($D7,デフォルト値,3,FALSE),"")) ->  | H7: =IF($D7="","",VLOOKUP($D7,活動の種別と単位,5,FALSE)) -> --- | I7: =IF($D7="","",IF(VLOOKUP($C7,モニタリングポイント,11,FALSE)="デフォルト値",VLOOKUP($D7,デフォルト値,5,FALSE),"")) -> 0.000436 | J7: =IF($D7="","",VLOOKUP($D7,活動の種別と単位,6,FALSE)) -> t-CO2/kWh | K7: =IF($D7="","",IF($A7=0,E7*G7*I7,E7*I7)) -> 87.2 | L7: 稼働時間、カタログ掲載値の消費電力、機器効率により算定 | M7: =IF($D7="","",VLOOKUP($D7,活動の種別と単位,3,FALSE)) -> 使用量 | N7: =IF($D7="","",VLOOKUP($D7,活動の種別と単位,7,FALSE)) -> 対象 | O7: =IF($D7="","",IF(N7="---","---",IF(OR($D7="系統電力",$D7="産業用蒸気",$D7="温水",$D7="冷水",$D7="蒸気（産業用以外）"),E7*VLOOKUP($D7,GJ換算係数,2,FALSE),E7*G7))) -> 1728
A8: =VLOOKUP(D8,非表示_活動量と単位!$D$8:$E$75,2,FALSE) -> 0 | C8: 3 | D8: A重油 | E8: 1000 | F8: kl | G8: 38.9 | H8: GJ/kl | I8: 0.0708 | J8: t-CO2/GJ | K8: =IF($D8="","",IF($A8=0,E8*G8*I8,E8*I8)) -> 2754.12 | L8: 購買伝票より算定 | M8: 使用量 | N8: 対象 | O8: 38900
A9: =VLOOKUP(D9,非表示_活動量と単位!$D$8:$E$75,2,FALSE) -> 
A10: =VLOOKUP(D10,非表示_活動量と単位!$D$8:$E$75,2,FALSE) -> 
A11: =VLOOKUP(D11,非表示_活動量と単位!$D$8:$E$75,2,FALSE) -> 
A12: =VLOOKUP(D12,非表示_活動量と単位!$D$8:$E$75,2,FALSE) -> 
A13: =VLOOKUP(D13,非表示_活動量と単位!$D$8:$E$75,2,FALSE) -> 
A14: =VLOOKUP(D14,非表示_活動量と単位!$D$8:$E$75,2,FALSE) -> 
A15: =VLOOKUP(D15,非表示_活動量と単位!$D$8:$E$75,2,FALSE) ->  | I15: =IF($D15="","",IF(VLOOKUP($C15,モニタリングポイント,11,FALSE)="デフォルト値",VLOOKUP($D15,デフォルト値,5,FALSE),"")) -> 
A16: =VLOOKUP(D16,非表示_活動量と単位!$D$8:$E$75,2,FALSE) ->  | I16: =IF($D16="","",IF(VLOOKUP($C16,モニタリングポイント,11,FALSE)="デフォルト値",VLOOKUP($D16,デフォルト値,5,FALSE),"")) -> 
A17: =VLOOKUP(D17,非表示_活動量と単位!$D$8:$E$75,2,FALSE) -> 
A18: =VLOOKUP(D18,非表示_活動量と単位!$D$8:$E$75,2,FALSE) ->  | G18: =IF($D18="","",IF(VLOOKUP($C18,モニタリングポイント,9,FALSE)="デフォルト値",VLOOKUP($D18,デフォルト値,3,FALSE),"")) -> 
A19: =VLOOKUP(D19,非表示_活動量と単位!$D$8:$E$75,2,FALSE) -> 
A20: =VLOOKUP(D20,非表示_活動量と単位!$D$8:$E$75,2,FALSE) -> 
A21: =VLOOKUP(D21,非表示_活動量と単位!$D$8:$E$75,2,FALSE) ->  | K21: =IF($D21="","",IF($A21=0,E21*G21*I21,E21*I21)) -> 
A22: =IF($G22="",1,0) -> 1 | D22: その他（要：備考欄への詳細記載） | K22: =IF($E22="","",IF($A22=0,E22*G22*I22,E22*I22)) ->  | N22: --- | O22: ---
A23: 1 | D23: その他（要：備考欄への詳細記載） | K23: =IF($E23="","",IF($A23=0,E23*G23*I23,E23*I23)) ->  | N23: --- | O23: ---
A24: 1 | D24: その他（要：備考欄への詳細記載） | N24: --- | O24: ---
A25: 1 | D25: その他（要：備考欄への詳細記載） | N25: --- | O25: ---
A26: 1 | D26: その他（要：備考欄への詳細記載） | N26: --- | O26: ---
A27: 1 | D27: その他（要：備考欄への詳細記載） | N27: --- | O27: ---
A28: 1 | D28: その他（要：備考欄への詳細記載） | N28: --- | O28: ---
A29: 1 | D29: その他（要：備考欄への詳細記載） | N29: --- | O29: ---
A30: 1 | D30: その他（要：備考欄への詳細記載） | K30: =IF($E30="","",IF($A30=0,E30*G30*I30,E30*I30)) ->  | N30: --- | O30: ---
A31: 1 | D31: その他（要：備考欄への詳細記載） | N31: --- | O31: ---
I32: CO2排出量の合計 | K32: =IF(COUNTIF($E$2,"---*"),"---",SUM($K$7:$K$31)+SUM($K$48:$K$102)) -> 2841.32 | N32: GJ換算量の合計(b) | O32: =IF(COUNTIF($E$2,"---*"),"---",SUM($O$7:$O$31)+SUM($O$48:$O$102)) -> 40628
I33: エネルギー起源 CO2排出量の合計(a) | K33: =IF(COUNTIF($E$2,"---*"),"---",SUMIFS(K7:K31,N7:N31,"対象")+SUMIFS(K48:K102,N48:N102,"対象")) -> 2841.32 | N33: 脱炭素化指標(a)/(b) | O33: =IFERROR(K33/O32,"---") -> 0.06993502018
B35: 1） | C35: 活動量は活動量単位未満を切り捨てずに入力してください。
B36: 2) | C36: 電気・熱を工場・事業場外に供給している場合の活動量
C37: A：工場・事業場内で燃料を使用して電気や熱を発生させ、工場・事業場外へ供給した場合
C38: →所内消費分の活動量を計算し、活動量欄に記載してください。計算根拠は「8. 備考」に記載してください。（記入例及びモニタリング報告ガイドライン第II部1.4.1を参照）
C39: B：電気事業者や熱供給業者から電気や熱の供給を受け、工場・事業場外へ供給した場合
C40: →外部への供給量をマイナスの値として活動量欄に記載ください。（記入例及びモニタリング報告ガイドライン第II部1.4.2を参照）
B41: 3) | C41: 活動種別が「その他」の場合には、指定されている行を使用し、活動量単位や係数等の必要な情報を入力してください。
B42: 4) | C42: 記入欄が足りない場合には、下表に記入してください。
C45: モニタリング ポイント No. | D45: 活動種別 | E45: 活動量 | G45: 単位発熱量 | I45: CO2排出係数 | K45: CO2排出量 [t-CO2] | L45: 備考 | M45: 活動量 | N45: GJ換算
E47: 量 | F47: 単位 | G47: 係数 | H47: 単位 | I47: 係数 | J47: 単位 | M47: 把握対象 | N47: 対象 | O47: GJ換算量
A48: =VLOOKUP(D48,非表示_活動量と単位!$D$8:$E$75,2,FALSE) ->  | D48: =IF($C48="","",VLOOKUP($C48,モニタリングポイント,3,FALSE)) ->  | F48: =IF($D48="","",VLOOKUP($D48,活動の種別と単位,4,FALSE)) ->  | G48: =IF($D48="","",IF(VLOOKUP($C48,モニタリングポイント,9,FALSE)="デフォルト値",VLOOKUP($D48,デフォルト値,3,FALSE),"")) ->  | H48: =IF($D48="","",VLOOKUP($D48,活動の種別と単位,5,FALSE)) ->  | I48: =IF($D48="","",IF(VLOOKUP($C48,モニタリングポイント,11,FALSE)="デフォルト値",VLOOKUP($D48,デフォルト値,5,FALSE),"")) ->  | J48: =IF($D48="","",VLOOKUP($D48,活動の種別と単位,6,FALSE)) ->  | K48: =IF($D48="","",IF($A48=0,E48*G48*I48,E48*I48)) ->  | M48: =IF($D48="","",VLOOKUP($D48,活動の種別と単位,3,FALSE)) ->  | N48: =IF($D48="","",VLOOKUP($D48,活動の種別と単位,7,FALSE)) ->  | O48: =IF($D48="","",IF(N48="---","---",IF(OR($D48="系統電力",$D48="産業用蒸気",$D48="温水",$D48="冷水",$D48="蒸気（産業用以外）"),E48*VLOOKUP($D48,GJ換算係数,2,FALSE),E48*G48))) -> 
A49: =VLOOKUP(D49,非表示_活動量と単位!$D$8:$E$75,2,FALSE) -> 
A50: =VLOOKUP(D50,非表示_活動量と単位!$D$8:$E$75,2,FALSE) -> 
A51: =VLOOKUP(D51,非表示_活動量と単位!$D$8:$E$75,2,FALSE) -> 
A52: =VLOOKUP(D52,非表示_活動量と単位!$D$8:$E$75,2,FALSE) -> 
A53: =VLOOKUP(D53,非表示_活動量と単位!$D$8:$E$75,2,FALSE) -> 
A54: =VLOOKUP(D54,非表示_活動量と単位!$D$8:$E$75,2,FALSE) -> 
A55: =VLOOKUP(D55,非表示_活動量と単位!$D$8:$E$75,2,FALSE) -> 
A56: =VLOOKUP(D56,非表示_活動量と単位!$D$8:$E$75,2,FALSE) -> 
A57: =VLOOKUP(D57,非表示_活動量と単位!$D$8:$E$75,2,FALSE) -> 
A58: =VLOOKUP(D58,非表示_活動量と単位!$D$8:$E$75,2,FALSE) -> 
A59: =VLOOKUP(D59,非表示_活動量と単位!$D$8:$E$75,2,FALSE) -> 
A60: =VLOOKUP(D60,非表示_活動量と単位!$D$8:$E$75,2,FALSE) -> 
A61: =VLOOKUP(D61,非表示_活動量と単位!$D$8:$E$75,2,FALSE) -> 
A62: =VLOOKUP(D62,非表示_活動量と単位!$D$8:$E$75,2,FALSE) -> 
A63: =VLOOKUP(D63,非表示_活動量と単位!$D$8:$E$75,2,FALSE) -> 
A64: =VLOOKUP(D64,非表示_活動量と単位!$D$8:$E$75,2,FALSE) -> 
A65: =VLOOKUP(D65,非表示_活動量と単位!$D$8:$E$75,2,FALSE) -> 
A66: =VLOOKUP(D66,非表示_活動量と単位!$D$8:$E$75,2,FALSE) -> 
A67: =VLOOKUP(D67,非表示_活動量と単位!$D$8:$E$75,2,FALSE) -> 
A68: =VLOOKUP(D68,非表示_活動量と単位!$D$8:$E$75,2,FALSE) -> 
A69: =VLOOKUP(D69,非表示_活動量と単位!$D$8:$E$75,2,FALSE) -> 
A70: =VLOOKUP(D70,非表示_活動量と単位!$D$8:$E$75,2,FALSE) -> 
A71: =VLOOKUP(D71,非表示_活動量と単位!$D$8:$E$75,2,FALSE) -> 
A72: =VLOOKUP(D72,非表示_活動量と単位!$D$8:$E$75,2,FALSE) -> 
A73: =VLOOKUP(D73,非表示_活動量と単位!$D$8:$E$75,2,FALSE) -> 
A74: =VLOOKUP(D74,非表示_活動量と単位!$D$8:$E$75,2,FALSE) -> 
A75: =VLOOKUP(D75,非表示_活動量と単位!$D$8:$E$75,2,FALSE) -> 
A76: =VLOOKUP(D76,非表示_活動量と単位!$D$8:$E$75,2,FALSE) -> 
A77: =VLOOKUP(D77,非表示_活動量と単位!$D$8:$E$75,2,FALSE) -> 
A78: =VLOOKUP(D78,非表示_活動量と単位!$D$8:$E$75,2,FALSE) -> 
A79: =VLOOKUP(D79,非表示_活動量と単位!$D$8:$E$75,2,FALSE) -> 
A80: =VLOOKUP(D80,非表示_活動量と単位!$D$8:$E$75,2,FALSE) ->  | O80: =IF($D80="","",IF(N80="---","---",IF(OR($D80="系統電力",$D80="産業用蒸気",$D80="温水",$D80="冷水",$D80="蒸気（産業用以外）"),E80*VLOOKUP($D80,GJ換算係数,2,FALSE),E80*G80))) -> 
A81: =VLOOKUP(D81,非表示_活動量と単位!$D$8:$E$75,2,FALSE) -> 
A82: =VLOOKUP(D82,非表示_活動量と単位!$D$8:$E$75,2,FALSE) -> 
A83: =VLOOKUP(D83,非表示_活動量と単位!$D$8:$E$75,2,FALSE) -> 
A84: =VLOOKUP(D84,非表示_活動量と単位!$D$8:$E$75,2,FALSE) -> 
A85: =VLOOKUP(D85,非表示_活動量と単位!$D$8:$E$75,2,FALSE) -> 
A86: =VLOOKUP(D86,非表示_活動量と単位!$D$8:$E$75,2,FALSE) -> 
A87: =VLOOKUP(D87,非表示_活動量と単位!$D$8:$E$75,2,FALSE) -> 
A88: =VLOOKUP(D88,非表示_活動量と単位!$D$8:$E$75,2,FALSE) -> 
A89: =VLOOKUP(D89,非表示_活動量と単位!$D$8:$E$75,2,FALSE) -> 
A90: =VLOOKUP(D90,非表示_活動量と単位!$D$8:$E$75,2,FALSE) -> 
A91: =VLOOKUP(D91,非表示_活動量と単位!$D$8:$E$75,2,FALSE) -> 
A92: =VLOOKUP(D92,非表示_活動量と単位!$D$8:$E$75,2,FALSE) -> 
A93: =VLOOKUP(D93,非表示_活動量と単位!$D$8:$E$75,2,FALSE) -> 
A94: =VLOOKUP(D94,非表示_活動量と単位!$D$8:$E$75,2,FALSE) -> 
A95: =VLOOKUP(D95,非表示_活動量と単位!$D$8:$E$75,2,FALSE) -> 
A96: =VLOOKUP(D96,非表示_活動量と単位!$D$8:$E$75,2,FALSE) -> 
A97: =VLOOKUP(D97,非表示_活動量と単位!$D$8:$E$75,2,FALSE) -> 
A98: =VLOOKUP(D98,非表示_活動量と単位!$D$8:$E$75,2,FALSE) ->  | CZ98: 単位
A99: =VLOOKUP(D99,非表示_活動量と単位!$D$8:$E$75,2,FALSE) ->  | CZ99: t
A100: =VLOOKUP(D100,非表示_活動量と単位!$D$8:$E$75,2,FALSE) ->  | CZ100: kl
A101: =VLOOKUP(D101,非表示_活動量と単位!$D$8:$E$75,2,FALSE) ->  | CZ101: 千Nm3
A102: =VLOOKUP(D102,非表示_活動量と単位!$D$8:$E$75,2,FALSE) ->  | CZ102: kWh
CZ103: GJ

Sheet 7-2. CO2排出量②
B2: =MID(CELL("filename",C2),FIND("]",CELL("filename",C2))+1,3)&"．" -> 7-2． | C2: 年間CO2排出量（主要なシステム系統） | E2: =IF(OR('4. 排出源リスト'!G5="",'4. 排出源リスト'!G5="---"),"---"&"年度",'4. 排出源リスト'!G5&"年度") -> 令和4年度 | BD2: セル色の表示／非表示
C4: モニタリング ポイント No. | D4: 活動種別 | E4: 活動量 | G4: 単位発熱量 | I4: CO2排出係数 | K4: CO2排出量 [t-CO2] | L4: 備考 | M4: 活動量 | N4: GJ換算 | BD4: FALSE
E6: 量 | F6: 単位 | G6: 係数 | H6: 単位 | I6: 係数 | J6: 単位 | M6: 把握対象 | N6: 対象 | O6: GJ換算量
A7: =VLOOKUP(D7,非表示_活動量と単位!$D$8:$E$75,2,FALSE) -> 1 | C7: 1 | D7: =IF($C7="","",VLOOKUP($C7,モニタリングポイント,3,FALSE)) -> 系統電力 | E7: 200000 | F7: =IF($D7="","",VLOOKUP($D7,活動の種別と単位,4,FALSE)) -> kWh | G7: =IF($D7="","",IF(VLOOKUP($C7,モニタリングポイント,9,FALSE)="デフォルト値",VLOOKUP($D7,デフォルト値,3,FALSE),"")) ->  | H7: =IF($D7="","",VLOOKUP($D7,活動の種別と単位,5,FALSE)) -> --- | I7: =IF($D7="","",IF(VLOOKUP($C7,モニタリングポイント,11,FALSE)="デフォルト値",VLOOKUP($D7,デフォルト値,5,FALSE),"")) -> 0.000436 | J7: =IF($D7="","",VLOOKUP($D7,活動の種別と単位,6,FALSE)) -> t-CO2/kWh | K7: =IF($D7="","",IF($A7=0,E7*G7*I7,E7*I7)) -> 87.2 | L7: 稼働時間、カタログ掲載値の消費電力、機器効率により算定 | M7: =IF($D7="","",VLOOKUP($D7,活動の種別と単位,3,FALSE)) -> 使用量 | N7: =IF($D7="","",VLOOKUP($D7,活動の種別と単位,7,FALSE)) -> 対象 | O7: =IF($D7="","",IF(N7="---","---",IF(OR($D7="系統電力",$D7="産業用蒸気",$D7="温水",$D7="冷水",$D7="蒸気（産業用以外）"),E7*VLOOKUP($D7,GJ換算係数,2,FALSE),E7*G7))) -> 1728
A8: =VLOOKUP(D8,非表示_活動量と単位!$D$8:$E$75,2,FALSE) -> 0 | C8: 3 | D8: A重油 | E8: 1000 | F8: kl | G8: 38.9 | H8: GJ/kl | I8: 0.0708 | J8: t-CO2/GJ | K8: =IF($D8="","",IF($A8=0,E8*G8*I8,E8*I8)) -> 2754.12 | L8: 購買伝票より算定 | M8: 使用量 | N8: 対象 | O8: 38900
A9: =VLOOKUP(D9,非表示_活動量と単位!$D$8:$E$75,2,FALSE) -> 
A10: =VLOOKUP(D10,非表示_活動量と単位!$D$8:$E$75,2,FALSE) -> 
A11: =VLOOKUP(D11,非表示_活動量と単位!$D$8:$E$75,2,FALSE) -> 
A12: =VLOOKUP(D12,非表示_活動量と単位!$D$8:$E$75,2,FALSE) -> 
A13: =VLOOKUP(D13,非表示_活動量と単位!$D$8:$E$75,2,FALSE) -> 
A14: =VLOOKUP(D14,非表示_活動量と単位!$D$8:$E$75,2,FALSE) -> 
A15: =VLOOKUP(D15,非表示_活動量と単位!$D$8:$E$75,2,FALSE) ->  | G15: =IF($D15="","",IF(VLOOKUP($C15,モニタリングポイント,9,FALSE)="デフォルト値",VLOOKUP($D15,デフォルト値,3,FALSE),"")) -> 
A16: =VLOOKUP(D16,非表示_活動量と単位!$D$8:$E$75,2,FALSE) ->  | G16: =IF($D16="","",IF(VLOOKUP($C16,モニタリングポイント,9,FALSE)="デフォルト値",VLOOKUP($D16,デフォルト値,3,FALSE),"")) -> 
A17: =VLOOKUP(D17,非表示_活動量と単位!$D$8:$E$75,2,FALSE) ->  | I17: =IF($D17="","",IF(VLOOKUP($C17,モニタリングポイント,11,FALSE)="デフォルト値",VLOOKUP($D17,デフォルト値,5,FALSE),"")) -> 
A18: =VLOOKUP(D18,非表示_活動量と単位!$D$8:$E$75,2,FALSE) -> 
A19: =VLOOKUP(D19,非表示_活動量と単位!$D$8:$E$75,2,FALSE) -> 
A20: =VLOOKUP(D20,非表示_活動量と単位!$D$8:$E$75,2,FALSE) -> 
A21: =VLOOKUP(D21,非表示_活動量と単位!$D$8:$E$75,2,FALSE) ->  | K21: =IF($D21="","",IF($A21=0,E21*G21*I21,E21*I21)) -> 
A22: =IF($G22="",1,0) -> 1 | D22: その他（要：備考欄への詳細記載） | K22: =IF($E22="","",IF($A22=0,E22*G22*I22,E2*I22)) ->  | N22: --- | O22: ---
A23: 1 | D23: その他（要：備考欄への詳細記載） | K23: =IF($E23="","",IF($A23=0,E23*G23*I23,E23*I23)) ->  | N23: --- | O23: ---
A24: 1 | D24: その他（要：備考欄への詳細記載） | N24: --- | O24: ---
A25: 1 | D25: その他（要：備考欄への詳細記載） | N25: --- | O25: ---
A26: 1 | D26: その他（要：備考欄への詳細記載） | N26: --- | O26: ---
A27: 1 | D27: その他（要：備考欄への詳細記載） | N27: --- | O27: ---
A28: 1 | D28: その他（要：備考欄への詳細記載） | N28: --- | O28: ---
A29: 1 | D29: その他（要：備考欄への詳細記載） | N29: --- | O29: ---
A30: 1 | D30: その他（要：備考欄への詳細記載） | N30: --- | O30: ---
A31: 1 | D31: その他（要：備考欄への詳細記載） | N31: --- | O31: ---
I32: CO2排出量の合計 | K32: =IF(COUNTIF($E$2,"---*"),"---",SUM($K$7:$K$31)+SUM($K$48:$K$102)) -> 2841.32 | N32: GJ換算量の合計(b) | O32: =IF(COUNTIF($E$2,"---*"),"---",SUM($O$7:$O$31)+SUM($O$48:$O$102)) -> 40628
I33: エネルギー起源 CO2排出量の合計(a) | K33: =IF(COUNTIF($E$2,"---*"),"---",SUMIFS(K7:K31,N7:N31,"対象")+SUMIFS(K48:K102,N48:N102,"対象")) -> 2841.32 | N33: 脱炭素化指標(a)/(b) | O33: =IFERROR(K33/O32,"---") -> 0.06993502018
B35: 1） | C35: 活動量は活動量単位未満を切り捨てずに入力してください。
B36: 2) | C36: 電気・熱を工場・事業場外に供給している場合の活動量
C37: A：工場・事業場内で燃料を使用して電気や熱を発生させ、工場・事業場外へ供給した場合
C38: →所内消費分の活動量を計算し、活動量欄に記載してください。計算根拠は「8. 備考」に記載してください。（記入例及びモニタリング報告ガイドライン第II部1.4.1を参照）
C39: B：電気事業者や熱供給業者から電気や熱の供給を受け、工場・事業場外へ供給した場合
C40: →外部への供給量をマイナスの値として活動量欄に記載ください。（記入例及びモニタリング報告ガイドライン第II部1.4.2を参照）
B41: 3) | C41: 活動種別が「その他」の場合には、指定されている行を使用し、活動量単位や係数等の必要な情報を入力してください。
B42: 4) | C42: 記入欄が足りない場合には、下表に記入してください。
C45: モニタリング ポイント No. | D45: 活動種別 | E45: 活動量 | G45: 単位発熱量 | I45: CO2排出係数 | K45: CO2排出量 [t-CO2] | L45: 備考 | M45: 活動量 | N45: GJ換算
E47: 量 | F47: 単位 | G47: 係数 | H47: 単位 | I47: 係数 | J47: 単位 | M47: 把握対象 | N47: 対象 | O47: GJ換算量
A48: =VLOOKUP(D48,非表示_活動量と単位!$D$8:$E$75,2,FALSE) ->  | D48: =IF($C48="","",VLOOKUP($C48,モニタリングポイント,3,FALSE)) ->  | F48: =IF($D48="","",VLOOKUP($D48,活動の種別と単位,4,FALSE)) ->  | G48: =IF($D48="","",IF(VLOOKUP($C48,モニタリングポイント,9,FALSE)="デフォルト値",VLOOKUP($D48,デフォルト値,3,FALSE),"")) ->  | H48: =IF($D48="","",VLOOKUP($D48,活動の種別と単位,5,FALSE)) ->  | I48: =IF($D48="","",IF(VLOOKUP($C48,モニタリングポイント,11,FALSE)="デフォルト値",VLOOKUP($D48,デフォルト値,5,FALSE),"")) ->  | J48: =IF($D48="","",VLOOKUP($D48,活動の種別と単位,6,FALSE)) ->  | K48: =IF($D48="","",IF($A48=0,E48*G48*I48,E48*I48)) ->  | M48: =IF($D48="","",VLOOKUP($D48,活動の種別と単位,3,FALSE)) ->  | N48: =IF($D48="","",VLOOKUP($D48,活動の種別と単位,7,FALSE)) ->  | O48: =IF($D48="","",IF(N48="---","---",IF(OR($D48="系統電力",$D48="産業用蒸気",$D48="温水",$D48="冷水",$D48="蒸気（産業用以外）"),E48*VLOOKUP($D48,GJ換算係数,2,FALSE),E48*G48))) -> 
A49: =VLOOKUP(D49,非表示_活動量と単位!$D$8:$E$75,2,FALSE) -> 
A50: =VLOOKUP(D50,非表示_活動量と単位!$D$8:$E$75,2,FALSE) -> 
A51: =VLOOKUP(D51,非表示_活動量と単位!$D$8:$E$75,2,FALSE) -> 
A52: =VLOOKUP(D52,非表示_活動量と単位!$D$8:$E$75,2,FALSE) -> 
A53: =VLOOKUP(D53,非表示_活動量と単位!$D$8:$E$75,2,FALSE) -> 
A54: =VLOOKUP(D54,非表示_活動量と単位!$D$8:$E$75,2,FALSE) -> 
A55: =VLOOKUP(D55,非表示_活動量と単位!$D$8:$E$75,2,FALSE) -> 
A56: =VLOOKUP(D56,非表示_活動量と単位!$D$8:$E$75,2,FALSE) -> 
A57: =VLOOKUP(D57,非表示_活動量と単位!$D$8:$E$75,2,FALSE) -> 
A58: =VLOOKUP(D58,非表示_活動量と単位!$D$8:$E$75,2,FALSE) -> 
A59: =VLOOKUP(D59,非表示_活動量と単位!$D$8:$E$75,2,FALSE) -> 
A60: =VLOOKUP(D60,非表示_活動量と単位!$D$8:$E$75,2,FALSE) -> 
A61: =VLOOKUP(D61,非表示_活動量と単位!$D$8:$E$75,2,FALSE) -> 
A62: =VLOOKUP(D62,非表示_活動量と単位!$D$8:$E$75,2,FALSE) -> 
A63: =VLOOKUP(D63,非表示_活動量と単位!$D$8:$E$75,2,FALSE) -> 
A64: =VLOOKUP(D64,非表示_活動量と単位!$D$8:$E$75,2,FALSE) -> 
A65: =VLOOKUP(D65,非表示_活動量と単位!$D$8:$E$75,2,FALSE) -> 
A66: =VLOOKUP(D66,非表示_活動量と単位!$D$8:$E$75,2,FALSE) -> 
A67: =VLOOKUP(D67,非表示_活動量と単位!$D$8:$E$75,2,FALSE) -> 
A68: =VLOOKUP(D68,非表示_活動量と単位!$D$8:$E$75,2,FALSE) -> 
A69: =VLOOKUP(D69,非表示_活動量と単位!$D$8:$E$75,2,FALSE) -> 
A70: =VLOOKUP(D70,非表示_活動量と単位!$D$8:$E$75,2,FALSE) -> 
A71: =VLOOKUP(D71,非表示_活動量と単位!$D$8:$E$75,2,FALSE) -> 
A72: =VLOOKUP(D72,非表示_活動量と単位!$D$8:$E$75,2,FALSE) -> 
A73: =VLOOKUP(D73,非表示_活動量と単位!$D$8:$E$75,2,FALSE) -> 
A74: =VLOOKUP(D74,非表示_活動量と単位!$D$8:$E$75,2,FALSE) -> 
A75: =VLOOKUP(D75,非表示_活動量と単位!$D$8:$E$75,2,FALSE) -> 
A76: =VLOOKUP(D76,非表示_活動量と単位!$D$8:$E$75,2,FALSE) -> 
A77: =VLOOKUP(D77,非表示_活動量と単位!$D$8:$E$75,2,FALSE) -> 
A78: =VLOOKUP(D78,非表示_活動量と単位!$D$8:$E$75,2,FALSE) -> 
A79: =VLOOKUP(D79,非表示_活動量と単位!$D$8:$E$75,2,FALSE) -> 
A80: =VLOOKUP(D80,非表示_活動量と単位!$D$8:$E$75,2,FALSE) ->  | O80: =IF($D80="","",IF(N80="---","---",IF(OR($D80="系統電力",$D80="産業用蒸気",$D80="温水",$D80="冷水",$D80="蒸気（産業用以外）"),E80*VLOOKUP($D80,GJ換算係数,2,FALSE),E80*G80))) -> 
A81: =VLOOKUP(D81,非表示_活動量と単位!$D$8:$E$75,2,FALSE) -> 
A82: =VLOOKUP(D82,非表示_活動量と単位!$D$8:$E$75,2,FALSE) -> 
A83: =VLOOKUP(D83,非表示_活動量と単位!$D$8:$E$75,2,FALSE) -> 
A84: =VLOOKUP(D84,非表示_活動量と単位!$D$8:$E$75,2,FALSE) -> 
A85: =VLOOKUP(D85,非表示_活動量と単位!$D$8:$E$75,2,FALSE) -> 
A86: =VLOOKUP(D86,非表示_活動量と単位!$D$8:$E$75,2,FALSE) -> 
A87: =VLOOKUP(D87,非表示_活動量と単位!$D$8:$E$75,2,FALSE) -> 
A88: =VLOOKUP(D88,非表示_活動量と単位!$D$8:$E$75,2,FALSE) -> 
A89: =VLOOKUP(D89,非表示_活動量と単位!$D$8:$E$75,2,FALSE) -> 
A90: =VLOOKUP(D90,非表示_活動量と単位!$D$8:$E$75,2,FALSE) -> 
A91: =VLOOKUP(D91,非表示_活動量と単位!$D$8:$E$75,2,FALSE) -> 
A92: =VLOOKUP(D92,非表示_活動量と単位!$D$8:$E$75,2,FALSE) -> 
A93: =VLOOKUP(D93,非表示_活動量と単位!$D$8:$E$75,2,FALSE) -> 
A94: =VLOOKUP(D94,非表示_活動量と単位!$D$8:$E$75,2,FALSE) -> 
A95: =VLOOKUP(D95,非表示_活動量と単位!$D$8:$E$75,2,FALSE) -> 
A96: =VLOOKUP(D96,非表示_活動量と単位!$D$8:$E$75,2,FALSE) -> 
A97: =VLOOKUP(D97,非表示_活動量と単位!$D$8:$E$75,2,FALSE) -> 
A98: =VLOOKUP(D98,非表示_活動量と単位!$D$8:$E$75,2,FALSE) -> 
A99: =VLOOKUP(D99,非表示_活動量と単位!$D$8:$E$75,2,FALSE) -> 
A100: =VLOOKUP(D100,非表示_活動量と単位!$D$8:$E$75,2,FALSE) -> 
A101: =VLOOKUP(D101,非表示_活動量と単位!$D$8:$E$75,2,FALSE) -> 
A102: =VLOOKUP(D102,非表示_活動量と単位!$D$8:$E$75,2,FALSE) -> 
CZ106: 単位
CZ107: t
CZ108: kl
CZ109: 千Nm3
CZ110: kWh
CZ111: GJ

Sheet 7-3. CO2排出量③
B2: =MID(CELL("filename",C2),FIND("]",CELL("filename",C2))+1,3)&"．" -> 7-3． | C2: 年間CO2排出量（主要なシステム系統） | E2: =IF(OR('4. 排出源リスト'!H5="",'4. 排出源リスト'!H5="---"),"---"&"年度",'4. 排出源リスト'!H5&"年度") -> 令和5年度 | BD2: セル色の表示／非表示
BD3: FALSE
C4: モニタリング ポイント No. | D4: 活動種別 | E4: 活動量 | G4: 単位発熱量 | I4: CO2排出係数 | K4: CO2排出量 [t-CO2] | L4: 備考 | M4: 活動量 | N4: GJ換算
E6: 量 | F6: 単位 | G6: 係数 | H6: 単位 | I6: 係数 | J6: 単位 | M6: 把握対象 | N6: 対象 | O6: GJ換算量
A7: =VLOOKUP(D7,非表示_活動量と単位!$D$8:$E$75,2,FALSE) -> 1 | C7: 1 | D7: =IF($C7="","",VLOOKUP($C7,モニタリングポイント,3,FALSE)) -> 系統電力 | E7: 200000 | F7: =IF($D7="","",VLOOKUP($D7,活動の種別と単位,4,FALSE)) -> kWh | G7: =IF($D7="","",IF(VLOOKUP($C7,モニタリングポイント,9,FALSE)="デフォルト値",VLOOKUP($D7,デフォルト値,3,FALSE),"")) ->  | H7: =IF($D7="","",VLOOKUP($D7,活動の種別と単位,5,FALSE)) -> --- | I7: =IF($D7="","",IF(VLOOKUP($C7,モニタリングポイント,11,FALSE)="デフォルト値",VLOOKUP($D7,デフォルト値,5,FALSE),"")) -> 0.000436 | J7: =IF($D7="","",VLOOKUP($D7,活動の種別と単位,6,FALSE)) -> t-CO2/kWh | K7: =IF($D7="","",IF($A7=0,E7*G7*I7,E7*I7)) -> 87.2 | L7: 稼働時間、カタログ掲載値の消費電力、機器効率により算定 | M7: =IF($D7="","",VLOOKUP($D7,活動の種別と単位,3,FALSE)) -> 使用量 | N7: =IF($D7="","",VLOOKUP($D7,活動の種別と単位,7,FALSE)) -> 対象 | O7: =IF($D7="","",IF(N7="---","---",IF(OR($D7="系統電力",$D7="産業用蒸気",$D7="温水",$D7="冷水",$D7="蒸気（産業用以外）"),E7*VLOOKUP($D7,GJ換算係数,2,FALSE),E7*G7))) -> 1728
A8: =VLOOKUP(D8,非表示_活動量と単位!$D$8:$E$75,2,FALSE) -> 0 | C8: 3 | D8: A重油 | E8: 800 | F8: kl | G8: 38.9 | H8: GJ/kl | I8: 0.0708 | J8: t-CO2/GJ | K8: =IF($D8="","",IF($A8=0,E8*G8*I8,E8*I8)) -> 2203.296 | L8: 購買伝票より算定 | M8: 使用量 | N8: 対象 | O8: 31120
A9: =VLOOKUP(D9,非表示_活動量と単位!$D$8:$E$75,2,FALSE) -> 
A10: =VLOOKUP(D10,非表示_活動量と単位!$D$8:$E$75,2,FALSE) -> 
A11: =VLOOKUP(D11,非表示_活動量と単位!$D$8:$E$75,2,FALSE) -> 
A12: =VLOOKUP(D12,非表示_活動量と単位!$D$8:$E$75,2,FALSE) -> 
A13: =VLOOKUP(D13,非表示_活動量と単位!$D$8:$E$75,2,FALSE) -> 
A14: =VLOOKUP(D14,非表示_活動量と単位!$D$8:$E$75,2,FALSE) -> 
A15: =VLOOKUP(D15,非表示_活動量と単位!$D$8:$E$75,2,FALSE) -> 
A16: =VLOOKUP(D16,非表示_活動量と単位!$D$8:$E$75,2,FALSE) -> 
A17: =VLOOKUP(D17,非表示_活動量と単位!$D$8:$E$75,2,FALSE) ->  | G17: =IF($D17="","",IF(VLOOKUP($C17,モニタリングポイント,9,FALSE)="デフォルト値",VLOOKUP($D17,デフォルト値,3,FALSE),"")) ->  | I17: =IF($D17="","",IF(VLOOKUP($C17,モニタリングポイント,11,FALSE)="デフォルト値",VLOOKUP($D17,デフォルト値,5,FALSE),"")) -> 
A18: =VLOOKUP(D18,非表示_活動量と単位!$D$8:$E$75,2,FALSE) -> 
A19: =VLOOKUP(D19,非表示_活動量と単位!$D$8:$E$75,2,FALSE) -> 
A20: =VLOOKUP(D20,非表示_活動量と単位!$D$8:$E$75,2,FALSE) -> 
A21: =VLOOKUP(D21,非表示_活動量と単位!$D$8:$E$75,2,FALSE) ->  | K21: =IF($D21="","",IF($A21=0,E21*G21*I21,E21*I21)) -> 
A22: =IF($G22="",1,0) -> 1 | D22: その他（要：備考欄への詳細記載） | K22: =IF($E22="","",IF($A22=0,E22*G22*I22,E22*I22)) ->  | N22: --- | O22: ---
A23: 1 | D23: その他（要：備考欄への詳細記載） | K23: =IF($E23="","",IF($A23=0,E23*G23*I23,E23*I23)) ->  | N23: --- | O23: ---
A24: 1 | D24: その他（要：備考欄への詳細記載） | N24: --- | O24: ---
A25: 1 | D25: その他（要：備考欄への詳細記載） | K25: =IF($E25="","",IF($A25=0,E25*G25*I25,E25*I25)) ->  | N25: --- | O25: ---
A26: 1 | D26: その他（要：備考欄への詳細記載） | N26: --- | O26: ---
A27: 1 | D27: その他（要：備考欄への詳細記載） | N27: =IF($D27="","",VLOOKUP($D27,活動の種別と単位,7,FALSE)) -> --- | O27: ---
A28: 1 | D28: その他（要：備考欄への詳細記載） | N28: --- | O28: ---
A29: 1 | D29: その他（要：備考欄への詳細記載） | N29: --- | O29: ---
A30: 1 | D30: その他（要：備考欄への詳細記載） | N30: --- | O30: ---
A31: 1 | D31: その他（要：備考欄への詳細記載） | N31: --- | O31: ---
I32: CO2排出量の合計 | K32: =IF(COUNTIF($E$2,"---*"),"---",SUM($K$7:$K$31)+SUM($K$48:$K$102)) -> 2290.496 | N32: GJ換算量の合計(b) | O32: =IF(COUNTIF($E$2,"---*"),"---",SUM($O$7:$O$31)+SUM($O$48:$O$102)) -> 32848
I33: エネルギー起源 CO2排出量の合計(a) | K33: =IF(COUNTIF($E$2,"---*"),"---",SUMIFS(K7:K31,N7:N31,"対象")+SUMIFS(K48:K102,N48:N102,"対象")) -> 2290.496 | N33: 脱炭素化指標(a)/(b) | O33: =IFERROR(K33/O32,"---") -> 0.069730151
B35: 1） | C35: 活動量は活動量単位未満を切り捨てずに入力してください。
B36: 2) | C36: 電気・熱を工場・事業場外に供給している場合の活動量
C37: A：工場・事業場内で燃料を使用して電気や熱を発生させ、工場・事業場外へ供給した場合
C38: →所内消費分の活動量を計算し、活動量欄に記載してください。計算根拠は「8. 備考」に記載してください。（記入例及びモニタリング報告ガイドライン第II部1.4.1を参照）
C39: B：電気事業者や熱供給業者から電気や熱の供給を受け、工場・事業場外へ供給した場合
C40: →外部への供給量をマイナスの値として活動量欄に記載ください。（記入例及びモニタリング報告ガイドライン第II部1.4.2を参照）
B41: 3) | C41: 活動種別が「その他」の場合には、指定されている行を使用し、活動量単位や係数等の必要な情報を入力してください。
B42: 4) | C42: 記入欄が足りない場合には、下表に記入してください。
C45: モニタリング ポイント No. | D45: 活動種別 | E45: 活動量 | G45: 単位発熱量 | I45: CO2排出係数 | K45: CO2排出量 [t-CO2] | L45: 備考 | M45: 活動量 | N45: GJ換算
E47: 量 | F47: 単位 | G47: 係数 | H47: 単位 | I47: 係数 | J47: 単位 | M47: 把握対象 | N47: 対象 | O47: GJ換算量
A48: =VLOOKUP(D48,非表示_活動量と単位!$D$8:$E$75,2,FALSE) ->  | D48: =IF($C48="","",VLOOKUP($C48,モニタリングポイント,3,FALSE)) ->  | F48: =IF($D48="","",VLOOKUP($D48,活動の種別と単位,4,FALSE)) ->  | G48: =IF($D48="","",IF(VLOOKUP($C48,モニタリングポイント,9,FALSE)="デフォルト値",VLOOKUP($D48,デフォルト値,3,FALSE),"")) ->  | H48: =IF($D48="","",VLOOKUP($D48,活動の種別と単位,5,FALSE)) ->  | I48: =IF($D48="","",IF(VLOOKUP($C48,モニタリングポイント,11,FALSE)="デフォルト値",VLOOKUP($D48,デフォルト値,5,FALSE),"")) ->  | J48: =IF($D48="","",VLOOKUP($D48,活動の種別と単位,6,FALSE)) ->  | K48: =IF($D48="","",IF($A48=0,E48*G48*I48,E48*I48)) ->  | M48: =IF($D48="","",VLOOKUP($D48,活動の種別と単位,3,FALSE)) ->  | N48: =IF($D48="","",VLOOKUP($D48,活動の種別と単位,7,FALSE)) ->  | O48: =IF($D48="","",IF(N48="---","---",IF(OR($D48="系統電力",$D48="産業用蒸気",$D48="温水",$D48="冷水",$D48="蒸気（産業用以外）"),E48*VLOOKUP($D48,GJ換算係数,2,FALSE),E48*G48))) -> 
A49: =VLOOKUP(D49,非表示_活動量と単位!$D$8:$E$75,2,FALSE) -> 
A50: =VLOOKUP(D50,非表示_活動量と単位!$D$8:$E$75,2,FALSE) -> 
A51: =VLOOKUP(D51,非表示_活動量と単位!$D$8:$E$75,2,FALSE) -> 
A52: =VLOOKUP(D52,非表示_活動量と単位!$D$8:$E$75,2,FALSE) -> 
A53: =VLOOKUP(D53,非表示_活動量と単位!$D$8:$E$75,2,FALSE) -> 
A54: =VLOOKUP(D54,非表示_活動量と単位!$D$8:$E$75,2,FALSE) -> 
A55: =VLOOKUP(D55,非表示_活動量と単位!$D$8:$E$75,2,FALSE) -> 
A56: =VLOOKUP(D56,非表示_活動量と単位!$D$8:$E$75,2,FALSE) -> 
A57: =VLOOKUP(D57,非表示_活動量と単位!$D$8:$E$75,2,FALSE) -> 
A58: =VLOOKUP(D58,非表示_活動量と単位!$D$8:$E$75,2,FALSE) -> 
A59: =VLOOKUP(D59,非表示_活動量と単位!$D$8:$E$75,2,FALSE) -> 
A60: =VLOOKUP(D60,非表示_活動量と単位!$D$8:$E$75,2,FALSE) -> 
A61: =VLOOKUP(D61,非表示_活動量と単位!$D$8:$E$75,2,FALSE) -> 
A62: =VLOOKUP(D62,非表示_活動量と単位!$D$8:$E$75,2,FALSE) -> 
A63: =VLOOKUP(D63,非表示_活動量と単位!$D$8:$E$75,2,FALSE) -> 
A64: =VLOOKUP(D64,非表示_活動量と単位!$D$8:$E$75,2,FALSE) -> 
A65: =VLOOKUP(D65,非表示_活動量と単位!$D$8:$E$75,2,FALSE) -> 
A66: =VLOOKUP(D66,非表示_活動量と単位!$D$8:$E$75,2,FALSE) -> 
A67: =VLOOKUP(D67,非表示_活動量と単位!$D$8:$E$75,2,FALSE) -> 
A68: =VLOOKUP(D68,非表示_活動量と単位!$D$8:$E$75,2,FALSE) -> 
A69: =VLOOKUP(D69,非表示_活動量と単位!$D$8:$E$75,2,FALSE) -> 
A70: =VLOOKUP(D70,非表示_活動量と単位!$D$8:$E$75,2,FALSE) -> 
A71: =VLOOKUP(D71,非表示_活動量と単位!$D$8:$E$75,2,FALSE) -> 
A72: =VLOOKUP(D72,非表示_活動量と単位!$D$8:$E$75,2,FALSE) -> 
A73: =VLOOKUP(D73,非表示_活動量と単位!$D$8:$E$75,2,FALSE) -> 
A74: =VLOOKUP(D74,非表示_活動量と単位!$D$8:$E$75,2,FALSE) -> 
A75: =VLOOKUP(D75,非表示_活動量と単位!$D$8:$E$75,2,FALSE) -> 
A76: =VLOOKUP(D76,非表示_活動量と単位!$D$8:$E$75,2,FALSE) -> 
A77: =VLOOKUP(D77,非表示_活動量と単位!$D$8:$E$75,2,FALSE) -> 
A78: =VLOOKUP(D78,非表示_活動量と単位!$D$8:$E$75,2,FALSE) -> 
A79: =VLOOKUP(D79,非表示_活動量と単位!$D$8:$E$75,2,FALSE) -> 
A80: =VLOOKUP(D80,非表示_活動量と単位!$D$8:$E$75,2,FALSE) ->  | O80: =IF($D80="","",IF(N80="---","---",IF(OR($D80="系統電力",$D80="産業用蒸気",$D80="温水",$D80="冷水",$D80="蒸気（産業用以外）"),E80*VLOOKUP($D80,GJ換算係数,2,FALSE),E80*G80))) -> 
A81: =VLOOKUP(D81,非表示_活動量と単位!$D$8:$E$75,2,FALSE) -> 
A82: =VLOOKUP(D82,非表示_活動量と単位!$D$8:$E$75,2,FALSE) -> 
A83: =VLOOKUP(D83,非表示_活動量と単位!$D$8:$E$75,2,FALSE) -> 
A84: =VLOOKUP(D84,非表示_活動量と単位!$D$8:$E$75,2,FALSE) -> 
A85: =VLOOKUP(D85,非表示_活動量と単位!$D$8:$E$75,2,FALSE) -> 
A86: =VLOOKUP(D86,非表示_活動量と単位!$D$8:$E$75,2,FALSE) -> 
A87: =VLOOKUP(D87,非表示_活動量と単位!$D$8:$E$75,2,FALSE) -> 
A88: =VLOOKUP(D88,非表示_活動量と単位!$D$8:$E$75,2,FALSE) -> 
A89: =VLOOKUP(D89,非表示_活動量と単位!$D$8:$E$75,2,FALSE) -> 
A90: =VLOOKUP(D90,非表示_活動量と単位!$D$8:$E$75,2,FALSE) -> 
A91: =VLOOKUP(D91,非表示_活動量と単位!$D$8:$E$75,2,FALSE) -> 
A92: =VLOOKUP(D92,非表示_活動量と単位!$D$8:$E$75,2,FALSE) -> 
A93: =VLOOKUP(D93,非表示_活動量と単位!$D$8:$E$75,2,FALSE) -> 
A94: =VLOOKUP(D94,非表示_活動量と単位!$D$8:$E$75,2,FALSE) -> 
A95: =VLOOKUP(D95,非表示_活動量と単位!$D$8:$E$75,2,FALSE) -> 
A96: =VLOOKUP(D96,非表示_活動量と単位!$D$8:$E$75,2,FALSE) -> 
A97: =VLOOKUP(D97,非表示_活動量と単位!$D$8:$E$75,2,FALSE) -> 
A98: =VLOOKUP(D98,非表示_活動量と単位!$D$8:$E$75,2,FALSE) ->  | CZ98: 単位
A99: =VLOOKUP(D99,非表示_活動量と単位!$D$8:$E$75,2,FALSE) ->  | CZ99: t
A100: =VLOOKUP(D100,非表示_活動量と単位!$D$8:$E$75,2,FALSE) ->  | CZ100: kl
A101: =VLOOKUP(D101,非表示_活動量と単位!$D$8:$E$75,2,FALSE) ->  | CZ101: 千Nm3
A102: =VLOOKUP(D102,非表示_活動量と単位!$D$8:$E$75,2,FALSE) ->  | CZ102: kWh
CZ103: GJ

Sheet 7-4. CO2排出量_総括
B2: =MID(CELL("filename",C2),FIND("]",CELL("filename",C2))+1,3)&"．" -> 7-4． | D2: CO2排出量（主要なシステム系統）【総括】 | AO2: セル色の表示／非表示
AO3: FALSE
B5: 算定年度 | H5: CO2排出量 | K5: エネルギー起源 CO2排出量 | N5: エネルギー使用量 | P5: 脱炭素化指標 | Q5: 備考
B7: ='6-1. CO2排出量①'!E2 -> 令和3年度 | C7: ='[1]6-1. CO2排出量①'!F32 -> 0 | D7: ='[1]6-1. CO2排出量①'!G32 -> 0 | E7: ='[1]6-1. CO2排出量①'!H32 -> 0 | F7: ='[1]6-1. CO2排出量①'!I32 -> CO2排出量の合計 | G7: ='[1]6-1. CO2排出量①'!J32 -> 0 | H7: ='7-1. CO2排出量①'!K32 -> 2841.32 | I7: t-CO2 | K7: ='7-1. CO2排出量①'!K33 -> 2841.32 | L7: t-CO2 | N7: ='7-1. CO2排出量①'!O32 -> 40628 | O7: GJ | P7: =IFERROR('7-1. CO2排出量①'!O33,"---") -> 0.06993502018
B8: ='6-2. CO2排出量②'!E2 -> 令和4年度 | C8: ='[1]6-2. CO2排出量②'!F32 -> 0 | D8: ='[1]6-2. CO2排出量②'!G32 -> 0 | E8: ='[1]6-2. CO2排出量②'!H32 -> 0 | F8: ='[1]6-2. CO2排出量②'!I32 -> CO2排出量の合計 | G8: ='[1]6-2. CO2排出量②'!J32 -> 0 | H8: ='7-2. CO2排出量②'!K32 -> 2841.32 | I8: t-CO2 | K8: ='7-2. CO2排出量②'!K33 -> 2841.32 | L8: t-CO2 | N8: ='7-2. CO2排出量②'!O32 -> 40628 | O8: GJ | P8: =IFERROR('7-2. CO2排出量②'!O33,"---") -> 0.06993502018
B9: ='6-3. CO2排出量③'!E2 -> 令和5年度 | C9: ='[1]6-3. CO2排出量③'!F32 -> 0 | D9: ='[1]6-3. CO2排出量③'!G32 -> 0 | E9: ='[1]6-3. CO2排出量③'!H32 -> 0 | F9: ='[1]6-3. CO2排出量③'!I32 -> CO2排出量の合計 | G9: ='[1]6-3. CO2排出量③'!J32 -> 0 | H9: ='7-3. CO2排出量③'!K32 -> 2290.496 | I9: t-CO2 | K9: ='7-3. CO2排出量③'!K33 -> 2290.496 | L9: t-CO2 | N9: ='7-3. CO2排出量③'!O32 -> 32848 | O9: GJ | P9: =IFERROR('7-3. CO2排出量③'!O33,"---") -> 0.069730151
B10: 合計 | H10: =IF(COUNTIF($B$7:$G$9,"---*")=3,"---",SUM(H7:H9)) -> 7973.136 | I10: t-CO2 | K10: =IF(COUNTIF($B$7:$G$9,"---*")=3,"---",SUM(K7:K9)) -> 7973.136 | L10: t-CO2 | N10: =IF(COUNTIF($B$7:$G$9,"---*")=3,"---",SUM(N7:N9)) -> 114104 | O10: GJ | P10: ---
B11: 基準年度値 （平均値） | H11: =IFERROR(AVERAGE(H7:H9),"---") -> 2657.712 | I11: t-CO2 | K11: =IFERROR(AVERAGE(K7:K9),"---") -> 2657.712 | L11: t-CO2 | N11: =IFERROR(AVERAGE(N7:N9),"---") -> 38034.66667 | O11: GJ | P11: =IFERROR(K11/N11,"---") -> 0.06987604291
B16: 排出削減目標量 | H16: =IFERROR(ROUNDDOWN(HLOOKUP("目標年度",削減目標,11,FALSE),0),"") -> 0 | I16: t-CO2
B17: 排出目標量 | H17: =IF(H16="","",H11-H16) -> 2657.712 | I17: t-CO2
B18: ※ | C18: 排出削減目標量は「511脱炭素化計画」の「1．脱炭素化計画」の主要なシステム系統・目標年度・対基準年度CO2削減量に記載の値です（変更不可）
C19: 排出削減目標量は、小数点以下を切り捨てた整数値で表示されているため、「511脱炭素化計画」に表示されている数値と一致しない可能性があります。
B21: 主要なシステム系統の定義 | J21: ※ | K21: 何を主要なシステム系統と見なしたか、記入してください。
B58: 対策実施後の主要なシステム系統のCO2排出量の把握方法 | N58: ※対策実施後の主要なシステム系統における活動種別ごとの年間活動量の把握方法を記入してください。
B59: 購入したLNGは、全て更新後の溶解炉（燃料：LNG）で使用するため、購買量と在庫変動より年間LNG使用量を把握する。 成形機器・徐冷炉の年間電力使用量は精度管理された電力量計で計測する。 これらにより把握した年間LNG使用量、年間電力使用量のそれぞれに変換係数を乗じて当該システム系統のCO2排出量を把握する。

Sheet 8. 備考
B2: 8. 備考 | R2: セル色の表示／非表示
B3: 令和3年度の対象事業所外に供給した電力・熱の発生に係わる排出について、事業場内からのCO2排出に係る燃料使用量はモニタリング報告ガイドライン第II部1.4.1を参考に以下のように算定した。 Ei:所内消費電力量(kWh) Ti=所内消費熱量(GJ) Eo:外部供給電力量(kWh) To=外部供給熱量(GJ) 事業場内からのCO2排出に係る燃料使用量（kl） Ei×0.0036(GJ/kWh)+Ti = ---------------------------- ×燃料消費量(kl) (Ei+Eo)×0.0036(GJ/kWh)+(Ti+To) 2410+ 2500 = ---------------------------- ×459 (2410+3500) + (2500+3450) = 190.024(kl) 小数点以下の値を切り捨て、 =190（kl） | R3: FALSE
B31: ※算定方法の記載が必要な項目については、本項に算定方法を記載すること。

Sheet 表紙
AD4: Ver. 4.1.2 | AO4: 記入例及び注記 | AX4: セル色凡例 | BD4: 直接入力 | BI4: 選択 | BM4: 自動計算 | CB4: セル色の表示／非表示
AO5: （セルのメモやテキストボックスによる注記は移動できます） | CB5: FALSE
C12: 環境省 SHIFT事業 | AP12: 環境省 SHIFT事業
CF15: 表紙マクロ動作きっかけ用
C16: CO2削減計画策定支援 | AP16: CO2削減計画策定支援 | CB16: CO2削減計画策定支援 | CF16: =C16 -> CO2削減計画策定支援
CB17: 省CO2型設備更新支援 | CF17: =J21 -> 診断報告書/実施計画書
AP19: ※「診断報告書」と「実施計画書」に関する注記 ■作成目的に合わせて、「診断報告書」、「実施計画書」 が選択できます。 ・「診断報告書」を選択すると、実施計画書でのみ使用する500番台のシートが非表示になります。 ・「実施計画書」を選択すると、診断報告書でのみ使用する400番台のシートが非表示になります。 ・「診断報告書」及び「実施計画書」の両方で使用するシート（シート名の冒頭に番号なし）は、 「診断報告書」と「実施計画書」の選択による影響はありません。 ■支援計画書[111支援計画］シートの2.要望欄で合意した成果物に合わせて、診断報告書、実施計画書を策定して ください。 （成果物は、2.要望欄における設備更新支援への申請希望欄の選択結果に応じて異なります。） 設備更新支援への申請希望欄の回答が、 ・「①申請希望あり（A/B事業）」の場合、または「④申請希望なし（実施計画書A/B策定希望）」の場合は、 ⇒本［表紙］シートにて、「診断報告書」、「実施計画書A/B」を選択し、策定してください。 ・「②申請希望あり（C事業）」の場合、または「⑤申請希望なし（実施計画書C策定希望）」の場合は、 ⇒本［表紙］シートにて、「実施計画書C」を選択して策定してください。（「診断報告書」の作成は不要です） ・「③申請希望あり（事業未定）」の場合は、 ⇒本［表紙］シートにて、「診断報告書」、「実施計画書A/B/C」を選択して策定してください。 ■１つのファイルで、「診断報告書」と「実施計画書」の2種類の書類を作成することになります。 そのため、必ず「診断報告書」と「実施計画書」の両方の状態で保存し、別個の書類として管理してください。
CB20: 計画策定支援 | CD20: 設備更新支援
J21: 診断報告書/実施計画書 | CB21: 診断報告書/実施計画書 | CD21: 実施計画書 A/B/C
CB22: 診断報告書 | CD22: 実施計画書 A/B
CB23: 実施計画書 A/B | CD23: 実施計画書 C
CB24: 実施計画書 C
CB25: 実施計画書 A/B/C
D41: 事業者 (目標保有者) | L41: =IF('1. 基本情報等'!K14="","",'1. 基本情報等'!K14) -> ABC工業株式会社 | AQ41: 事業者 | AY41: ○○株式会社
D44: 工場・事業場 | L44: =IF('1. 基本情報等'!K15="","",'1. 基本情報等'!K15) -> ABC工業株式会社SHIFT工場 | AQ44: 工場・事業場 | AY44: ○○○○工場
CB46: 業種振り分け
D47: 業種 | H47: 中分類 | L47: =IF(L49="","",VLOOKUP(L49,逆引き業種,3,FALSE)) -> 21 窯業・土石製品製造業 | AQ47: 業種※ | AU47: 中分類 | AY47: 09 食料品製造業 | CB47: =VLOOKUP($L$47,中分類振り分け,2,FALSE) -> 中分類21
H49: 小分類 | L49: =IF('1. 基本情報等'!K18="","",'1. 基本情報等'!K18) -> 211 ガラス・同製品製造業 | AU49: 小分類 | AY49: 094 調味料製造業
AQ51: ※ | AR51: 日本産業分類（令和6年4月改定）
D55: 主支援機関 | AQ55: 主支援機関 | AY55: 株式会社△△
D58: 副支援機関/ 共同支援機関 | AQ58: 副支援機関／共同支援機関 | AY58: なし

Sheet 411工場・事業場概要
B4: 4．診断報告書 | O4: 41．工場・事業場の現状 | AO4: 記入例及び注記 | AW4: セル色凡例 | BC4: 直接入力 | BH4: 選択 | BL4: 自動計算 | CF4: セル色の表示／非表示
B5: 411．工場・事業場概要 | AO5: （セルのメモやテキストボックスによる注記は移動できます） | CF5: FALSE
B7: １．工場・事業場の概要 | AO7: １．工場・事業場の概要
B8: 事業者名 | F8: =IF(表紙!L41="","",表紙!L41) -> ABC工業株式会社 | AO8: 事業者名 | AS8: ○○株式会社
AA9: 工場・事業場の外観写真 | BN9: 工場・事業場の外観写真
B10: 工場・ 事業場名 | F10: =IF(表紙!L44="","",表紙!L44) -> ABC工業株式会社SHIFT工場 | AO10: 工場・ 事業場名 | AS10: ○○○○工場
B12: 業種／部門 | F12: =IF(表紙!L49="","",表紙!L49) -> 211 ガラス・同製品製造業 | W12: =IFERROR(VLOOKUP(F12,部門,2,FALSE),"") -> 産業 | AO12: 業種／部門 | AS12: 094 調味料製造業 | BJ12: 産業
B14: 事業規模 | F14: =IF(W12="","",IF(W12="産業","工場・事業場全体の年間出荷額","建物全体の延床面積")) -> 工場・事業場全体の年間出荷額 | W14: =IF($W$12="","",IF($W$12="産業","千円","千m2")) -> 千円 | AO14: 事業規模 | AS14: 工場・事業場全体の年間出荷額 | BJ14: 千円
F15: =IF($W$12="","",IF($W$12="産業","最終製品の名称","建物全体の階数（地上）")) -> 最終製品の名称 | AS15: 最終製品の名称
F16: =IF($W$12="","",IF($W$12="産業","最終製品の年間生産量及び単位","建物全体の階数（地下）")) -> 最終製品の年間生産量及び単位 | AS16: 最終製品の年間生産量
F17: =IF(W12="","",IF(W12="産業","---","テナント利用における専用部延床面積")) -> --- | W17: =IF($W$12="","",IF($W$12="産業","","千m2")) ->  | AS17: ---
B19: ２．CO2排出削減の取組状況 | AO19: ２．CO2排出削減の取組状況
AP21: [413対策実施状況]の結果に基づき、工場・事業場のCO2排出削減の取組状況のまとめを記載してください。
B25: ３．基準年度の状況 | AO25: ３．基準年度の状況
B26: 算定報告書で算出された基準年度のエネルギー起源CO2排出状況とエネルギー使用状況です。 | AO26: 算定報告書で算出された基準年度のエネルギー起源CO2排出状況とエネルギー使用状況です。
C28: CO2排出量 | G28: =IF('6-4. CO2排出量_総括'!K11="","",'6-4. CO2排出量_総括'!K11) -> 4379.920067 | O28: t-CO2/年 | R28: エネルギー使用量 | Y28: =IF('6-4. CO2排出量_総括'!N11="","",'6-4. CO2排出量_総括'!N11) -> 67161.13333 | AF28: GJ/年（GJ換算値） | AP28: CO2排出量 | AT28: 1200 | BB28: t-CO2/年 | BE28: エネルギー使用量 | BL28: 25000 | BS28: GJ/年（GJ換算値） | BZ28: ※基準年度の排出量及びエネルギー 使用量に関する注記 ■基準年度のエネルギー起源CO2排出 量及びエネルギー使用量は、 同ファイル内の「算定報告書」の 6-4から自動転記されます。
B31: ■CO2排出状況とエネルギー使用状況のまとめ | AO31: ■CO2排出状況とエネルギー使用状況のまとめ
AP33: ※CO2排出状況とエネルギー使用状況に関する注記 ■【算定報告書】、［412主要機器の排出量］等を参考に、基準年度における工場・事業場のCO2排出量やエネルギー 使用状況を、分かりやすく図表で示し、その解説をまとめ欄に簡潔に記載してください。
AO38: （工場・事業場全体）
AP40: ・工場・事業場全体のエネルギー使用割合 | BH40: ・工場・事業場全体のエネルギー使用量
BH41: ・工場・事業場全体の年間CO2排出量の割合
BH42: ・工場・事業場全体のCO2排出量 | BR42: など
AP53: （主要機器別）
AP55: ・主要機器別エネルギー使用割合 など

Sheet 主要機器の排出量
B4: =IF(COUNTIF(表紙!J21,"*C*"),"5．実施計画書","4．診断報告書") -> 4．診断報告書 | F4: =IF(COUNTIF(表紙!J21,"*C*"),"50．工場・事業場の現状","41．工場・事業場の現状") -> 41．工場・事業場の現状 | O4: 工場・事業場全体の基準年度排出量 | T4: =IF('6-4. CO2排出量_総括'!K11="","",'6-4. CO2排出量_総括'!K11) -> 4379.920067 | U4: t-CO2/年 | Y4: 記入例及び注記 | AC4: セル色凡例 | AE4: 直接入力 | AG4: 選択 | AI4: 自動計算 | AL4: 工場・事業場全体の基準年度排出量 | AQ4: 1200 | AR4: t-CO2/年 | BJ4: セル色の表示／非表示
B5: 主要機器のCO2排出量とエネルギーフロー図 | O5: 主要機器のCO2排出量の合計 | T5: =SUM(T10:T25) -> 0 | U5: t-CO2/年 | Y5: （セルのメモやテキストボックスによる注記は移動できます） | AL5: 主要機器のCO2排出量の合計 | AQ5: 1102.72396 | AR5: t-CO2/年 | BJ5: FALSE
O6: 工場・事業場全体の基準年度排出量に占める割合 | T6: =IFERROR(T5/T4*100,"---") -> 0 | U6: % | AL6: 工場・事業場全体のCO2排出量に占める割合 | AQ6: 91.89366333 | AR6: %
B7: １．主要機器のCO2排出量
B8: 範囲区分 | C8: システム／ 設備区分 | F8: 工程名 | G8: 設備・機器 | I8: 能力 | K8: 運転状況 | L8: 稼動時間 | O8: 活動種別 | P8: 年間活動量 | R8: 変換係数 | T8: CO2排出量 (t-CO2/年) | U8: 設置年月 | Y8: 範囲区分 | Z8: システム／ 設備区分 | AC8: 工程名 | AD8: 設備・機器 | AF8: 能力 | AH8: 運転状況 | AI8: 稼動時間 | AL8: 活動種別 | AM8: 年間活動量 | AO8: 変換係数 | AQ8: CO2排出量 (t-CO2/年) | AR8: 設置年月
G9: 名称 | H9: 台数 | I9: 数値 | J9: 単位 | L9: h/日 | M9: 日/年 | N9: h/年 | P9: 数量 | Q9: 単位 | R9: 数値 | S9: 単位 | AD9: 名称 | AE9: 台数 | AF9: 数値 | AG9: 単位 | AI9: h/日 | AJ9: 日/年 | AK9: h/年 | AM9: 数量 | AN9: 単位 | AO9: 数値 | AP9: 単位
A10: =IF($O10="","",VLOOKUP($O10,排出係数と単価2,10,FALSE)) ->  | N10: =L10*M10 -> 0 | Q10: =IF($O10="","",VLOOKUP($O10,排出係数と単価2,2,FALSE)) ->  | R10: =IF($O10="","",IF(A10=1,VLOOKUP($O10,排出係数と単価2,5,FALSE),VLOOKUP($O10,排出係数と単価2,3,FALSE)*VLOOKUP($O10,排出係数と単価2,5,FALSE))) ->  | S10: =IF($O10="","","t-CO2/"&$Q10) ->  | T10: =IF(OR(P10="",R10=""),"",P10*R10) ->  | Y10: ﾕｰﾃｨﾘﾃｨ | Z10: 蒸気システム | AC10: 蒸気 | AD10: 蒸気ボイラー | AE10: 3 | AF10: 45.5 | AG10: m3N/h | AH10: 連続 | AI10: 16 | AJ10: 250 | AK10: 4000 | AL10: 都市ガス | AM10: 345.82 | AN10: 千Nm3 | AO10: 2.277 | AP10: t-CO2/千Nm3 | AQ10: 787.43214 | AR10: 2017-04-01
N11: =L11*M11 -> 0 | Q11: =IF($O11="","",VLOOKUP($O11,排出係数と単価2,2,FALSE)) ->  | T11: =IF(OR(P11="",R11=""),"",P11*R11) ->  | Y11: ﾕｰﾃｨﾘﾃｨ | Z11: 圧空システム | AC11: 圧空 | AD11: コンプレッサー | AE11: 4 | AF11: 7.5 | AG11: kW | AH11: 連続 | AI11: 10 | AJ11: 250 | AK11: 2500 | AL11: 系統電力① | AM11: 18750 | AN11: kWh | AO11: 0.000463 | AP11: t-CO2/kWh | AQ11: 8.68125 | AR11: 2007-08-01
N12: =L12*M12 -> 0 | S12: =IF($O12="","","t-CO2/"&$Q12) ->  | T12: =IF(OR(P12="",R12=""),"",P12*R12) ->  | Y12: ﾕｰﾃｨﾘﾃｨ | Z12: 冷凍・冷蔵設備 | AC12: 保管 | AD12: 保冷庫 | AE12: 4 | AF12: 20 | AG12: kW | AH12: 連続 | AI12: 24 | AJ12: 365 | AK12: 8760 | AL12: 系統電力① | AM12: 743630 | AN12: kWh | AO12: 0.000463 | AP12: t-CO2/kWh | AQ12: 344.30069 | AR12: 2018-09-01
N13: 0 | Y13: 生産設備 | Z13: その他 | AC13: 製品製造 | AD13: 製造機 | AE13: 2 | AF13: 26 | AG13: kW | AH13: 連続 | AI13: 8 | AJ13: 250 | AK13: 2000 | AL13: 系統電力① | AM13: 24400 | AN13: kWh | AO13: 0.000463 | AP13: t-CO2/kWh | AQ13: 11.2972 | AR13: 2005-07-01
N14: 0 | Y14: 生産設備 | Z14: その他 | AC14: 成形 | AD14: 成形機 | AE14: 1 | AF14: 18.5 | AG14: kW | AH14: 連続 | AI14: 8 | AJ14: 250 | AK14: 2000 | AL14: 系統電力① | AM14: 23100 | AN14: kWh | AO14: 0.000463 | AP14: t-CO2/kWh | AQ14: 10.6953 | AR14: 2006-07-01
N15: 0 | Y15: 生産設備 | Z15: 電動機・ポンプ・ファン | AC15: 撹拌 | AD15: 撹拌用モーター | AE15: 20 | AF15: 55 | AG15: kW | AH15: バッチ | AI15: 5 | AJ15: 250 | AK15: 1250 | AL15: 系統電力① | AM15: 635440 | AN15: kWh | AO15: 0.000463 | AP15: t-CO2/kWh | AQ15: 294.20872 | AR15: 2014-04-01
N16: 0
N17: 0 | Z17: ※主要設備機器の選定に関する注記 ■工場・事業場全体の状況を把握するため、主要機器のCO2排出量の合計が、工場・事業場全体の CO2排出量の80％（目標）となるように、工場・事業場担当者と相談した上で、エネルギー使用量や CO2排出量の多い機器を選定してください。 ■燃料を使用する発電設備がある場合、「主要機器のCO2排出量の合計」には、発電設備が使用 した燃料によるCO2排出量と、発電設備が発電した電力を他の設備が消費したことによるCO2 排出量が含まれることになります。 このような場合において、「主要機器のCO2排出量の合計」で8割を把握するためには、「工場・ 事業場全体のCO2排出量に占める割合」が100%を超えていなければならない場合があることに 留意してください。 | AI17: ※稼働時間、年間活動量に関する注記 ■算定報告書で選定した3年度間における平均的な稼働時間、年間活動量を 入力してください。
N18: 0
N19: 0
N20: 0 | AI20: ※入力値に関する注記 ■記録がある場合には記録値を基本とし、不明の場合には推計値としてください。
N21: 0
N22: 0
N23: 0
N24: 0
N25: 0 | T25: =IF(OR(P25="",R25=""),"",P25*R25) -> 
B27: ２．主要機器のエネルギーフロー図 | Y27: ２．主要機器のエネルギーフロー図
B28: ■エネルギーフロー及びエネルギーロスの発生状況のまとめ | Y28: ■エネルギーフロー及びエネルギーロスの発生状況のまとめ
AC30: ※エネルギーフロー及びエネルギーロスに関する注記 ■工場・事業場のエネルギーフロー図を示してください。可能な場合にはエネルギーロスの発生個所、発生量等を記載してください。 ■エネルギーフロー図の数値と「主要機器の排出量」の数値が整合していることを確認してください。 ■「413対策実施状況」の「３．CO2排出削減対策の実施状況と対策の提案予定」で記載したシステムおよび設備・機器は 必ずエネルギーフロー図に反映させてください。
B34: ■エネルギーフロー図 | Y34: ■エネルギーフロー図

Sheet 413対策実施状況
B4: 4．診断報告書 | K4: 41．工場・事業場の現状 | AO4: 記入例及び注記 | AW4: セル色凡例 | BC4: 直接入力 | BH4: 選択 | BL4: 自動計算 | CF4: セル色の表示／非表示
B5: 413．対策実施状況 | AO5: （セルのメモやテキストボックスによる注記は移動できます） | CF5: FALSE
B7: １．エネルギー管理状況 | AO7: １．エネルギー管理状況
CF8: 1.実施している
B9: 項目 | AD9: 実施状況 | AO9: 項目 | BQ9: 実施状況 | CF9: 2.部分的に実施している
B10: エネルギー管理体制 | C10: 1 | D10: 推進体制の整備 | AO10: エネルギー管理体制 | AP10: 1 | AQ10: 推進体制の整備 | BQ10: 1.実施している | CF10: 3.実施していない
D11: 関連部門が参加するCO2排出削減に向けての推進体制がある。 | AQ11: 関連部門が参加するCO2排出削減に向けての推進体制がある。
C13: 2 | D13: 検討会の開催 | AP13: 2 | AQ13: 検討会の開催 | BQ13: 2.部分的に実施している
D14: 関連部門が参加するエネルギー使用状況及びCO2排出量推移等の検討会を実施している。 | AQ14: 関連部門が参加するエネルギー使用状況及びCO2排出量推移等の検討会を実施している。
C16: 3 | D16: CO2排出削減目標の設定 | AP16: 3 | AQ16: CO2排出削減目標の設定 | BQ16: 3.実施していない
D17: CO2排出削減目標が定められており、工場・事業場全体で改善活動を実施している。 | AQ17: CO2排出削減目標が定められており、工場・事業場全体で改善活動を実施している。
C19: 4 | D19: 小集団活動の実施 | AP19: 4 | AQ19: 小集団活動の実施 | BQ19: 2.部分的に実施している
D20: CO2削減に向けて、小集団活動等(例：QC活動)の改善活動を実施している。 | AQ20: CO2削減に向けて、小集団活動等(例：QC活動)の改善活動を実施している。
C22: 5 | D22: 評価・表彰制度の制定 | AP22: 5 | AQ22: 評価・表彰制度の制定 | BQ22: 3.実施していない
D23: CO2削減に関して、改善提案制度等の従業者に対する評価・表彰制度がある。 | AQ23: CO2削減に関して、改善提案制度等の従業者に対する評価・表彰制度がある。
C25: 6 | D25: 経営層の関与 | AP25: 6 | AQ25: 経営層の関与 | BQ25: 1.実施している
D26: トップのCO2削減に向けての強い意識、指導がある。 | AQ26: トップのCO2削減に向けての強い意識、指導がある。
C28: 7 | D28: 教育の実施 | AP28: 7 | AQ28: 教育の実施 | BQ28: 3.実施していない
D29: CO2削減に関する研修会等への参加やOJTでの教育等を実施している。 | AQ29: CO2削減に関する研修会等への参加やOJTでの教育等を実施している。
B31: エネルギー把握(見える化) | C31: 8 | D31: エネルギー使用の把握 | AO31: エネルギー把握(見える化) | AP31: 8 | AQ31: エネルギー使用の把握 | BQ31: 2.部分的に実施している
D32: エネルギー種類別に、使用量を定量的に把握している。 | AQ32: エネルギー種類別に、使用量を定量的に把握している。
CF33: --- | CG33: ---
D34: 8-1 | F34: 把握の頻度 | AQ34: 8-1 | AS34: 把握の頻度 | BQ34: c.月ごと | CF34: a.年度ごと | CG34: a.工場・事業場全体
D35: 8-2 | F35: 把握の最小範囲 | AQ35: 8-2 | AS35: 把握の最小範囲 | BQ35: a.工場・事業場全体 | CF35: b.数か月ごと | CG35: b.建屋ごと
C36: 9 | D36: データの収集と分析 | AP36: 9 | AQ36: データの収集と分析 | BQ36: 3.実施していない | CF36: c.月ごと | CG36: c.ライン又は工程ごと
D37: エネルギー使用データは、関連する設備の操業条件、気象条件、稼働率等のデータと併せて使用実績の分析を行っている。 | AQ37: エネルギー使用データは、関連する設備の操業条件、気象条件、稼働率等のデータと併せて使用実績の分析を行っている。 | CF37: d.日ごと | CG37: d.設備ごと
CF38: e.時間ごと又はそれ以上
C39: 10 | D39: データの見える化と共有化 | AP39: 10 | AQ39: データの見える化と共有化 | BQ39: 2.部分的に実施している
D40: データの見える化を進め、関係者間でのエネルギー使用状況の共有化を行っている。 | AQ40: データの見える化を進め、関係者間でのエネルギー使用状況の共有化を行っている。
C42: 11 | D42: CO2排出量の管理 | AP42: 11 | AQ42: CO2排出量の管理 | BQ42: 2.部分的に実施している
D43: エネルギー使用量やCO2排出量を算出し、目標に対する達成状況の評価を行っている。 | AQ43: エネルギー使用量やCO2排出量を算出し、目標に対する達成状況の評価を行っている。
B47: ２．認証等取得状況 | AO47: ２．認証等取得状況
B49: 認証等の名称 | Q49: 取得状況 | V49: 取得年・取得予定年（西暦） | AD49: 備考 | AO49: 認証等の名称 | BD49: 取得状況 | BI49: 取得年・取得予定年（西暦） | BQ49: 備考
B50: エコアクション２１ | V50: =IF(Q50="","",IF(Q50="取得済み","取得年",IF(Q50="取得予定","取得予定年","---"))) ->  | AC50: 年 | AO50: エコアクション２１ | BD50: 取得済み | BI50: 取得年 | BM50: 2020 | BP50: 年 | CF50: 取得済み
B51: ISO14001 | V51: =IF(Q51="","",IF(Q51="取得済み","取得年",IF(Q51="取得予定","取得予定年","---"))) ->  | AC51: 年 | AO51: ISO14001 | BD51: 取得予定なし | BI51: --- | BP51: 年 | CF51: 取得予定
B52: SBT／中小企業SBT | AC52: 年 | AO52: SBT／中小企業SBT | BD52: 検討中 | BI52: --- | BP52: 年 | CF52: 検討中
B53: TCFD（気候関連財務情報開示タスクフォース） | AC53: 年 | AO53: TCFD（気候関連財務情報開示タスクフォース） | BD53: 取得予定なし | BI53: --- | BP53: 年 | CF53: 取得予定なし
B54: RE Action | AC54: 年 | AO54: RE Action | BD54: 取得予定なし | BI54: --- | BP54: 年
B55: RE100 | AC55: 年 | AO55: RE100 | BD55: 取得予定 | BI55: 取得予定年 | BM55: 2022 | BP55: 年
B56: エコファースト | AC56: 年 | AO56: エコファースト | BD56: 検討中 | BI56: --- | BP56: 年
V57: =IF(Q57="","",IF(Q57="取得済み","取得年",IF(Q57="取得予定","取得予定年","---"))) ->  | AC57: 年 | BP57: 年
AC58: 年 | BP58: 年
B61: ３．CO2排出削減対策の実施状況と対策の提案予定 | AO61: ３．CO2排出削減対策の実施状況と対策の提案予定
AO63: ■ | AP63: システム及び設備の大区分
B64: ■ | C64: システム及び設備の大区分 | AP64: システム | BB64: 設備・機器
C65: システム | O65: 設備・機器 | AR65: 空調システム | BD65: 照明設備 | CF65: システム | CG65: 設備・機器
E66: 空調システム | Q66: 照明設備 | AR66: 蒸気システム | BD66: 受変電・配電設備 | CF66: FALSE | CG66: FALSE
E67: 蒸気システム | Q67: 受変電・配電設備 | AR67: 冷却水システム | BD67: OA機器 | CF67: FALSE | CG67: FALSE
E68: 冷却水システム | Q68: OA機器 | AR68: 圧空システム | BD68: 電動機・ポンプ・ファン | CF68: FALSE | CG68: FALSE
E69: 圧空システム | Q69: 電動機・ポンプ・ファン | BD69: 工業炉 | CF69: FALSE | CG69: FALSE
Q70: 工業炉 | CG70: FALSE
C71: その他 | Q71: 冷凍・冷蔵設備 | AO71: ■ | AP71: システム及び設備・機器別の対策実施状況と提案予定 | CG71: FALSE
E72: その他のシステム、設備機器 | Q72: 排水処理設備 | CG72: FALSE
Q73: 昇降設備 | AO73: 分類 | AR73: 対策 メニュー番号 | AT73: 対策メニュー名 | BD73: 実施・導入状況 | BK73: 提案予定 | CG73: FALSE
Q74: 給湯・温水利用設備 | BK74: 提案予定・提案検討／提案予定なし | CG74: FALSE
Q75: 発電設備 | BK75: 提案予定なしとした理由（最も当てはまるもの） | CG75: FALSE
Q76: 水利用設備 | AO76: 空調システム | CG76: FALSE
Q77: エネルギー管理設備 | AP77: 発生 | AQ77: 運用改善 | AR77: 11111 | AT77: 空調熱源機の不要時停止 | BD77: 3.実施・導入して いない | BK77: 提案予定なし | CG77: FALSE
BK78: 1.工場・事業場の現況から提案不要と判断したため | CG78: FALSE
B81: ■ | C81: システム及び設備・機器別の対策実施状況と提案予定
B82: 分類 | E82: 対策 メニュー番号 | G82: 対策メニュー名 | Q82: 実施・導入状況 | X82: 提案予定 | AO82: 分類 | AR82: 対策 メニュー番号 | AT82: 対策メニューの説明
X83: 提案予定・提案検討／提案予定なし
X84: 提案予定なしとした理由（最も当てはまるもの）
B85: 空調システム | AL85: 戻る | AO85: 空調システム
C86: 発生 | D86: 運用改善 | E86: 11111 | G86: 熱源機(ボイラーを除く)の不要時停止 | AP86: 発生 | AQ86: 運用改善 | AR86: 11111 | AT86: 運転停止が可能な時間帯に、チラー、吸収式冷凍機、冷却塔等の熱源機を停止することにより、運転時間を短縮し、エネルギー効率改善とCO2削減を図る。
E88: 11112 | G88: 吸収式冷温水機の燃焼空気比低減 | AR88: 11112 | AT88: ガス吸収式冷温水機等に燃焼用空気を必要以上に供給すると、排ガス量が増えエネルギー損失が増大する。空気比を適正値に下げることでCO2削減を図る。
E90: 11113 | G90: 冷却水設定温度・流量の適正化 | AR90: 11113 | AT90: 冷却水入口温度を下げると、チラーの効率が向上する。冷却水設定温度を、冷房負荷に合わせてきめ細かく調整し、チラーの機器効率を向上させる。あるいは、冷却水量を冷房負荷に合わせて減量し、ポンプ動力を削減する。これによりCO2削減を図る。
E92: 11114 | G92: 冷水・温水出口温度の調整 | AR92: 11114 | AT92: ヒートポンプチラーは、冷水出口温度の上昇・温水出口温度の低下により性能が向上 する。冷房負荷が減る中間期・冬期に負荷に合わせて冷水出口温度を上げたり、暖房負荷が減る中間期に需要に合わせて温水出口温度を下げたりすることで、圧縮機の電力消費を低減し、CO2削減に繋げる。
E94: 11115 | G94: 蓄熱システム運転スケジュールの調整 | AR94: 11115 | AT94: 夜間電力を活用して冷水、氷、温水の形で蓄えた熱エネルギーを日中の空調に利用することで、昼間の空調電力をできるだけ低減するように運転スケジュールを調整する。
AR95: 冷水・温水出口温度の調整 ()
E96: 11116 | G96: 密閉式冷却塔熱交換器のスケール除去 | AR96: 11116 | AT96: 密閉式冷却塔などは、運転時間の経過とともに熱交換器銅管の外面や内面にスケールが付着して冷却能力を大幅に低下させる。定期的に熱交換器のスケール除去を行って、熱交換効率の改善と、それに伴う冷却塔ファンや冷却水ポンプの電力消費を低減し、CO2削減に繋げる。
E98: 11117 | G98: 冷却塔充てん材の清掃 | AR98: 11117 | AT98: 冷却塔充てん材にスケールやスライムが堆積すると、熱交換効率が低下し、それに伴い電力使用量が増加する。定期的（概ね１回/3カ月）に目視でスケールやスライム等の付着状況を確認し、これらが堆積している場合は、清掃・除去することにより、エネルギー効率改善とCO2削減に繋げる。
E100: 11118 | G100: 室外機フィンの清掃・洗浄 | AR100: 11118 | AT100: 室外機のフィンを洗浄・清掃して、放熱効率を高めることにより、エネルギー効率改善とCO2削減を図る。
D102: 部分更新・機能付加 | E102: 11121 | G102: 室外機の放熱環境改善（遮熱、散水等） | AQ102: 部分更新・機能付加 | AR102: 11121 | AT102: 室外機の遮熱、室外機熱交換器フィンへの散水や、周囲のスペースが十分に確保できない室外機の設置方法の見直しによるショートサーキットの解消など、放熱環境を改善することにより、室外機の冷却能力を高め、エネルギー効率改善とCO2削減を図る。
E104: 11122 | G104: フリークーリング制御機能の追加 | AR104: 11122 | AT104: 外気温度の低い中間期や冬期などで一時的な冷房需要期に、冷凍機を運転せず外気を利用して冷水を製造することにより、熱源エネルギーの使用量やCO2の削減を図る。
E106: 11123 | G106: 熱交換器温度制御の導入 | AR106: 11123 | AT106: 熱交換器出入口温度差が一定となるようにインバータ等で熱媒の流量を制御して、搬送動力を削減することにより、エネルギー効率改善とCO2削減を図る。
E108: 24022 | G108: ポンプ・ファン等の回転数・流量・圧力調整（インバータ制御等） [冷却塔ファン] | AR108: 24022 | AT108: ポンプのバルブを絞った流量調整、あるいはファン・ブロワーのダンパーを絞った風量調整を、インバータによるモーター回転数制御による流量・風量調整に変更することで、電力消費低減とCO2削減を図る。
E110: 11125 | G110: 冷水蓄熱槽の放熱ロス改善 | AR110: 11125 | AT110: 夜間電力等を使用する冷水蓄熱槽に関し、その断熱を強化して蓄熱ロスを低減する。これにより、昼間の空調電力使用量を更に削減し、CO2削減に繋げる。
E112: 11126 | G112: 遠隔監視・管理サービスの導入 | AR112: 11126 | AT112: 遠隔監視サービスにより、冷媒温度制御や圧縮機の容量制御などを自動制御することで、空調の電力消費を削減しCO2削減に繋げる。
D114: 設備導入 | E114: 11131 | G114: 高効率ターボ冷凍機の導入 | AQ114: 設備導入 | AR114: 11131 | AT114: 定格運転時の成績係数（COP）が6程度以上である超省エネ型冷凍機を導入する。高効率インペラ、高効率伝熱管、高効率フロート弁、低損失・長寿命軸受、低損失増速ギア等の採用により、従来機種より20%以上の効率向上が可能であり、エネルギー効率改善とCO2削減を図れる。
E116: 11132 | G116: 熱回収ヒートポンプの導入 | AR116: 11132 | AT116: 冬期や夏期に冷房需要と暖房需要が同時に発生するビル等に、高効率の熱回収ヒートポンプを導入して排熱を有効活用することにより、空調エネルギーの低減とCO2削減を図る。
E118: 11133 | G118: デシカント空調システムの導入 | AR118: 11133 | AT118: デシカント空調システムは、空気中の湿分を乾燥剤により直接除去することで、従来方式の過冷却再生分のエネルギーが不要となる。乾燥剤の再生に排熱等を利用すると更に省エネとなる。このシステムの導入によりCO2削減を図る。
E120: 11134 | G120: 高効率ヒートポンプチラーの導入（老朽化更新を含む） | AR120: 11134 | AT120: 更新時期を迎え、効率が低下したヒートポンプチラーを高効率型に更新することで、空調エネルギーの低減とCO2削減を図る。
E122: 11135 | G122: 高効率パッケージエアコンの導入（老朽化更新を含む） | AR122: 11135 | AT122: 更新時期を迎え、効率が低下したパッケージ型空調機を高効率型に更新することで、空調エネルギーの低減とCO2削減を図る。
E124: 11136 | G124: その他の高効率熱源機(ボイラーを除く)の導入(セントラル空調方式) | AR124: 11136 | AT124: 次のような高効率熱源機を導入し、CO2削減を図る。1)定格運転時のCOPが1.1程度以上の吸収式冷温水機または定格COPが1.2程度以上の吸収式冷凍機、2)廃熱投入型吸収式冷凍機(ジェネリンク)、3)ヒートポンプ用の圧縮機をガスエンジンで駆動する熱源機のうち、冷房定格運転時のCOPが1.1程度以上の機器、4)省エネ型冷却塔
D126: 燃料低炭素化 | E126: 11141 | G126: 再生可能エネルギー（地中熱、太陽熱等）利用空調設備の導入 | AQ126: 燃料低炭素化 | AR126: 11141 | AT126: 地中熱を熱源とするヒートポンプや、太陽熱を熱源とする機器を用いて生産した温熱・冷熱を冷暖房に利用することにより、空調エネルギーやCO2排出量の削減を図る。
D128: 電化 | E128: 11151 | G128: 高効率ヒートポンプチラーの導入 | AQ128: 電化 | AR128: 11151 | AT128: 老朽化したガス焚き冷温水発生機を高効率電気式ヒートポンプチラーへと更新し、CO2削減を図る。
E130: 11152 | G130: 高効率パッケージエアコンの導入 | AR130: 11152 | AT130: ガス焚き冷温水発生機を用いたセントラル空調方式やガスヒートポンプを用いた個別空調方式を、高効率電気式パッケージエアコンを用いる個別空調方式に更新し、CO2削減を図る。
C132: 移送 | D132: 運用改善 | E132: 11211 | G132: 空調室内機のフィルター、コイル等の清掃 | AP132: 移送 | AQ132: 運用改善 | AR132: 11211 | AT132: 空調機室内機のコイルやフィルターの汚れ・目詰まりにより、伝熱特性の悪化や風量の減少が生じ、熱交換器の性能が低下する。こまめな清掃等により性能低下を防ぐことで、空調エネルギーの低減とCO2削減を図る。
D134: 部分更新・機能付加 | E134: 11221 | G134: 移送配管等の漏れ防止、断熱補修 | AQ134: 部分更新・機能付加 | AR134: 11221 | AT134: 点検・整備を定期的に実施して、冷媒循環用の配管等からの冷媒漏洩を防止するとともに、保温が不十分な個所の断熱を強化する。これにより、熱源機のエネルギー使用量やCO2の削減を図る。
E136: 24023 | G136: 省エネファンベルトの導入 [空調機・換気ファン] | AR136: 24023 | AT136: 動力伝達損失を低減する省エネ型のファンベルトに交換することで、動力損失を削減し、エネルギー効率改善とCO2削減を図る。
E138: 11223 | G138: 可変風量（VAV）制御方式の導入 | AR138: 11223 | AT138: 負荷に合わせてファンの風量を制御する可変風量制御方式を導入し、中間期や冬期などの軽負荷時には、負荷にあった風量に調整することで、搬送エネルギー使用量やCO2 排出量の低減を図る。
D140: 設備導入 | E140: 11231 | G140: 大温度差送風・送水システムの導入 | AQ140: 設備導入 | AR140: 11231 | AT140: 大温度差送風・送水システムは、熱媒である水や空気の往環温度差を大きく取り、その分、水や空気の流量を減らして、ファンや循環ポンプの動力を低減するものである。このシステムの導入により、水や空気の搬送動力を削減し、CO2削減を図る。
E142: 24031 | G142: 適正容量の高効率ポンプ・ファン・ブロワーの導入 [高効率ファン(プラグファン等)] | AR142: 24031 | AT142: ポンプ・ファン・ブロワー等の運転状況を確認して、負荷に応じた適正な容量に見直すとともに、導入機器として高効率機器を選定することで、動力損失を減らし、電力消費低減とCO2削減を図る。
C144: 消費 | D144: 運用改善 | E144: 11311 | G144: 空調・換気不要時の空調・換気停止、運転時間短縮 | AP144: 消費 | AQ144: 運用改善 | AR144: 11311 | AT144: 使用されていない部屋などの空調停止、車の出入りが少ない時間帯の駐車場の換気停止、あるいは中間期の予冷・予熱運転時間の短縮など、必要性や季節に応じて、空調や換気の運転管理をこまめに行うことで、CO2削減を図る。
E146: 11312 | G146: 外気取り入れ量の縮小・停止 | AR146: 11312 | AT146: 過剰な換気による外気の冷却または再加熱を防ぐため、CO2濃度やCO濃度が空気環境基準を超えない範囲で外気導入量を制限する。あるいは、就業前の予冷・予熱運転時の外気取り入れを停止し、ファン動力や熱源設備のエネルギー使用量を削減することにより、CO2削減を図る。
E148: 11313 | G148: 冷房時の再熱運転の停止 | AR148: 11313 | AT148: 通年にわたって給気の冷却除湿や過冷却空気の再加熱運転を実施するのではなく、温度・湿度条件が厳しくない期間に停止することで、CO2削減を図る。
E150: 11314 | G150: 夜間等の冷気取入れ（ナイトパージ） | AR150: 11314 | AT150: 外気温度の低い夜間（空調時間外）に、ビルコンクリート躯体や居室に蓄熱された熱を夜の冷気で冷却することで、冷房立上げ時の冷房負荷を低減し、CO2削減を図る。
E152: 11315 | G152: 冷暖房ミキシングロスの防止 | AR152: 11315 | AT152: 冬場もインテリア系統などで冷房運転を実施している場合、ペリメータ（窓際スペース）系統が暖房運転になっていると、冷風と温風の混合が発生して、その相殺により損失が発生する。インテリア等の設定温度や運転方法を見直し、混合損失を防ぐ。
E154: 11316 | G154: 冷暖房設定温度・湿度の緩和 | AR154: 11316 | AT154: 夏期/冬期に室内温度が過剰に低く/高く設定されている場合、快適性を損なわない範囲内で冷暖房の室内温度・湿度を緩和することで、熱源設備のエネルギー使用量やCO2の削減を図る。
E156: 11317 | G156: 全熱交換器の有効利用 | AR156: 11317 | AT156: 有効利用されていない全熱交換器を適正に使用することで、外気負荷を低減し、空調エネルギーの低減とCO2削減を図る。
D158: 部分更新・機能付加 | E158: 11321 | G158: 空調・換気のスケジュール運転・断続運転制御の導入 | AQ158: 部分更新・機能付加 | AR158: 11321 | AT158: 利用状況に応じた部屋や駐車場等の空調、換気の発停など、スケジュール運転や断続運転等を実施することで、空調や換気のエネルギー使用量を節減し、CO2削減を図る。
E160: 11322 | G160: センサーを利用した外気量自動制御システムの導入 | AR160: 11322 | AT160: 室内のCO2濃度計測値によって過剰に設定された外気導入量を制御する。例えば、室内の人員密度に応じた外気導入量の制御、空調立ち上げ時の外気導入カットなどにより、空調のエネルギー使用量を削減する。
E162: 11323 | G162: 外気冷房空調システムの導入（中間期に送風のみ） | AR162: 11323 | AT162: 中間期、冬期に冷房需要があるビルで、外気温度が室温より低い時には、冷凍機を運転せずに送風運転のみを行う外気冷房機能を導入し、空調エネルギーの低減とCO2削減を図る。
E164: 11324 | G164: 直接噴霧加湿による加湿蒸気量の低減 | AR164: 11324 | AT164: 加熱式のスチーム加湿器を、圧縮空気等を用いて水を霧状にする直接噴霧加湿方式に切り替えることで、蒸気の生成エネルギーを削減し、CO2削減を図る。
E166: 11325 | G166: 空調ゾーニング細分化、発熱源の断熱強化 | AR166: 11325 | AT166: 同一区画の空調エリアで室内利用状況が違う場合には、区画の細分化、空調機ゾーンまたは制御ゾーンの細分化を行う。細分されたゾーンごとに、過冷/過熱の防止、利用時間差に対応した空調運転を行い、空調のエネルギー効率を高めてCO2削減を図る。
E168: 11326 | G168: 屋根の断熱性・遮熱性向上（遮熱塗料、散水等） | AR168: 11326 | AT168: 建物の屋根に、遮熱塗料や断熱材を施工したり、散水等による冷却をおこなうことで、屋根からの熱侵入を抑制する。それにより空調負荷を低減し、空調エネルギーの低減とCO2削減を図る。
E170: 11327 | G170: 窓の断熱性・遮熱性向上(フィルム、塗料、ガラス、ブラインド等) | AR170: 11327 | AT170: 窓ガラスへの断熱・日照調整用の塗料やフィルムの付設、ガラスの複層化、ブラインドや庇等の設置により、窓からの熱侵入を抑制し、空調負荷の低減とCO2削減を図る。
E172: 11328 | G172: その他の建物断熱性・遮熱性の向上 | AR172: 11328 | AT172: 建物の外壁への断熱材・遮熱塗料等の施工、あるいは窓枠の断熱サッシへの交換などにより、建物内外間の熱漏洩量を低減する。これにより空調負荷を低減し、空調エネルギーの低減とCO2削減を図る。
D174: 設備導入 | E174: 11331 | G174: 全熱交換器の導入 | AQ174: 設備導入 | AR174: 11331 | AT174: 空調室内は空気の入れ替えが必要であり、換気によって冷暖房した熱が逃げてエネルギーロスとなる。全熱交換器は、温度、湿度を合せた空気中のエネルギーを逃がさずに換気を行う設備であり、この導入により空調エネルギーの低減とCO2削減を図る。
E176: 11332 | G176: 置換空調・成層空調システムの導入 | AR176: 11332 | AT176: 天井が比較的高い空間を空調（冷房）する際、低い位置から冷気をゆっくり吹き出すことで作業者/執務者がいる低層部のみに冷空間を作る。空間全体の空調（対流空調）よりも冷房負荷を低減できることから、エネルギー効率改善とCO2削減に繋がる。
E178: 11333 | G178: 高性能窓システム（エアフローウィンドー等）の導入 | AR178: 11333 | AT178: エアフローウィンドー、ダブルスキン等の高性能窓システム（窓廻り空調システム）を採用して建物の断熱性を高めることにより、空調エネルギーの低減とCO2削減を図る。
B180: 蒸気システム | AL180: 戻る | AO180: 蒸気システム
C181: 発生 | D181: 運用改善 | E181: 12111 | G181: ボイラーの不要時停止 | AP181: 発生 | AQ181: 運用改善 | AR181: 12111 | AT181: 蒸気利用設備の起動時刻を考慮したボイラー運転、あるいは蒸気利用設備の暖気運転時間の見直しなどにより、ボイラー運転時間の短縮を図り、エネルギー使用量の低減とCO2削減につなげる。
E183: 12112 | G183: 高効率ボイラーの優先運転（運転台数の削減） | AR183: 12112 | AT183: 効率のよいボイラーを優先的に運転して稼働率を上げることで、燃料使用量を削減し、CO2の削減を図る。
E185: 12113 | G185: ボイラーの運転圧力調整 | AR185: 12113 | AT185: 蒸気利用設備の必要圧力と配管の圧力損失等を考慮したボイラー運転圧力とし、過大な運転圧力を避ける。圧力を下げることで、ボイラーの過剰加熱を防止するとともに、より大きな蒸気潜熱を得ることができ、多大なCO2削減効果が期待できる。
E187: 12114 | G187: ボイラーの燃焼空気比改善 | AR187: 12114 | AT187: 燃焼装置（バーナー）の空気比（＝実空気量/理論空気量）が大きくなると、燃焼に寄与しない空気が増え、燃焼温度や燃焼効率の低下につながる。不完全燃焼を生じさせない範囲で実空気量を減らすことで、エネルギー使用量の低減とCO2削減を図る。
E189: 12115 | G189: バーナーチップの清掃・交換 | AR189: 12115 | AT189: 手入れが悪い液体燃料用バーナーでは、バーナーチップ先端部の付着カーボンにより燃料液滴径の増大や不均一が生じ、不完全燃焼を引き起こす。また、バーナー容量が過大で稼働と停止を繰り返す場合、燃焼停止時の放熱ロスが効率低下の原因となる。適正バーナーを選定することにより、エネルギー効率改善とCO2削減を図る。
E191: 12116 | G191: ボイラーのブロー量の適正化 | AR191: 12116 | AT191: 水質を確保するために排出されるブロー水の量と水質管理を行い、ブローによる熱損失や無駄な給水を防ぐことにより、エネルギー効率改善とCO2削減を図る。
E193: 12117 | G193: ボイラーの停止時間の電源遮断 | AR193: 12117 | AT193: ボイラー等の熱設備のエネルギー利用効率の向上を図るために設置する燃焼制御装置は、ボイラー等が停止し、使用していない時でも常に待機電力を消費している。このため、ボイラー等の停止時間中の電源を遮断し、燃焼制御装置の待機電力の低減とCO2削減を図る。
D195: 部分更新・機能付加 | E195: 12121 | G195: 給水タンク等の保温 | AQ195: 部分更新・機能付加 | AR195: 12121 | AT195: 給水タンクの表面温度は 90℃近くまで上昇する場合があり、放熱損失の原因となる。給水タンク類の保温を確実に実施することで放熱損失を低減させ、ボイラーの燃料使用量の低減とCO2削減を図る。
E197: 12122 | G197: ボイラー排ガス利用による高効率化（給水予熱、燃焼空気予熱等） | AR197: 12122 | AT197: エコノマイザーや空気予熱器を利用し、排ガスによってボイラーの給水または燃焼用空気を予熱する。ボイラーの排熱を回収することで、燃料使用量の低減、CO2の削減を図る。
E199: 12123 | G199: ブロー水の顕熱回収（給水予熱装置の導入） | AR199: 12123 | AT199: 水質を確保するために排出されるブロー水の熱量を給水の予熱に利用することで、ブローによる損失熱量および燃料使用量の低減とCO2削減を図る。
E201: 12124 | G201: 中小型ボイラーの省エネ燃焼システムの導入 | AR201: 12124 | AT201: 中小規模ボイラー燃焼制御の機構を、最適酸素（O2）制御・最適押込風量制御する機構に変換することにより、燃焼空気の過剰吹込みを防止してボイラーのエネルギー効率を高めてCO2削減を図る。
E203: 12125 | G203: ボイラー本体の断熱保温 | AR203: 12125 | AT203: ボイラー本体の放熱量が高いと思われる高温部に保温材を施工し保温強化を図ることにより、放熱損失を低減させ、ボイラーの燃料使用量の低減とCO2削減を図る。
D205: 設備導入 | E205: 12131 | G205: 高効率ボイラーの導入（潜熱回収型等） | AQ205: 設備導入 | AR205: 12131 | AT205: 排ガスの顕熱以外に排ガス中水蒸気の潜熱も回収するエコノマイザー等を導入し、回収した排熱を空気予熱や給水予熱に利用する（潜熱回収型）効率90%以上の高効率ボイラーを導入し、エネルギー効率改善とCO2削減を図る。
D207: 燃料低炭素化 | E207: 12142 | G207: 燃料転換（重油焚きからガス焚きボイラー） | AQ207: 燃料低炭素化 | AR207: 12142 | AT207: 硫黄分を含むA重油は、排ガス温度が酸露点を下回ると硫酸腐食を生じるため、排ガス熱回収に制限がある。硫黄等をほとんど含まない都市ガスやLPGに転換することで、酸露点を気にせずに十分な排ガス熱回収が可能となる。併せて、CO2排出係数の違いによりCO2の削減もできる。
E209: 12143 | G209: 燃料転換（重油焚きからガス焚きボイラー以外） | AR209: 12143 | AT209: 灯油からLPG・都市ガスへの燃料転換、LPGから都市ガスへの燃料転換等、ボイラー燃料をよりCO2排出係数が小さいものに変更することによりCO2の削減を図る。
E211: 12144 | G211: バイオマスボイラーの導入（給湯用を除く） | AR211: 12144 | AT211: 木質系バイオマス等を燃料とするボイラーを設置し、A重油、灯油等の燃料使用量を削減することにより、CO2削減を図る。
D213: 電化 | E213: 12151 | G213: 高温ヒートポンプの導入 | AQ213: 電化 | AR213: 12151 | AT213: 加温・乾燥プロセスにおいて、加熱・乾燥用の熱の供給設備をボイラーから高効率ヒートポンプ（廃熱回収型を含む）に変更することで、大幅なCO2削減を実現する。
C215: 移送 | D215: 部分更新・機能付加 | E215: 12221 | G215: 蒸気配管経路の見直し | AP215: 移送 | AQ215: 部分更新・機能付加 | AR215: 12221 | AT215: 温熱の搬送中は常に配管からの放熱によってロスが発生する。このため、蒸気の配管経路を見直すことで熱損失を低減し、CO2削減を図る。
E217: 12222 | G217: 蒸気配管・蒸気バルブ・フランジ等の断熱強化 | AR217: 12222 | AT217: 蒸気用配管、弁、フランジ等に保温カバー等を追加することで放熱損失を減らし、燃料使用量低減とCO2削減に繋げる。
E219: 12223 | G219: 蒸気漏れの配管・継手・バルブ類の管理・更新 | AR219: 12223 | AT219: 蒸気漏れによる熱損失を防ぐため、定期的に蒸気漏れの点検を実施するとともに、蒸気漏れがある配管・バルブ類または継手類や老朽配管、不良配管などを取り替えることにより、エネルギー効率を改善しCO2削減を図る。
E221: 12224 | G221: スチームトラップとドレン回収装置の管理・更新 | AR221: 12224 | AT221: ウォーターハンマーの発生や蒸気使用機器の効率低下を防ぐために取付けられたスチームトラップ、ドレン回収装置の正常な動作を維持するために保守点検、更新を確実に実施する。これにより蒸気ドレンの適切な排出を確保し、無駄な蒸気流出を防止することにより、エネルギー効率を改善しCO2削減を図る。
D223: 設備導入 | E223: 12231 | G223: 蒸気減圧ラインへのタービン設置による動力回収 | AQ223: 設備導入 | AR223: 12231 | AT223: ボイラーの高圧蒸気を減圧して使用する場合に、蒸気減圧弁の代わりに蒸気タービンを設置する。蒸気タービンで回収したエネルギーを冷凍機他に活用することで、総合的なエネルギー効率改善とCO2削減を図る。
C225: 消費 | D225: 運用改善 | E225: 12311 | G225: 利用蒸気の温度・蒸気圧の低減 | AP225: 消費 | AQ225: 運用改善 | AR225: 12311 | AT225: 必要以上に高い圧力の蒸気では加熱ムラが起こりやすく、また、圧力が上昇すると蒸発潜熱が小さくなり加熱に必要な蒸気使用量が増加する。利用機器の使用条件を考慮しつつ、利用蒸気の温度・圧力を低減することにより蒸気使用量を低減しCO2削減を図る。
D227: 部分更新・機能付加 | E227: 12321 | G227: ドレン水回収設備・フラッシュ蒸気利用設備の導入 | AQ227: 部分更新・機能付加 | AR227: 12321 | AT227: 蒸気利用設備のスチームトラップから排出される蒸気ドレンの顕熱を回収する。また、ドレン回収装置で回収した高圧ドレン水を、低圧条件下で再度蒸発させ（フラッシュ蒸気）、蒸気加熱機器、蒸気利用圧縮機、タービン等（フラッシュ蒸気利用設備）に使用する。これにより、ドレン排熱の回収量を高めて、エネルギー効率改善とCO2 削減を図る。
E229: 12322 | G229: 蒸気使用機器の断熱保温 | AR229: 12322 | AT229: 蒸気使用機器の放熱量が高いと思われる高温部に保温材を施工し断熱を強化することにより、エネルギー効率改善とCO2削減を図る。
B231: 冷却水システム | AL231: 戻る | AO231: 冷却水システム
C232: 発生 | D232: 運用改善 | E232: 11113 | G232: 冷却水設定温度・流量の適正化 | AP232: 発生 | AQ232: 運用改善 | AR232: 11113 | AT232: 冷却水入口温度を下げると、チラーの効率が向上する。冷却水設定温度を、冷房負荷（冷却負荷）に合わせてきめ細かく調整し、チラーの機器効率を向上させる。あるいは、冷却水量を冷房負荷（冷却負荷）に合わせて減量し、ポンプ動力を削減する。これによりCO2削減を図る。
E234: 11112 | G234: 吸収式冷温水機の燃焼空気比低減 | AR234: 11112 | AT234: ガス吸収式冷温水機等に燃焼用空気を必要以上に供給すると、排ガス量が増えエネルギー損失が増大する。空気比を適正値に下げることでCO2削減を図る。
D236: 部分更新・機能付加 | E236: 24022 | G236: ポンプ・ファン等の回転数・流量・圧力調整（インバータ制御等） [冷却塔ファン] | AQ236: 部分更新・機能付加 | AR236: 24022 | AT236: ポンプのバルブを絞った流量調整、あるいはファン・ブロワーのダンパーを絞った風量調整を、インバータによるモーター回転数制御による流量・風量調整に変更することで、電力消費低減とCO2削減を図る。
E238: 11122 | G238: フリークーリング制御機能の追加 | AR238: 11122 | AT238: 外気温度の低い中間期や冬期などで一時的な冷房需要期に、冷凍機を運転せず外気を利用して冷水を製造することにより、熱源エネルギーの使用量やCO2の削減を図る。
D240: 設備導入 | E240: 11136 | G240: その他の高効率熱源機(ボイラーを除く)の導入(セントラル空調方式) [冷却塔] | AQ240: 設備導入 | AR240: 11136 | AT240: 次のような高効率熱源機を導入し、CO2削減を図る。1)定格運転時のCOPが1.1程度以上の吸収式冷温水機または定格COPが1.2程度以上の吸収式冷凍機、2)廃熱投入型吸収式冷凍機(ジェネリンク)、3)ヒートポンプ用の圧縮機をガスエンジンで駆動する熱源機のうち、冷房定格運転時のCOPが1.1程度以上の機器、4)省エネ型冷却塔
E242: 29052 | G242: 産業用温水ヒートポンプの導入 [冷温同時取出ヒートポンプ等] | AR242: 29052 | AT242: 低温廃熱を回収して高温水に再生する廃熱回収ヒートポンプや、1台で冷水と温水を同時に供給できる冷温水同時取出式ヒートポンプ等を導入することにより、エネルギー効率改善とCO2削減を図る。
E244: 11134 | G244: 高効率ヒートポンプチラーの導入（老朽化更新を含む） | AR244: 11134 | AT244: 更新時期を迎え、効率が低下したヒートポンプチラーを高効率型に更新することで、空調（冷却）エネルギーの低減とCO2削減を図る。
B246: 圧空システム | AL246: 戻る | AO246: 圧空システム
C247: 発生 | D247: 運用改善 | E247: 14111 | G247: コンプレッサーの吐出圧の低減 | AP247: 発生 | AQ247: 運用改善 | AR247: 14111 | AT247: コンプレッサーの吐出圧力は必要以上に高く設定されている場合が多い。コンプレッ サーは吐出圧力が高いほど動力が大きくなるため、圧縮空気使用設備の必要圧力を確認し、必要十分な吐出圧力に低減することにより、エネルギー効率改善とCO2削減を図る。
E249: 14112 | G249: コンプレッサーの運転時間短縮、不要時停止 | AR249: 14112 | AT249: コンプレッサーの必要稼動条件のチェックを行い、不要時には運転を停止することに より、電力消費低減とCO2削減を図る。
E251: 14113 | G251: コンプレッサーの台数制御装置のパラメータ設定変更 | AR251: 14113 | AT251: 台数制御による稼働台数調整パラメータについて、コンプレッサーがアンロード状態に移行後、すぐにOFFするように設定を変更することにより、エネルギー効率を改善しCO2削減を図る。
E253: 14114 | G253: コンプレッサーのフィルター等の清掃 | AR253: 14114 | AT253: フィルターやミストセパレーター等付属機器や配管の定期清掃を徹底し、コンプレッ サー動力の低減とCO2削減を図る。
D255: 部分更新・機能付加 | E255: 14121 | G255: コンプレッサーの吸気温度の低温化 | AQ255: 部分更新・機能付加 | AR255: 14121 | AT255: コンプレッサーの吸気温度を低下させると空気密度が上がり、より多くの空気を圧縮処理できる。その結果、アンロード時間が増加して電力消費が減少し、CO2削減に繋がる。
E257: 14122 | G257: コンプレッサー排熱の有効利用 | AR257: 14122 | AT257: コンプレッサーの排熱を暖房期の室内暖房用等に利用することにより、エネルギー効率改善とCO2削減を図る。
E259: 14123 | G259: コンプレッサーの台数制御システムの導入 | AR259: 14123 | AT259: コンプレッサーは低負荷で稼動すると効率が低下する。多数のコンプレッサーが同時に稼動している場合、各々が低負荷運転となり効率が低下する。負荷に応じて必要台数のコンプレッサーのみを運転することで効率を高め、CO2削減を図る。
D261: 設備導入 | E261: 14131 | G261: 適正容量の高効率コンプレッサー（インバータ等）の導入 | AQ261: 設備導入 | AR261: 14131 | AT261: インバータ制御型圧縮機は、吐出圧を一定に保つように流量に応じて回転数を制御 するので、消費動力が流量に相応して減少し、従来型（吸込み弁絞り方式）に比べ省エネ型である。インバータ制御型の採用でエネルギー効率改善とCO2の削減を図る。
E263: 14132 | G263: コンプレッサーからブロワーへの更新 | AR263: 14132 | AT263: 水切りや槽内撹拌など、高い吐出圧空気を必要としない作業で、圧縮空気を減圧弁や バルブで減圧して使用している場合、コンプレッサーをブロワーに変更することで動力を減らし、CO2の削減を図る。
E265: 14133 | G265: 熱回収式コンプレッサーの導入 | AR265: 14133 | AT265: 熱回収式のコンプレッサーを導入し、圧縮熱を回収してボイラー給水や燃焼空気の予熱に利用することにより、エネルギー効率改善とCO2削減を図る。
C267: 移送 | D267: 運用改善 | E267: 14211 | G267: 配管の空気漏れ対策 | AP267: 移送 | AQ267: 運用改善 | AR267: 14211 | AT267: 圧空配管からの空気漏れの有無を確認し、漏れ対策を行うことで、コンプレッサーの電力消費を低減し、CO2削減を図る。
D269: 部分更新・機能付加 | E269: 14221 | G269: 配管ルートのループ化 | AQ269: 部分更新・機能付加 | AR269: 14221 | AT269: 圧縮空気の配管をループ化することで、末端設備での圧力低下を防止できる。これにより、コンプレッサーの吐出圧力の過剰な昇圧が不要となり、エネルギー効率の改善とCO2削減が図れる。
E271: 14222 | G271: レシーバータンクの設置 | AR271: 14222 | AT271: 圧空システムに適切なレシーバータンクを設けると、吐出圧の脈動の抑制と、それに 伴う吐出圧設定値の低減が可能となり、エネルギー効率改善とCO2削減に繋がる。また、コンプレッサーのロード・アンロードが減少し、故障の防止にもなる。
C273: 消費 | D273: 部分更新・機能付加 | E273: 14321 | G273: エアーブローのパルス化やノズルサイズ変更 | AP273: 消費 | AQ273: 部分更新・機能付加 | AR273: 14321 | AT273: 加工工場では圧縮空気の 5～7割がエアーブローに使用される。パルスブローを作る専用機器を付けたり、ノズルを必要十分なサイズに小さくすることで、エアーブロー用の空気消費量を減らしてエネルギー効率を改善しCO2削減を図る。
B275: 照明設備 | AL275: 戻る | AO275: 照明設備
D276: 運用改善 | E276: 21011 | G276: 不要箇所・不要時間帯の消灯 | AQ276: 運用改善 | AR276: 21011 | AT276: 「常時は執務者や作業者が居ない」、「作業や運転がない」、「自動運転中」、「外光が十 分」、「昼休み中」などの理由で消灯が可能なエリアで、基準を設けて消灯することによ り、電力消費の低減とCO2削減を図る。
E278: 21012 | G278: 照明器具の清掃 | AR278: 21012 | AT278: 照明器具の反射部やランプの汚れによっても照度が低下する。定期的な清掃を実施することにより、照度の低下を最小限に抑え、照明交換時期の延長、作業効率向上につなげるとともに、エネルギー効率改善とCO2削減を図る。
D280: 部分更新・機能付加 | E280: 21021 | G280: 照明スイッチの細分化（配線回路の分割） | AQ280: 部分更新・機能付加 | AR280: 21021 | AT280: 大空間の作業場や事務室などで、照明回路を分けてスイッチを細分化することにより、必要な場所のみを点灯できるようにする。これにより、電力消費の低減とCO2削減を図る。
E282: 21022 | G282: 照明制御機能（タイマー、センサー等）の追加 | AR282: 21022 | AT282: 調光式照明器具と調光用センサーを用いた自動調光制御方式を導入し、昼光を積極的に利用する。あるいは、使用時間の少ない廊下、便所等の点消灯を人感センサーやタイマーなどを導入して自動化することで、電力消費の低減とCO2削減を図る。
E284: 21023 | G284: タスクアンビエント方式の導入 | AR284: 21023 | AT284: 視作業域のみタスク（作業）照明によって必要な照度を確保し、視作業域以外はアンビ エント（周囲）照明によって、タスク照明より低照度で照明することで電力消費を低減し、CO2削減を図る。
D286: 設備導入 | E286: 21031 | G286: LED照明の導入 | AQ286: 設備導入 | AR286: 21031 | AT286: 現行の照明として広く使用される蛍光灯照明などをLEDタイプの高効率照明に置き換 えることにより電力消費を低減し、CO2削減を図る。
E288: 21032 | G288: 高効率照明（LED以外）の導入 | AR288: 21032 | AT288: Hf型照明器具（高周波専用ランプ、高周波インバータ安定器）、HIDランプ（高輝度放電灯）、有機EL照明などの導入によって電力消費を低減し、CO2削減を図る。
E290: 21033 | G290: 高効率誘導灯（LED等）の導入 | AR290: 21033 | AT290: 建物の避難通路等には、消防法により定められた所定の誘導灯や通路誘導灯が設置され、常時点灯している。この誘導灯を高効率LED灯に変更することで電力消費を低減し、CO2削減を図る。
B292: 受変電・配電設備 | AL292: 戻る | AO292: 受変電・配電設備
D293: 運用改善 | E293: 22011 | G293: 変圧器の統合（既存設備利用） | AQ293: 運用改善 | AR293: 22011 | AT293: 長年稼動しているビルは、ビル内の各種機器の増減等で、各フィーダーの需要率や負荷率、不等率が変化している。そのため、配線抵抗と変圧器の変換エネルギー損失が最小となるように、軽負荷の変圧器を統合して電力消費を低減し、CO2削減に繋げる。
E295: 22012 | G295: 受変電室の換気ファン動作設定温度の見直し | AR295: 22012 | AT295: 受変電設備の冷却用換気ファンは、その起動・停止の設定温度が過度に低く設定されている場合が多い。設定温度の見直しにより換気ファンの稼働時間を短縮し、電力消費の低減とCO2削減を図る。
D297: 部分更新・機能付加 | E297: 22021 | G297: 変圧器の無負荷時遮断 | AQ297: 部分更新・機能付加 | AR297: 22021 | AT297: 変圧器には、夜間・昼間のみあるいは夏期のみなど稼動時間帯・時期が限られる負荷が繋がっている。変圧器は負荷に関わらず電圧が印加されている限り損失が発生するので、負荷がない時間帯・時期に、変圧器用開閉器を遮断することにより、損失低減とCO2削減を図る。
E299: 22022 | G299: 力率改善制御（自動力率調整装置）の導入 | AR299: 22022 | AT299: 力率が100%に近いほど無駄が少なく、電力が有効に使用される。負荷力率の変化に追従した最適容量のコンデンサの自動投入・遮断等、力率を100%に近づける力率改善制御装置を導入することで、電力損失の低減とCO2削減を図る。
E301: 22023 | G301: デマンド制御の導入 | AR301: 22023 | AT301: 契約電力値の超過による違約料金支払いを防止するために、負荷の調整を瞬時または予測的に行うデマンド制御を導入する。
E303: 22024 | G303: 負荷平準化用蓄電池の導入 | AR303: 22024 | AT303: 高効率で大容量の定置用蓄電池等を導入して、夜間や電力余剰時に蓄電池に蓄えたエネルギーを昼間の消費電力上昇時に放電することで、電力ピークを抑える。
D305: 設備導入 | E305: 22031 | G305: 高効率変圧器の導入 | AQ305: 設備導入 | AR305: 22031 | AT305: 変圧器は常に運転（通電）状態にあることが多いため、その損失低減は重要である。従来品に比べて大幅な低損失化を図った高効率変圧器を導入することにより、電力消費の低減とCO2削減を図る。
E307: 22032 | G307: 変圧器の統合（設備導入） | AR307: 22032 | AT307: 長年稼動しているビルでは、各種機器の増減等で、各フィーダーの需要率や負荷率、不等率が変化している。そのため、配線抵抗と変圧器の変換エネルギー損失が最小となるようにし、消費電力量の削減を行う。更新する受変電設備は高効率型とし、電力消費をいっそう削減することによりCO2削減を図る。
E309: 22033 | G309: エネルギー損失の少ないコンデンサへの更新 | AR309: 22033 | AT309: 一般に高圧コンデンサの耐用年数は20年～30年程度である。最新コンデンサ機器は従来機器の1/2～1/5も大幅に消費電力を低減していることから、更新計画の際には、低損失コンデンサを採用し、電力消費の低減とCO2削減を図る。
B311: OA機器 | AL311: 戻る | AO311: OA機器
D312: 運用改善 | E312: 23011 | G312: OA機器の待機電力削減 | AQ312: 運用改善 | AR312: 23011 | AT312: パソコンやプリンター等のOA機器に関して、不使用時に省エネモード等に設定するなどの管理を徹底し、待機電力の削減とCO2削減を図る。
E314: 23012 | G314: パソコンモニターの輝度調整 | AR314: 23012 | AT314: ディスプレイの輝度を調整し、出荷時の設定よりも輝度を下げることで電力消費を低減し、CO2削減を図る。
D316: 設備導入 | E316: 23031 | G316: 高効率OA機器の導入 | AQ316: 設備導入 | AR316: 23031 | AT316: 事務所等に設置されているパソコンやプリンター等のOA機器を高効率タイプに更新する。機器本体の電力消費の低減に加えて、空調負荷も低減することにより、エネルギー効率改善とCO2削減を図る。
B318: 電動機・ポンプ・ファン | AL318: 戻る | AO318: 電動機・ポンプ・ファン
D319: 運用改善 | E319: 24011 | G319: ポンプ・ファン・ブロワーの不要時停止 | AQ319: 運用改善 | AR319: 24011 | AT319: 操業状況と、ポンプ･ファン・ブロワー等の稼動状況を比較することで、不要な稼動期間・時間帯を確認して稼働を停止し、電力消費の低減とCO2削減を図る。
E321: 24012 | G321: ポンプ・ファン・ブロワーの流体洩れ対策の実施 | AR321: 24012 | AT321: 流体漏れは直接、電力損失につながる。ポンプ、ファン、ブロワーの漏れも含め、徹底した漏洩発見と処置を図ることにより、電力消費低減とCO2削減を図る。
E323: 24013 | G323: インバータ設定値の見直し | AR323: 24013 | AT323: 各種回転機器に使用されるインバータの設定値を見直すことにより、過剰な回転動力を適正化し、エネルギー効率改善とCO2削減を図る。
D325: 部分更新・機能付加 | E325: 24021 | G325: ポンプ・ファン・ブロワーの台数制御機能の追加 | AQ325: 部分更新・機能付加 | AR325: 24021 | AT325: ポンプ・ファン・ブロワー等を、負荷に合わせて最適な台数だけ運転する台数制御を導入することで、エネルギー効率改善とCO2削減を図る。
E327: 24022 | G327: ポンプ・ファン等の回転数・流量・圧力調整（インバータ制御等） | AR327: 24022 | AT327: ポンプのバルブを絞った流量調整、あるいはファン・ブロワーのダンパーを絞った風量調整を、インバータによるモーター回転数制御による流量・風量調整に変更することで、電力消費低減とCO2削減を図る。
E329: 24023 | G329: 省エネファンベルトの導入 | AR329: 24023 | AT329: 動力伝達損失を低減する省エネ型のファンベルトに交換することで、動力損失を削減し、エネルギー効率改善とCO2削減を図る。
E331: 24024 | G331: ファン吸込みダンパー制御の導入 | AR331: 24024 | AT331: 送風機の風量制御をダンパー制御で行う場合、吐出側ダンパー制御に比べて吸込み側ダンパー制御の方が省エネ効果が大きい。ファン風量が過剰になっている場合、ファンの吸込みダンパーを絞ることで、エネルギー効率改善とCO2削減を図る。
E333: 24025 | G333: ファンのプーリーサイズの適正化 | AR333: 24025 | AT333: モーターやプーリー、ファンベルトなどの電動システムの調整が不足すると、モーターとプーリーとの摩擦損失が増加し、動力伝達に損失が生じている場合が少なからずある。このため、ファンのプーリーを適正なサイズに変更し、動力損失を軽減することで、電力消費低減とCO2削減を図る。
D335: 設備導入 | E335: 24031 | G335: 適正容量の高効率ポンプ・ファン・ブロワーの導入 | AQ335: 設備導入 | AR335: 24031 | AT335: ポンプ・ファン・ブロワー等の運転状況を確認して、負荷に応じた適正な容量に見直すとともに、導入機器として高効率機器を選定することで、動力損失を減らし、電力消費低減とCO2削減を図る。
E337: 24032 | G337: プレミアム効率モーター（IE3）等の導入 | AR337: 24032 | AT337: プレミアム効率モーター（IE3）、PMモーター、ダイレクトドライブモーター等の高効率モーターに更新することで、効率が向上しCO2削減に繋がる。
B339: 工業炉 | AL339: 戻る | AO339: 工業炉
D340: 運用改善 | E340: 25011 | G340: バーナーの管理による効率改善 | AQ340: 運用改善 | AR340: 25011 | AT340: 手入れが悪い液体燃料用バーナーでは、バーナーチップ先端部の付着カーボンにより燃料液滴径の増大や不均一が生じ、不完全燃焼を引き起こす。また、バーナー容量が大き過ぎて稼働と停止を繰り返す場合、燃焼停止時の放熱ロスが効率低下の原因となる。適正バーナーを選定することにより、エネルギー効率改善とCO2削減を図る。
E342: 25012 | G342: 燃焼炉の空気比改善 | AR342: 25012 | AT342: 工業炉の燃焼装置では、空気比（＝実空気量／理論空気量）が大きくなると、燃焼に寄与しない余剰空気の昇温や排気熱量の増大などの無駄なエネルギー消費が増える。不完全燃焼を起こさない程度に空気比を適正値に下げることにより、エネルギー効率改善とCO2削減を図る。
E344: 25013 | G344: 燃焼炉開口部からのリーク防止 | AR344: 25013 | AT344: 炉内圧力が外圧より高い場合、炉内の燃焼ガスが炉壁開口部から吹き出して損失となる。逆に炉内圧力が低い場合、外気が開口部から流入し、炉内温度を保つために余分の熱量が必要となる。開口部の面積を極力小さくしてリーク量を減らすことで、エネルギー効率改善とCO2削減を図る。
E346: 25014 | G346: 燃焼炉内圧力の適正化 | AR346: 25014 | AT346: 炉内圧力が外部より高い場合、炉内の燃焼ガスが吹き出して損失となる。逆に炉内圧 力が低い場合、外気が炉内に流入し、炉内温度を保つために余分の熱量が必要となる。 炉内圧力は極力小さな負圧にすることにより、危険な熱風吹き出しを防止とともに、熱損失の抑制とCO2削減を図る。
... 70 more rows

Sheet 414計測実施記録
B4: 4．診断報告書 | L4: 41．工場・事業場の現状 | AO4: 記入例及び注記 | AX4: セル色凡例 | BD4: 直接入力 | BI4: 選択 | BM4: 自動計算 | CG4: セル色の表示／非表示
B5: 414．計測実施記録 | AO5: （セルのメモやテキストボックスによる注記は移動できます） | CG5: FALSE
B8: 計測番号 | D8: 対象システム ・設備 | J8: 計測目的 | P8: 計測項目及び計測期間 | AJ8: DX 計測 | AO8: 計測番号 | AQ8: 対象システム ・設備 | AW8: 計測目的 | BC8: 計測項目及び計測期間 | BW8: DX 計測
D9: ユーティリティ・一般設備 | AQ9: ユーティリティ・一般設備
B10: 1 | AO10: 1 | AQ10: 蒸気システム | AW10: 蒸気配管の熱ロス把握 | BC10: ・目視、サーモグラフィ、接触温度計（○○年○月○日）
B11: 2 | AO11: 2 | AQ11: 蒸気システム | AW11: 蒸気ボイラーの現状把握 | BC11: ・項目：蒸気圧力、燃料弁開閉信号（データロガー使用） ・期間：○○年○月○日～○月△日
B12: 3 | AO12: 3 | AQ12: 照明設備 | AW12: 執務室の明るさ現状把握 | BC12: ・照度（○○年○月○日）
B13: 4 | AO13: 4 | AQ13: 給湯・温水利用設備 | AW13: ガス使用量把握 | BC13: ・LPG使用量（DX計測：○○年○月○日～○月△日）
B14: 5 | AO14: 5
B15: 6 | AO15: 6
B16: 7 | AO16: 7
B17: 8 | AO17: 8
B18: 9 | AO18: 9
B19: 10 | AO19: 10
B20: 11 | AO20: 11
B21: 12 | AO21: 12
B22: 13 | AO22: 13
D23: 生産設備 | AQ23: 生産設備
B24: 14 | AO24: 14
B25: 15 | AO25: 15
B26: 16 | AO26: 16
B27: 17 | AO27: 17
B28: 18 | AO28: 18

Sheet 421現状の課題
B4: 4．診断報告書 | K4: 42．課題とCO2削減ポテンシャル | AQ4: 記入例及び注記 | AY4: セル色凡例 | BE4: 直接入力 | BJ4: 選択 | BN4: 自動計算 | CJ4: セル色の表示／非表示
B5: 421．現状の課題 | AQ5: （セルのメモやテキストボックスによる注記は移動できます） | CJ5: FALSE
B7: ■ | C7: 課題一覧
B8: 課題番号 | D8: 写真 | J8: 対象設備名 | O8: 課題内容 | Y8: 計測番号 | AA8: 対策個票番号 | AC8: 対策内容 | AQ8: 課題番号 | AS8: 写真 | AY8: 対象設備名 | BD8: 課題内容 | BN8: 計測番号 | BP8: 対策個票番号 | BR8: 対策内容
J9: 工程 | AY9: 工程
B10: 1 | AQ10: 1 | AY10: 蒸気ボイラー | BD10: CO2排出係数の高いA重油燃料を使用している | BP10: 6 | BR10: ボイラーの燃料転換（A重油から都市ガスに変更）
AY11: 蒸気発生
B12: 2 | AQ12: 2 | AY12: 蒸気配管 | BD12: 蒸気配管に未保温の箇所があり、放熱している | BP12: 1 | BR12: 蒸気配管・蒸気バルブ・フランジ等の断熱強化
AY13: 蒸気搬送
B14: 3 | AQ14: 3
B16: 4 | AQ16: 4
B18: 5 | AQ18: 5
B20: 6 | AQ20: 6
B22: 7 | AQ22: 7
B24: 8 | AQ24: 8
B26: 9 | AQ26: 9
B28: 10 | AQ28: 10
B32: ■ | C32: 課題一覧【2ページ目】
B33: 課題番号 | D33: 写真 | J33: 対象設備名 | O33: 課題内容 | Y33: 計測番号 | AA33: 対策個票番号 | AC33: 対策名称
J34: 工程
B35: 11
B37: 12
B39: 13
B41: 14
B43: 15
B45: 16
B47: 17
B49: 18
B51: 19
B53: 20

Sheet 422提案対策一覧
B4: 4．診断報告書 | K4: 42．課題とCO2削減ポテンシャル | AU4: 記入例及び注記 | BC4: セル色凡例 | BI4: 直接入力 | BN4: 選択 | BR4: 自動計算 | CQ4: セル色の表示／非表示
B5: 422．提案対策一覧 | AU5: （セルのメモやテキストボックスによる注記は移動できます） | CQ5: FALSE
BO7: 提案対策のまとめは、提案対策一覧（1～2ページ目）の合計を示しています。 低炭素系統電力への変更提案は集計対象外であることに注意してください。
B8: ■ | C8: 提案対策のまとめ（低炭素系統電力への変更提案を除く） | AU8: ■ | AV8: 提案対策のまとめ（低炭素系統電力への切替提案を除く）
B9: 対策提案数 | W9: CO2削減効果 | AF9: （a） 導入コスト （千円） | AJ9: （b） 運転コスト 削減効果 （千円/年） | AN9: 単純投資 回収年数 (a)/(b) | AU9: 対策提案数 | BP9: CO2削減効果 | BY9: （a） 導入コスト （千円） | CC9: （b） 運転コスト 削減効果 （千円/年） | CG9: 単純投資 回収年数 (a)/(b)
B10: 総提案数 | E10: 運用改善 | H10: 部分更新・機能付加 | K10: 設備導入 | N10: 燃料 低炭素化 | Q10: 電化 | T10: 電力 低炭素化 | W10: CO2削減量 (tCO2/年) | AB10: 削減率(%)※ | AU10: 合計 | AX10: 運用改善 | BA10: 部分更新・機能付加 | BD10: 設備導入 | BG10: 燃料 低炭素化 | BJ10: 電化 | BM10: 電力 低炭素化 | BP10: CO2削減量 (tCO2/年) | BU10: 削減率(%)※
B12: =SUM(E12:S12) -> 0 | E12: =COUNTIF($E$27:$E$37,$E$10)+COUNTIF($E$48:$E$58,$E$10) -> 0 | H12: =COUNTIF($E$27:$E$37,"*部分更新*")+COUNTIF($E$48:$E$58,"*部分更新*") -> 0 | K12: =COUNTIF($E$27:$E$37,$K$10)+COUNTIF($E$48:$E$58,$K$10) -> 0 | N12: =COUNTIF($E$27:$E$37,"燃料*")+COUNTIF($E$48:$E$58,"燃料*") -> 0 | Q12: =COUNTIF($E$27:$E$37,$Q$10)+COUNTIF($E$48:$E$58,$Q$10) -> 0 | T12: =COUNTIF($E$27:$E$37,"*電力*")+COUNTIF($E$48:$E$58,"*電力*") -> 0 | W12: =SUM($V$27:$V$37)+SUM($V$48:$V$58) -> 0 | AB12: =IFERROR(W12/'6-4. CO2排出量_総括'!K11*100,"---") -> 0 | AF12: =SUM($AB$27:$AB$37)+SUM($AB$48:$AB$58) -> 0 | AJ12: =SUM($AF$27:$AF$37)+SUM($AF$48:$AF$58) -> 0 | AN12: =IFERROR(AF12/AJ12,"---") -> --- | AU12: 7 | AX12: 2 | BA12: 2 | BD12: 2 | BG12: 0 | BJ12: 1 | BM12: 0 | BP12: 301.445557 | BU12: 25.12046308 | BY12: 36140 | CC12: 5265.1502 | CG12: 6.864001715
AB13: ※工場・事業場基準年度排出量に対する削減率 | BU13: ※工場・事業場基準年度排出量に対する削減率
B14: ■ | C14: 提案対策と「支援計画書における支援方針」との比較 | AU14: ■ | AV14: 提案対策と「支援計画書における支援方針」との比較 | CQ14: 支援計画との合致
D15: 提案対策と支援方針との相違点なし | AU15: ⦿ | AW15: 提案対策と支援方針との相違点なし | BL15: 「支援計画書」における［111支援計画］の「3.支援方針」の内容どおりに対策提案を行ったかを示してください。 「3.支援方針」に示していないが提案した対策、「3.支援方針」に示しているが提案しなかった対策がある場合には、「相違あり」を選択し、相違の内容と理由を記入してください。 | CQ15: 0
D16: 提案対策と支援方針との相違点あり | AU16: ○ | AW16: 提案対策と支援方針との相違点あり
D17: 相違の 理由 | AW17: 相違の 理由
B21: ■ | C21: 提案対策一覧（対策の詳細は対策個票で見ることができます） | AU21: ■ | AV21: 提案対策一覧
B22: 対策の種類 [対策個票番号] | H22: 対策名称 | S22: 対象 システム／設備 | V22: CO2削減効果 | AB22: （a） 導入コスト （千円） | AF22: （b） 運転コスト削減効果 （千円/年） | AI22: 単純投資回収年数(a)/(b) | AL22: 推奨 対策 | AN22: 制約 条件 | AP22: 活用可能な 補助制度 | AU22: 対策の種類 [対策個票番号] | BA22: 対策名称 | BL22: 対象 システム／設備 | BO22: CO2削減効果 | BU22: （a） 導入コスト （千円） | BY22: （b） 運転コスト削減効果 （千円/年） | CB22: 単純投資回収年数(a)/(b) | CE22: 推奨 対策 | CG22: 制約 条件 | CI22: 活用可能な 補助制度 | CQ22: INDIRECT用
V23: CO2削減量 (tCO2/年) | Y23: 削減率(%) ※ | BO23: CO2削減量 (tCO2/年) | BR23: 削減率(%) ※ | CQ23: 対策個票
CQ24: 423対策個票
B26: 省エネルギー | AU26: 省エネルギー
E27: =IF($C27="","",IFERROR(IF(INDIRECT("'"&$CQ$23&$C27&"'!C9")="","",INDIRECT("'"&$CQ$23&$C27&"'!C9")),IFERROR(IF(INDIRECT("'"&$CQ$24&$C27&"'!C9")="","",INDIRECT("'"&$CQ$24&$C27&"'!C9")),"―"))) ->  | H27: =IF($C27="","",IFERROR(IF(INDIRECT("'"&$CQ$23&$C27&"'!G9")="","",INDIRECT("'"&$CQ$23&$C27&"'!G9")),IFERROR(IF(INDIRECT("'"&$CQ$24&$C27&"'!G9")="","",INDIRECT("'"&$CQ$24&$C27&"'!G9")),"―"))) ->  | S27: =IF($C27="","",IFERROR(IF(INDIRECT("'"&$CQ$23&$C27&"'!G13")="","",INDIRECT("'"&$CQ$23&$C27&"'!G13")),IFERROR(IF(INDIRECT("'"&$CQ$24&$C27&"'!G13")="","",INDIRECT("'"&$CQ$24&$C27&"'!G13")),"―"))) ->  | V27: =IF($C27="","",IFERROR(IF(INDIRECT("'"&$CQ$23&$C27&"'!J75")="","",INDIRECT("'"&$CQ$23&$C27&"'!J75")),IFERROR(IF(INDIRECT("'"&$CQ$24&$C27&"'!J75")="","",INDIRECT("'"&$CQ$24&$C27&"'!J75")),"―"))) ->  | Y27: =IF($C27="","",IFERROR(IF(INDIRECT("'"&$CQ$23&$C27&"'!J77")="","",INDIRECT("'"&$CQ$23&$C27&"'!J77")),IFERROR(IF(INDIRECT("'"&$CQ$24&$C27&"'!J77")="","",INDIRECT("'"&$CQ$24&$C27&"'!J77")),"―"))) ->  | AB27: =IF($C27="","",IFERROR(IF(INDIRECT("'"&$CQ$23&$C27&"'!AD75")="","",INDIRECT("'"&$CQ$23&$C27&"'!AD75")),IFERROR(IF(INDIRECT("'"&$CQ$24&$C27&"'!AD75")="","",INDIRECT("'"&$CQ$24&$C27&"'!AD75")),"―"))) ->  | AF27: =IF($C27="","",IFERROR(IF(INDIRECT("'"&$CQ$23&$C27&"'!J79")="","",INDIRECT("'"&$CQ$23&$C27&"'!J79")),IFERROR(IF(INDIRECT("'"&$CQ$24&$C27&"'!J79")="","",INDIRECT("'"&$CQ$24&$C27&"'!J79")),"―"))) ->  | AI27: =IF($C27="","",IFERROR(IF(INDIRECT("'"&$CQ$23&$C27&"'!AD83")="","",INDIRECT("'"&$CQ$23&$C27&"'!AD83")),IFERROR(IF(INDIRECT("'"&$CQ$24&$C27&"'!AD83")="","",INDIRECT("'"&$CQ$24&$C27&"'!AD83")),"―"))) ->  | AL27: =IF($C27="","",IFERROR(IF(INDIRECT("'"&$CQ$23&$C27&"'!CN27")="","",INDIRECT("'"&$CQ$23&$C27&"'!CN27")),IFERROR(IF(INDIRECT("'"&$CQ$24&$C27&"'!CN27")="","",INDIRECT("'"&$CQ$24&$C27&"'!CN27")),"―"))) ->  | AN27: =IF($C27="","",IFERROR(IF(INDIRECT("'"&$CQ$23&$C27&"'!CL47")="","",INDIRECT("'"&$CQ$23&$C27&"'!CL47")),IFERROR(IF(INDIRECT("'"&$CQ$24&$C27&"'!CL47")="","",INDIRECT("'"&$CQ$24&$C27&"'!CL47")),"―"))) ->  | AP27: =IF($C27="","",IFERROR(IF(INDIRECT("'"&$CQ$23&$C27&"'!CL42")="","",INDIRECT("'"&$CQ$23&$C27&"'!CL42")),IFERROR(IF(INDIRECT("'"&$CQ$24&$C27&"'!CL42")="","",INDIRECT("'"&$CQ$24&$C27&"'!CL42")),"―"))) ->  | AV27: 1 | AX27: 部分更新・ 機能付加 | BA27: 蒸気配管・蒸気バルブ・フランジ等の断熱強化ああああああああああああああああああああああああ | BL27: 蒸気システム | BO27: 4.554 | BR27: 0.3795 | BU27: 40 | BY27: 152 | CB27: 0.2631578947 | CE27: ― | CG27: ― | CI27: ―
E28: =IF($C28="","",IFERROR(IF(INDIRECT("'"&$CQ$23&$C28&"'!C9")="","",INDIRECT("'"&$CQ$23&$C28&"'!C9")),IFERROR(IF(INDIRECT("'"&$CQ$24&$C28&"'!C9")="","",INDIRECT("'"&$CQ$24&$C28&"'!C9")),"―"))) ->  | H28: =IF($C28="","",IFERROR(IF(INDIRECT("'"&$CQ$23&$C28&"'!G9")="","",INDIRECT("'"&$CQ$23&$C28&"'!G9")),IFERROR(IF(INDIRECT("'"&$CQ$24&$C28&"'!G9")="","",INDIRECT("'"&$CQ$24&$C28&"'!G9")),"―"))) ->  | S28: =IF($C28="","",IFERROR(IF(INDIRECT("'"&$CQ$23&$C28&"'!G13")="","",INDIRECT("'"&$CQ$23&$C28&"'!G13")),IFERROR(IF(INDIRECT("'"&$CQ$24&$C28&"'!G13")="","",INDIRECT("'"&$CQ$24&$C28&"'!G13")),"―"))) ->  | V28: =IF($C28="","",IFERROR(IF(INDIRECT("'"&$CQ$23&$C28&"'!J75")="","",INDIRECT("'"&$CQ$23&$C28&"'!J75")),IFERROR(IF(INDIRECT("'"&$CQ$24&$C28&"'!J75")="","",INDIRECT("'"&$CQ$24&$C28&"'!J75")),"―"))) ->  | Y28: =IF($C28="","",IFERROR(IF(INDIRECT("'"&$CQ$23&$C28&"'!J77")="","",INDIRECT("'"&$CQ$23&$C28&"'!J77")),IFERROR(IF(INDIRECT("'"&$CQ$24&$C28&"'!J77")="","",INDIRECT("'"&$CQ$24&$C28&"'!J77")),"―"))) ->  | AB28: =IF($C28="","",IFERROR(IF(INDIRECT("'"&$CQ$23&$C28&"'!AD75")="","",INDIRECT("'"&$CQ$23&$C28&"'!AD75")),IFERROR(IF(INDIRECT("'"&$CQ$24&$C28&"'!AD75")="","",INDIRECT("'"&$CQ$24&$C28&"'!AD75")),"―"))) ->  | AF28: =IF($C28="","",IFERROR(IF(INDIRECT("'"&$CQ$23&$C28&"'!J79")="","",INDIRECT("'"&$CQ$23&$C28&"'!J79")),IFERROR(IF(INDIRECT("'"&$CQ$24&$C28&"'!J79")="","",INDIRECT("'"&$CQ$24&$C28&"'!J79")),"―"))) ->  | AI28: =IF($C28="","",IFERROR(IF(INDIRECT("'"&$CQ$23&$C28&"'!AD83")="","",INDIRECT("'"&$CQ$23&$C28&"'!AD83")),IFERROR(IF(INDIRECT("'"&$CQ$24&$C28&"'!AD83")="","",INDIRECT("'"&$CQ$24&$C28&"'!AD83")),"―"))) ->  | AL28: =IF($C28="","",IFERROR(IF(INDIRECT("'"&$CQ$23&$C28&"'!CN27")="","",INDIRECT("'"&$CQ$23&$C28&"'!CN27")),IFERROR(IF(INDIRECT("'"&$CQ$24&$C28&"'!CN27")="","",INDIRECT("'"&$CQ$24&$C28&"'!CN27")),"―"))) ->  | AN28: =IF($C28="","",IFERROR(IF(INDIRECT("'"&$CQ$23&$C28&"'!CL47")="","",INDIRECT("'"&$CQ$23&$C28&"'!CL47")),IFERROR(IF(INDIRECT("'"&$CQ$24&$C28&"'!CL47")="","",INDIRECT("'"&$CQ$24&$C28&"'!CL47")),"―"))) ->  | AP28: =IF($C28="","",IFERROR(IF(INDIRECT("'"&$CQ$23&$C28&"'!CL42")="","",INDIRECT("'"&$CQ$23&$C28&"'!CL42")),IFERROR(IF(INDIRECT("'"&$CQ$24&$C28&"'!CL42")="","",INDIRECT("'"&$CQ$24&$C28&"'!CL42")),"―"))) ->  | AV28: 2 | AX28: 運用改善 | BA28: ボイラー圧力の調整 | BL28: 蒸気システム | BO28: 2.277 | BR28: 0.18975 | BU28: 0 | BY28: 76 | CB28: 0 | CE28: ○ | CG28: あり | CI28: あり
E29: =IF($C29="","",IFERROR(IF(INDIRECT("'"&$CQ$23&$C29&"'!C9")="","",INDIRECT("'"&$CQ$23&$C29&"'!C9")),IFERROR(IF(INDIRECT("'"&$CQ$24&$C29&"'!C9")="","",INDIRECT("'"&$CQ$24&$C29&"'!C9")),"―"))) ->  | H29: =IF($C29="","",IFERROR(IF(INDIRECT("'"&$CQ$23&$C29&"'!G9")="","",INDIRECT("'"&$CQ$23&$C29&"'!G9")),IFERROR(IF(INDIRECT("'"&$CQ$24&$C29&"'!G9")="","",INDIRECT("'"&$CQ$24&$C29&"'!G9")),"―"))) ->  | S29: =IF($C29="","",IFERROR(IF(INDIRECT("'"&$CQ$23&$C29&"'!G13")="","",INDIRECT("'"&$CQ$23&$C29&"'!G13")),IFERROR(IF(INDIRECT("'"&$CQ$24&$C29&"'!G13")="","",INDIRECT("'"&$CQ$24&$C29&"'!G13")),"―"))) ->  | V29: =IF($C29="","",IFERROR(IF(INDIRECT("'"&$CQ$23&$C29&"'!J75")="","",INDIRECT("'"&$CQ$23&$C29&"'!J75")),IFERROR(IF(INDIRECT("'"&$CQ$24&$C29&"'!J75")="","",INDIRECT("'"&$CQ$24&$C29&"'!J75")),"―"))) ->  | Y29: =IF($C29="","",IFERROR(IF(INDIRECT("'"&$CQ$23&$C29&"'!J77")="","",INDIRECT("'"&$CQ$23&$C29&"'!J77")),IFERROR(IF(INDIRECT("'"&$CQ$24&$C29&"'!J77")="","",INDIRECT("'"&$CQ$24&$C29&"'!J77")),"―"))) ->  | AB29: =IF($C29="","",IFERROR(IF(INDIRECT("'"&$CQ$23&$C29&"'!AD75")="","",INDIRECT("'"&$CQ$23&$C29&"'!AD75")),IFERROR(IF(INDIRECT("'"&$CQ$24&$C29&"'!AD75")="","",INDIRECT("'"&$CQ$24&$C29&"'!AD75")),"―"))) ->  | AF29: =IF($C29="","",IFERROR(IF(INDIRECT("'"&$CQ$23&$C29&"'!J79")="","",INDIRECT("'"&$CQ$23&$C29&"'!J79")),IFERROR(IF(INDIRECT("'"&$CQ$24&$C29&"'!J79")="","",INDIRECT("'"&$CQ$24&$C29&"'!J79")),"―"))) ->  | AI29: =IF($C29="","",IFERROR(IF(INDIRECT("'"&$CQ$23&$C29&"'!AD83")="","",INDIRECT("'"&$CQ$23&$C29&"'!AD83")),IFERROR(IF(INDIRECT("'"&$CQ$24&$C29&"'!AD83")="","",INDIRECT("'"&$CQ$24&$C29&"'!AD83")),"―"))) ->  | AL29: =IF($C29="","",IFERROR(IF(INDIRECT("'"&$CQ$23&$C29&"'!CN27")="","",INDIRECT("'"&$CQ$23&$C29&"'!CN27")),IFERROR(IF(INDIRECT("'"&$CQ$24&$C29&"'!CN27")="","",INDIRECT("'"&$CQ$24&$C29&"'!CN27")),"―"))) ->  | AN29: =IF($C29="","",IFERROR(IF(INDIRECT("'"&$CQ$23&$C29&"'!CL47")="","",INDIRECT("'"&$CQ$23&$C29&"'!CL47")),IFERROR(IF(INDIRECT("'"&$CQ$24&$C29&"'!CL47")="","",INDIRECT("'"&$CQ$24&$C29&"'!CL47")),"―"))) ->  | AP29: =IF($C29="","",IFERROR(IF(INDIRECT("'"&$CQ$23&$C29&"'!CL42")="","",INDIRECT("'"&$CQ$23&$C29&"'!CL42")),IFERROR(IF(INDIRECT("'"&$CQ$24&$C29&"'!CL42")="","",INDIRECT("'"&$CQ$24&$C29&"'!CL42")),"―"))) ->  | AV29: 3 | AX29: 設備導入 | BA29: コンプレッサーの更新 | BL29: 圧空システム | BO29: 5.957884 | BR29: 0.4964903333 | BU29: 2100 | BY29: 280.5224 | CB29: 7.486033201 | CE29: ― | CG29: あり | CI29: あり
E30: =IF($C30="","",IFERROR(IF(INDIRECT("'"&$CQ$23&$C30&"'!C9")="","",INDIRECT("'"&$CQ$23&$C30&"'!C9")),IFERROR(IF(INDIRECT("'"&$CQ$24&$C30&"'!C9")="","",INDIRECT("'"&$CQ$24&$C30&"'!C9")),"―"))) ->  | H30: =IF($C30="","",IFERROR(IF(INDIRECT("'"&$CQ$23&$C30&"'!G9")="","",INDIRECT("'"&$CQ$23&$C30&"'!G9")),IFERROR(IF(INDIRECT("'"&$CQ$24&$C30&"'!G9")="","",INDIRECT("'"&$CQ$24&$C30&"'!G9")),"―"))) ->  | S30: =IF($C30="","",IFERROR(IF(INDIRECT("'"&$CQ$23&$C30&"'!G13")="","",INDIRECT("'"&$CQ$23&$C30&"'!G13")),IFERROR(IF(INDIRECT("'"&$CQ$24&$C30&"'!G13")="","",INDIRECT("'"&$CQ$24&$C30&"'!G13")),"―"))) ->  | V30: =IF($C30="","",IFERROR(IF(INDIRECT("'"&$CQ$23&$C30&"'!J75")="","",INDIRECT("'"&$CQ$23&$C30&"'!J75")),IFERROR(IF(INDIRECT("'"&$CQ$24&$C30&"'!J75")="","",INDIRECT("'"&$CQ$24&$C30&"'!J75")),"―"))) ->  | Y30: =IF($C30="","",IFERROR(IF(INDIRECT("'"&$CQ$23&$C30&"'!J77")="","",INDIRECT("'"&$CQ$23&$C30&"'!J77")),IFERROR(IF(INDIRECT("'"&$CQ$24&$C30&"'!J77")="","",INDIRECT("'"&$CQ$24&$C30&"'!J77")),"―"))) ->  | AB30: =IF($C30="","",IFERROR(IF(INDIRECT("'"&$CQ$23&$C30&"'!AD75")="","",INDIRECT("'"&$CQ$23&$C30&"'!AD75")),IFERROR(IF(INDIRECT("'"&$CQ$24&$C30&"'!AD75")="","",INDIRECT("'"&$CQ$24&$C30&"'!AD75")),"―"))) ->  | AF30: =IF($C30="","",IFERROR(IF(INDIRECT("'"&$CQ$23&$C30&"'!J79")="","",INDIRECT("'"&$CQ$23&$C30&"'!J79")),IFERROR(IF(INDIRECT("'"&$CQ$24&$C30&"'!J79")="","",INDIRECT("'"&$CQ$24&$C30&"'!J79")),"―"))) ->  | AI30: =IF($C30="","",IFERROR(IF(INDIRECT("'"&$CQ$23&$C30&"'!AD83")="","",INDIRECT("'"&$CQ$23&$C30&"'!AD83")),IFERROR(IF(INDIRECT("'"&$CQ$24&$C30&"'!AD83")="","",INDIRECT("'"&$CQ$24&$C30&"'!AD83")),"―"))) ->  | AL30: =IF($C30="","",IFERROR(IF(INDIRECT("'"&$CQ$23&$C30&"'!CN27")="","",INDIRECT("'"&$CQ$23&$C30&"'!CN27")),IFERROR(IF(INDIRECT("'"&$CQ$24&$C30&"'!CN27")="","",INDIRECT("'"&$CQ$24&$C30&"'!CN27")),"―"))) ->  | AN30: =IF($C30="","",IFERROR(IF(INDIRECT("'"&$CQ$23&$C30&"'!CL47")="","",INDIRECT("'"&$CQ$23&$C30&"'!CL47")),IFERROR(IF(INDIRECT("'"&$CQ$24&$C30&"'!CL47")="","",INDIRECT("'"&$CQ$24&$C30&"'!CL47")),"―"))) ->  | AP30: =IF($C30="","",IFERROR(IF(INDIRECT("'"&$CQ$23&$C30&"'!CL42")="","",INDIRECT("'"&$CQ$23&$C30&"'!CL42")),IFERROR(IF(INDIRECT("'"&$CQ$24&$C30&"'!CL42")="","",INDIRECT("'"&$CQ$24&$C30&"'!CL42")),"―"))) ->  | AV30: 4 | AX30: 部分更新・ 機能付加 | BA30: 曝気ブロアのインバーター化 | BL30: 排水処理設備 | BO30: 16.835143 | BR30: 1.402928583 | BU30: 1000 | BY30: 792.6698 | CB30: 1.261559353 | CE30: ○ | CG30: あり | CI30: あり
E31: =IF($C31="","",IFERROR(IF(INDIRECT("'"&$CQ$23&$C31&"'!C9")="","",INDIRECT("'"&$CQ$23&$C31&"'!C9")),IFERROR(IF(INDIRECT("'"&$CQ$24&$C31&"'!C9")="","",INDIRECT("'"&$CQ$24&$C31&"'!C9")),"―"))) ->  | H31: =IF($C31="","",IFERROR(IF(INDIRECT("'"&$CQ$23&$C31&"'!G9")="","",INDIRECT("'"&$CQ$23&$C31&"'!G9")),IFERROR(IF(INDIRECT("'"&$CQ$24&$C31&"'!G9")="","",INDIRECT("'"&$CQ$24&$C31&"'!G9")),"―"))) ->  | S31: =IF($C31="","",IFERROR(IF(INDIRECT("'"&$CQ$23&$C31&"'!G13")="","",INDIRECT("'"&$CQ$23&$C31&"'!G13")),IFERROR(IF(INDIRECT("'"&$CQ$24&$C31&"'!G13")="","",INDIRECT("'"&$CQ$24&$C31&"'!G13")),"―"))) ->  | V31: =IF($C31="","",IFERROR(IF(INDIRECT("'"&$CQ$23&$C31&"'!J75")="","",INDIRECT("'"&$CQ$23&$C31&"'!J75")),IFERROR(IF(INDIRECT("'"&$CQ$24&$C31&"'!J75")="","",INDIRECT("'"&$CQ$24&$C31&"'!J75")),"―"))) ->  | Y31: =IF($C31="","",IFERROR(IF(INDIRECT("'"&$CQ$23&$C31&"'!J77")="","",INDIRECT("'"&$CQ$23&$C31&"'!J77")),IFERROR(IF(INDIRECT("'"&$CQ$24&$C31&"'!J77")="","",INDIRECT("'"&$CQ$24&$C31&"'!J77")),"―"))) ->  | AB31: =IF($C31="","",IFERROR(IF(INDIRECT("'"&$CQ$23&$C31&"'!AD75")="","",INDIRECT("'"&$CQ$23&$C31&"'!AD75")),IFERROR(IF(INDIRECT("'"&$CQ$24&$C31&"'!AD75")="","",INDIRECT("'"&$CQ$24&$C31&"'!AD75")),"―"))) ->  | AF31: =IF($C31="","",IFERROR(IF(INDIRECT("'"&$CQ$23&$C31&"'!J79")="","",INDIRECT("'"&$CQ$23&$C31&"'!J79")),IFERROR(IF(INDIRECT("'"&$CQ$24&$C31&"'!J79")="","",INDIRECT("'"&$CQ$24&$C31&"'!J79")),"―"))) ->  | AI31: =IF($C31="","",IFERROR(IF(INDIRECT("'"&$CQ$23&$C31&"'!AD83")="","",INDIRECT("'"&$CQ$23&$C31&"'!AD83")),IFERROR(IF(INDIRECT("'"&$CQ$24&$C31&"'!AD83")="","",INDIRECT("'"&$CQ$24&$C31&"'!AD83")),"―"))) ->  | AL31: =IF($C31="","",IFERROR(IF(INDIRECT("'"&$CQ$23&$C31&"'!CN27")="","",INDIRECT("'"&$CQ$23&$C31&"'!CN27")),IFERROR(IF(INDIRECT("'"&$CQ$24&$C31&"'!CN27")="","",INDIRECT("'"&$CQ$24&$C31&"'!CN27")),"―"))) ->  | AN31: =IF($C31="","",IFERROR(IF(INDIRECT("'"&$CQ$23&$C31&"'!CL47")="","",INDIRECT("'"&$CQ$23&$C31&"'!CL47")),IFERROR(IF(INDIRECT("'"&$CQ$24&$C31&"'!CL47")="","",INDIRECT("'"&$CQ$24&$C31&"'!CL47")),"―"))) ->  | AP31: =IF($C31="","",IFERROR(IF(INDIRECT("'"&$CQ$23&$C31&"'!CL42")="","",INDIRECT("'"&$CQ$23&$C31&"'!CL42")),IFERROR(IF(INDIRECT("'"&$CQ$24&$C31&"'!CL42")="","",INDIRECT("'"&$CQ$24&$C31&"'!CL42")),"―"))) ->  | AV31: 5 | AX31: 運用改善 | BA31: 空調設定温度の緩和 | BL31: 空調システム | BO31: 4.8615 | BR31: 0.405125 | BU31: 0 | BY31: 228.9 | CB31: 0 | CE31: ○ | CG31: ― | CI31: あり
E32: =IF($C32="","",IFERROR(IF(INDIRECT("'"&$CQ$23&$C32&"'!C9")="","",INDIRECT("'"&$CQ$23&$C32&"'!C9")),IFERROR(IF(INDIRECT("'"&$CQ$24&$C32&"'!C9")="","",INDIRECT("'"&$CQ$24&$C32&"'!C9")),"―"))) ->  | H32: =IF($C32="","",IFERROR(IF(INDIRECT("'"&$CQ$23&$C32&"'!G9")="","",INDIRECT("'"&$CQ$23&$C32&"'!G9")),IFERROR(IF(INDIRECT("'"&$CQ$24&$C32&"'!G9")="","",INDIRECT("'"&$CQ$24&$C32&"'!G9")),"―"))) ->  | S32: =IF($C32="","",IFERROR(IF(INDIRECT("'"&$CQ$23&$C32&"'!G13")="","",INDIRECT("'"&$CQ$23&$C32&"'!G13")),IFERROR(IF(INDIRECT("'"&$CQ$24&$C32&"'!G13")="","",INDIRECT("'"&$CQ$24&$C32&"'!G13")),"―"))) ->  | V32: =IF($C32="","",IFERROR(IF(INDIRECT("'"&$CQ$23&$C32&"'!J75")="","",INDIRECT("'"&$CQ$23&$C32&"'!J75")),IFERROR(IF(INDIRECT("'"&$CQ$24&$C32&"'!J75")="","",INDIRECT("'"&$CQ$24&$C32&"'!J75")),"―"))) ->  | Y32: =IF($C32="","",IFERROR(IF(INDIRECT("'"&$CQ$23&$C32&"'!J77")="","",INDIRECT("'"&$CQ$23&$C32&"'!J77")),IFERROR(IF(INDIRECT("'"&$CQ$24&$C32&"'!J77")="","",INDIRECT("'"&$CQ$24&$C32&"'!J77")),"―"))) ->  | AB32: =IF($C32="","",IFERROR(IF(INDIRECT("'"&$CQ$23&$C32&"'!AD75")="","",INDIRECT("'"&$CQ$23&$C32&"'!AD75")),IFERROR(IF(INDIRECT("'"&$CQ$24&$C32&"'!AD75")="","",INDIRECT("'"&$CQ$24&$C32&"'!AD75")),"―"))) ->  | AF32: =IF($C32="","",IFERROR(IF(INDIRECT("'"&$CQ$23&$C32&"'!J79")="","",INDIRECT("'"&$CQ$23&$C32&"'!J79")),IFERROR(IF(INDIRECT("'"&$CQ$24&$C32&"'!J79")="","",INDIRECT("'"&$CQ$24&$C32&"'!J79")),"―"))) ->  | AI32: =IF($C32="","",IFERROR(IF(INDIRECT("'"&$CQ$23&$C32&"'!AD83")="","",INDIRECT("'"&$CQ$23&$C32&"'!AD83")),IFERROR(IF(INDIRECT("'"&$CQ$24&$C32&"'!AD83")="","",INDIRECT("'"&$CQ$24&$C32&"'!AD83")),"―"))) ->  | AL32: =IF($C32="","",IFERROR(IF(INDIRECT("'"&$CQ$23&$C32&"'!CN27")="","",INDIRECT("'"&$CQ$23&$C32&"'!CN27")),IFERROR(IF(INDIRECT("'"&$CQ$24&$C32&"'!CN27")="","",INDIRECT("'"&$CQ$24&$C32&"'!CN27")),"―"))) ->  | AN32: =IF($C32="","",IFERROR(IF(INDIRECT("'"&$CQ$23&$C32&"'!CL47")="","",INDIRECT("'"&$CQ$23&$C32&"'!CL47")),IFERROR(IF(INDIRECT("'"&$CQ$24&$C32&"'!CL47")="","",INDIRECT("'"&$CQ$24&$C32&"'!CL47")),"―"))) ->  | AP32: =IF($C32="","",IFERROR(IF(INDIRECT("'"&$CQ$23&$C32&"'!CL42")="","",INDIRECT("'"&$CQ$23&$C32&"'!CL42")),IFERROR(IF(INDIRECT("'"&$CQ$24&$C32&"'!CL42")="","",INDIRECT("'"&$CQ$24&$C32&"'!CL42")),"―"))) ->  | AV32: 9 | AX32: 設備導入 | BA32: LED照明の導入 | BL32: 照明設備 | BO32: 4 | BR32: 0.3 | BU32: 1700 | BY32: 171 | CB32: 9.9 | CE32: ○ | CG32: ― | CI32: ―
E33: =IF($C33="","",IFERROR(IF(INDIRECT("'"&$CQ$23&$C33&"'!C9")="","",INDIRECT("'"&$CQ$23&$C33&"'!C9")),IFERROR(IF(INDIRECT("'"&$CQ$24&$C33&"'!C9")="","",INDIRECT("'"&$CQ$24&$C33&"'!C9")),"―"))) ->  | H33: =IF($C33="","",IFERROR(IF(INDIRECT("'"&$CQ$23&$C33&"'!G9")="","",INDIRECT("'"&$CQ$23&$C33&"'!G9")),IFERROR(IF(INDIRECT("'"&$CQ$24&$C33&"'!G9")="","",INDIRECT("'"&$CQ$24&$C33&"'!G9")),"―"))) ->  | S33: =IF($C33="","",IFERROR(IF(INDIRECT("'"&$CQ$23&$C33&"'!G13")="","",INDIRECT("'"&$CQ$23&$C33&"'!G13")),IFERROR(IF(INDIRECT("'"&$CQ$24&$C33&"'!G13")="","",INDIRECT("'"&$CQ$24&$C33&"'!G13")),"―"))) ->  | V33: =IF($C33="","",IFERROR(IF(INDIRECT("'"&$CQ$23&$C33&"'!J75")="","",INDIRECT("'"&$CQ$23&$C33&"'!J75")),IFERROR(IF(INDIRECT("'"&$CQ$24&$C33&"'!J75")="","",INDIRECT("'"&$CQ$24&$C33&"'!J75")),"―"))) ->  | Y33: =IF($C33="","",IFERROR(IF(INDIRECT("'"&$CQ$23&$C33&"'!J77")="","",INDIRECT("'"&$CQ$23&$C33&"'!J77")),IFERROR(IF(INDIRECT("'"&$CQ$24&$C33&"'!J77")="","",INDIRECT("'"&$CQ$24&$C33&"'!J77")),"―"))) ->  | AB33: =IF($C33="","",IFERROR(IF(INDIRECT("'"&$CQ$23&$C33&"'!AD75")="","",INDIRECT("'"&$CQ$23&$C33&"'!AD75")),IFERROR(IF(INDIRECT("'"&$CQ$24&$C33&"'!AD75")="","",INDIRECT("'"&$CQ$24&$C33&"'!AD75")),"―"))) ->  | AF33: =IF($C33="","",IFERROR(IF(INDIRECT("'"&$CQ$23&$C33&"'!J79")="","",INDIRECT("'"&$CQ$23&$C33&"'!J79")),IFERROR(IF(INDIRECT("'"&$CQ$24&$C33&"'!J79")="","",INDIRECT("'"&$CQ$24&$C33&"'!J79")),"―"))) ->  | AI33: =IF($C33="","",IFERROR(IF(INDIRECT("'"&$CQ$23&$C33&"'!AD83")="","",INDIRECT("'"&$CQ$23&$C33&"'!AD83")),IFERROR(IF(INDIRECT("'"&$CQ$24&$C33&"'!AD83")="","",INDIRECT("'"&$CQ$24&$C33&"'!AD83")),"―"))) ->  | AL33: =IF($C33="","",IFERROR(IF(INDIRECT("'"&$CQ$23&$C33&"'!CN27")="","",INDIRECT("'"&$CQ$23&$C33&"'!CN27")),IFERROR(IF(INDIRECT("'"&$CQ$24&$C33&"'!CN27")="","",INDIRECT("'"&$CQ$24&$C33&"'!CN27")),"―"))) ->  | AN33: =IF($C33="","",IFERROR(IF(INDIRECT("'"&$CQ$23&$C33&"'!CL47")="","",INDIRECT("'"&$CQ$23&$C33&"'!CL47")),IFERROR(IF(INDIRECT("'"&$CQ$24&$C33&"'!CL47")="","",INDIRECT("'"&$CQ$24&$C33&"'!CL47")),"―"))) ->  | AP33: =IF($C33="","",IFERROR(IF(INDIRECT("'"&$CQ$23&$C33&"'!CL42")="","",INDIRECT("'"&$CQ$23&$C33&"'!CL42")),IFERROR(IF(INDIRECT("'"&$CQ$24&$C33&"'!CL42")="","",INDIRECT("'"&$CQ$24&$C33&"'!CL42")),"―"))) -> 
B34: 脱炭素化：燃料低炭素化または電化、太陽光発電等の再生可能エネルギー利用など
E35: =IF($C35="","",IFERROR(IF(INDIRECT("'"&$CQ$23&$C35&"'!C9")="","",INDIRECT("'"&$CQ$23&$C35&"'!C9")),IFERROR(IF(INDIRECT("'"&$CQ$24&$C35&"'!C9")="","",INDIRECT("'"&$CQ$24&$C35&"'!C9")),"―"))) ->  | H35: =IF($C35="","",IFERROR(IF(INDIRECT("'"&$CQ$23&$C35&"'!G9")="","",INDIRECT("'"&$CQ$23&$C35&"'!G9")),IFERROR(IF(INDIRECT("'"&$CQ$24&$C35&"'!G9")="","",INDIRECT("'"&$CQ$24&$C35&"'!G9")),"―"))) ->  | S35: =IF($C35="","",IFERROR(IF(INDIRECT("'"&$CQ$23&$C35&"'!G13")="","",INDIRECT("'"&$CQ$23&$C35&"'!G13")),IFERROR(IF(INDIRECT("'"&$CQ$24&$C35&"'!G13")="","",INDIRECT("'"&$CQ$24&$C35&"'!G13")),"―"))) ->  | V35: =IF($C35="","",IFERROR(IF(INDIRECT("'"&$CQ$23&$C35&"'!J75")="","",INDIRECT("'"&$CQ$23&$C35&"'!J75")),IFERROR(IF(INDIRECT("'"&$CQ$24&$C35&"'!J75")="","",INDIRECT("'"&$CQ$24&$C35&"'!J75")),"―"))) ->  | Y35: =IF($C35="","",IFERROR(IF(INDIRECT("'"&$CQ$23&$C35&"'!J77")="","",INDIRECT("'"&$CQ$23&$C35&"'!J77")),IFERROR(IF(INDIRECT("'"&$CQ$24&$C35&"'!J77")="","",INDIRECT("'"&$CQ$24&$C35&"'!J77")),"―"))) ->  | AB35: =IF($C35="","",IFERROR(IF(INDIRECT("'"&$CQ$23&$C35&"'!AD75")="","",INDIRECT("'"&$CQ$23&$C35&"'!AD75")),IFERROR(IF(INDIRECT("'"&$CQ$24&$C35&"'!AD75")="","",INDIRECT("'"&$CQ$24&$C35&"'!AD75")),"―"))) ->  | AF35: =IF($C35="","",IFERROR(IF(INDIRECT("'"&$CQ$23&$C35&"'!J79")="","",INDIRECT("'"&$CQ$23&$C35&"'!J79")),IFERROR(IF(INDIRECT("'"&$CQ$24&$C35&"'!J79")="","",INDIRECT("'"&$CQ$24&$C35&"'!J79")),"―"))) ->  | AI35: =IF($C35="","",IFERROR(IF(INDIRECT("'"&$CQ$23&$C35&"'!AD83")="","",INDIRECT("'"&$CQ$23&$C35&"'!AD83")),IFERROR(IF(INDIRECT("'"&$CQ$24&$C35&"'!AD83")="","",INDIRECT("'"&$CQ$24&$C35&"'!AD83")),"―"))) ->  | AL35: =IF($C35="","",IFERROR(IF(INDIRECT("'"&$CQ$23&$C35&"'!CN27")="","",INDIRECT("'"&$CQ$23&$C35&"'!CN27")),IFERROR(IF(INDIRECT("'"&$CQ$24&$C35&"'!CN27")="","",INDIRECT("'"&$CQ$24&$C35&"'!CN27")),"―"))) ->  | AN35: =IF($C35="","",IFERROR(IF(INDIRECT("'"&$CQ$23&$C35&"'!CL47")="","",INDIRECT("'"&$CQ$23&$C35&"'!CL47")),IFERROR(IF(INDIRECT("'"&$CQ$24&$C35&"'!CL47")="","",INDIRECT("'"&$CQ$24&$C35&"'!CL47")),"―"))) ->  | AP35: =IF($C35="","",IFERROR(IF(INDIRECT("'"&$CQ$23&$C35&"'!CL42")="","",INDIRECT("'"&$CQ$23&$C35&"'!CL42")),IFERROR(IF(INDIRECT("'"&$CQ$24&$C35&"'!CL42")="","",INDIRECT("'"&$CQ$24&$C35&"'!CL42")),"―"))) -> 
E36: =IF($C36="","",IFERROR(IF(INDIRECT("'"&$CQ$23&$C36&"'!C9")="","",INDIRECT("'"&$CQ$23&$C36&"'!C9")),IFERROR(IF(INDIRECT("'"&$CQ$24&$C36&"'!C9")="","",INDIRECT("'"&$CQ$24&$C36&"'!C9")),"―"))) ->  | H36: =IF($C36="","",IFERROR(IF(INDIRECT("'"&$CQ$23&$C36&"'!G9")="","",INDIRECT("'"&$CQ$23&$C36&"'!G9")),IFERROR(IF(INDIRECT("'"&$CQ$24&$C36&"'!G9")="","",INDIRECT("'"&$CQ$24&$C36&"'!G9")),"―"))) ->  | S36: =IF($C36="","",IFERROR(IF(INDIRECT("'"&$CQ$23&$C36&"'!G13")="","",INDIRECT("'"&$CQ$23&$C36&"'!G13")),IFERROR(IF(INDIRECT("'"&$CQ$24&$C36&"'!G13")="","",INDIRECT("'"&$CQ$24&$C36&"'!G13")),"―"))) ->  | V36: =IF($C36="","",IFERROR(IF(INDIRECT("'"&$CQ$23&$C36&"'!J75")="","",INDIRECT("'"&$CQ$23&$C36&"'!J75")),IFERROR(IF(INDIRECT("'"&$CQ$24&$C36&"'!J75")="","",INDIRECT("'"&$CQ$24&$C36&"'!J75")),"―"))) ->  | Y36: =IF($C36="","",IFERROR(IF(INDIRECT("'"&$CQ$23&$C36&"'!J77")="","",INDIRECT("'"&$CQ$23&$C36&"'!J77")),IFERROR(IF(INDIRECT("'"&$CQ$24&$C36&"'!J77")="","",INDIRECT("'"&$CQ$24&$C36&"'!J77")),"―"))) ->  | AB36: =IF($C36="","",IFERROR(IF(INDIRECT("'"&$CQ$23&$C36&"'!AD75")="","",INDIRECT("'"&$CQ$23&$C36&"'!AD75")),IFERROR(IF(INDIRECT("'"&$CQ$24&$C36&"'!AD75")="","",INDIRECT("'"&$CQ$24&$C36&"'!AD75")),"―"))) ->  | AF36: =IF($C36="","",IFERROR(IF(INDIRECT("'"&$CQ$23&$C36&"'!J79")="","",INDIRECT("'"&$CQ$23&$C36&"'!J79")),IFERROR(IF(INDIRECT("'"&$CQ$24&$C36&"'!J79")="","",INDIRECT("'"&$CQ$24&$C36&"'!J79")),"―"))) ->  | AI36: =IF($C36="","",IFERROR(IF(INDIRECT("'"&$CQ$23&$C36&"'!AD83")="","",INDIRECT("'"&$CQ$23&$C36&"'!AD83")),IFERROR(IF(INDIRECT("'"&$CQ$24&$C36&"'!AD83")="","",INDIRECT("'"&$CQ$24&$C36&"'!AD83")),"―"))) ->  | AL36: =IF($C36="","",IFERROR(IF(INDIRECT("'"&$CQ$23&$C36&"'!CN27")="","",INDIRECT("'"&$CQ$23&$C36&"'!CN27")),IFERROR(IF(INDIRECT("'"&$CQ$24&$C36&"'!CN27")="","",INDIRECT("'"&$CQ$24&$C36&"'!CN27")),"―"))) ->  | AN36: =IF($C36="","",IFERROR(IF(INDIRECT("'"&$CQ$23&$C36&"'!CL47")="","",INDIRECT("'"&$CQ$23&$C36&"'!CL47")),IFERROR(IF(INDIRECT("'"&$CQ$24&$C36&"'!CL47")="","",INDIRECT("'"&$CQ$24&$C36&"'!CL47")),"―"))) ->  | AP36: =IF($C36="","",IFERROR(IF(INDIRECT("'"&$CQ$23&$C36&"'!CL42")="","",INDIRECT("'"&$CQ$23&$C36&"'!CL42")),IFERROR(IF(INDIRECT("'"&$CQ$24&$C36&"'!CL42")="","",INDIRECT("'"&$CQ$24&$C36&"'!CL42")),"―"))) -> 
E37: =IF($C37="","",IFERROR(IF(INDIRECT("'"&$CQ$23&$C37&"'!C9")="","",INDIRECT("'"&$CQ$23&$C37&"'!C9")),IFERROR(IF(INDIRECT("'"&$CQ$24&$C37&"'!C9")="","",INDIRECT("'"&$CQ$24&$C37&"'!C9")),"―"))) ->  | H37: =IF($C37="","",IFERROR(IF(INDIRECT("'"&$CQ$23&$C37&"'!G9")="","",INDIRECT("'"&$CQ$23&$C37&"'!G9")),IFERROR(IF(INDIRECT("'"&$CQ$24&$C37&"'!G9")="","",INDIRECT("'"&$CQ$24&$C37&"'!G9")),"―"))) ->  | S37: =IF($C37="","",IFERROR(IF(INDIRECT("'"&$CQ$23&$C37&"'!G13")="","",INDIRECT("'"&$CQ$23&$C37&"'!G13")),IFERROR(IF(INDIRECT("'"&$CQ$24&$C37&"'!G13")="","",INDIRECT("'"&$CQ$24&$C37&"'!G13")),"―"))) ->  | V37: =IF($C37="","",IFERROR(IF(INDIRECT("'"&$CQ$23&$C37&"'!J75")="","",INDIRECT("'"&$CQ$23&$C37&"'!J75")),IFERROR(IF(INDIRECT("'"&$CQ$24&$C37&"'!J75")="","",INDIRECT("'"&$CQ$24&$C37&"'!J75")),"―"))) ->  | Y37: =IF($C37="","",IFERROR(IF(INDIRECT("'"&$CQ$23&$C37&"'!J77")="","",INDIRECT("'"&$CQ$23&$C37&"'!J77")),IFERROR(IF(INDIRECT("'"&$CQ$24&$C37&"'!J77")="","",INDIRECT("'"&$CQ$24&$C37&"'!J77")),"―"))) ->  | AB37: =IF($C37="","",IFERROR(IF(INDIRECT("'"&$CQ$23&$C37&"'!AD75")="","",INDIRECT("'"&$CQ$23&$C37&"'!AD75")),IFERROR(IF(INDIRECT("'"&$CQ$24&$C37&"'!AD75")="","",INDIRECT("'"&$CQ$24&$C37&"'!AD75")),"―"))) ->  | AF37: =IF($C37="","",IFERROR(IF(INDIRECT("'"&$CQ$23&$C37&"'!J79")="","",INDIRECT("'"&$CQ$23&$C37&"'!J79")),IFERROR(IF(INDIRECT("'"&$CQ$24&$C37&"'!J79")="","",INDIRECT("'"&$CQ$24&$C37&"'!J79")),"―"))) ->  | AI37: =IF($C37="","",IFERROR(IF(INDIRECT("'"&$CQ$23&$C37&"'!AD83")="","",INDIRECT("'"&$CQ$23&$C37&"'!AD83")),IFERROR(IF(INDIRECT("'"&$CQ$24&$C37&"'!AD83")="","",INDIRECT("'"&$CQ$24&$C37&"'!AD83")),"―"))) ->  | AL37: =IF($C37="","",IFERROR(IF(INDIRECT("'"&$CQ$23&$C37&"'!CN27")="","",INDIRECT("'"&$CQ$23&$C37&"'!CN27")),IFERROR(IF(INDIRECT("'"&$CQ$24&$C37&"'!CN27")="","",INDIRECT("'"&$CQ$24&$C37&"'!CN27")),"―"))) ->  | AN37: =IF($C37="","",IFERROR(IF(INDIRECT("'"&$CQ$23&$C37&"'!CL47")="","",INDIRECT("'"&$CQ$23&$C37&"'!CL47")),IFERROR(IF(INDIRECT("'"&$CQ$24&$C37&"'!CL47")="","",INDIRECT("'"&$CQ$24&$C37&"'!CL47")),"―"))) ->  | AP37: =IF($C37="","",IFERROR(IF(INDIRECT("'"&$CQ$23&$C37&"'!CL42")="","",INDIRECT("'"&$CQ$23&$C37&"'!CL42")),IFERROR(IF(INDIRECT("'"&$CQ$24&$C37&"'!CL42")="","",INDIRECT("'"&$CQ$24&$C37&"'!CL42")),"―"))) -> 
B38: 脱炭素化：低炭素系統電力への変更
E39: =IF($C39="","",IFERROR(IF(INDIRECT("'"&$CQ$23&$C39&"'!C9")="","",INDIRECT("'"&$CQ$23&$C39&"'!C9")),IFERROR(IF(INDIRECT("'"&$CQ$24&$C39&"'!C9")="","",INDIRECT("'"&$CQ$24&$C39&"'!C9")),"―"))) ->  | H39: =IF($C39="","",IFERROR(IF(INDIRECT("'"&$CQ$23&$C39&"'!G9")="","",INDIRECT("'"&$CQ$23&$C39&"'!G9")),IFERROR(IF(INDIRECT("'"&$CQ$24&$C39&"'!G9")="","",INDIRECT("'"&$CQ$24&$C39&"'!G9")),"―"))) ->  | S39: =IF($C39="","",IFERROR(IF(INDIRECT("'"&$CQ$23&$C39&"'!G13")="","",INDIRECT("'"&$CQ$23&$C39&"'!G13")),IFERROR(IF(INDIRECT("'"&$CQ$24&$C39&"'!G13")="","",INDIRECT("'"&$CQ$24&$C39&"'!G13")),"―"))) ->  | V39: =IF($C39="","",IFERROR(IF(INDIRECT("'"&$CQ$23&$C39&"'!J75")="","",INDIRECT("'"&$CQ$23&$C39&"'!J75")),IFERROR(IF(INDIRECT("'"&$CQ$24&$C39&"'!J75")="","",INDIRECT("'"&$CQ$24&$C39&"'!J75")),"―"))) ->  | Y39: =IF($C39="","",IFERROR(IF(INDIRECT("'"&$CQ$23&$C39&"'!J77")="","",INDIRECT("'"&$CQ$23&$C39&"'!J77")),IFERROR(IF(INDIRECT("'"&$CQ$24&$C39&"'!J77")="","",INDIRECT("'"&$CQ$24&$C39&"'!J77")),"―"))) ->  | AB39: =IF($C39="","",IFERROR(IF(INDIRECT("'"&$CQ$23&$C39&"'!AD75")="","",INDIRECT("'"&$CQ$23&$C39&"'!AD75")),IFERROR(IF(INDIRECT("'"&$CQ$24&$C39&"'!AD75")="","",INDIRECT("'"&$CQ$24&$C39&"'!AD75")),"―"))) ->  | AF39: =IF($C39="","",IFERROR(IF(INDIRECT("'"&$CQ$23&$C39&"'!J79")="","",INDIRECT("'"&$CQ$23&$C39&"'!J79")),IFERROR(IF(INDIRECT("'"&$CQ$24&$C39&"'!J79")="","",INDIRECT("'"&$CQ$24&$C39&"'!J79")),"―"))) ->  | AI39: =IF($C39="","",IFERROR(IF(INDIRECT("'"&$CQ$23&$C39&"'!AD83")="","",INDIRECT("'"&$CQ$23&$C39&"'!AD83")),IFERROR(IF(INDIRECT("'"&$CQ$24&$C39&"'!AD83")="","",INDIRECT("'"&$CQ$24&$C39&"'!AD83")),"―"))) ->  | AL39: =IF($C39="","",IFERROR(IF(INDIRECT("'"&$CQ$23&$C39&"'!CN27")="","",INDIRECT("'"&$CQ$23&$C39&"'!CN27")),IFERROR(IF(INDIRECT("'"&$CQ$24&$C39&"'!CN27")="","",INDIRECT("'"&$CQ$24&$C39&"'!CN27")),"―"))) ->  | AN39: =IF($C39="","",IFERROR(IF(INDIRECT("'"&$CQ$23&$C39&"'!CL47")="","",INDIRECT("'"&$CQ$23&$C39&"'!CL47")),IFERROR(IF(INDIRECT("'"&$CQ$24&$C39&"'!CL47")="","",INDIRECT("'"&$CQ$24&$C39&"'!CL47")),"―"))) ->  | AP39: =IF($C39="","",IFERROR(IF(INDIRECT("'"&$CQ$23&$C39&"'!CL42")="","",INDIRECT("'"&$CQ$23&$C39&"'!CL42")),IFERROR(IF(INDIRECT("'"&$CQ$24&$C39&"'!CL42")="","",INDIRECT("'"&$CQ$24&$C39&"'!CL42")),"―"))) -> 
E40: =IF($C40="","",IFERROR(IF(INDIRECT("'"&$CQ$23&$C40&"'!C9")="","",INDIRECT("'"&$CQ$23&$C40&"'!C9")),IFERROR(IF(INDIRECT("'"&$CQ$24&$C40&"'!C9")="","",INDIRECT("'"&$CQ$24&$C40&"'!C9")),"―"))) ->  | H40: =IF($C40="","",IFERROR(IF(INDIRECT("'"&$CQ$23&$C40&"'!G9")="","",INDIRECT("'"&$CQ$23&$C40&"'!G9")),IFERROR(IF(INDIRECT("'"&$CQ$24&$C40&"'!G9")="","",INDIRECT("'"&$CQ$24&$C40&"'!G9")),"―"))) ->  | S40: =IF($C40="","",IFERROR(IF(INDIRECT("'"&$CQ$23&$C40&"'!G13")="","",INDIRECT("'"&$CQ$23&$C40&"'!G13")),IFERROR(IF(INDIRECT("'"&$CQ$24&$C40&"'!G13")="","",INDIRECT("'"&$CQ$24&$C40&"'!G13")),"―"))) ->  | V40: =IF($C40="","",IFERROR(IF(INDIRECT("'"&$CQ$23&$C40&"'!J75")="","",INDIRECT("'"&$CQ$23&$C40&"'!J75")),IFERROR(IF(INDIRECT("'"&$CQ$24&$C40&"'!J75")="","",INDIRECT("'"&$CQ$24&$C40&"'!J75")),"―"))) ->  | Y40: =IF($C40="","",IFERROR(IF(INDIRECT("'"&$CQ$23&$C40&"'!J77")="","",INDIRECT("'"&$CQ$23&$C40&"'!J77")),IFERROR(IF(INDIRECT("'"&$CQ$24&$C40&"'!J77")="","",INDIRECT("'"&$CQ$24&$C40&"'!J77")),"―"))) ->  | AB40: =IF($C40="","",IFERROR(IF(INDIRECT("'"&$CQ$23&$C40&"'!AD75")="","",INDIRECT("'"&$CQ$23&$C40&"'!AD75")),IFERROR(IF(INDIRECT("'"&$CQ$24&$C40&"'!AD75")="","",INDIRECT("'"&$CQ$24&$C40&"'!AD75")),"―"))) ->  | AF40: =IF($C40="","",IFERROR(IF(INDIRECT("'"&$CQ$23&$C40&"'!J79")="","",INDIRECT("'"&$CQ$23&$C40&"'!J79")),IFERROR(IF(INDIRECT("'"&$CQ$24&$C40&"'!J79")="","",INDIRECT("'"&$CQ$24&$C40&"'!J79")),"―"))) ->  | AI40: =IF($C40="","",IFERROR(IF(INDIRECT("'"&$CQ$23&$C40&"'!AD83")="","",INDIRECT("'"&$CQ$23&$C40&"'!AD83")),IFERROR(IF(INDIRECT("'"&$CQ$24&$C40&"'!AD83")="","",INDIRECT("'"&$CQ$24&$C40&"'!AD83")),"―"))) ->  | AL40: =IF($C40="","",IFERROR(IF(INDIRECT("'"&$CQ$23&$C40&"'!CN27")="","",INDIRECT("'"&$CQ$23&$C40&"'!CN27")),IFERROR(IF(INDIRECT("'"&$CQ$24&$C40&"'!CN27")="","",INDIRECT("'"&$CQ$24&$C40&"'!CN27")),"―"))) ->  | AN40: =IF($C40="","",IFERROR(IF(INDIRECT("'"&$CQ$23&$C40&"'!CL47")="","",INDIRECT("'"&$CQ$23&$C40&"'!CL47")),IFERROR(IF(INDIRECT("'"&$CQ$24&$C40&"'!CL47")="","",INDIRECT("'"&$CQ$24&$C40&"'!CL47")),"―"))) ->  | AP40: =IF($C40="","",IFERROR(IF(INDIRECT("'"&$CQ$23&$C40&"'!CL42")="","",INDIRECT("'"&$CQ$23&$C40&"'!CL42")),IFERROR(IF(INDIRECT("'"&$CQ$24&$C40&"'!CL42")="","",INDIRECT("'"&$CQ$24&$C40&"'!CL42")),"―"))) -> 
B42: ■ | C42: 提案対策一覧【2ページ目】（各対策の詳細は対策個票で見ることができます）
B43: 対策の種類 [対策個票番号] | H43: 対策名称 | S43: 対象 システム／設備 | V43: CO2削減効果 | AB43: （a） 導入コスト （千円） | AF43: （b） 運転コスト削減効果 （千円/年） | AI43: 単純投資回収年数(a)/(b) | AL43: 推奨 対策 | AN43: 制約 条件 | AP43: 活用可能な 補助制度
V44: CO2削減量 (tCO2/年) | Y44: 削減率(%) ※
B47: 省エネルギー
E48: =IF($C48="","",IFERROR(IF(INDIRECT("'"&$CQ$23&$C48&"'!C9")="","",INDIRECT("'"&$CQ$23&$C48&"'!C9")),IFERROR(IF(INDIRECT("'"&$CQ$24&$C48&"'!C9")="","",INDIRECT("'"&$CQ$24&$C48&"'!C9")),"―"))) ->  | H48: =IF($C48="","",IFERROR(IF(INDIRECT("'"&$CQ$23&$C48&"'!G9")="","",INDIRECT("'"&$CQ$23&$C48&"'!G9")),IFERROR(IF(INDIRECT("'"&$CQ$24&$C48&"'!G9")="","",INDIRECT("'"&$CQ$24&$C48&"'!G9")),"―"))) ->  | S48: =IF($C48="","",IFERROR(IF(INDIRECT("'"&$CQ$23&$C48&"'!G13")="","",INDIRECT("'"&$CQ$23&$C48&"'!G13")),IFERROR(IF(INDIRECT("'"&$CQ$24&$C48&"'!G13")="","",INDIRECT("'"&$CQ$24&$C48&"'!G13")),"―"))) ->  | V48: =IF($C48="","",IFERROR(IF(INDIRECT("'"&$CQ$23&$C48&"'!J75")="","",INDIRECT("'"&$CQ$23&$C48&"'!J75")),IFERROR(IF(INDIRECT("'"&$CQ$24&$C48&"'!J75")="","",INDIRECT("'"&$CQ$24&$C48&"'!J75")),"―"))) ->  | Y48: =IF($C48="","",IFERROR(IF(INDIRECT("'"&$CQ$23&$C48&"'!J77")="","",INDIRECT("'"&$CQ$23&$C48&"'!J77")),IFERROR(IF(INDIRECT("'"&$CQ$24&$C48&"'!J77")="","",INDIRECT("'"&$CQ$24&$C48&"'!J77")),"―"))) ->  | AB48: =IF($C48="","",IFERROR(IF(INDIRECT("'"&$CQ$23&$C48&"'!AD75")="","",INDIRECT("'"&$CQ$23&$C48&"'!AD75")),IFERROR(IF(INDIRECT("'"&$CQ$24&$C48&"'!AD75")="","",INDIRECT("'"&$CQ$24&$C48&"'!AD75")),"―"))) ->  | AF48: =IF($C48="","",IFERROR(IF(INDIRECT("'"&$CQ$23&$C48&"'!J79")="","",INDIRECT("'"&$CQ$23&$C48&"'!J79")),IFERROR(IF(INDIRECT("'"&$CQ$24&$C48&"'!J79")="","",INDIRECT("'"&$CQ$24&$C48&"'!J79")),"―"))) ->  | AI48: =IF($C48="","",IFERROR(IF(INDIRECT("'"&$CQ$23&$C48&"'!AD83")="","",INDIRECT("'"&$CQ$23&$C48&"'!AD83")),IFERROR(IF(INDIRECT("'"&$CQ$24&$C48&"'!AD83")="","",INDIRECT("'"&$CQ$24&$C48&"'!AD83")),"―"))) ->  | AL48: =IF($C48="","",IFERROR(IF(INDIRECT("'"&$CQ$23&$C48&"'!CN27")="","",INDIRECT("'"&$CQ$23&$C48&"'!CN27")),IFERROR(IF(INDIRECT("'"&$CQ$24&$C48&"'!CN27")="","",INDIRECT("'"&$CQ$24&$C48&"'!CN27")),"―"))) ->  | AN48: =IF($C48="","",IFERROR(IF(INDIRECT("'"&$CQ$23&$C48&"'!CL47")="","",INDIRECT("'"&$CQ$23&$C48&"'!CL47")),IFERROR(IF(INDIRECT("'"&$CQ$24&$C48&"'!CL47")="","",INDIRECT("'"&$CQ$24&$C48&"'!CL47")),"―"))) ->  | AP48: =IF($C48="","",IFERROR(IF(INDIRECT("'"&$CQ$23&$C48&"'!CL42")="","",INDIRECT("'"&$CQ$23&$C48&"'!CL42")),IFERROR(IF(INDIRECT("'"&$CQ$24&$C48&"'!CL42")="","",INDIRECT("'"&$CQ$24&$C48&"'!CL42")),"―"))) -> 
E49: =IF($C49="","",IFERROR(IF(INDIRECT("'"&$CQ$23&$C49&"'!C9")="","",INDIRECT("'"&$CQ$23&$C49&"'!C9")),IFERROR(IF(INDIRECT("'"&$CQ$24&$C49&"'!C9")="","",INDIRECT("'"&$CQ$24&$C49&"'!C9")),"―"))) ->  | H49: =IF($C49="","",IFERROR(IF(INDIRECT("'"&$CQ$23&$C49&"'!G9")="","",INDIRECT("'"&$CQ$23&$C49&"'!G9")),IFERROR(IF(INDIRECT("'"&$CQ$24&$C49&"'!G9")="","",INDIRECT("'"&$CQ$24&$C49&"'!G9")),"―"))) ->  | S49: =IF($C49="","",IFERROR(IF(INDIRECT("'"&$CQ$23&$C49&"'!G13")="","",INDIRECT("'"&$CQ$23&$C49&"'!G13")),IFERROR(IF(INDIRECT("'"&$CQ$24&$C49&"'!G13")="","",INDIRECT("'"&$CQ$24&$C49&"'!G13")),"―"))) ->  | V49: =IF($C49="","",IFERROR(IF(INDIRECT("'"&$CQ$23&$C49&"'!J75")="","",INDIRECT("'"&$CQ$23&$C49&"'!J75")),IFERROR(IF(INDIRECT("'"&$CQ$24&$C49&"'!J75")="","",INDIRECT("'"&$CQ$24&$C49&"'!J75")),"―"))) ->  | Y49: =IF($C49="","",IFERROR(IF(INDIRECT("'"&$CQ$23&$C49&"'!J77")="","",INDIRECT("'"&$CQ$23&$C49&"'!J77")),IFERROR(IF(INDIRECT("'"&$CQ$24&$C49&"'!J77")="","",INDIRECT("'"&$CQ$24&$C49&"'!J77")),"―"))) ->  | AB49: =IF($C49="","",IFERROR(IF(INDIRECT("'"&$CQ$23&$C49&"'!AD75")="","",INDIRECT("'"&$CQ$23&$C49&"'!AD75")),IFERROR(IF(INDIRECT("'"&$CQ$24&$C49&"'!AD75")="","",INDIRECT("'"&$CQ$24&$C49&"'!AD75")),"―"))) ->  | AF49: =IF($C49="","",IFERROR(IF(INDIRECT("'"&$CQ$23&$C49&"'!J79")="","",INDIRECT("'"&$CQ$23&$C49&"'!J79")),IFERROR(IF(INDIRECT("'"&$CQ$24&$C49&"'!J79")="","",INDIRECT("'"&$CQ$24&$C49&"'!J79")),"―"))) ->  | AI49: =IF($C49="","",IFERROR(IF(INDIRECT("'"&$CQ$23&$C49&"'!AD83")="","",INDIRECT("'"&$CQ$23&$C49&"'!AD83")),IFERROR(IF(INDIRECT("'"&$CQ$24&$C49&"'!AD83")="","",INDIRECT("'"&$CQ$24&$C49&"'!AD83")),"―"))) ->  | AL49: =IF($C49="","",IFERROR(IF(INDIRECT("'"&$CQ$23&$C49&"'!CN27")="","",INDIRECT("'"&$CQ$23&$C49&"'!CN27")),IFERROR(IF(INDIRECT("'"&$CQ$24&$C49&"'!CN27")="","",INDIRECT("'"&$CQ$24&$C49&"'!CN27")),"―"))) ->  | AN49: =IF($C49="","",IFERROR(IF(INDIRECT("'"&$CQ$23&$C49&"'!CL47")="","",INDIRECT("'"&$CQ$23&$C49&"'!CL47")),IFERROR(IF(INDIRECT("'"&$CQ$24&$C49&"'!CL47")="","",INDIRECT("'"&$CQ$24&$C49&"'!CL47")),"―"))) ->  | AP49: =IF($C49="","",IFERROR(IF(INDIRECT("'"&$CQ$23&$C49&"'!CL42")="","",INDIRECT("'"&$CQ$23&$C49&"'!CL42")),IFERROR(IF(INDIRECT("'"&$CQ$24&$C49&"'!CL42")="","",INDIRECT("'"&$CQ$24&$C49&"'!CL42")),"―"))) -> 
E50: =IF($C50="","",IFERROR(IF(INDIRECT("'"&$CQ$23&$C50&"'!C9")="","",INDIRECT("'"&$CQ$23&$C50&"'!C9")),IFERROR(IF(INDIRECT("'"&$CQ$24&$C50&"'!C9")="","",INDIRECT("'"&$CQ$24&$C50&"'!C9")),"―"))) ->  | H50: =IF($C50="","",IFERROR(IF(INDIRECT("'"&$CQ$23&$C50&"'!G9")="","",INDIRECT("'"&$CQ$23&$C50&"'!G9")),IFERROR(IF(INDIRECT("'"&$CQ$24&$C50&"'!G9")="","",INDIRECT("'"&$CQ$24&$C50&"'!G9")),"―"))) ->  | S50: =IF($C50="","",IFERROR(IF(INDIRECT("'"&$CQ$23&$C50&"'!G13")="","",INDIRECT("'"&$CQ$23&$C50&"'!G13")),IFERROR(IF(INDIRECT("'"&$CQ$24&$C50&"'!G13")="","",INDIRECT("'"&$CQ$24&$C50&"'!G13")),"―"))) ->  | V50: =IF($C50="","",IFERROR(IF(INDIRECT("'"&$CQ$23&$C50&"'!J75")="","",INDIRECT("'"&$CQ$23&$C50&"'!J75")),IFERROR(IF(INDIRECT("'"&$CQ$24&$C50&"'!J75")="","",INDIRECT("'"&$CQ$24&$C50&"'!J75")),"―"))) ->  | Y50: =IF($C50="","",IFERROR(IF(INDIRECT("'"&$CQ$23&$C50&"'!J77")="","",INDIRECT("'"&$CQ$23&$C50&"'!J77")),IFERROR(IF(INDIRECT("'"&$CQ$24&$C50&"'!J77")="","",INDIRECT("'"&$CQ$24&$C50&"'!J77")),"―"))) ->  | AB50: =IF($C50="","",IFERROR(IF(INDIRECT("'"&$CQ$23&$C50&"'!AD75")="","",INDIRECT("'"&$CQ$23&$C50&"'!AD75")),IFERROR(IF(INDIRECT("'"&$CQ$24&$C50&"'!AD75")="","",INDIRECT("'"&$CQ$24&$C50&"'!AD75")),"―"))) ->  | AF50: =IF($C50="","",IFERROR(IF(INDIRECT("'"&$CQ$23&$C50&"'!J79")="","",INDIRECT("'"&$CQ$23&$C50&"'!J79")),IFERROR(IF(INDIRECT("'"&$CQ$24&$C50&"'!J79")="","",INDIRECT("'"&$CQ$24&$C50&"'!J79")),"―"))) ->  | AI50: =IF($C50="","",IFERROR(IF(INDIRECT("'"&$CQ$23&$C50&"'!AD83")="","",INDIRECT("'"&$CQ$23&$C50&"'!AD83")),IFERROR(IF(INDIRECT("'"&$CQ$24&$C50&"'!AD83")="","",INDIRECT("'"&$CQ$24&$C50&"'!AD83")),"―"))) ->  | AL50: =IF($C50="","",IFERROR(IF(INDIRECT("'"&$CQ$23&$C50&"'!CN27")="","",INDIRECT("'"&$CQ$23&$C50&"'!CN27")),IFERROR(IF(INDIRECT("'"&$CQ$24&$C50&"'!CN27")="","",INDIRECT("'"&$CQ$24&$C50&"'!CN27")),"―"))) ->  | AN50: =IF($C50="","",IFERROR(IF(INDIRECT("'"&$CQ$23&$C50&"'!CL47")="","",INDIRECT("'"&$CQ$23&$C50&"'!CL47")),IFERROR(IF(INDIRECT("'"&$CQ$24&$C50&"'!CL47")="","",INDIRECT("'"&$CQ$24&$C50&"'!CL47")),"―"))) ->  | AP50: =IF($C50="","",IFERROR(IF(INDIRECT("'"&$CQ$23&$C50&"'!CL42")="","",INDIRECT("'"&$CQ$23&$C50&"'!CL42")),IFERROR(IF(INDIRECT("'"&$CQ$24&$C50&"'!CL42")="","",INDIRECT("'"&$CQ$24&$C50&"'!CL42")),"―"))) -> 
E51: =IF($C51="","",IFERROR(IF(INDIRECT("'"&$CQ$23&$C51&"'!C9")="","",INDIRECT("'"&$CQ$23&$C51&"'!C9")),IFERROR(IF(INDIRECT("'"&$CQ$24&$C51&"'!C9")="","",INDIRECT("'"&$CQ$24&$C51&"'!C9")),"―"))) ->  | H51: =IF($C51="","",IFERROR(IF(INDIRECT("'"&$CQ$23&$C51&"'!G9")="","",INDIRECT("'"&$CQ$23&$C51&"'!G9")),IFERROR(IF(INDIRECT("'"&$CQ$24&$C51&"'!G9")="","",INDIRECT("'"&$CQ$24&$C51&"'!G9")),"―"))) ->  | S51: =IF($C51="","",IFERROR(IF(INDIRECT("'"&$CQ$23&$C51&"'!G13")="","",INDIRECT("'"&$CQ$23&$C51&"'!G13")),IFERROR(IF(INDIRECT("'"&$CQ$24&$C51&"'!G13")="","",INDIRECT("'"&$CQ$24&$C51&"'!G13")),"―"))) ->  | V51: =IF($C51="","",IFERROR(IF(INDIRECT("'"&$CQ$23&$C51&"'!J75")="","",INDIRECT("'"&$CQ$23&$C51&"'!J75")),IFERROR(IF(INDIRECT("'"&$CQ$24&$C51&"'!J75")="","",INDIRECT("'"&$CQ$24&$C51&"'!J75")),"―"))) ->  | Y51: =IF($C51="","",IFERROR(IF(INDIRECT("'"&$CQ$23&$C51&"'!J77")="","",INDIRECT("'"&$CQ$23&$C51&"'!J77")),IFERROR(IF(INDIRECT("'"&$CQ$24&$C51&"'!J77")="","",INDIRECT("'"&$CQ$24&$C51&"'!J77")),"―"))) ->  | AB51: =IF($C51="","",IFERROR(IF(INDIRECT("'"&$CQ$23&$C51&"'!AD75")="","",INDIRECT("'"&$CQ$23&$C51&"'!AD75")),IFERROR(IF(INDIRECT("'"&$CQ$24&$C51&"'!AD75")="","",INDIRECT("'"&$CQ$24&$C51&"'!AD75")),"―"))) ->  | AF51: =IF($C51="","",IFERROR(IF(INDIRECT("'"&$CQ$23&$C51&"'!J79")="","",INDIRECT("'"&$CQ$23&$C51&"'!J79")),IFERROR(IF(INDIRECT("'"&$CQ$24&$C51&"'!J79")="","",INDIRECT("'"&$CQ$24&$C51&"'!J79")),"―"))) ->  | AI51: =IF($C51="","",IFERROR(IF(INDIRECT("'"&$CQ$23&$C51&"'!AD83")="","",INDIRECT("'"&$CQ$23&$C51&"'!AD83")),IFERROR(IF(INDIRECT("'"&$CQ$24&$C51&"'!AD83")="","",INDIRECT("'"&$CQ$24&$C51&"'!AD83")),"―"))) ->  | AL51: =IF($C51="","",IFERROR(IF(INDIRECT("'"&$CQ$23&$C51&"'!CN27")="","",INDIRECT("'"&$CQ$23&$C51&"'!CN27")),IFERROR(IF(INDIRECT("'"&$CQ$24&$C51&"'!CN27")="","",INDIRECT("'"&$CQ$24&$C51&"'!CN27")),"―"))) ->  | AN51: =IF($C51="","",IFERROR(IF(INDIRECT("'"&$CQ$23&$C51&"'!CL47")="","",INDIRECT("'"&$CQ$23&$C51&"'!CL47")),IFERROR(IF(INDIRECT("'"&$CQ$24&$C51&"'!CL47")="","",INDIRECT("'"&$CQ$24&$C51&"'!CL47")),"―"))) ->  | AP51: =IF($C51="","",IFERROR(IF(INDIRECT("'"&$CQ$23&$C51&"'!CL42")="","",INDIRECT("'"&$CQ$23&$C51&"'!CL42")),IFERROR(IF(INDIRECT("'"&$CQ$24&$C51&"'!CL42")="","",INDIRECT("'"&$CQ$24&$C51&"'!CL42")),"―"))) -> 
E52: =IF($C52="","",IFERROR(IF(INDIRECT("'"&$CQ$23&$C52&"'!C9")="","",INDIRECT("'"&$CQ$23&$C52&"'!C9")),IFERROR(IF(INDIRECT("'"&$CQ$24&$C52&"'!C9")="","",INDIRECT("'"&$CQ$24&$C52&"'!C9")),"―"))) ->  | H52: =IF($C52="","",IFERROR(IF(INDIRECT("'"&$CQ$23&$C52&"'!G9")="","",INDIRECT("'"&$CQ$23&$C52&"'!G9")),IFERROR(IF(INDIRECT("'"&$CQ$24&$C52&"'!G9")="","",INDIRECT("'"&$CQ$24&$C52&"'!G9")),"―"))) ->  | S52: =IF($C52="","",IFERROR(IF(INDIRECT("'"&$CQ$23&$C52&"'!G13")="","",INDIRECT("'"&$CQ$23&$C52&"'!G13")),IFERROR(IF(INDIRECT("'"&$CQ$24&$C52&"'!G13")="","",INDIRECT("'"&$CQ$24&$C52&"'!G13")),"―"))) ->  | V52: =IF($C52="","",IFERROR(IF(INDIRECT("'"&$CQ$23&$C52&"'!J75")="","",INDIRECT("'"&$CQ$23&$C52&"'!J75")),IFERROR(IF(INDIRECT("'"&$CQ$24&$C52&"'!J75")="","",INDIRECT("'"&$CQ$24&$C52&"'!J75")),"―"))) ->  | Y52: =IF($C52="","",IFERROR(IF(INDIRECT("'"&$CQ$23&$C52&"'!J77")="","",INDIRECT("'"&$CQ$23&$C52&"'!J77")),IFERROR(IF(INDIRECT("'"&$CQ$24&$C52&"'!J77")="","",INDIRECT("'"&$CQ$24&$C52&"'!J77")),"―"))) ->  | AB52: =IF($C52="","",IFERROR(IF(INDIRECT("'"&$CQ$23&$C52&"'!AD75")="","",INDIRECT("'"&$CQ$23&$C52&"'!AD75")),IFERROR(IF(INDIRECT("'"&$CQ$24&$C52&"'!AD75")="","",INDIRECT("'"&$CQ$24&$C52&"'!AD75")),"―"))) ->  | AF52: =IF($C52="","",IFERROR(IF(INDIRECT("'"&$CQ$23&$C52&"'!J79")="","",INDIRECT("'"&$CQ$23&$C52&"'!J79")),IFERROR(IF(INDIRECT("'"&$CQ$24&$C52&"'!J79")="","",INDIRECT("'"&$CQ$24&$C52&"'!J79")),"―"))) ->  | AI52: =IF($C52="","",IFERROR(IF(INDIRECT("'"&$CQ$23&$C52&"'!AD83")="","",INDIRECT("'"&$CQ$23&$C52&"'!AD83")),IFERROR(IF(INDIRECT("'"&$CQ$24&$C52&"'!AD83")="","",INDIRECT("'"&$CQ$24&$C52&"'!AD83")),"―"))) ->  | AL52: =IF($C52="","",IFERROR(IF(INDIRECT("'"&$CQ$23&$C52&"'!CN27")="","",INDIRECT("'"&$CQ$23&$C52&"'!CN27")),IFERROR(IF(INDIRECT("'"&$CQ$24&$C52&"'!CN27")="","",INDIRECT("'"&$CQ$24&$C52&"'!CN27")),"―"))) ->  | AN52: =IF($C52="","",IFERROR(IF(INDIRECT("'"&$CQ$23&$C52&"'!CL47")="","",INDIRECT("'"&$CQ$23&$C52&"'!CL47")),IFERROR(IF(INDIRECT("'"&$CQ$24&$C52&"'!CL47")="","",INDIRECT("'"&$CQ$24&$C52&"'!CL47")),"―"))) ->  | AP52: =IF($C52="","",IFERROR(IF(INDIRECT("'"&$CQ$23&$C52&"'!CL42")="","",INDIRECT("'"&$CQ$23&$C52&"'!CL42")),IFERROR(IF(INDIRECT("'"&$CQ$24&$C52&"'!CL42")="","",INDIRECT("'"&$CQ$24&$C52&"'!CL42")),"―"))) -> 
E53: =IF($C53="","",IFERROR(IF(INDIRECT("'"&$CQ$23&$C53&"'!C9")="","",INDIRECT("'"&$CQ$23&$C53&"'!C9")),IFERROR(IF(INDIRECT("'"&$CQ$24&$C53&"'!C9")="","",INDIRECT("'"&$CQ$24&$C53&"'!C9")),"―"))) ->  | H53: =IF($C53="","",IFERROR(IF(INDIRECT("'"&$CQ$23&$C53&"'!G9")="","",INDIRECT("'"&$CQ$23&$C53&"'!G9")),IFERROR(IF(INDIRECT("'"&$CQ$24&$C53&"'!G9")="","",INDIRECT("'"&$CQ$24&$C53&"'!G9")),"―"))) ->  | S53: =IF($C53="","",IFERROR(IF(INDIRECT("'"&$CQ$23&$C53&"'!G13")="","",INDIRECT("'"&$CQ$23&$C53&"'!G13")),IFERROR(IF(INDIRECT("'"&$CQ$24&$C53&"'!G13")="","",INDIRECT("'"&$CQ$24&$C53&"'!G13")),"―"))) ->  | V53: =IF($C53="","",IFERROR(IF(INDIRECT("'"&$CQ$23&$C53&"'!J75")="","",INDIRECT("'"&$CQ$23&$C53&"'!J75")),IFERROR(IF(INDIRECT("'"&$CQ$24&$C53&"'!J75")="","",INDIRECT("'"&$CQ$24&$C53&"'!J75")),"―"))) ->  | Y53: =IF($C53="","",IFERROR(IF(INDIRECT("'"&$CQ$23&$C53&"'!J77")="","",INDIRECT("'"&$CQ$23&$C53&"'!J77")),IFERROR(IF(INDIRECT("'"&$CQ$24&$C53&"'!J77")="","",INDIRECT("'"&$CQ$24&$C53&"'!J77")),"―"))) ->  | AB53: =IF($C53="","",IFERROR(IF(INDIRECT("'"&$CQ$23&$C53&"'!AD75")="","",INDIRECT("'"&$CQ$23&$C53&"'!AD75")),IFERROR(IF(INDIRECT("'"&$CQ$24&$C53&"'!AD75")="","",INDIRECT("'"&$CQ$24&$C53&"'!AD75")),"―"))) ->  | AF53: =IF($C53="","",IFERROR(IF(INDIRECT("'"&$CQ$23&$C53&"'!J79")="","",INDIRECT("'"&$CQ$23&$C53&"'!J79")),IFERROR(IF(INDIRECT("'"&$CQ$24&$C53&"'!J79")="","",INDIRECT("'"&$CQ$24&$C53&"'!J79")),"―"))) ->  | AI53: =IF($C53="","",IFERROR(IF(INDIRECT("'"&$CQ$23&$C53&"'!AD83")="","",INDIRECT("'"&$CQ$23&$C53&"'!AD83")),IFERROR(IF(INDIRECT("'"&$CQ$24&$C53&"'!AD83")="","",INDIRECT("'"&$CQ$24&$C53&"'!AD83")),"―"))) ->  | AL53: =IF($C53="","",IFERROR(IF(INDIRECT("'"&$CQ$23&$C53&"'!CN27")="","",INDIRECT("'"&$CQ$23&$C53&"'!CN27")),IFERROR(IF(INDIRECT("'"&$CQ$24&$C53&"'!CN27")="","",INDIRECT("'"&$CQ$24&$C53&"'!CN27")),"―"))) ->  | AN53: =IF($C53="","",IFERROR(IF(INDIRECT("'"&$CQ$23&$C53&"'!CL47")="","",INDIRECT("'"&$CQ$23&$C53&"'!CL47")),IFERROR(IF(INDIRECT("'"&$CQ$24&$C53&"'!CL47")="","",INDIRECT("'"&$CQ$24&$C53&"'!CL47")),"―"))) ->  | AP53: =IF($C53="","",IFERROR(IF(INDIRECT("'"&$CQ$23&$C53&"'!CL42")="","",INDIRECT("'"&$CQ$23&$C53&"'!CL42")),IFERROR(IF(INDIRECT("'"&$CQ$24&$C53&"'!CL42")="","",INDIRECT("'"&$CQ$24&$C53&"'!CL42")),"―"))) -> 
E54: =IF($C54="","",IFERROR(IF(INDIRECT("'"&$CQ$23&$C54&"'!C9")="","",INDIRECT("'"&$CQ$23&$C54&"'!C9")),IFERROR(IF(INDIRECT("'"&$CQ$24&$C54&"'!C9")="","",INDIRECT("'"&$CQ$24&$C54&"'!C9")),"―"))) ->  | H54: =IF($C54="","",IFERROR(IF(INDIRECT("'"&$CQ$23&$C54&"'!G9")="","",INDIRECT("'"&$CQ$23&$C54&"'!G9")),IFERROR(IF(INDIRECT("'"&$CQ$24&$C54&"'!G9")="","",INDIRECT("'"&$CQ$24&$C54&"'!G9")),"―"))) ->  | S54: =IF($C54="","",IFERROR(IF(INDIRECT("'"&$CQ$23&$C54&"'!G13")="","",INDIRECT("'"&$CQ$23&$C54&"'!G13")),IFERROR(IF(INDIRECT("'"&$CQ$24&$C54&"'!G13")="","",INDIRECT("'"&$CQ$24&$C54&"'!G13")),"―"))) ->  | V54: =IF($C54="","",IFERROR(IF(INDIRECT("'"&$CQ$23&$C54&"'!J75")="","",INDIRECT("'"&$CQ$23&$C54&"'!J75")),IFERROR(IF(INDIRECT("'"&$CQ$24&$C54&"'!J75")="","",INDIRECT("'"&$CQ$24&$C54&"'!J75")),"―"))) ->  | Y54: =IF($C54="","",IFERROR(IF(INDIRECT("'"&$CQ$23&$C54&"'!J77")="","",INDIRECT("'"&$CQ$23&$C54&"'!J77")),IFERROR(IF(INDIRECT("'"&$CQ$24&$C54&"'!J77")="","",INDIRECT("'"&$CQ$24&$C54&"'!J77")),"―"))) ->  | AB54: =IF($C54="","",IFERROR(IF(INDIRECT("'"&$CQ$23&$C54&"'!AD75")="","",INDIRECT("'"&$CQ$23&$C54&"'!AD75")),IFERROR(IF(INDIRECT("'"&$CQ$24&$C54&"'!AD75")="","",INDIRECT("'"&$CQ$24&$C54&"'!AD75")),"―"))) ->  | AF54: =IF($C54="","",IFERROR(IF(INDIRECT("'"&$CQ$23&$C54&"'!J79")="","",INDIRECT("'"&$CQ$23&$C54&"'!J79")),IFERROR(IF(INDIRECT("'"&$CQ$24&$C54&"'!J79")="","",INDIRECT("'"&$CQ$24&$C54&"'!J79")),"―"))) ->  | AI54: =IF($C54="","",IFERROR(IF(INDIRECT("'"&$CQ$23&$C54&"'!AD83")="","",INDIRECT("'"&$CQ$23&$C54&"'!AD83")),IFERROR(IF(INDIRECT("'"&$CQ$24&$C54&"'!AD83")="","",INDIRECT("'"&$CQ$24&$C54&"'!AD83")),"―"))) ->  | AL54: =IF($C54="","",IFERROR(IF(INDIRECT("'"&$CQ$23&$C54&"'!CN27")="","",INDIRECT("'"&$CQ$23&$C54&"'!CN27")),IFERROR(IF(INDIRECT("'"&$CQ$24&$C54&"'!CN27")="","",INDIRECT("'"&$CQ$24&$C54&"'!CN27")),"―"))) ->  | AN54: =IF($C54="","",IFERROR(IF(INDIRECT("'"&$CQ$23&$C54&"'!CL47")="","",INDIRECT("'"&$CQ$23&$C54&"'!CL47")),IFERROR(IF(INDIRECT("'"&$CQ$24&$C54&"'!CL47")="","",INDIRECT("'"&$CQ$24&$C54&"'!CL47")),"―"))) ->  | AP54: =IF($C54="","",IFERROR(IF(INDIRECT("'"&$CQ$23&$C54&"'!CL42")="","",INDIRECT("'"&$CQ$23&$C54&"'!CL42")),IFERROR(IF(INDIRECT("'"&$CQ$24&$C54&"'!CL42")="","",INDIRECT("'"&$CQ$24&$C54&"'!CL42")),"―"))) -> 
B55: 脱炭素化：燃料低炭素化または電化、太陽光発電等の再生可能エネルギー利用など
E56: =IF($C56="","",IFERROR(IF(INDIRECT("'"&$CQ$23&$C56&"'!C9")="","",INDIRECT("'"&$CQ$23&$C56&"'!C9")),IFERROR(IF(INDIRECT("'"&$CQ$24&$C56&"'!C9")="","",INDIRECT("'"&$CQ$24&$C56&"'!C9")),"―"))) ->  | H56: =IF($C56="","",IFERROR(IF(INDIRECT("'"&$CQ$23&$C56&"'!G9")="","",INDIRECT("'"&$CQ$23&$C56&"'!G9")),IFERROR(IF(INDIRECT("'"&$CQ$24&$C56&"'!G9")="","",INDIRECT("'"&$CQ$24&$C56&"'!G9")),"―"))) ->  | S56: =IF($C56="","",IFERROR(IF(INDIRECT("'"&$CQ$23&$C56&"'!G13")="","",INDIRECT("'"&$CQ$23&$C56&"'!G13")),IFERROR(IF(INDIRECT("'"&$CQ$24&$C56&"'!G13")="","",INDIRECT("'"&$CQ$24&$C56&"'!G13")),"―"))) ->  | V56: =IF($C56="","",IFERROR(IF(INDIRECT("'"&$CQ$23&$C56&"'!J75")="","",INDIRECT("'"&$CQ$23&$C56&"'!J75")),IFERROR(IF(INDIRECT("'"&$CQ$24&$C56&"'!J75")="","",INDIRECT("'"&$CQ$24&$C56&"'!J75")),"―"))) ->  | Y56: =IF($C56="","",IFERROR(IF(INDIRECT("'"&$CQ$23&$C56&"'!J77")="","",INDIRECT("'"&$CQ$23&$C56&"'!J77")),IFERROR(IF(INDIRECT("'"&$CQ$24&$C56&"'!J77")="","",INDIRECT("'"&$CQ$24&$C56&"'!J77")),"―"))) ->  | AB56: =IF($C56="","",IFERROR(IF(INDIRECT("'"&$CQ$23&$C56&"'!AD75")="","",INDIRECT("'"&$CQ$23&$C56&"'!AD75")),IFERROR(IF(INDIRECT("'"&$CQ$24&$C56&"'!AD75")="","",INDIRECT("'"&$CQ$24&$C56&"'!AD75")),"―"))) ->  | AF56: =IF($C56="","",IFERROR(IF(INDIRECT("'"&$CQ$23&$C56&"'!J79")="","",INDIRECT("'"&$CQ$23&$C56&"'!J79")),IFERROR(IF(INDIRECT("'"&$CQ$24&$C56&"'!J79")="","",INDIRECT("'"&$CQ$24&$C56&"'!J79")),"―"))) ->  | AI56: =IF($C56="","",IFERROR(IF(INDIRECT("'"&$CQ$23&$C56&"'!AD83")="","",INDIRECT("'"&$CQ$23&$C56&"'!AD83")),IFERROR(IF(INDIRECT("'"&$CQ$24&$C56&"'!AD83")="","",INDIRECT("'"&$CQ$24&$C56&"'!AD83")),"―"))) ->  | AL56: =IF($C56="","",IFERROR(IF(INDIRECT("'"&$CQ$23&$C56&"'!CN27")="","",INDIRECT("'"&$CQ$23&$C56&"'!CN27")),IFERROR(IF(INDIRECT("'"&$CQ$24&$C56&"'!CN27")="","",INDIRECT("'"&$CQ$24&$C56&"'!CN27")),"―"))) ->  | AN56: =IF($C56="","",IFERROR(IF(INDIRECT("'"&$CQ$23&$C56&"'!CL47")="","",INDIRECT("'"&$CQ$23&$C56&"'!CL47")),IFERROR(IF(INDIRECT("'"&$CQ$24&$C56&"'!CL47")="","",INDIRECT("'"&$CQ$24&$C56&"'!CL47")),"―"))) ->  | AP56: =IF($C56="","",IFERROR(IF(INDIRECT("'"&$CQ$23&$C56&"'!CL42")="","",INDIRECT("'"&$CQ$23&$C56&"'!CL42")),IFERROR(IF(INDIRECT("'"&$CQ$24&$C56&"'!CL42")="","",INDIRECT("'"&$CQ$24&$C56&"'!CL42")),"―"))) -> 
E57: =IF($C57="","",IFERROR(IF(INDIRECT("'"&$CQ$23&$C57&"'!C9")="","",INDIRECT("'"&$CQ$23&$C57&"'!C9")),IFERROR(IF(INDIRECT("'"&$CQ$24&$C57&"'!C9")="","",INDIRECT("'"&$CQ$24&$C57&"'!C9")),"―"))) ->  | H57: =IF($C57="","",IFERROR(IF(INDIRECT("'"&$CQ$23&$C57&"'!G9")="","",INDIRECT("'"&$CQ$23&$C57&"'!G9")),IFERROR(IF(INDIRECT("'"&$CQ$24&$C57&"'!G9")="","",INDIRECT("'"&$CQ$24&$C57&"'!G9")),"―"))) ->  | S57: =IF($C57="","",IFERROR(IF(INDIRECT("'"&$CQ$23&$C57&"'!G13")="","",INDIRECT("'"&$CQ$23&$C57&"'!G13")),IFERROR(IF(INDIRECT("'"&$CQ$24&$C57&"'!G13")="","",INDIRECT("'"&$CQ$24&$C57&"'!G13")),"―"))) ->  | V57: =IF($C57="","",IFERROR(IF(INDIRECT("'"&$CQ$23&$C57&"'!J75")="","",INDIRECT("'"&$CQ$23&$C57&"'!J75")),IFERROR(IF(INDIRECT("'"&$CQ$24&$C57&"'!J75")="","",INDIRECT("'"&$CQ$24&$C57&"'!J75")),"―"))) ->  | Y57: =IF($C57="","",IFERROR(IF(INDIRECT("'"&$CQ$23&$C57&"'!J77")="","",INDIRECT("'"&$CQ$23&$C57&"'!J77")),IFERROR(IF(INDIRECT("'"&$CQ$24&$C57&"'!J77")="","",INDIRECT("'"&$CQ$24&$C57&"'!J77")),"―"))) ->  | AB57: =IF($C57="","",IFERROR(IF(INDIRECT("'"&$CQ$23&$C57&"'!AD75")="","",INDIRECT("'"&$CQ$23&$C57&"'!AD75")),IFERROR(IF(INDIRECT("'"&$CQ$24&$C57&"'!AD75")="","",INDIRECT("'"&$CQ$24&$C57&"'!AD75")),"―"))) ->  | AF57: =IF($C57="","",IFERROR(IF(INDIRECT("'"&$CQ$23&$C57&"'!J79")="","",INDIRECT("'"&$CQ$23&$C57&"'!J79")),IFERROR(IF(INDIRECT("'"&$CQ$24&$C57&"'!J79")="","",INDIRECT("'"&$CQ$24&$C57&"'!J79")),"―"))) ->  | AI57: =IF($C57="","",IFERROR(IF(INDIRECT("'"&$CQ$23&$C57&"'!AD83")="","",INDIRECT("'"&$CQ$23&$C57&"'!AD83")),IFERROR(IF(INDIRECT("'"&$CQ$24&$C57&"'!AD83")="","",INDIRECT("'"&$CQ$24&$C57&"'!AD83")),"―"))) ->  | AL57: =IF($C57="","",IFERROR(IF(INDIRECT("'"&$CQ$23&$C57&"'!CN27")="","",INDIRECT("'"&$CQ$23&$C57&"'!CN27")),IFERROR(IF(INDIRECT("'"&$CQ$24&$C57&"'!CN27")="","",INDIRECT("'"&$CQ$24&$C57&"'!CN27")),"―"))) ->  | AN57: =IF($C57="","",IFERROR(IF(INDIRECT("'"&$CQ$23&$C57&"'!CL47")="","",INDIRECT("'"&$CQ$23&$C57&"'!CL47")),IFERROR(IF(INDIRECT("'"&$CQ$24&$C57&"'!CL47")="","",INDIRECT("'"&$CQ$24&$C57&"'!CL47")),"―"))) ->  | AP57: =IF($C57="","",IFERROR(IF(INDIRECT("'"&$CQ$23&$C57&"'!CL42")="","",INDIRECT("'"&$CQ$23&$C57&"'!CL42")),IFERROR(IF(INDIRECT("'"&$CQ$24&$C57&"'!CL42")="","",INDIRECT("'"&$CQ$24&$C57&"'!CL42")),"―"))) -> 
E58: =IF($C58="","",IFERROR(IF(INDIRECT("'"&$CQ$23&$C58&"'!C9")="","",INDIRECT("'"&$CQ$23&$C58&"'!C9")),IFERROR(IF(INDIRECT("'"&$CQ$24&$C58&"'!C9")="","",INDIRECT("'"&$CQ$24&$C58&"'!C9")),"―"))) ->  | H58: =IF($C58="","",IFERROR(IF(INDIRECT("'"&$CQ$23&$C58&"'!G9")="","",INDIRECT("'"&$CQ$23&$C58&"'!G9")),IFERROR(IF(INDIRECT("'"&$CQ$24&$C58&"'!G9")="","",INDIRECT("'"&$CQ$24&$C58&"'!G9")),"―"))) ->  | S58: =IF($C58="","",IFERROR(IF(INDIRECT("'"&$CQ$23&$C58&"'!G13")="","",INDIRECT("'"&$CQ$23&$C58&"'!G13")),IFERROR(IF(INDIRECT("'"&$CQ$24&$C58&"'!G13")="","",INDIRECT("'"&$CQ$24&$C58&"'!G13")),"―"))) ->  | V58: =IF($C58="","",IFERROR(IF(INDIRECT("'"&$CQ$23&$C58&"'!J75")="","",INDIRECT("'"&$CQ$23&$C58&"'!J75")),IFERROR(IF(INDIRECT("'"&$CQ$24&$C58&"'!J75")="","",INDIRECT("'"&$CQ$24&$C58&"'!J75")),"―"))) ->  | Y58: =IF($C58="","",IFERROR(IF(INDIRECT("'"&$CQ$23&$C58&"'!J77")="","",INDIRECT("'"&$CQ$23&$C58&"'!J77")),IFERROR(IF(INDIRECT("'"&$CQ$24&$C58&"'!J77")="","",INDIRECT("'"&$CQ$24&$C58&"'!J77")),"―"))) ->  | AB58: =IF($C58="","",IFERROR(IF(INDIRECT("'"&$CQ$23&$C58&"'!AD75")="","",INDIRECT("'"&$CQ$23&$C58&"'!AD75")),IFERROR(IF(INDIRECT("'"&$CQ$24&$C58&"'!AD75")="","",INDIRECT("'"&$CQ$24&$C58&"'!AD75")),"―"))) ->  | AF58: =IF($C58="","",IFERROR(IF(INDIRECT("'"&$CQ$23&$C58&"'!J79")="","",INDIRECT("'"&$CQ$23&$C58&"'!J79")),IFERROR(IF(INDIRECT("'"&$CQ$24&$C58&"'!J79")="","",INDIRECT("'"&$CQ$24&$C58&"'!J79")),"―"))) ->  | AI58: =IF($C58="","",IFERROR(IF(INDIRECT("'"&$CQ$23&$C58&"'!AD83")="","",INDIRECT("'"&$CQ$23&$C58&"'!AD83")),IFERROR(IF(INDIRECT("'"&$CQ$24&$C58&"'!AD83")="","",INDIRECT("'"&$CQ$24&$C58&"'!AD83")),"―"))) ->  | AL58: =IF($C58="","",IFERROR(IF(INDIRECT("'"&$CQ$23&$C58&"'!CN27")="","",INDIRECT("'"&$CQ$23&$C58&"'!CN27")),IFERROR(IF(INDIRECT("'"&$CQ$24&$C58&"'!CN27")="","",INDIRECT("'"&$CQ$24&$C58&"'!CN27")),"―"))) ->  | AN58: =IF($C58="","",IFERROR(IF(INDIRECT("'"&$CQ$23&$C58&"'!CL47")="","",INDIRECT("'"&$CQ$23&$C58&"'!CL47")),IFERROR(IF(INDIRECT("'"&$CQ$24&$C58&"'!CL47")="","",INDIRECT("'"&$CQ$24&$C58&"'!CL47")),"―"))) ->  | AP58: =IF($C58="","",IFERROR(IF(INDIRECT("'"&$CQ$23&$C58&"'!CL42")="","",INDIRECT("'"&$CQ$23&$C58&"'!CL42")),IFERROR(IF(INDIRECT("'"&$CQ$24&$C58&"'!CL42")="","",INDIRECT("'"&$CQ$24&$C58&"'!CL42")),"―"))) -> 
B59: 脱炭素化：低炭素系統電力への変更
E60: =IF($C60="","",IFERROR(IF(INDIRECT("'"&$CQ$23&$C60&"'!C9")="","",INDIRECT("'"&$CQ$23&$C60&"'!C9")),IFERROR(IF(INDIRECT("'"&$CQ$24&$C60&"'!C9")="","",INDIRECT("'"&$CQ$24&$C60&"'!C9")),"―"))) ->  | H60: =IF($C60="","",IFERROR(IF(INDIRECT("'"&$CQ$23&$C60&"'!G9")="","",INDIRECT("'"&$CQ$23&$C60&"'!G9")),IFERROR(IF(INDIRECT("'"&$CQ$24&$C60&"'!G9")="","",INDIRECT("'"&$CQ$24&$C60&"'!G9")),"―"))) ->  | S60: =IF($C60="","",IFERROR(IF(INDIRECT("'"&$CQ$23&$C60&"'!G13")="","",INDIRECT("'"&$CQ$23&$C60&"'!G13")),IFERROR(IF(INDIRECT("'"&$CQ$24&$C60&"'!G13")="","",INDIRECT("'"&$CQ$24&$C60&"'!G13")),"―"))) ->  | V60: =IF($C60="","",IFERROR(IF(INDIRECT("'"&$CQ$23&$C60&"'!J75")="","",INDIRECT("'"&$CQ$23&$C60&"'!J75")),IFERROR(IF(INDIRECT("'"&$CQ$24&$C60&"'!J75")="","",INDIRECT("'"&$CQ$24&$C60&"'!J75")),"―"))) ->  | Y60: =IF($C60="","",IFERROR(IF(INDIRECT("'"&$CQ$23&$C60&"'!J77")="","",INDIRECT("'"&$CQ$23&$C60&"'!J77")),IFERROR(IF(INDIRECT("'"&$CQ$24&$C60&"'!J77")="","",INDIRECT("'"&$CQ$24&$C60&"'!J77")),"―"))) ->  | AB60: =IF($C60="","",IFERROR(IF(INDIRECT("'"&$CQ$23&$C60&"'!AD75")="","",INDIRECT("'"&$CQ$23&$C60&"'!AD75")),IFERROR(IF(INDIRECT("'"&$CQ$24&$C60&"'!AD75")="","",INDIRECT("'"&$CQ$24&$C60&"'!AD75")),"―"))) ->  | AF60: =IF($C60="","",IFERROR(IF(INDIRECT("'"&$CQ$23&$C60&"'!J79")="","",INDIRECT("'"&$CQ$23&$C60&"'!J79")),IFERROR(IF(INDIRECT("'"&$CQ$24&$C60&"'!J79")="","",INDIRECT("'"&$CQ$24&$C60&"'!J79")),"―"))) ->  | AI60: =IF($C60="","",IFERROR(IF(INDIRECT("'"&$CQ$23&$C60&"'!AD83")="","",INDIRECT("'"&$CQ$23&$C60&"'!AD83")),IFERROR(IF(INDIRECT("'"&$CQ$24&$C60&"'!AD83")="","",INDIRECT("'"&$CQ$24&$C60&"'!AD83")),"―"))) ->  | AL60: =IF($C60="","",IFERROR(IF(INDIRECT("'"&$CQ$23&$C60&"'!CN27")="","",INDIRECT("'"&$CQ$23&$C60&"'!CN27")),IFERROR(IF(INDIRECT("'"&$CQ$24&$C60&"'!CN27")="","",INDIRECT("'"&$CQ$24&$C60&"'!CN27")),"―"))) ->  | AN60: =IF($C60="","",IFERROR(IF(INDIRECT("'"&$CQ$23&$C60&"'!CL47")="","",INDIRECT("'"&$CQ$23&$C60&"'!CL47")),IFERROR(IF(INDIRECT("'"&$CQ$24&$C60&"'!CL47")="","",INDIRECT("'"&$CQ$24&$C60&"'!CL47")),"―"))) ->  | AP60: =IF($C60="","",IFERROR(IF(INDIRECT("'"&$CQ$23&$C60&"'!CL42")="","",INDIRECT("'"&$CQ$23&$C60&"'!CL42")),IFERROR(IF(INDIRECT("'"&$CQ$24&$C60&"'!CL42")="","",INDIRECT("'"&$CQ$24&$C60&"'!CL42")),"―"))) -> 
E61: =IF($C61="","",IFERROR(IF(INDIRECT("'"&$CQ$23&$C61&"'!C9")="","",INDIRECT("'"&$CQ$23&$C61&"'!C9")),IFERROR(IF(INDIRECT("'"&$CQ$24&$C61&"'!C9")="","",INDIRECT("'"&$CQ$24&$C61&"'!C9")),"―"))) ->  | H61: =IF($C61="","",IFERROR(IF(INDIRECT("'"&$CQ$23&$C61&"'!G9")="","",INDIRECT("'"&$CQ$23&$C61&"'!G9")),IFERROR(IF(INDIRECT("'"&$CQ$24&$C61&"'!G9")="","",INDIRECT("'"&$CQ$24&$C61&"'!G9")),"―"))) ->  | S61: =IF($C61="","",IFERROR(IF(INDIRECT("'"&$CQ$23&$C61&"'!G13")="","",INDIRECT("'"&$CQ$23&$C61&"'!G13")),IFERROR(IF(INDIRECT("'"&$CQ$24&$C61&"'!G13")="","",INDIRECT("'"&$CQ$24&$C61&"'!G13")),"―"))) ->  | V61: =IF($C61="","",IFERROR(IF(INDIRECT("'"&$CQ$23&$C61&"'!J75")="","",INDIRECT("'"&$CQ$23&$C61&"'!J75")),IFERROR(IF(INDIRECT("'"&$CQ$24&$C61&"'!J75")="","",INDIRECT("'"&$CQ$24&$C61&"'!J75")),"―"))) ->  | Y61: =IF($C61="","",IFERROR(IF(INDIRECT("'"&$CQ$23&$C61&"'!J77")="","",INDIRECT("'"&$CQ$23&$C61&"'!J77")),IFERROR(IF(INDIRECT("'"&$CQ$24&$C61&"'!J77")="","",INDIRECT("'"&$CQ$24&$C61&"'!J77")),"―"))) ->  | AB61: =IF($C61="","",IFERROR(IF(INDIRECT("'"&$CQ$23&$C61&"'!AD75")="","",INDIRECT("'"&$CQ$23&$C61&"'!AD75")),IFERROR(IF(INDIRECT("'"&$CQ$24&$C61&"'!AD75")="","",INDIRECT("'"&$CQ$24&$C61&"'!AD75")),"―"))) ->  | AF61: =IF($C61="","",IFERROR(IF(INDIRECT("'"&$CQ$23&$C61&"'!J79")="","",INDIRECT("'"&$CQ$23&$C61&"'!J79")),IFERROR(IF(INDIRECT("'"&$CQ$24&$C61&"'!J79")="","",INDIRECT("'"&$CQ$24&$C61&"'!J79")),"―"))) ->  | AI61: =IF($C61="","",IFERROR(IF(INDIRECT("'"&$CQ$23&$C61&"'!AD83")="","",INDIRECT("'"&$CQ$23&$C61&"'!AD83")),IFERROR(IF(INDIRECT("'"&$CQ$24&$C61&"'!AD83")="","",INDIRECT("'"&$CQ$24&$C61&"'!AD83")),"―"))) ->  | AL61: =IF($C61="","",IFERROR(IF(INDIRECT("'"&$CQ$23&$C61&"'!CN27")="","",INDIRECT("'"&$CQ$23&$C61&"'!CN27")),IFERROR(IF(INDIRECT("'"&$CQ$24&$C61&"'!CN27")="","",INDIRECT("'"&$CQ$24&$C61&"'!CN27")),"―"))) ->  | AN61: =IF($C61="","",IFERROR(IF(INDIRECT("'"&$CQ$23&$C61&"'!CL47")="","",INDIRECT("'"&$CQ$23&$C61&"'!CL47")),IFERROR(IF(INDIRECT("'"&$CQ$24&$C61&"'!CL47")="","",INDIRECT("'"&$CQ$24&$C61&"'!CL47")),"―"))) ->  | AP61: =IF($C61="","",IFERROR(IF(INDIRECT("'"&$CQ$23&$C61&"'!CL42")="","",INDIRECT("'"&$CQ$23&$C61&"'!CL42")),IFERROR(IF(INDIRECT("'"&$CQ$24&$C61&"'!CL42")="","",INDIRECT("'"&$CQ$24&$C61&"'!CL42")),"―"))) -> 

Sheet 431報告会議事録
B4: 4．診断報告書 | K4: 43．診断結果報告会議事録 | AO4: 記入例及び注記 | AW4: セル色凡例 | BC4: 直接入力 | BH4: 選択 | BL4: 自動計算 | CF4: セル色の表示／非表示
B5: 431．報告会議事録 | AO5: （セルのメモやテキストボックスによる注記は移動できます） | CF5: FALSE
AF6: 評価結果の注釈
B7: 開催日時 | P7: 00:00:00 | S7: ～ | T7: 00:00:00 | AF7: ・ | AG7: 実施体制 | AO7: 開催日時 | AR7: 2024-07-16 | BC7: 13:00:00 | BF7: ～ | BG7: 15:30:00 | BO7: ※議事録に関する注記 ■開催日時や開催地、出席者等の 実施状況を記録してください。 ■提案した対策に対する事業者の 評価や実施判断、判断の理由や 実施に向けたコメント等の報告会 の結果を記録してください。
B8: 開催場所 | AG8: ある＝○ | AO8: 開催場所 | AR8: オンライン開催 | CF8: 評価選択
B9: 出席者 | J9: 氏名 | Q9: 所属・役職 | AG9: ない＝× | AO9: 出席者 | AW9: 氏名 | BD9: 所属・役職 | CF9: ○
B10: 事業者 | C10: 経営責任者(同等者) | AF10: ・ | AG10: 品質への影響 | AO10: 事業者 | AP10: 経営責任者(同等者) | CF10: ×
C11: 同席者１ | AG11: 少ない＝○ | AP11: 同席者１
C12: 同席者２ | AG12: 多い＝× | AP12: 同席者２ | CF12: 実施判断
B13: 支援機関 | C13: 支援責任者 | AF13: ・ | AG13: 事業・投資計画 | AO13: 支援機関 | AP13: 支援責任者 | CF13: 実施する
C14: 支援員１ | AG14: 合致する＝○ | AP14: 支援員１ | CF14: 実施しない
C15: 支援員２ | AG15: 合致しない＝× | AP15: 支援員２ | CF15: 判断保留
B17: ■ | C17: 実施判断のまとめ（低炭素系統電力への変更提案を除く） | AO17: ■ | AP17: 実施判断のまとめ（低炭素系統電力への変更提案を除く）
B18: 実施判断結果 | T18: 「実施する対策」によるCO2削減効果 | AO18: 実施判断結果 | BG18: 「実施する対策」によるCO2削減効果
B19: 実施する対策数 | H19: 実施しない対策数 | N19: 判断保留の対策数 | T19: CO2削減量(tCO2/年) | AA19: 削減率(%)※ | AO19: 実施する対策数 | AU19: 実施しない対策数 | BA19: 判断保留の対策数 | BG19: CO2削減量(tCO2/年) | BN19: 削減率(%)※
B20: =COUNTIF($X$29:$X$49,"実施する")+COUNTIF($X$64:$X$84,"実施する") -> 0 | H20: =COUNTIF($X$29:$X$49,"実施しない")+COUNTIF($X$64:$X$84,"実施しない") -> 0 | N20: =COUNTIF($X$29:$X$49,"判断保留")+COUNTIF($X$64:$X$84,"判断保留") -> 0 | T20: =SUMIFS($O$29:$O$49,$X$29:$X$49,"実施する")+SUMIFS($O$64:$O$84,$X$64:$X$84,"実施する") -> 0 | AA20: =IFERROR(T20/'6-4. CO2排出量_総括'!K11*100,"---") -> 0 | AO20: 5 | AU20: 1 | BA20: 2 | BG20: 291 | BN20: 24.3
Y21: ※工場・事業場基準年度排出量に対する削減率 | BG21: ※ | BH21: 工場・事業場基準年度排出量に対する削減率
B22: ■ | C22: 提案対策一覧と実施判断 | AO22: ■ | AP22: 提案対策一覧と実施判断 | CF22: INDIRECT用
B23: 対策の種類 [対策個票番号] | G23: 対策名称 | O23: CO2削減 効果 | R23: 事業者の実施判断 | AO23: 対策の種類 [対策個票番号] | AT23: 対策名称 | BB23: CO2削減 効果 | BE23: 事業者の実施判断 | CF23: 422提案対策一覧
R24: 実施 可能な 体制が ある | T24: 品質 への 影響が 少ない | V24: 事業・投資計画と合致する | X24: 実施判断 | AB24: 事業者のコメント | BE24: 実施 可能な 体制が ある | BG24: 品質 への 影響が 少ない | BI24: 事業・投資計画と合致する | BK24: 実施判断 | BO24: 事業者のコメント
O25: CO2削減量 (tCO2/年) | BB25: CO2削減量 (tCO2/年)
X26: 実施希望時期 | BK26: 実施希望時期
B28: 省エネルギー | AO28: 省エネルギー
C29: =IF(INDIRECT($CF$23&"!C27")="","",INDIRECT($CF$23&"!C27")) ->  | D29: =IF(INDIRECT($CF$23&"!E27")="","",INDIRECT($CF$23&"!E27")) ->  | G29: =IF(INDIRECT($CF$23&"!H27")="","",INDIRECT($CF$23&"!H27")) ->  | O29: =IF(INDIRECT($CF$23&"!V27")="","",INDIRECT($CF$23&"!V27")) ->  | AP29: 1 | AQ29: 部分更新・ 機能付加 | AT29: 蒸気配管・蒸気バルブ・フランジ等の断熱強化 | BB29: 4.554 | BE29: ○ | BG29: ○ | BI29: × | BK29: 実施する | BO29: ボイラー更新を行うため、効率的に実施したい | BZ29: ※実施判断に関する注記 ■報告会における事業者の実施判断を記録 してください。 「実施する」と判断された対策について実 施計画を作成することになります。 ■報告会時点で「実施する／しない」を判断 できなかった場合には「判断保留」を選択 することになりますが、事前説明を行う等 により、可能な限り「判断保留」とならない ようにしてください。
BK30: 令和3年度
C31: =IF(INDIRECT($CF$23&"!C28")="","",INDIRECT($CF$23&"!C28")) ->  | D31: =IF(INDIRECT($CF$23&"!E28")="","",INDIRECT($CF$23&"!E28")) ->  | G31: =IF(INDIRECT($CF$23&"!H28")="","",INDIRECT($CF$23&"!H28")) ->  | O31: =IF(INDIRECT($CF$23&"!V28")="","",INDIRECT($CF$23&"!V28")) ->  | AP31: 2 | AQ31: 運用改善 | AT31: ボイラー圧力の調整 | BB31: 2.277 | BE31: ○ | BG31: × | BI31: ○ | BK31: 実施する
BK32: 令和4年度
C33: =IF(INDIRECT($CF$23&"!C29")="","",INDIRECT($CF$23&"!C29")) ->  | D33: =IF(INDIRECT($CF$23&"!E29")="","",INDIRECT($CF$23&"!E29")) ->  | G33: =IF(INDIRECT($CF$23&"!H29")="","",INDIRECT($CF$23&"!H29")) ->  | O33: =IF(INDIRECT($CF$23&"!V29")="","",INDIRECT($CF$23&"!V29")) ->  | AP33: 3 | AQ33: 設備導入 | AT33: コンプレッサーの更新 | BB33: 5.957884 | BE33: × | BG33: × | BI33: ○ | BK33: 判断保留 | BO33: 追加説明資料の入手後、○月○日までに実施判断を行う。
C35: =IF(INDIRECT($CF$23&"!C30")="","",INDIRECT($CF$23&"!C30")) ->  | D35: =IF(INDIRECT($CF$23&"!E30")="","",INDIRECT($CF$23&"!E30")) ->  | G35: =IF(INDIRECT($CF$23&"!H30")="","",INDIRECT($CF$23&"!H30")) ->  | O35: =IF(INDIRECT($CF$23&"!V30")="","",INDIRECT($CF$23&"!V30")) ->  | AP35: 4 | AQ35: 部分更新・ 機能付加 | AT35: 曝気ブロアのインバーター化 | BB35: 16.835143 | BE35: ○ | BG35: ○ | BI35: × | BK35: 実施する | BO35: 想定していた以上いロスが発生しており、対策実施の必要性が高いと判断した。
BK36: 令和4年度
C37: =IF(INDIRECT($CF$23&"!C31")="","",INDIRECT($CF$23&"!C31")) ->  | D37: =IF(INDIRECT($CF$23&"!E31")="","",INDIRECT($CF$23&"!E31")) ->  | G37: =IF(INDIRECT($CF$23&"!H31")="","",INDIRECT($CF$23&"!H31")) ->  | O37: =IF(INDIRECT($CF$23&"!V31")="","",INDIRECT($CF$23&"!V31")) ->  | AP37: 5 | AQ37: 運用改善 | AT37: 空調設定温度の緩和 | BB37: 4.8615 | BE37: ○ | BG37: ○ | BI37: × | BK37: 判断保留
BZ38: ※事業者のコメントに関する注記 ■事業者の各実施判断の理由、対策実施に 向けた要望等を簡潔に記載してください。 ■記入欄が不足の場合には、2ページ目の 下方にある備考欄を活用してください。
C39: =IF(INDIRECT($CF$23&"!C32")="","",INDIRECT($CF$23&"!C32")) ->  | D39: =IF(INDIRECT($CF$23&"!E32")="","",INDIRECT($CF$23&"!E32")) ->  | G39: =IF(INDIRECT($CF$23&"!H32")="","",INDIRECT($CF$23&"!H32")) ->  | O39: =IF(INDIRECT($CF$23&"!V32")="","",INDIRECT($CF$23&"!V32")) ->  | AP39: 9 | AQ39: 設備導入 | AT39: LED照明の導入 | BB39: 4 | BE39: × | BG39: ○ | BI39: × | BK39: 実施しない | BO39: 他の対策を優先して実施したいため、今回の計画では実施しない
C41: =IF(INDIRECT($CF$23&"!C33")="","",INDIRECT($CF$23&"!C33")) ->  | D41: =IF(INDIRECT($CF$23&"!E33")="","",INDIRECT($CF$23&"!E33")) ->  | G41: =IF(INDIRECT($CF$23&"!H33")="","",INDIRECT($CF$23&"!H33")) ->  | O41: =IF(INDIRECT($CF$23&"!V33")="","",INDIRECT($CF$23&"!V33")) -> 
B43: 脱炭素化：燃料低炭素化または電化、太陽光発電等の再生可能エネルギー利用など | AO43: 脱炭素化：燃料低炭素化または電化、太陽光発電等の再生可能エネルギー利用など
C44: =IF(INDIRECT($CF$23&"!C35")="","",INDIRECT($CF$23&"!C35")) ->  | D44: =IF(INDIRECT($CF$23&"!E35")="","",INDIRECT($CF$23&"!E35")) ->  | G44: =IF(INDIRECT($CF$23&"!H35")="","",INDIRECT($CF$23&"!H35")) ->  | O44: =IF(INDIRECT($CF$23&"!V35")="","",INDIRECT($CF$23&"!V35")) ->  | AP44: 6 | AQ44: 燃料転換 | AT44: ボイラーの燃料転換 | BB44: 200.376 | BE44: ○ | BG44: ○ | BI44: ○ | BK44: 実施する
BK45: 令和3年度
C46: =IF(INDIRECT($CF$23&"!C36")="","",INDIRECT($CF$23&"!C36")) ->  | D46: =IF(INDIRECT($CF$23&"!E36")="","",INDIRECT($CF$23&"!E36")) ->  | G46: =IF(INDIRECT($CF$23&"!H36")="","",INDIRECT($CF$23&"!H36")) ->  | O46: =IF(INDIRECT($CF$23&"!V36")="","",INDIRECT($CF$23&"!V36")) ->  | AP46: 7 | AQ46: 電力低炭素化 | AT46: 太陽光発電システムの設置 | BB46: 66.58403 | BE46: ○ | BG46: × | BI46: ○ | BK46: 実施する
BK47: 令和4年度
C48: =IF(INDIRECT($CF$23&"!C37")="","",INDIRECT($CF$23&"!C37")) ->  | D48: =IF(INDIRECT($CF$23&"!E37")="","",INDIRECT($CF$23&"!E37")) ->  | G48: =IF(INDIRECT($CF$23&"!H37")="","",INDIRECT($CF$23&"!H37")) ->  | O48: =IF(INDIRECT($CF$23&"!V37")="","",INDIRECT($CF$23&"!V37")) -> 
B50: 脱炭素化：低炭素系統電力への変更 | AO50: 脱炭素化：低炭素系統電力への変更
C51: =IF(INDIRECT($CF$23&"!C39")="","",INDIRECT($CF$23&"!C39")) ->  | D51: =IF(INDIRECT($CF$23&"!E39")="","",INDIRECT($CF$23&"!E39")) ->  | G51: =IF(INDIRECT($CF$23&"!H39")="","",INDIRECT($CF$23&"!H39")) ->  | O51: =IF(INDIRECT($CF$23&"!V39")="","",INDIRECT($CF$23&"!V39")) ->  | AP51: 8 | AQ51: 電力低炭素化 | AT51: 電力供給会社の変更 | BB51: 140.416913 | BE51: ○ | BG51: × | BI51: ○ | BK51: 実施する
BK52: 令和4年度
C53: =IF(INDIRECT($CF$23&"!C40")="","",INDIRECT($CF$23&"!C40")) ->  | D53: =IF(INDIRECT($CF$23&"!E40")="","",INDIRECT($CF$23&"!E40")) ->  | G53: =IF(INDIRECT($CF$23&"!H40")="","",INDIRECT($CF$23&"!H40")) ->  | O53: =IF(INDIRECT($CF$23&"!V40")="","",INDIRECT($CF$23&"!V40")) -> 
B57: ■ | C57: 提案対策一覧【2ページ目】
B58: 対策の種類 [対策個票番号] | G58: 対策名称 | O58: 削減効果 | R58: 事業者の実施判断
R59: 実施 可能な 体制が ある | T59: 品質 への 影響が 少ない | V59: 事業・投資計画と合致する | X59: 実施判断 | AB59: 事業者のコメント
O60: CO2削減量 (tCO2/年)
X61: 実施希望時期
B63: 省エネルギー
C64: =IF(INDIRECT($CF$23&"!C48")="","",INDIRECT($CF$23&"!C48")) ->  | D64: =IF(INDIRECT($CF$23&"!E48")="","",INDIRECT($CF$23&"!E48")) ->  | G64: =IF(INDIRECT($CF$23&"!H48")="","",INDIRECT($CF$23&"!H48")) ->  | O64: =IF(INDIRECT($CF$23&"!V48")="","",INDIRECT($CF$23&"!V48")) -> 
C66: =IF(INDIRECT($CF$23&"!C49")="","",INDIRECT($CF$23&"!C49")) ->  | D66: =IF(INDIRECT($CF$23&"!E49")="","",INDIRECT($CF$23&"!E49")) ->  | G66: =IF(INDIRECT($CF$23&"!H49")="","",INDIRECT($CF$23&"!H49")) ->  | O66: =IF(INDIRECT($CF$23&"!V49")="","",INDIRECT($CF$23&"!V49")) -> 
C68: =IF(INDIRECT($CF$23&"!C50")="","",INDIRECT($CF$23&"!C50")) ->  | D68: =IF(INDIRECT($CF$23&"!E50")="","",INDIRECT($CF$23&"!E50")) ->  | G68: =IF(INDIRECT($CF$23&"!H50")="","",INDIRECT($CF$23&"!H50")) ->  | O68: =IF(INDIRECT($CF$23&"!V50")="","",INDIRECT($CF$23&"!V50")) -> 
C70: =IF(INDIRECT($CF$23&"!C51")="","",INDIRECT($CF$23&"!C51")) ->  | D70: =IF(INDIRECT($CF$23&"!E51")="","",INDIRECT($CF$23&"!E51")) ->  | G70: =IF(INDIRECT($CF$23&"!H51")="","",INDIRECT($CF$23&"!H51")) ->  | O70: =IF(INDIRECT($CF$23&"!V51")="","",INDIRECT($CF$23&"!V51")) -> 
C72: =IF(INDIRECT($CF$23&"!C52")="","",INDIRECT($CF$23&"!C52")) ->  | D72: =IF(INDIRECT($CF$23&"!E52")="","",INDIRECT($CF$23&"!E52")) ->  | G72: =IF(INDIRECT($CF$23&"!H52")="","",INDIRECT($CF$23&"!H52")) ->  | O72: =IF(INDIRECT($CF$23&"!V52")="","",INDIRECT($CF$23&"!V52")) -> 
C74: =IF(INDIRECT($CF$23&"!C53")="","",INDIRECT($CF$23&"!C53")) ->  | D74: =IF(INDIRECT($CF$23&"!E53")="","",INDIRECT($CF$23&"!E53")) ->  | G74: =IF(INDIRECT($CF$23&"!H53")="","",INDIRECT($CF$23&"!H53")) ->  | O74: =IF(INDIRECT($CF$23&"!V53")="","",INDIRECT($CF$23&"!V53")) -> 
C76: =IF(INDIRECT($CF$23&"!C54")="","",INDIRECT($CF$23&"!C54")) ->  | D76: =IF(INDIRECT($CF$23&"!E54")="","",INDIRECT($CF$23&"!E54")) ->  | G76: =IF(INDIRECT($CF$23&"!H54")="","",INDIRECT($CF$23&"!H54")) ->  | O76: =IF(INDIRECT($CF$23&"!V54")="","",INDIRECT($CF$23&"!V54")) -> 
B78: 脱炭素化：燃料低炭素化または電化、太陽光発電等の再生可能エネルギー利用など
C79: =IF(INDIRECT($CF$23&"!C56")="","",INDIRECT($CF$23&"!C56")) ->  | D79: =IF(INDIRECT($CF$23&"!E56")="","",INDIRECT($CF$23&"!E56")) ->  | G79: =IF(INDIRECT($CF$23&"!H56")="","",INDIRECT($CF$23&"!H56")) ->  | O79: =IF(INDIRECT($CF$23&"!V56")="","",INDIRECT($CF$23&"!V56")) -> 
C81: =IF(INDIRECT($CF$23&"!C57")="","",INDIRECT($CF$23&"!C57")) ->  | D81: =IF(INDIRECT($CF$23&"!E57")="","",INDIRECT($CF$23&"!E57")) ->  | G81: =IF(INDIRECT($CF$23&"!H57")="","",INDIRECT($CF$23&"!H57")) ->  | O81: =IF(INDIRECT($CF$23&"!V57")="","",INDIRECT($CF$23&"!V57")) -> 
C83: =IF(INDIRECT($CF$23&"!C58")="","",INDIRECT($CF$23&"!C58")) ->  | D83: =IF(INDIRECT($CF$23&"!E58")="","",INDIRECT($CF$23&"!E58")) ->  | G83: =IF(INDIRECT($CF$23&"!H58")="","",INDIRECT($CF$23&"!H58")) ->  | O83: =IF(INDIRECT($CF$23&"!V58")="","",INDIRECT($CF$23&"!V58")) -> 
B85: 脱炭素化：低炭素系統電力への変更
C86: =IF(INDIRECT($CF$23&"!C60")="","",INDIRECT($CF$23&"!C60")) ->  | D86: =IF(INDIRECT($CF$23&"!E60")="","",INDIRECT($CF$23&"!E60")) ->  | G86: =IF(INDIRECT($CF$23&"!H60")="","",INDIRECT($CF$23&"!H60")) ->  | O86: =IF(INDIRECT($CF$23&"!V60")="","",INDIRECT($CF$23&"!V60")) -> 
C88: =IF(INDIRECT($CF$23&"!C61")="","",INDIRECT($CF$23&"!C61")) ->  | D88: =IF(INDIRECT($CF$23&"!E61")="","",INDIRECT($CF$23&"!E61")) ->  | G88: =IF(INDIRECT($CF$23&"!H61")="","",INDIRECT($CF$23&"!H61")) ->  | O88: =IF(INDIRECT($CF$23&"!V61")="","",INDIRECT($CF$23&"!V61")) -> 
B92: ■ | C92: 備考

Sheet 511脱炭素化計画
B4: 5．実施計画書 | L4: 51．脱炭素化計画 | AD4: 事業者名 | AJ4: =IF(表紙!L41="","",表紙!L41) -> ABC工業株式会社 | BQ4: 記入例及び注記 | BZ4: セル色凡例 | CF4: 直接入力 | CK4: 選択 | CO4: 自動計算 | CS4: 事業者名 | CY4: ○○株式会社 | EP4: セル色の表示／非表示
B5: 511．脱炭素化計画 | AD5: 工場・事業場名 | AJ5: =IF(表紙!L44="","",表紙!L44) -> ABC工業株式会社SHIFT工場 | BQ5: （セルのメモやテキストボックスによる注記は移動できます） | CS5: 工場・事業場名 | CY5: ○○○○工場 | EP5: FALSE
AD6: 支援機関名 | AJ6: =IF(表紙!L55="","",表紙!L55)&IF(OR(表紙!L58="なし",表紙!L58=""),"","、"&表紙!L58) ->  | CS6: 支援機関名 | CY6: 株式会社△△
B8: １．脱炭素化計画（低炭素系統電力への変更による効果を除く） | AN8: （単位：t-CO2/年） | AP8: ２.中長期の取組 | BQ8: １．脱炭素化計画（低炭素系統電力への変更による効果を除く） | EP8: INDIRECT用
B9: 対象範囲 | I9: エネルギー起源CO2 | Q9: 基準年度 | U9: =IF($AQ$24="","",$AQ$24) ->  | Y9: =IF($AT$24="","",$AT$24) -> 目標年度 | AC9: =IF($AW$24="","",$AW$24) ->  | AG9: =IF($AZ$24="","",$AZ$24) ->  | AK9: =IF($BC$24="","",$BC$24) ->  | AP9: 2030年削減目標への取組 | BQ9: 対象範囲 | BX9: エネルギー起源CO2 | CF9: 基準年度 | CN9: 目標年度 | DE9: 2030年削減目標への取組 | EP9: 対策個票
U10: =IF($AQ$25="","",$AQ$25) -> 令和6年度 | Y10: =IF($AT$25="","",$AT$25) -> 令和7年度 | AC10: =IF($AW$25="","",$AW$25) -> 令和8年度 | AG10: =IF($AZ$25="","",$AZ$25) -> 令和9年度 | AK10: =IF($BC$25="","",$BC$25) -> 令和10年度 | CJ10: 令和6年度 | CN10: 令和7年度 | CR10: 令和8年度 | CV10: 令和9年度 | CZ10: 令和10年度 | DE10: 2030年、基準年度CO2排出量の50％減を目指す。その実現に向けて、途中の2025年（目標年度）までに基準年度の30％以上の削減を達成する。 | EP10: =MID(CELL("filename",'512排出量(対策なし)根拠'!AK3),FIND("]",CELL("filename",'512排出量(対策なし)根拠'!AK3))+1,LEN(CELL("filename",'512排出量(対策なし)根拠'!AK3))) -> 512排出量(対策なし)根拠
B11: 工場・事業場全体 | I11: CO2排出量(対策なし) | Q11: =IF('512排出量(対策なし)根拠'!$N$11="","",'512排出量(対策なし)根拠'!$N$11) -> 4379.920067 | U11: =IF('512排出量(対策なし)根拠'!$R$11="","",'512排出量(対策なし)根拠'!$R$11) -> 4379.920067 | Y11: =IF('512排出量(対策なし)根拠'!$V$11="","",'512排出量(対策なし)根拠'!$V$11) -> 4379.920067 | AC11: =IF('512排出量(対策なし)根拠'!$Z$11="","",'512排出量(対策なし)根拠'!$Z$11) -> 4379.920067 | AG11: =IF('512排出量(対策なし)根拠'!$AD$11="","",'512排出量(対策なし)根拠'!$AD$11) -> 4379.920067 | AK11: =IF('512排出量(対策なし)根拠'!$AH$11="","",'512排出量(対策なし)根拠'!$AH$11) -> 4379.920067 | BQ11: 工場・事業場全体 | BX11: CO2排出量(対策なし) | CF11: 1200 | CJ11: 1200 | CN11: 1200 | CR11: 1200 | CV11: 1200 | CZ11: 1200
I12: 対策によるCO2削減効果 | Q12: ― | U12: =SUM($AQ$27:$AQ$37)+SUM($AQ$47:$AQ$57) -> 0 | Y12: =SUM($AT$27:$AT$37)+SUM($AT$47:$AT$57) -> 0 | AC12: =SUM($AW$27:$AW$37)+SUM($AW$47:$AW$57) -> 0 | AG12: =SUM($AZ$27:$AZ$37)+SUM($AZ$47:$AZ$57) -> 0 | AK12: =SUM($BC$27:$BC$37)+SUM($BC$47:$BC$57) -> 0 | BX12: 対策によるCO2削減効果 | CF12: ― | CJ12: 0 | CN12: 20 | CR12: 231 | CV12: 297 | CZ12: 297
I13: CO2排出量(対策後) | Q13: ― | U13: =IFERROR(U11-U12,"---") -> 4379.920067 | Y13: =IFERROR(Y11-Y12,"---") -> 4379.920067 | AC13: =IFERROR(AC11-AC12,"---") -> 4379.920067 | AG13: =IFERROR(AG11-AG12,"---") -> 4379.920067 | AK13: =IFERROR(AK11-AK12,"---") -> 4379.920067 | BX13: CO2排出量(対策後) | CF13: ― | CJ13: 1200 | CN13: 1180 | CR13: 969 | CV13: 903 | CZ13: 903
I14: 対 基準年度 | L14: CO2削減量 | Q14: ― | U14: =IFERROR($Q$11-U13,"---") -> 0 | Y14: =IFERROR($Q$11-Y13,"---") -> 0 | AC14: =IFERROR($Q$11-AC13,"---") -> 0 | AG14: =IFERROR($Q$11-AG13,"---") -> 0 | AK14: =IFERROR($Q$11-AK13,"---") -> 0 | BX14: 対 基準年度 | CA14: CO2削減量 | CF14: ― | CJ14: 0 | CN14: 20 | CR14: 231 | CV14: 297 | CZ14: 297
L15: CO2削減率(%) | Q15: ― | U15: =IFERROR(U14/$Q$11*100,"---") -> 0 | Y15: =IFERROR(Y14/$Q$11*100,"---") -> 0 | AC15: =IFERROR(AC14/$Q$11*100,"---") -> 0 | AG15: =IFERROR(AG14/$Q$11*100,"---") -> 0 | AK15: =IFERROR(AK14/$Q$11*100,"---") -> 0 | CA15: CO2削減率 | CF15: ― | CJ15: 0 | CN15: 0.016 | CR15: 0.192 | CV15: 0.247 | CZ15: 0.247
B16: 主要システム系統 | I16: CO2排出量(対策なし) | Q16: =IF('512排出量(対策なし)根拠'!$N$13="","",'512排出量(対策なし)根拠'!$N$13) -> 2657.712 | U16: =IF('512排出量(対策なし)根拠'!$R$13="","",'512排出量(対策なし)根拠'!$R$13) -> 2657.712 | Y16: =IF('512排出量(対策なし)根拠'!$V$13="","",'512排出量(対策なし)根拠'!$V$13) -> 2657.712 | AC16: =IF('512排出量(対策なし)根拠'!$Z$13="","",'512排出量(対策なし)根拠'!$Z$13) -> 2657.712 | AG16: =IF('512排出量(対策なし)根拠'!$AD$13="","",'512排出量(対策なし)根拠'!$AD$13) -> 2657.712 | AK16: =IF('512排出量(対策なし)根拠'!$AH$13="","",'512排出量(対策なし)根拠'!$AH$13) -> 2657.712 | AP16: 2050年削減目標への取組 | BQ16: 主要システム系統 | BX16: CO2排出量(対策なし) | CF16: 500 | CJ16: 800 | CN16: 800 | CR16: 800 | CV16: 800 | CZ16: 800 | DE16: 2050年削減目標への取組
B17: =IF('512排出量(対策なし)根拠'!$N$16="","",'512排出量(対策なし)根拠'!$N$16) ->  | I17: 対策によるCO2削減効果 | Q17: ― | U17: =SUMIF($AC$27:$AC$37,"○",$AQ$27:$AQ$37)+SUMIF($AC$47:$AC$57,"○",$AQ$47:$AQ$57) -> 0 | Y17: =SUMIF($AC$27:$AC$37,"○",$AT$27:$AT$37)+SUMIF($AC$47:$AC$57,"○",$AT$47:$AT$57) -> 0 | AC17: =SUMIF($AC$27:$AC$37,"○",$AW$27:$AW$37)+SUMIF($AC$47:$AC$57,"○",$AW$47:$AW$57) -> 0 | AG17: =SUMIF($AC$27:$AC$37,"○",$AZ$27:$AZ$37)+SUMIF($AC$47:$AC$57,"○",$AZ$47:$AZ$57) -> 0 | AK17: =SUMIF($AC$27:$AC$37,"○",$BC$27:$BC$37)+SUMIF($AC$47:$AC$57,"○",$BC$47:$BC$57) -> 0 | BQ17: 蒸気システム | BX17: 対策によるCO2削減効果 | CF17: ― | CJ17: 0 | CN17: 0 | CR17: 206 | CV17: 206 | CZ17: 206 | DE17: 国の環境方針に沿い、2050年には当工場からのCO2排出量をゼロにする。
I18: CO2排出量(対策後) | Q18: ― | U18: =IFERROR(U16-U17,"---") -> 2657.712 | Y18: =IFERROR(Y16-Y17,"---") -> 2657.712 | AC18: =IFERROR(AC16-AC17,"---") -> 2657.712 | AG18: =IFERROR(AG16-AG17,"---") -> 2657.712 | AK18: =IFERROR(AK16-AK17,"---") -> 2657.712 | BX18: CO2排出量(対策後) | CF18: ― | CJ18: 800 | CN18: 800 | CR18: 594 | CV18: 594 | CZ18: 594
I19: 対 基準年度 | L19: CO2削減量 | Q19: ― | U19: =IFERROR($Q$16-U18,"---") -> 0 | Y19: =IFERROR($Q$16-Y18,"---") -> 0 | AC19: =IFERROR($Q$16-AC18,"---") -> 0 | AG19: =IFERROR($Q$16-AG18,"---") -> 0 | AK19: =IFERROR($Q$16-AK18,"---") -> 0 | BX19: 対 基準年度 | CA19: CO2削減量 | CF19: ― | CJ19: 0 | CN19: 0 | CR19: 206 | CV19: 206 | CZ19: 206
L20: CO2削減率(%) | Q20: ― | U20: =IFERROR(U19/$Q$16*100,"---") -> 0 | Y20: =IFERROR(Y19/$Q$16*100,"---") -> 0 | AC20: =IFERROR(AC19/$Q$16*100,"---") -> 0 | AG20: =IFERROR(AG19/$Q$16*100,"---") -> 0 | AK20: =IFERROR(AK19/$Q$16*100,"---") -> 0 | CA20: CO2削減率 | CF20: ― | CJ20: 0 | CN20: 0 | CR20: 0.257 | CV20: 0.257 | CZ20: 0.257
B22: ３．脱炭素化計画（対策別）【1ページ目】 | BM22: （単位：t-CO2/年） | BQ22: ３．脱炭素化計画（対策別） | EB22: （単位：t-CO2/年）
B23: 対策の種類 [対策個票番号] | I23: 対策名称 | AC23: 主要 システム 系統 | AE23: 申請予定 補助金 | AJ23: 対策着手 時期 | AN23: 年間CO2 削減量 | AQ23: 計画年度・CO2削減量 | BF23: 以降の活動予定 | BQ23: 対策の種類 [対策個票番号] | BX23: 対策名称 | CR23: 主要 システム 系統 | CT23: 申請予定 補助金 | CY23: 対策着手 時期 | DC23: 年間CO2 削減量 | DF23: 計画年度・CO2削減量 | DU23: 以降の活動予定
AT24: 目標年度 | DI24: 目標年度
AQ25: 令和6年度 | AT25: 令和7年度 | AW25: 令和8年度 | AZ25: 令和9年度 | BC25: 令和10年度 | DF25: 令和6年度 | DI25: 令和7年度 | DL25: 令和8年度 | DO25: 令和9年度 | DR25: 令和10年度 | EP25: ↓他の計算式で使用していない（参考情報）
B26: 省エネルギー | BQ26: 省エネ | EP26: 個票番号 | EQ26: GJ削減効果 | ER26: 年度1 | ES26: 年度2 | ET26: 年度3 | EU26: 年度4 | EV26: 年度5 | EW26: 主要システム系統
E27: =IF($C27="","",IFERROR(IF(INDIRECT("'"&$EP$9&$C27&"'!C9")="","",INDIRECT("'"&$EP$9&$C27&"'!C9")),"―")) ->  | I27: =IF($C27="","",IFERROR(IF(INDIRECT("'"&$EP$9&$C27&"'!G9")="","",INDIRECT("'"&$EP$9&$C27&"'!G9")),"―")) ->  | AE27: =IF($C27="","",IFERROR(IF(INDIRECT("'"&$EP$9&$C27&"'!B294")="","",INDIRECT("'"&$EP$9&$C27&"'!B294")),"―")) ->  | AJ27: =IF($C27="","",IFERROR(IF(INDIRECT("'"&$EP$9&$C27&"'!F271")="","",INDIRECT("'"&$EP$9&$C27&"'!F271")),"―"))&IF($C27="","",IFERROR(IF(INDIRECT("'"&$EP$9&$C27&"'!I271")="","",INDIRECT("'"&$EP$9&$C27&"'!I271")),"―")) ->  | AN27: =IF($C27="","",IFERROR(INDIRECT("'"&$EP$9&$C27&"'!J75"),"―")) ->  | AQ27: =IF($C27="","",IFERROR(IF(INDIRECT("'"&$EP$9&$C27&"'!R278")="","",INDIRECT("'"&$EP$9&$C27&"'!R278")),"―")) ->  | AT27: =IF($C27="","",IFERROR(IF(INDIRECT("'"&$EP$9&$C27&"'!V278")="","",INDIRECT("'"&$EP$9&$C27&"'!V278")),"―")) ->  | AW27: =IF($C27="","",IFERROR(IF(INDIRECT("'"&$EP$9&$C27&"'!Z278")="","",INDIRECT("'"&$EP$9&$C27&"'!Z278")),"―")) ->  | AZ27: =IF($C27="","",IFERROR(IF(INDIRECT("'"&$EP$9&$C27&"'!AD278")="","",INDIRECT("'"&$EP$9&$C27&"'!AD278")),"―")) ->  | BC27: =IF($C27="","",IFERROR(IF(INDIRECT("'"&$EP$9&$C27&"'!AH278")="","",INDIRECT("'"&$EP$9&$C27&"'!AH278")),"―")) ->  | BN27: =IF(OR(INDIRECT($BK$63&ROW())="",INDIRECT($BK$63&ROW())="―"),0,1) -> 0 | BR27: 1 | BT27: 部分更新・ 機能付加 | BX27: 蒸気配管・蒸気バルブ・フランジ等の断熱強化 | CR27: ○ | CT27: 予定なし | CY27: 令和7年12月 | DC27: 4 | DL27: 4 | DO27: 4 | DR27: 4 | EP27: =IF(C27="","",C27) ->  | EQ27: =IF($C27="","",IFERROR(INDIRECT("'"&$EP$9&$C27&"'!J81"),"―")) ->  | ER27: =IF(AQ27="","",$EQ27) ->  | ES27: =IF(AT27="","",$EQ27) ->  | ET27: =IF(AW27="","",$EQ27) ->  | EU27: =IF(AZ27="","",$EQ27) ->  | EV27: =IF(BC27="","",$EQ27) ->  | EW27: =IF(AC27="","",AC27) -> 
I28: =IF($C28="","",IFERROR(IF(INDIRECT("'"&$EP$9&$C28&"'!G9")="","",INDIRECT("'"&$EP$9&$C28&"'!G9")),"―")) ->  | AJ28: =IF($C28="","",IFERROR(IF(INDIRECT("'"&$EP$9&$C28&"'!F271")="","",INDIRECT("'"&$EP$9&$C28&"'!F271")),"―"))&IF($C28="","",IFERROR(IF(INDIRECT("'"&$EP$9&$C28&"'!I271")="","",INDIRECT("'"&$EP$9&$C28&"'!I271")),"―")) ->  | BN28: =IF(OR(INDIRECT($BK$63&ROW())="",INDIRECT($BK$63&ROW())="―"),0,1) -> 0 | BR28: 2 | BT28: 運用改善 | BX28: ボイラー圧力の調整 | CR28: ○ | CT28: 予定なし | CY28: 令和8年1月 | DC28: 2 | DL28: 2 | DO28: 2 | DR28: 2 | EP28: =IF(C28="","",C28) ->  | ER28: =IF(AQ28="","",$EQ28) ->  | ES28: =IF(AT28="","",$EQ28) ->  | ET28: =IF(AW28="","",$EQ28) ->  | EU28: =IF(AZ28="","",$EQ28) ->  | EV28: =IF(BC28="","",$EQ28) -> 
BN29: 0 | BR29: 3 | BT29: 設備導入 | BX29: コンプレッサーの更新 | CT29: 国(SHIFT) | CY29: 令和7年1月 | DC29: 5 | DI29: 5 | DL29: 5 | DO29: 5 | DR29: 5 | EP29: =IF(C29="","",C29) ->  | ER29: =IF(AQ29="","",$EQ29) ->  | ES29: =IF(AT29="","",$EQ29) ->  | ET29: =IF(AW29="","",$EQ29) ->  | EU29: =IF(AZ29="","",$EQ29) ->  | EV29: =IF(BC29="","",$EQ29) -> 
BN30: 0 | BR30: 4 | BT30: 部分更新・ 機能付加 | BX30: 曝気ブロアのインバーター化 | CT30: 予定なし | CY30: 令和6年12月 | DC30: 16 | DI30: 16 | DL30: 16 | DO30: 16 | DR30: 16 | EP30: =IF(C30="","",C30) ->  | ER30: =IF(AQ30="","",$EQ30) ->  | ES30: =IF(AT30="","",$EQ30) ->  | ET30: =IF(AW30="","",$EQ30) ->  | EU30: =IF(AZ30="","",$EQ30) ->  | EV30: =IF(BC30="","",$EQ30) -> 
BN31: 0 | BR31: 5 | BT31: 運用改善 | BX31: 空調設定温度の緩和 | CT31: 予定なし | CY31: 令和6年11月 | DC31: 4 | DI31: 4 | DL31: 4 | DO31: 4 | DR31: 4 | EP31: =IF(C31="","",C31) ->  | ER31: =IF(AQ31="","",$EQ31) ->  | ES31: =IF(AT31="","",$EQ31) ->  | ET31: =IF(AW31="","",$EQ31) ->  | EU31: =IF(AZ31="","",$EQ31) ->  | EV31: =IF(BC31="","",$EQ31) -> 
BN32: 0 | EP32: =IF(C32="","",C32) ->  | ER32: =IF(AQ32="","",$EQ32) ->  | ES32: =IF(AT32="","",$EQ32) ->  | ET32: =IF(AW32="","",$EQ32) ->  | EU32: =IF(AZ32="","",$EQ32) ->  | EV32: =IF(BC32="","",$EQ32) -> 
BN33: 0 | EP33: =IF(C33="","",C33) ->  | ER33: =IF(AQ33="","",$EQ33) ->  | ES33: =IF(AT33="","",$EQ33) ->  | ET33: =IF(AW33="","",$EQ33) ->  | EU33: =IF(AZ33="","",$EQ33) ->  | EV33: =IF(BC33="","",$EQ33) -> 
B34: 脱炭素化：燃料低炭素化または電化、太陽光発電等の再生可能エネルギー利用など | BQ34: 脱炭素化：燃料低炭素化または電化、太陽光発電等の再生可能エネルギー利用など | EP34: エネ転
E35: =IF($C35="","",IFERROR(IF(INDIRECT("'"&$EP$9&$C35&"'!C9")="","",INDIRECT("'"&$EP$9&$C35&"'!C9")),"―")) ->  | I35: =IF($C35="","",IFERROR(IF(INDIRECT("'"&$EP$9&$C35&"'!G9")="","",INDIRECT("'"&$EP$9&$C35&"'!G9")),"―")) ->  | AE35: =IF($C35="","",IFERROR(IF(INDIRECT("'"&$EP$9&$C35&"'!B294")="","",INDIRECT("'"&$EP$9&$C35&"'!B294")),"―")) ->  | AJ35: =IF($C35="","",IFERROR(IF(INDIRECT("'"&$EP$9&$C35&"'!F271")="","",INDIRECT("'"&$EP$9&$C35&"'!F271")),"―"))&IF($C35="","",IFERROR(IF(INDIRECT("'"&$EP$9&$C35&"'!I271")="","",INDIRECT("'"&$EP$9&$C35&"'!I271")),"―")) ->  | AN35: =IF($C35="","",IFERROR(INDIRECT("'"&$EP$9&$C35&"'!J75"),"―")) ->  | AQ35: =IF($C35="","",IFERROR(IF(INDIRECT("'"&$EP$9&$C35&"'!R278")="","",INDIRECT("'"&$EP$9&$C35&"'!R278")),"―")) ->  | AT35: =IF($C35="","",IFERROR(IF(INDIRECT("'"&$EP$9&$C35&"'!V278")="","",INDIRECT("'"&$EP$9&$C35&"'!V278")),"―")) ->  | AW35: =IF($C35="","",IFERROR(IF(INDIRECT("'"&$EP$9&$C35&"'!Z278")="","",INDIRECT("'"&$EP$9&$C35&"'!Z278")),"―")) ->  | AZ35: =IF($C35="","",IFERROR(IF(INDIRECT("'"&$EP$9&$C35&"'!AD278")="","",INDIRECT("'"&$EP$9&$C35&"'!AD278")),"―")) ->  | BC35: =IF($C35="","",IFERROR(IF(INDIRECT("'"&$EP$9&$C35&"'!AH278")="","",INDIRECT("'"&$EP$9&$C35&"'!AH278")),"―")) ->  | BN35: =IF(OR(INDIRECT($BK$63&ROW())="",INDIRECT($BK$63&ROW())="―"),0,1) -> 0 | BR35: 6 | BT35: 燃料転換 | BX35: ボイラーの燃料転換 | CR35: ○ | CT35: 国(SHIFT) | CY35: 令和6年9月 | DC35: 200 | DI35: 200 | DL35: 200 | DO35: 200 | DR35: 200 | EQ35: =IF($C35="","",IFERROR(INDIRECT("'"&$EP$9&$C35&"'!J81"),"―")) ->  | ER35: =IF(AQ35="","",$EQ35) ->  | ES35: =IF(AT35="","",$EQ35) ->  | ET35: =IF(AW35="","",$EQ35) ->  | EU35: =IF(AZ35="","",$EQ35) ->  | EV35: =IF(BC35="","",$EQ35) ->  | EW35: =IF(AC35="","",AC35) -> 
E36: =IF($C36="","",IFERROR(IF(INDIRECT("'"&$EP$9&$C36&"'!C9")="","",INDIRECT("'"&$EP$9&$C36&"'!C9")),"―")) ->  | I36: =IF($C36="","",IFERROR(IF(INDIRECT("'"&$EP$9&$C36&"'!G9")="","",INDIRECT("'"&$EP$9&$C36&"'!G9")),"―")) ->  | AE36: =IF($C36="","",IFERROR(IF(INDIRECT("'"&$EP$9&$C36&"'!B294")="","",INDIRECT("'"&$EP$9&$C36&"'!B294")),"―")) ->  | AN36: =IF($C36="","",IFERROR(INDIRECT("'"&$EP$9&$C36&"'!J75"),"―")) ->  | AQ36: =IF($C36="","",IFERROR(IF(INDIRECT("'"&$EP$9&$C36&"'!R278")="","",INDIRECT("'"&$EP$9&$C36&"'!R278")),"―")) ->  | AT36: =IF($C36="","",IFERROR(IF(INDIRECT("'"&$EP$9&$C36&"'!V278")="","",INDIRECT("'"&$EP$9&$C36&"'!V278")),"―")) ->  | AW36: =IF($C36="","",IFERROR(IF(INDIRECT("'"&$EP$9&$C36&"'!Z278")="","",INDIRECT("'"&$EP$9&$C36&"'!Z278")),"―")) ->  | AZ36: =IF($C36="","",IFERROR(IF(INDIRECT("'"&$EP$9&$C36&"'!AD278")="","",INDIRECT("'"&$EP$9&$C36&"'!AD278")),"―")) ->  | BC36: =IF($C36="","",IFERROR(IF(INDIRECT("'"&$EP$9&$C36&"'!AH278")="","",INDIRECT("'"&$EP$9&$C36&"'!AH278")),"―")) ->  | BN36: 0 | BR36: 7 | BT36: 電力低炭素化 | BX36: 太陽光発電システムの設置 | CT36: 地方 自治体 | CY36: 令和7年12月 | DC36: 66 | DO36: 66 | DR36: 66 | EQ36: =IF($C36="","",IFERROR(INDIRECT("'"&$EP$9&$C36&"'!J81"),"―")) ->  | ER36: =IF(AQ36="","",$EQ36) ->  | ES36: =IF(AT36="","",$EQ36) ->  | ET36: =IF(AW36="","",$EQ36) ->  | EU36: =IF(AZ36="","",$EQ36) ->  | EV36: =IF(BC36="","",$EQ36) -> 
E37: =IF($C37="","",IFERROR(IF(INDIRECT("'"&$EP$9&$C37&"'!C9")="","",INDIRECT("'"&$EP$9&$C37&"'!C9")),"―")) ->  | I37: =IF($C37="","",IFERROR(IF(INDIRECT("'"&$EP$9&$C37&"'!G9")="","",INDIRECT("'"&$EP$9&$C37&"'!G9")),"―")) ->  | AE37: =IF($C37="","",IFERROR(IF(INDIRECT("'"&$EP$9&$C37&"'!B294")="","",INDIRECT("'"&$EP$9&$C37&"'!B294")),"―")) ->  | AN37: =IF($C37="","",IFERROR(INDIRECT("'"&$EP$9&$C37&"'!J75"),"―")) ->  | AQ37: =IF($C37="","",IFERROR(IF(INDIRECT("'"&$EP$9&$C37&"'!R278")="","",INDIRECT("'"&$EP$9&$C37&"'!R278")),"―")) ->  | AT37: =IF($C37="","",IFERROR(IF(INDIRECT("'"&$EP$9&$C37&"'!V278")="","",INDIRECT("'"&$EP$9&$C37&"'!V278")),"―")) ->  | AW37: =IF($C37="","",IFERROR(IF(INDIRECT("'"&$EP$9&$C37&"'!Z278")="","",INDIRECT("'"&$EP$9&$C37&"'!Z278")),"―")) ->  | AZ37: =IF($C37="","",IFERROR(IF(INDIRECT("'"&$EP$9&$C37&"'!AD278")="","",INDIRECT("'"&$EP$9&$C37&"'!AD278")),"―")) ->  | BC37: =IF($C37="","",IFERROR(IF(INDIRECT("'"&$EP$9&$C37&"'!AH278")="","",INDIRECT("'"&$EP$9&$C37&"'!AH278")),"―")) ->  | BN37: 0 | EQ37: =IF($C37="","",IFERROR(INDIRECT("'"&$EP$9&$C37&"'!J81"),"―")) ->  | ER37: =IF(AQ37="","",$EQ37) ->  | ES37: =IF(AT37="","",$EQ37) ->  | ET37: =IF(AW37="","",$EQ37) ->  | EU37: =IF(AZ37="","",$EQ37) ->  | EV37: =IF(BC37="","",$EQ37) -> 
B38: 脱炭素化：低炭素系統電力への変更 | BQ38: 脱炭素化／低炭素系統電力への変更 | EP38: 低炭素電力への切り替え
E39: =IF($C39="","",IFERROR(IF(INDIRECT("'"&$EP$9&$C39&"'!C9")="","",INDIRECT("'"&$EP$9&$C39&"'!C9")),"―")) ->  | I39: =IF($C39="","",IFERROR(IF(INDIRECT("'"&$EP$9&$C39&"'!G9")="","",INDIRECT("'"&$EP$9&$C39&"'!G9")),"―")) ->  | AE39: =IF($C39="","",IFERROR(IF(INDIRECT("'"&$EP$9&$C39&"'!B294")="","",INDIRECT("'"&$EP$9&$C39&"'!B294")),"―")) ->  | AJ39: =IF($C39="","",IFERROR(IF(INDIRECT("'"&$EP$9&$C39&"'!F271")="","",INDIRECT("'"&$EP$9&$C39&"'!F271")),"―"))&IF($C39="","",IFERROR(IF(INDIRECT("'"&$EP$9&$C39&"'!I271")="","",INDIRECT("'"&$EP$9&$C39&"'!I271")),"―")) ->  | AN39: =IF($C39="","",IFERROR(INDIRECT("'"&$EP$9&$C39&"'!J75"),"―")) ->  | AQ39: =IF($C39="","",IFERROR(IF(INDIRECT("'"&$EP$9&$C39&"'!R278")="","",INDIRECT("'"&$EP$9&$C39&"'!R278")),"―")) ->  | AT39: =IF($C39="","",IFERROR(IF(INDIRECT("'"&$EP$9&$C39&"'!V278")="","",INDIRECT("'"&$EP$9&$C39&"'!V278")),"―")) ->  | AW39: =IF($C39="","",IFERROR(IF(INDIRECT("'"&$EP$9&$C39&"'!Z278")="","",INDIRECT("'"&$EP$9&$C39&"'!Z278")),"―")) ->  | AZ39: =IF($C39="","",IFERROR(IF(INDIRECT("'"&$EP$9&$C39&"'!AD278")="","",INDIRECT("'"&$EP$9&$C39&"'!AD278")),"―")) ->  | BC39: =IF($C39="","",IFERROR(IF(INDIRECT("'"&$EP$9&$C39&"'!AH278")="","",INDIRECT("'"&$EP$9&$C39&"'!AH278")),"―")) ->  | BN39: =IF(OR(INDIRECT($BK$63&ROW())="",INDIRECT($BK$63&ROW())="―"),0,1) -> 0 | BR39: 8 | BT39: 電力低炭素化 | BX39: 電力供給会社の変更 | CT39: 予定なし | CY39: 令和9年2月 | DC39: 140 | DO39: 140 | DR39: 140 | EP39: =IF(C39="","",C39) ->  | EQ39: =IF($C39="","",IFERROR(INDIRECT("'"&$EP$9&$C39&"'!J81"),"―")) ->  | ER39: =IF(AQ39="","",$EQ39) ->  | ES39: =IF(AT39="","",$EQ39) ->  | ET39: =IF(AW39="","",$EQ39) ->  | EU39: =IF(AZ39="","",$EQ39) ->  | EV39: =IF(BC39="","",$EQ39) -> 
E40: =IF($C40="","",IFERROR(IF(INDIRECT("'"&$EP$9&$C40&"'!C9")="","",INDIRECT("'"&$EP$9&$C40&"'!C9")),"―")) ->  | I40: =IF($C40="","",IFERROR(IF(INDIRECT("'"&$EP$9&$C40&"'!G9")="","",INDIRECT("'"&$EP$9&$C40&"'!G9")),"―")) ->  | AE40: =IF($C40="","",IFERROR(IF(INDIRECT("'"&$EP$9&$C40&"'!B294")="","",INDIRECT("'"&$EP$9&$C40&"'!B294")),"―")) ->  | AJ40: =IF($C40="","",IFERROR(IF(INDIRECT("'"&$EP$9&$C40&"'!F271")="","",INDIRECT("'"&$EP$9&$C40&"'!F271")),"―"))&IF($C40="","",IFERROR(IF(INDIRECT("'"&$EP$9&$C40&"'!I271")="","",INDIRECT("'"&$EP$9&$C40&"'!I271")),"―")) ->  | AN40: =IF($C40="","",IFERROR(INDIRECT("'"&$EP$9&$C40&"'!J75"),"―")) ->  | AQ40: =IF($C40="","",IFERROR(IF(INDIRECT("'"&$EP$9&$C40&"'!R278")="","",INDIRECT("'"&$EP$9&$C40&"'!R278")),"―")) ->  | AT40: =IF($C40="","",IFERROR(IF(INDIRECT("'"&$EP$9&$C40&"'!V278")="","",INDIRECT("'"&$EP$9&$C40&"'!V278")),"―")) ->  | AW40: =IF($C40="","",IFERROR(IF(INDIRECT("'"&$EP$9&$C40&"'!Z278")="","",INDIRECT("'"&$EP$9&$C40&"'!Z278")),"―")) ->  | AZ40: =IF($C40="","",IFERROR(IF(INDIRECT("'"&$EP$9&$C40&"'!AD278")="","",INDIRECT("'"&$EP$9&$C40&"'!AD278")),"―")) ->  | BC40: =IF($C40="","",IFERROR(IF(INDIRECT("'"&$EP$9&$C40&"'!AH278")="","",INDIRECT("'"&$EP$9&$C40&"'!AH278")),"―")) ->  | BN40: 0 | EQ40: =IF($C40="","",IFERROR(INDIRECT("'"&$EP$9&$C40&"'!J81"),"―")) ->  | ER40: =IF(AQ40="","",$EQ40) ->  | ES40: =IF(AT40="","",$EQ40) ->  | ET40: =IF(AW40="","",$EQ40) ->  | EU40: =IF(AZ40="","",$EQ40) ->  | EV40: =IF(BC40="","",$EQ40) -> 
B42: ３．脱炭素化計画（対策別）【2ページ目】 | BM42: （単位：t-CO2/年）
B43: 対策の種類 [対策個票番号] | I43: 対策名称 | AC43: 主要 システム 系統 | AE43: 申請予定 補助金 | AJ43: 対策着手 時期 | AN43: 年間CO2 削減量 | AQ43: 計画年度・CO2削減量 | BF43: 以降の活動予定
AQ44: =IF(AQ24="","",AQ24) ->  | AT44: =IF(AT24="","",AT24) -> 目標年度 | AW44: =IF(AW24="","",AW24) ->  | AZ44: =IF(AZ24="","",AZ24) ->  | BC44: =IF(BC24="","",BC24) -> 
AQ45: =IF(AQ25="","",AQ25) -> 令和6年度 | AT45: =IF(AT25="","",AT25) -> 令和7年度 | AW45: =IF(AW25="","",AW25) -> 令和8年度 | AZ45: =IF(AZ25="","",AZ25) -> 令和9年度 | BC45: =IF(BC25="","",BC25) -> 令和10年度
B46: 省エネルギー
E47: =IF($C47="","",IFERROR(IF(INDIRECT("'"&$EP$9&$C47&"'!C9")="","",INDIRECT("'"&$EP$9&$C47&"'!C9")),"―")) ->  | I47: =IF($C47="","",IFERROR(IF(INDIRECT("'"&$EP$9&$C47&"'!G9")="","",INDIRECT("'"&$EP$9&$C47&"'!G9")),"―")) ->  | AE47: =IF($C47="","",IFERROR(IF(INDIRECT("'"&$EP$9&$C47&"'!B294")="","",INDIRECT("'"&$EP$9&$C47&"'!B294")),"―")) ->  | AJ47: =IF($C47="","",IFERROR(IF(INDIRECT("'"&$EP$9&$C47&"'!F271")="","",INDIRECT("'"&$EP$9&$C47&"'!F271")),"―"))&IF($C47="","",IFERROR(IF(INDIRECT("'"&$EP$9&$C47&"'!I271")="","",INDIRECT("'"&$EP$9&$C47&"'!I271")),"―")) ->  | AN47: =IF($C47="","",IFERROR(INDIRECT("'"&$EP$9&$C47&"'!J75"),"―")) ->  | AQ47: =IF($C47="","",IFERROR(IF(INDIRECT("'"&$EP$9&$C47&"'!R278")="","",INDIRECT("'"&$EP$9&$C47&"'!R278")),"―")) ->  | AT47: =IF($C47="","",IFERROR(IF(INDIRECT("'"&$EP$9&$C47&"'!V278")="","",INDIRECT("'"&$EP$9&$C47&"'!V278")),"―")) ->  | AW47: =IF($C47="","",IFERROR(IF(INDIRECT("'"&$EP$9&$C47&"'!Z278")="","",INDIRECT("'"&$EP$9&$C47&"'!Z278")),"―")) ->  | AZ47: =IF($C47="","",IFERROR(IF(INDIRECT("'"&$EP$9&$C47&"'!AD278")="","",INDIRECT("'"&$EP$9&$C47&"'!AD278")),"―")) ->  | BC47: =IF($C47="","",IFERROR(IF(INDIRECT("'"&$EP$9&$C47&"'!AH278")="","",INDIRECT("'"&$EP$9&$C47&"'!AH278")),"―")) ->  | BN47: =IF(OR(INDIRECT($BK$63&ROW())="",INDIRECT($BK$63&ROW())="―"),0,1) -> 0 | EP47: =IF(C47="","",C47) ->  | EQ47: =IF($C47="","",IFERROR(INDIRECT("'"&$EP$9&$C47&"'!J81"),"―")) ->  | ER47: =IF(AQ47="","",$EQ47) ->  | ES47: =IF(AT47="","",$EQ47) ->  | ET47: =IF(AW47="","",$EQ47) ->  | EU47: =IF(AZ47="","",$EQ47) ->  | EV47: =IF(BC47="","",$EQ47) -> 
BN48: 0 | EP48: =IF(C48="","",C48) ->  | ER48: =IF(AQ48="","",$EQ48) ->  | ES48: =IF(AT48="","",$EQ48) ->  | ET48: =IF(AW48="","",$EQ48) ->  | EU48: =IF(AZ48="","",$EQ48) ->  | EV48: =IF(BC48="","",$EQ48) -> 
E49: =IF($C49="","",IFERROR(IF(INDIRECT("'"&$EP$9&$C49&"'!C9")="","",INDIRECT("'"&$EP$9&$C49&"'!C9")),"―")) ->  | BN49: 0 | EP49: =IF(C49="","",C49) ->  | ER49: =IF(AQ49="","",$EQ49) ->  | ES49: =IF(AT49="","",$EQ49) ->  | ET49: =IF(AW49="","",$EQ49) ->  | EU49: =IF(AZ49="","",$EQ49) ->  | EV49: =IF(BC49="","",$EQ49) -> 
BN50: 0 | EP50: =IF(C50="","",C50) ->  | ER50: =IF(AQ50="","",$EQ50) ->  | ES50: =IF(AT50="","",$EQ50) ->  | ET50: =IF(AW50="","",$EQ50) ->  | EU50: =IF(AZ50="","",$EQ50) ->  | EV50: =IF(BC50="","",$EQ50) -> 
BN51: 0 | EP51: =IF(C51="","",C51) ->  | ER51: =IF(AQ51="","",$EQ51) ->  | ES51: =IF(AT51="","",$EQ51) ->  | ET51: =IF(AW51="","",$EQ51) ->  | EU51: =IF(AZ51="","",$EQ51) ->  | EV51: =IF(BC51="","",$EQ51) -> 
BN52: 0 | EP52: =IF(C52="","",C52) ->  | ER52: =IF(AQ52="","",$EQ52) ->  | ES52: =IF(AT52="","",$EQ52) ->  | ET52: =IF(AW52="","",$EQ52) ->  | EU52: =IF(AZ52="","",$EQ52) ->  | EV52: =IF(BC52="","",$EQ52) -> 
BN53: 0 | EP53: =IF(C53="","",C53) ->  | ER53: =IF(AQ53="","",$EQ53) ->  | ES53: =IF(AT53="","",$EQ53) ->  | ET53: =IF(AW53="","",$EQ53) ->  | EU53: =IF(AZ53="","",$EQ53) ->  | EV53: =IF(BC53="","",$EQ53) -> 
B54: 脱炭素化：燃料低炭素化または電化、太陽光発電等の再生可能エネルギー利用など | EP54: エネ転
E55: =IF($C55="","",IFERROR(IF(INDIRECT("'"&$EP$9&$C55&"'!C9")="","",INDIRECT("'"&$EP$9&$C55&"'!C9")),"―")) ->  | I55: =IF($C55="","",IFERROR(IF(INDIRECT("'"&$EP$9&$C55&"'!G9")="","",INDIRECT("'"&$EP$9&$C55&"'!G9")),"―")) ->  | AE55: =IF($C55="","",IFERROR(IF(INDIRECT("'"&$EP$9&$C55&"'!B294")="","",INDIRECT("'"&$EP$9&$C55&"'!B294")),"―")) ->  | AJ55: =IF($C55="","",IFERROR(IF(INDIRECT("'"&$EP$9&$C55&"'!F271")="","",INDIRECT("'"&$EP$9&$C55&"'!F271")),"―"))&IF($C55="","",IFERROR(IF(INDIRECT("'"&$EP$9&$C55&"'!I271")="","",INDIRECT("'"&$EP$9&$C55&"'!I271")),"―")) ->  | AN55: =IF($C55="","",IFERROR(INDIRECT("'"&$EP$9&$C55&"'!J75"),"―")) ->  | AQ55: =IF($C55="","",IFERROR(IF(INDIRECT("'"&$EP$9&$C55&"'!R278")="","",INDIRECT("'"&$EP$9&$C55&"'!R278")),"―")) ->  | AT55: =IF($C55="","",IFERROR(IF(INDIRECT("'"&$EP$9&$C55&"'!V278")="","",INDIRECT("'"&$EP$9&$C55&"'!V278")),"―")) ->  | AW55: =IF($C55="","",IFERROR(IF(INDIRECT("'"&$EP$9&$C55&"'!Z278")="","",INDIRECT("'"&$EP$9&$C55&"'!Z278")),"―")) ->  | AZ55: =IF($C55="","",IFERROR(IF(INDIRECT("'"&$EP$9&$C55&"'!AD278")="","",INDIRECT("'"&$EP$9&$C55&"'!AD278")),"―")) ->  | BC55: =IF($C55="","",IFERROR(IF(INDIRECT("'"&$EP$9&$C55&"'!AH278")="","",INDIRECT("'"&$EP$9&$C55&"'!AH278")),"―")) ->  | BN55: =IF(OR(INDIRECT($BK$63&ROW())="",INDIRECT($BK$63&ROW())="―"),0,1) -> 0 | EQ55: =IF($C55="","",IFERROR(INDIRECT("'"&$EP$9&$C55&"'!J81"),"―")) ->  | ER55: =IF(AQ55="","",$EQ55) ->  | ES55: =IF(AT55="","",$EQ55) ->  | ET55: =IF(AW55="","",$EQ55) ->  | EU55: =IF(AZ55="","",$EQ55) ->  | EV55: =IF(BC55="","",$EQ55) -> 
E56: =IF($C56="","",IFERROR(IF(INDIRECT("'"&$EP$9&$C56&"'!C9")="","",INDIRECT("'"&$EP$9&$C56&"'!C9")),"―")) ->  | I56: =IF($C56="","",IFERROR(IF(INDIRECT("'"&$EP$9&$C56&"'!G9")="","",INDIRECT("'"&$EP$9&$C56&"'!G9")),"―")) ->  | AE56: =IF($C56="","",IFERROR(IF(INDIRECT("'"&$EP$9&$C56&"'!B294")="","",INDIRECT("'"&$EP$9&$C56&"'!B294")),"―")) ->  | AN56: =IF($C56="","",IFERROR(INDIRECT("'"&$EP$9&$C56&"'!J75"),"―")) ->  | AQ56: =IF($C56="","",IFERROR(IF(INDIRECT("'"&$EP$9&$C56&"'!R278")="","",INDIRECT("'"&$EP$9&$C56&"'!R278")),"―")) ->  | AT56: =IF($C56="","",IFERROR(IF(INDIRECT("'"&$EP$9&$C56&"'!V278")="","",INDIRECT("'"&$EP$9&$C56&"'!V278")),"―")) ->  | AW56: =IF($C56="","",IFERROR(IF(INDIRECT("'"&$EP$9&$C56&"'!Z278")="","",INDIRECT("'"&$EP$9&$C56&"'!Z278")),"―")) ->  | AZ56: =IF($C56="","",IFERROR(IF(INDIRECT("'"&$EP$9&$C56&"'!AD278")="","",INDIRECT("'"&$EP$9&$C56&"'!AD278")),"―")) ->  | BC56: =IF($C56="","",IFERROR(IF(INDIRECT("'"&$EP$9&$C56&"'!AH278")="","",INDIRECT("'"&$EP$9&$C56&"'!AH278")),"―")) ->  | BN56: 0 | EQ56: =IF($C56="","",IFERROR(INDIRECT("'"&$EP$9&$C56&"'!J81"),"―")) ->  | ER56: =IF(AQ56="","",$EQ56) ->  | ES56: =IF(AT56="","",$EQ56) ->  | ET56: =IF(AW56="","",$EQ56) ->  | EU56: =IF(AZ56="","",$EQ56) ->  | EV56: =IF(BC56="","",$EQ56) -> 
E57: =IF($C57="","",IFERROR(IF(INDIRECT("'"&$EP$9&$C57&"'!C9")="","",INDIRECT("'"&$EP$9&$C57&"'!C9")),"―")) ->  | I57: =IF($C57="","",IFERROR(IF(INDIRECT("'"&$EP$9&$C57&"'!G9")="","",INDIRECT("'"&$EP$9&$C57&"'!G9")),"―")) ->  | AE57: =IF($C57="","",IFERROR(IF(INDIRECT("'"&$EP$9&$C57&"'!B294")="","",INDIRECT("'"&$EP$9&$C57&"'!B294")),"―")) ->  | AN57: =IF($C57="","",IFERROR(INDIRECT("'"&$EP$9&$C57&"'!J75"),"―")) ->  | AQ57: =IF($C57="","",IFERROR(IF(INDIRECT("'"&$EP$9&$C57&"'!R278")="","",INDIRECT("'"&$EP$9&$C57&"'!R278")),"―")) ->  | AT57: =IF($C57="","",IFERROR(IF(INDIRECT("'"&$EP$9&$C57&"'!V278")="","",INDIRECT("'"&$EP$9&$C57&"'!V278")),"―")) ->  | AW57: =IF($C57="","",IFERROR(IF(INDIRECT("'"&$EP$9&$C57&"'!Z278")="","",INDIRECT("'"&$EP$9&$C57&"'!Z278")),"―")) ->  | AZ57: =IF($C57="","",IFERROR(IF(INDIRECT("'"&$EP$9&$C57&"'!AD278")="","",INDIRECT("'"&$EP$9&$C57&"'!AD278")),"―")) ->  | BC57: =IF($C57="","",IFERROR(IF(INDIRECT("'"&$EP$9&$C57&"'!AH278")="","",INDIRECT("'"&$EP$9&$C57&"'!AH278")),"―")) ->  | BN57: 0 | EQ57: =IF($C57="","",IFERROR(INDIRECT("'"&$EP$9&$C57&"'!J81"),"―")) ->  | ER57: =IF(AQ57="","",$EQ57) ->  | ES57: =IF(AT57="","",$EQ57) ->  | ET57: =IF(AW57="","",$EQ57) ->  | EU57: =IF(AZ57="","",$EQ57) ->  | EV57: =IF(BC57="","",$EQ57) -> 
B58: 脱炭素化：低炭素系統電力への変更 | BS58: ※「4.脱炭素化指標」及び「5.CO2削減量の分類」に関する注記 「4.脱炭素化指標」及び「5.CO2削減量の分類」は、SHIFT設備更新補助申請の申請／採択に必要な数値を示しています。 | EP58: 低炭素電力への切り替え
E59: =IF($C59="","",IFERROR(IF(INDIRECT("'"&$EP$9&$C59&"'!C9")="","",INDIRECT("'"&$EP$9&$C59&"'!C9")),"―")) ->  | I59: =IF($C59="","",IFERROR(IF(INDIRECT("'"&$EP$9&$C59&"'!G9")="","",INDIRECT("'"&$EP$9&$C59&"'!G9")),"―")) ->  | AE59: =IF($C59="","",IFERROR(IF(INDIRECT("'"&$EP$9&$C59&"'!B294")="","",INDIRECT("'"&$EP$9&$C59&"'!B294")),"―")) ->  | AJ59: =IF($C59="","",IFERROR(IF(INDIRECT("'"&$EP$9&$C59&"'!F271")="","",INDIRECT("'"&$EP$9&$C59&"'!F271")),"―"))&IF($C59="","",IFERROR(IF(INDIRECT("'"&$EP$9&$C59&"'!I271")="","",INDIRECT("'"&$EP$9&$C59&"'!I271")),"―")) ->  | AN59: =IF($C59="","",IFERROR(INDIRECT("'"&$EP$9&$C59&"'!J75"),"―")) ->  | AQ59: =IF($C59="","",IFERROR(IF(INDIRECT("'"&$EP$9&$C59&"'!R278")="","",INDIRECT("'"&$EP$9&$C59&"'!R278")),"―")) ->  | AT59: =IF($C59="","",IFERROR(IF(INDIRECT("'"&$EP$9&$C59&"'!V278")="","",INDIRECT("'"&$EP$9&$C59&"'!V278")),"―")) ->  | AW59: =IF($C59="","",IFERROR(IF(INDIRECT("'"&$EP$9&$C59&"'!Z278")="","",INDIRECT("'"&$EP$9&$C59&"'!Z278")),"―")) ->  | AZ59: =IF($C59="","",IFERROR(IF(INDIRECT("'"&$EP$9&$C59&"'!AD278")="","",INDIRECT("'"&$EP$9&$C59&"'!AD278")),"―")) ->  | BC59: =IF($C59="","",IFERROR(IF(INDIRECT("'"&$EP$9&$C59&"'!AH278")="","",INDIRECT("'"&$EP$9&$C59&"'!AH278")),"―")) ->  | BN59: =IF(OR(INDIRECT($BK$63&ROW())="",INDIRECT($BK$63&ROW())="―"),0,1) -> 0 | EP59: =IF(C59="","",C59) ->  | EQ59: =IF($C59="","",IFERROR(INDIRECT("'"&$EP$9&$C59&"'!J81"),"―")) ->  | ER59: =IF(AQ59="","",$EQ59) ->  | ES59: =IF(AT59="","",$EQ59) ->  | ET59: =IF(AW59="","",$EQ59) ->  | EU59: =IF(AZ59="","",$EQ59) ->  | EV59: =IF(BC59="","",$EQ59) -> 
E60: =IF($C60="","",IFERROR(IF(INDIRECT("'"&$EP$9&$C60&"'!C9")="","",INDIRECT("'"&$EP$9&$C60&"'!C9")),"―")) ->  | I60: =IF($C60="","",IFERROR(IF(INDIRECT("'"&$EP$9&$C60&"'!G9")="","",INDIRECT("'"&$EP$9&$C60&"'!G9")),"―")) ->  | AE60: =IF($C60="","",IFERROR(IF(INDIRECT("'"&$EP$9&$C60&"'!B294")="","",INDIRECT("'"&$EP$9&$C60&"'!B294")),"―")) ->  | AN60: =IF($C60="","",IFERROR(INDIRECT("'"&$EP$9&$C60&"'!J75"),"―")) ->  | AQ60: =IF($C60="","",IFERROR(IF(INDIRECT("'"&$EP$9&$C60&"'!R278")="","",INDIRECT("'"&$EP$9&$C60&"'!R278")),"―")) ->  | AT60: =IF($C60="","",IFERROR(IF(INDIRECT("'"&$EP$9&$C60&"'!V278")="","",INDIRECT("'"&$EP$9&$C60&"'!V278")),"―")) ->  | AW60: =IF($C60="","",IFERROR(IF(INDIRECT("'"&$EP$9&$C60&"'!Z278")="","",INDIRECT("'"&$EP$9&$C60&"'!Z278")),"―")) ->  | AZ60: =IF($C60="","",IFERROR(IF(INDIRECT("'"&$EP$9&$C60&"'!AD278")="","",INDIRECT("'"&$EP$9&$C60&"'!AD278")),"―")) ->  | BC60: =IF($C60="","",IFERROR(IF(INDIRECT("'"&$EP$9&$C60&"'!AH278")="","",INDIRECT("'"&$EP$9&$C60&"'!AH278")),"―")) ->  | BN60: 0 | EQ60: =IF($C60="","",IFERROR(INDIRECT("'"&$EP$9&$C60&"'!J81"),"―")) ->  | ER60: =IF(AQ60="","",$EQ60) ->  | ES60: =IF(AT60="","",$EQ60) ->  | ET60: =IF(AW60="","",$EQ60) ->  | EU60: =IF(AZ60="","",$EQ60) ->  | EV60: =IF(BC60="","",$EQ60) -> 
B62: ４．脱炭素化指標（低炭素系統電力への変更による効果を除く） | AP62: ５．CO2削減量の分類（低炭素系統電力への変更による効果を除く） | BQ62: ４．脱炭素化指標（低炭素系統電力への変更による効果を除く） | DE62: ５．CO2削減量の分類（低炭素系統電力への変更による効果を除く）
B63: 対象範囲 | Q63: 基準年度 | U63: =IF($AQ$24="","",$AQ$24) ->  | Y63: =IF($AT$24="","",$AT$24) -> 目標年度 | AC63: =IF($AW$24="","",$AW$24) ->  | AG63: =IF($AZ$24="","",$AZ$24) ->  | AK63: =IF($BC$24="","",$BC$24) ->  | AP63: 対象範囲 | BK63: =IF($AQ$44<>"","AQ",IF($AT$44<>"","AT",IF($AW$44<>"","AW",IF($AZ$44<>"","AZ","BC")))) -> AT | BQ63: 対象範囲 | CF63: 基準年度 | CN63: 目標年度 | DE63: 対象範囲 | DZ63: BC
U64: =IF($AQ$25="","",$AQ$25) -> 令和6年度 | Y64: =IF($AT$25="","",$AT$25) -> 令和7年度 | AC64: =IF($AW$25="","",$AW$25) -> 令和8年度 | AG64: =IF($AZ$25="","",$AZ$25) -> 令和9年度 | AK64: =IF($BC$25="","",$BC$25) -> 令和10年度 | CJ64: 令和5年度 | CN64: 令和6年度 | CR64: 令和7年度 | CV64: 令和8年度 | CZ64: 令和9年度
B65: 工場 ・ 事業場 全体 | E65: CO2排出量(h) (t-CO2) | J65: 対策なし | Q65: =IF(Q11="","",Q11) -> 4379.920067 | U65: =IF(U11="","",U11) -> 4379.920067 | Y65: =IF(Y11="","",Y11) -> 4379.920067 | AC65: =IF(AC11="","",AC11) -> 4379.920067 | AG65: =IF(AG11="","",AG11) -> 4379.920067 | AK65: =IF(AK11="","",AK11) -> 4379.920067 | AP65: 工場・事業場 全体 | AU65: 基準年度CO2排出量の10%値 | BG65: =IF($Q$11="","",$Q$11*0.1) -> 437.9920067 | BK65: tCO2/年 | BQ65: 工場 ・ 事業場 全体 | BT65: CO2排出量(h) (t-CO2) | BY65: 対策なし | CF65: 1200 | CJ65: 1201 | CN65: 1202 | CR65: 1203 | CV65: 1204 | CZ65: 1205 | DE65: 工場・事業場 全体 | DJ65: 基準年度CO2排出量の10%値 | DV65: 120 | DZ65: tCO2/年
J66: 対策による削減効果 | Q66: ― | U66: =IF(U12="","",U12) -> 0 | Y66: =IF(Y12="","",Y12) -> 0 | AC66: =IF(AC12="","",AC12) -> 0 | AG66: =IF(AG12="","",AG12) -> 0 | AK66: =IF(AK12="","",AK12) -> 0 | AU66: 目標年度 | AV66: 更新設備分CO2削減量※1 | BG66: =SUMIFS(INDIRECT($BK$63&"27:"&$BK$63&"37"),$AE$27:$AE$37,"*SHIFT*")+SUMIFS(INDIRECT($BK$63&"47:"&$BK$63&"57"),$AE$47:$AE$57,"*SHIFT*") -> 0 | BK66: tCO2/年 | BY66: 対策による削減効果 | CF66: ― | CJ66: 0 | CN66: 52 | CR66: 503 | CV66: 569 | CZ66: 569 | DJ66: 目標年度 | DK66: 更新設備分CO2削減量※1 | DV66: 405 | DZ66: tCO2/年
J67: 対策後 | Q67: ― | U67: =IF(U13="","",U13) -> 4379.920067 | Y67: =IF(Y13="","",Y13) -> 4379.920067 | AC67: =IF(AC13="","",AC13) -> 4379.920067 | AG67: =IF(AG13="","",AG13) -> 4379.920067 | AK67: =IF(AK13="","",AK13) -> 4379.920067 | AV67: 自主的削減対策分CO2削減量※2 | BG67: =SUM(INDIRECT($BK$63&"27:"&$BK$63&"37"))+SUM(INDIRECT($BK$63&"47:"&$BK$63&"57"))-BG66 -> 0 | BK67: tCO2/年 | BY67: 対策後 | CF67: ― | CJ67: 1201 | CN67: 1150 | CR67: 700 | CV67: 635 | CZ67: 636 | DK67: 自主的削減対策分CO2削減量※2 | DV67: 164 | DZ67: tCO2/年
E68: エネルギー 使用量(i) (GJ換算値) | J68: 対策なし | Q68: =IF('512排出量(対策なし)根拠'!$N$12="","",'512排出量(対策なし)根拠'!$N$12) -> 67161.13333 | U68: =IF('512排出量(対策なし)根拠'!$R$12="","",'512排出量(対策なし)根拠'!$R$12) -> 67161.13333 | Y68: =IF('512排出量(対策なし)根拠'!$V$12="","",'512排出量(対策なし)根拠'!$V$12) -> 67161.13333 | AC68: =IF('512排出量(対策なし)根拠'!$Z$12="","",'512排出量(対策なし)根拠'!$Z$12) -> 67161.13333 | AG68: =IF('512排出量(対策なし)根拠'!$AD$12="","",'512排出量(対策なし)根拠'!$AD$12) -> 67161.13333 | AK68: =IF('512排出量(対策なし)根拠'!$AH$12="","",'512排出量(対策なし)根拠'!$AH$12) -> 67161.13333 | AV68: 自主的削減対策実施数 | BG68: =(COUNTIFS($BN$27:$BN$37,1)-COUNTIFS($BN$27:$BN$37,1,$AE$27:$AE$37,"*SHIFT*"))+(COUNTIFS($BN$47:$BN$57,1)-COUNTIFS($BN$47:$BN$57,1,$AE$47:$AE$57,"*SHIFT*")) -> 0 | BK68: 件 | BT68: エネルギー 使用量(i) (GJ換算値) | BY68: 対策なし | CF68: 2500 | CJ68: 2501 | CN68: 2502 | CR68: 2503 | CV68: 2504 | CZ68: 2505 | DK68: 自主的削減対策実施数 | DV68: 17 | DZ68: 件
J69: 対策による削減効果 | Q69: ― | U69: =SUM($ER$27:$ER$37)+SUM($ER$47:$ER$57) -> 0 | Y69: =SUM($ES$27:$ES$37)+SUM($ES$47:$ES$57) -> 0 | AC69: =SUM($ET$27:$ET$37)+SUM($ET$47:$ET$57) -> 0 | AG69: =SUM($EU$27:$EU$37)+SUM($EU$47:$EU$57) -> 0 | AK69: =SUM($EV$27:$EV$37)+SUM($EV$47:$EV$57) -> 0 | AP69: 主要システム 系統 | AU69: 基準年度CO2排出量の10%値 | BG69: =IF($Q$16="","",$Q$16*0.1) -> 265.7712 | BK69: tCO2/年 | BY69: 対策による削減効果 | CF69: ― | CJ69: 0 | CN69: 1164 | CR69: 4464 | CV69: 5867 | CZ69: 5867 | DE69: 主要システム 系統 | DJ69: 基準年度CO2排出量の10%値 | DV69: 80 | DZ69: tCO2/年
J70: 対策後 | Q70: ― | U70: =IFERROR(U68-U69,"---") -> 67161.13333 | Y70: =IFERROR(Y68-Y69,"---") -> 67161.13333 | AC70: =IFERROR(AC68-AC69,"---") -> 67161.13333 | AG70: =IFERROR(AG68-AG69,"---") -> 67161.13333 | AK70: =IFERROR(AK68-AK69,"---") -> 67161.13333 | AU70: 目標年度 | AV70: 更新設備分CO2削減量※1 | BG70: =SUMIFS(INDIRECT($BK$63&"27:"&$BK$63&"37"),$AC$27:$AC$37,"○",$AE$27:$AE$37,"*SHIFT*")+SUMIFS(INDIRECT($BK$63&"47:"&$BK$63&"57"),$AC$47:$AC$57,"○",$AE$47:$AE$57,"*SHIFT*") -> 0 | BK70: tCO2/年 | BY70: 対策後 | CF70: ― | CJ70: 2501 | CN70: 1338 | CR70: -1961 | CV70: -3363 | CZ70: -3362 | DJ70: 目標年度 | DK70: 更新設備分CO2削減量※1 | DV70: 200 | DZ70: tCO2/年
E71: 脱炭素化指標 (h)／(i) | J71: 対策なし | Q71: =IFERROR(Q65/Q68,"---") -> 0.0652151006 | U71: ― | Y71: ― | AC71: ― | AG71: ― | AK71: ― | AV71: 自主的削減対策分CO2削減量※2 | BG71: =SUMIFS(INDIRECT($BK$63&"27:"&$BK$63&"37"),$AC$27:$AC$37,"○")+SUMIFS(INDIRECT($BK$63&"47:"&$BK$63&"57"),$AC$47:$AC$57,"○")-BG70 -> 0 | BK71: tCO2/年 | BT71: 脱炭素化指標 (h)／(i) | BY71: 対策なし | CF71: 0.48 | CJ71: ― | CN71: ― | CR71: ― | CV71: ― | CZ71: ― | DK71: 自主的削減対策分CO2削減量※2 | DV71: 14 | DZ71: tCO2/年
J72: 対策後 | Q72: ― | U72: =IFERROR(U67/U70,"---") -> 0.0652151006 | Y72: =IFERROR(Y67/Y70,"---") -> 0.0652151006 | AC72: =IFERROR(AC67/AC70,"---") -> 0.0652151006 | AG72: =IFERROR(AG67/AG70,"---") -> 0.0652151006 | AK72: =IFERROR(AK67/AK70,"---") -> 0.0652151006 | AV72: 自主的削減対策実施数 | BG72: =(COUNTIFS($BN$27:$BN$37,1,$AC$27:$AC$37,"○")-COUNTIFS($BN$27:$BN$37,1,$AC$27:$AC$37,"○",$AE$27:$AE$37,"*SHIFT*"))+(COUNTIFS($BN$47:$BN$57,1,$AC$47:$AC$57,"○")-COUNTIFS($BN$47:$BN$57,1,$AC$47:$AC$57,"○",$AE$47:$AE$57,"*SHIFT*")) -> 0 | BK72: 件 | BY72: 対策後 | CF72: ― | CJ72: 0.4802 | CN72: 0.8594 | CR72: -0.3569 | CV72: -0.1888 | CZ72: -0.1891 | DK72: 自主的削減対策実施数 | DV72: 4 | DZ72: 件
J73: 対基準年度 | N73: 差分 | Q73: ― | U73: =IFERROR($Q$71-U72,"---") -> 0 | Y73: =IFERROR($Q$71-Y72,"---") -> 0 | AC73: =IFERROR($Q$71-AC72,"---") -> 0 | AG73: =IFERROR($Q$71-AG72,"---") -> 0 | AK73: =IFERROR($Q$71-AK72,"---") -> 0 | AP73: ※1 | AQ73: 目標年度において、SHIFT事業の設備更新補助経費により削減されるCO2 | BY73: 対基準年度 | CC73: 差分 | CF73: ― | CJ73: -0.0002 | CN73: -0.3794 | CR73: 0.8369 | CV73: 0.6688 | CZ73: 0.6691 | DE73: ※1 | DF73: 目標年度において、SHIFT事業の設備更新補助経費により削減されるCO2
B74: 主要 システム系統 | E74: CO2排出量(j) (t-CO2) | J74: 対策なし | Q74: =IF(Q16="","",Q16) -> 2657.712 | U74: =IF(U16="","",U16) -> 2657.712 | Y74: =IF(Y16="","",Y16) -> 2657.712 | AC74: =IF(AC16="","",AC16) -> 2657.712 | AG74: =IF(AG16="","",AG16) -> 2657.712 | AK74: =IF(AK16="","",AK16) -> 2657.712 | AP74: ※2 | AQ74: 目標年度において、SHIFT事業の設備更新補助経費以外の経費により削減されるCO2 | BQ74: 主要 システム系統 | BT74: CO2排出量(j) (t-CO2) | BY74: 対策なし | CF74: 800 | CJ74: 801 | CN74: 802 | CR74: 803 | CV74: 804 | CZ74: 805 | DE74: ※2 | DF74: 目標年度において、SHIFT事業の設備更新補助経費以外の経費により削減されるCO2
J75: 対策による削減効果 | Q75: ― | U75: =IF(U17="","",U17) -> 0 | Y75: =IF(Y17="","",Y17) -> 0 | AC75: =IF(AC17="","",AC17) -> 0 | AG75: =IF(AG17="","",AG17) -> 0 | AK75: =IF(AK17="","",AK17) -> 0 | BY75: 対策による削減効果 | CF75: ― | CJ75: 0 | CN75: 0 | CR75: 214 | CV75: 214 | CZ75: 214
J76: 対策後 | Q76: ― | U76: =IF(U18="","",U18) -> 2657.712 | Y76: =IF(Y18="","",Y18) -> 2657.712 | AC76: =IF(AC18="","",AC18) -> 2657.712 | AG76: =IF(AG18="","",AG18) -> 2657.712 | AK76: =IF(AK18="","",AK18) -> 2657.712 | AP76: ■ | AQ76: 備考 | BY76: 対策後 | CF76: ― | CJ76: 801 | CN76: 802 | CR76: 589 | CV76: 590 | CZ76: 591 | DE76: ■ | DF76: 備考
E77: エネルギー 使用量(k) (GJ換算値) | J77: 対策なし | Q77: =IF('512排出量(対策なし)根拠'!$N$14="","",'512排出量(対策なし)根拠'!$N$14) -> 38034.66667 | U77: =IF('512排出量(対策なし)根拠'!$R$14="","",'512排出量(対策なし)根拠'!$R$14) -> 38034.66667 | Y77: =IF('512排出量(対策なし)根拠'!$V$14="","",'512排出量(対策なし)根拠'!$V$14) -> 38034.66667 | AC77: =IF('512排出量(対策なし)根拠'!$Z$14="","",'512排出量(対策なし)根拠'!$Z$14) -> 38034.66667 | AG77: =IF('512排出量(対策なし)根拠'!$AD$14="","",'512排出量(対策なし)根拠'!$AD$14) -> 38034.66667 | AK77: =IF('512排出量(対策なし)根拠'!$AH$14="","",'512排出量(対策なし)根拠'!$AH$14) -> 38034.66667 | BT77: エネルギー 使用量(k) (GJ換算値) | BY77: 対策なし | CF77: 13500 | CJ77: 13400 | CN77: 13300 | CR77: 13200 | CV77: 13100 | CZ77: 13000
J78: 対策による削減効果 | Q78: ― | U78: =SUMIFS($ER$27:$ER$37,$EW$27:$EW$37,"○")+SUMIFS($ER$47:$ER$57,$EW$47:$EW$57,"○") -> 0 | Y78: =SUMIFS($ES$27:$ES$37,$EW$27:$EW$37,"○")+SUMIFS($ES$47:$ES$57,$EW$47:$EW$57,"○") -> 0 | AC78: =SUMIFS($ET$27:$ET$37,$EW$27:$EW$37,"○")+SUMIFS($ET$47:$ET$57,$EW$47:$EW$57,"○") -> 0 | AG78: =SUMIFS($EU$27:$EU$37,$EW$27:$EW$37,"○")+SUMIFS($EU$47:$EU$57,$EW$47:$EW$57,"○") -> 0 | AK78: =SUMIFS($EV$27:$EV$37,$EW$27:$EW$37,"○")+SUMIFS($EV$47:$EV$57,$EW$47:$EW$57,"○") -> 0 | BY78: 対策による削減効果 | CF78: ― | CJ78: 0 | CN78: 0 | CR78: 1385 | CV78: 1385 | CZ78: 1385 | DF78: ■[431報告会議事録]に記録した各対策に対する事業者の実施判断の結果と、 脱炭素化計画に含まれている対策が一致しない場合には、報告会後に実施 判断が変更された理由や要因等を記述してください。 ■その他、本シートの内容について注記等がある場合に記入してください。
J79: 対策後 | Q79: ― | U79: =IFERROR(U77-U78,"---") -> 38034.66667 | Y79: =IFERROR(Y77-Y78,"---") -> 38034.66667 | AC79: =IFERROR(AC77-AC78,"---") -> 38034.66667 | AG79: =IFERROR(AG77-AG78,"---") -> 38034.66667 | AK79: =IFERROR(AK77-AK78,"---") -> 38034.66667 | BY79: 対策後 | CF79: ― | CJ79: 13400 | CN79: 13300 | CR79: 11815 | CV79: 11715 | CZ79: 11615
E80: 脱炭素化指標 (j)／(k) | J80: 対策なし | Q80: =IFERROR(Q74/Q77,"---") -> 0.06987604291 | U80: ― | Y80: ― | AC80: ― | AG80: ― | AK80: ― | BT80: 脱炭素化指標 (j)／(k) | BY80: 対策なし | CF80: 0.0592 | CJ80: ― | CN80: ― | CR80: ― | CV80: ― | CZ80: ―
J81: 対策後 | Q81: ― | U81: =IFERROR(U76/U79,"---") -> 0.06987604291 | Y81: =IFERROR(Y76/Y79,"---") -> 0.06987604291 | AC81: =IFERROR(AC76/AC79,"---") -> 0.06987604291 | AG81: =IFERROR(AG76/AG79,"---") -> 0.06987604291 | AK81: =IFERROR(AK76/AK79,"---") -> 0.06987604291 | BY81: 対策後 | CF81: ― | CJ81: 0.0597 | CN81: 0.0603 | CR81: 0.0498 | CV81: 0.0503 | CZ81: 0.0508
J82: 対基準年度 | N82: 差分 | Q82: ― | U82: =IFERROR($Q$80-U81,"---") -> 0 | Y82: =IFERROR($Q$80-Y81,"---") -> 0 | AC82: =IFERROR($Q$80-AC81,"---") -> 0 | AG82: =IFERROR($Q$80-AG81,"---") -> 0 | AK82: =IFERROR($Q$80-AK81,"---") -> 0 | BY82: 対基準年度 | CC82: 差分 | CF82: ― | CJ82: -0.0005 | CN82: -0.0011 | CR82: 0.0094 | CV82: 0.0089 | CZ82: 0.0084

Sheet 512排出量(対策なし)根拠
B4: 5．実施計画書 | K4: 51．脱炭素化計画 | AO4: 記入例及び注記 | AW4: セル色凡例 | BC4: 直接入力 | BH4: 選択 | BL4: 自動計算 | CW4: セル色の表示／非表示
B5: 512．排出量（対策なし）根拠 | AO5: （セルのメモやテキストボックスによる注記は移動できます） | CW5: FALSE
B7: ■ | C7: 基準年度及び計画年度（対策なし）のエネルギー起源CO2排出量、エネルギー使用量 | AO7: ■ | AP7: 基準年度及び計画年度（対策なし）のエネルギー起源CO2排出量、エネルギー使用量
C9: 対象範囲 | N9: 基準年度 | R9: =IF('511脱炭素化計画'!AQ24="","",'511脱炭素化計画'!AQ24) ->  | V9: =IF('511脱炭素化計画'!AT24="","",'511脱炭素化計画'!AT24) -> 目標年度 | Z9: =IF('511脱炭素化計画'!AW24="","",'511脱炭素化計画'!AW24) ->  | AD9: =IF('511脱炭素化計画'!AZ24="","",'511脱炭素化計画'!AZ24) ->  | AH9: =IF('511脱炭素化計画'!BC24="","",'511脱炭素化計画'!BC24) ->  | AP9: 対象範囲 | BA9: 基準年度 | BI9: 目標年度 | BZ9: ※基準年度及び計画年度の排出量等に関する注記 ■基準年度のCO2排出量及びエネルギー使用量は、 同ファイル内の「算定報告書」から自動転記されます。 ・工場・事業場全体は6-4から転記 ・主要システム系統は7-4から転記 ※主要システム系統を設定する場合には、算定報告書の [7-1～7-4]への入力が必要です。 ■各計画年度（対策なし）のCO2排出量及びエネルギー 使用量については、初期状態では、基準年度の数値を 転記する計算式が入っています。 基準年度からの変更が見込まれる場合には、計算式を 削除して、数値を入力してください。（整数表示されますが、 小数点以下の数字も入力できます） ■基準年度の数値から変更あり、あるいは変更なしの いずれの場合においても、算出根拠を本シートに記載 してください。
R10: =IF('511脱炭素化計画'!AQ25="","",'511脱炭素化計画'!AQ25) -> 令和6年度 | V10: =IF('511脱炭素化計画'!AT25="","",'511脱炭素化計画'!AT25) -> 令和7年度 | Z10: =IF('511脱炭素化計画'!AW25="","",'511脱炭素化計画'!AW25) -> 令和8年度 | AD10: =IF('511脱炭素化計画'!AZ25="","",'511脱炭素化計画'!AZ25) -> 令和9年度 | AH10: =IF('511脱炭素化計画'!BC25="","",'511脱炭素化計画'!BC25) -> 令和10年度 | BE10: 令和6年度 | BI10: 令和7年度 | BM10: 令和8年度 | BQ10: 令和9年度 | BU10: 令和10年度
C11: 工場・ 事業場 全体 | G11: CO2排出量(t-CO2) | N11: =IF('6-4. CO2排出量_総括'!K11="","",'6-4. CO2排出量_総括'!K11) -> 4379.920067 | R11: =IF($N11="","",$N11) -> 4379.920067 | V11: =IF($N11="","",$N11) -> 4379.920067 | Z11: =IF($N11="","",$N11) -> 4379.920067 | AD11: =IF($N11="","",$N11) -> 4379.920067 | AH11: =IF($N11="","",$N11) -> 4379.920067 | AP11: 工場・ 事業場 全体 | AT11: CO2排出量(t-CO2) | BA11: 1200 | BE11: 1200 | BI11: 1200 | BM11: 1200 | BQ11: 1200 | BU11: 1200
G12: エネルギー使用量(GJ) | N12: =IF('6-4. CO2排出量_総括'!N11="","",'6-4. CO2排出量_総括'!N11) -> 67161.13333 | R12: =IF($N12="","",$N12) -> 67161.13333 | V12: =IF($N12="","",$N12) -> 67161.13333 | Z12: =IF($N12="","",$N12) -> 67161.13333 | AD12: =IF($N12="","",$N12) -> 67161.13333 | AH12: =IF($N12="","",$N12) -> 67161.13333 | AT12: エネルギー使用量(GJ) | BA12: 25000 | BE12: 25000 | BI12: 25000 | BM12: 25000 | BQ12: 25000 | BU12: 25000
C13: 主要 システム 系統 | G13: CO2排出量(t-CO2) | N13: =IF('7-4. CO2排出量_総括'!K11="","",'7-4. CO2排出量_総括'!K11) -> 2657.712 | R13: =IF($N13="","",$N13) -> 2657.712 | V13: =IF($N13="","",$N13) -> 2657.712 | Z13: =IF($N13="","",$N13) -> 2657.712 | AD13: =IF($N13="","",$N13) -> 2657.712 | AH13: =IF($N13="","",$N13) -> 2657.712 | AP13: 主要 システム 系統 | AT13: CO2排出量(t-CO2) | BA13: 800 | BE13: 800 | BI13: 800 | BM13: 800 | BQ13: 800 | BU13: 800
G14: エネルギー使用量(GJ) | N14: =IF('7-4. CO2排出量_総括'!N11="","",'7-4. CO2排出量_総括'!N11) -> 38034.66667 | R14: =IF($N14="","",$N14) -> 38034.66667 | V14: =IF($N14="","",$N14) -> 38034.66667 | Z14: =IF($N14="","",$N14) -> 38034.66667 | AD14: =IF($N14="","",$N14) -> 38034.66667 | AH14: =IF($N14="","",$N14) -> 38034.66667 | AT14: エネルギー使用量(GJ) | BA14: 13500 | BE14: 13500 | BI14: 13500 | BM14: 13500 | BQ14: 13500 | BU14: 13500
C16: 主要システム系統の名称 | AP16: 主要システム系統の名称 | BA16: 蒸気システム
B19: ■ | C19: 計画年度（対策なし）のエネルギー起源CO2排出量及びエネルギー使用量(GJ換算値)の算出根拠 | AO19: ■ | AP19: 計画年度（対策なし）のエネルギー起源CO2排出量及びエネルギー使用量(GJ換算値)の算出根拠
B21: 【工場・事業場全体】 | AO21: 【工場・事業場全体】
AQ23: ※計画各年度の対策を実施しない場合のCO2排出量及びエネルギー使用量に関する注記 ■計画期間中の各年度について、対策を実施しない場合（BAU）に想定されるCO2排出量及びエネルギー使用量 （GJ換算値）の根拠を記入してください。 ■計画年度間における事業活動の増減見込み等を勘案した数値となるようにしてください。 ■記入欄が不足の場合には、別ファイルで作成して別添とするのではなく、本ファイルに[別紙]として新たに シートを挿入して使用してください。
B44: 【主要システム系統】

Sheet 513設備CO2削減計画
B4: 5．実施計画書 | D4: 51．脱炭素化計画 | G4: 事業者名 | H4: =IF(表紙!L41="","",表紙!L41) -> ABC工業株式会社 | O4: 記入例及び注記 | T4: 事業者名 | AD4: セル色表示非表示
B5: 513．設備CO2削減計画 | G5: 工場・事業場名 | H5: =IF(表紙!L44="","",表紙!L44) -> ABC工業株式会社SHIFT工場 | O5: （セルのメモやテキストボックスによる注記は移動できます） | T5: 工場・事業場名 | AD5: FALSE
G6: 支援機関名 | H6: =IF(表紙!L55="","",表紙!L55)&IF(OR(表紙!L58="なし",表紙!L58=""),"","、"&表紙!L58) ->  | T6: 支援機関名
H9: 工場・事業場全体の基準年度排出量 | J9: =IF('6-4. CO2排出量_総括'!K11="","",'6-4. CO2排出量_総括'!K11) -> 4379.920067 | K9: t-CO2/年(A) | U9: 工場・事業場全体の基準年度排出量 | W9: 1200 | X9: t-CO2/年(A) | AN9: 工場・事業場全体の基準年度エネルギー使用量 | AP9: =IF('6-4. CO2排出量_総括'!N11="","",'6-4. CO2排出量_総括'!N11) -> 67161.13333 | AQ9: GJ(A)
B11: 1．設備CO2削減計画 | K11: （CO2排出量、CO2削減量の単位：t-CO2/年） | O11: 1．設備CO2削減計画 | X11: （CO2排出量、CO2削減量の単位：t-CO2/年）
B12: 個票番号 | C12: 対策名称 | D12: 導入設備 | E12: 申請予定 補助金 | F12: LED照明設備 ・ 再エネ設備 | G12: ① | H12: ② | I12: ③ | J12: ④ | K12: ⑤ | O12: 個票番号 | P12: 対策名称 | Q12: 導入設備 | R12: 申請予定 補助金 | S12: LED照明設備 ・ 再エネ設備 | T12: ① | U12: ② | V12: ③ | W12: ④ | X12: ⑤ | AH12: 個票番号 | AI12: 対策名称 | AJ12: 導入設備 | AK12: 申請予定 補助金 | AL12: LED照明設備 ・ 再エネ設備 | AM12: ① | AN12: ② | AO12: ③ | AP12: ④ | AQ12: ⑤
G13: 対策実施【前】 | H13: 対策実施【計画】 | I13: 設備 | J13: 設備 | K13: 工場・事業場 | T13: 対策実施【前】 | U13: 対策実施【計画】 | V13: 設備 | W13: 設備 | X13: 工場・事業場 | AM13: 対策実施【前】 | AN13: 対策実施【計画】 | AO13: 設備 | AP13: 設備 | AQ13: 工場・事業場
G14: CO2排出量 | H14: CO2排出量 | I14: CO2削減量 | J14: CO2削減率 | K14: CO2削減率 | T14: CO2排出量 | U14: CO2排出量 | V14: CO2削減量 | W14: CO2削減率 | X14: CO2削減率 | AM14: エネルギー使用量 | AN14: エネルギー使用量 | AO14: エネルギー削減量 | AP14: エネルギー削減率 | AQ14: エネルギー削減率
I15: (①-②) | J15: (③/①*100) | K15: (③/(A)*100) | V15: (①-②) | W15: (③/①*100) | X15: (③/(A)*100) | AO15: (①-②) | AP15: (③/①*100) | AQ15: (③/(A)*100)
C16: =IF($B16="","",IFERROR(IF(INDIRECT("'対策個票"&$B16&"'!G9")="","",INDIRECT("'対策個票"&$B16&"'!G9")),"―")) ->  | D16: =IF($B16="","",IFERROR(IF(INDIRECT("'対策個票"&$B16&"'!AB13")="","",INDIRECT("'対策個票"&$B16&"'!AB13")),"―")) ->  | E16: =IF($B16="","",IFERROR(IF(INDIRECT("'対策個票"&$B16&"'!B294")="","",INDIRECT("'対策個票"&$B16&"'!B294")),"―")) ->  | G16: =IF($B16="","",IFERROR(IF(INDIRECT("'対策個票"&$B16&"'!X98")="","",INDIRECT("'対策個票"&$B16&"'!X98")),"―")) ->  | H16: =IF($B16="","",IFERROR(IF(INDIRECT("'対策個票"&$B16&"'!X119")="","",INDIRECT("'対策個票"&$B16&"'!X119")),"―")) ->  | I16: =IF($B16="","",IFERROR($G16-$H16,"---")) ->  | J16: =IF($B16="","",IFERROR($I16/$G16*100,"---")) ->  | K16: =IF($B16="","",IFERROR($I16/$J$9*100,"---")) ->  | O16: 6 | P16: ボイラーの燃料転換 | Q16: LPガス焚きボイラー | R16: 国(SHIFT) | T16: 820 | U16: 620 | V16: 200 | W16: 24.39 | X16: 16.67 | AH16: =IF($B16="","",$B16) ->  | AI16: =IF($C16="","",$C16) ->  | AJ16: =IF($D16="","",$D16) ->  | AK16: =IF($E16="","",$E16) ->  | AL16: =IF($F16="","",$F16) ->  | AM16: =IF($AH16="","",IFERROR(IF(INDIRECT("'対策個票"&$AH16&"'!CH95")="","",INDIRECT("'対策個票"&$AH16&"'!CH95")),"―")) ->  | AN16: =IF($AH16="","",IFERROR(IF(INDIRECT("'対策個票"&$AH16&"'!CH102")="","",INDIRECT("'対策個票"&$AH16&"'!CH102")),"―")) ->  | AO16: =IF($AH16="","",IFERROR($AM16-$AN16,"---")) ->  | AP16: =IF($AH16="","",IFERROR($AO16/$AM16*100,"---")) ->  | AQ16: =IF($AH16="","",IFERROR($AO16/$AP$9*100,"---")) -> 
C17: =IF($B17="","",IFERROR(IF(INDIRECT("'対策個票"&$B17&"'!G9")="","",INDIRECT("'対策個票"&$B17&"'!G9")),"―")) ->  | D17: =IF($B17="","",IFERROR(IF(INDIRECT("'対策個票"&$B17&"'!AB13")="","",INDIRECT("'対策個票"&$B17&"'!AB13")),"―")) ->  | E17: =IF($B17="","",IFERROR(IF(INDIRECT("'対策個票"&$B17&"'!B294")="","",INDIRECT("'対策個票"&$B17&"'!B294")),"―")) ->  | G17: =IF($B17="","",IFERROR(IF(INDIRECT("'対策個票"&$B17&"'!X98")="","",INDIRECT("'対策個票"&$B17&"'!X98")),"―")) ->  | H17: =IF($B17="","",IFERROR(IF(INDIRECT("'対策個票"&$B17&"'!X119")="","",INDIRECT("'対策個票"&$B17&"'!X119")),"―")) ->  | I17: =IF($B17="","",IFERROR($G17-$H17,"---")) ->  | J17: =IF($B17="","",IFERROR($I17/$G17*100,"---")) ->  | K17: =IF($B17="","",IFERROR($I17/$J$9*100,"---")) ->  | O17: 3 | P17: LED照明設備の導入 | Q17: LED照明器具 | R17: 国(SHIFT) | S17: 該当 | T17: 300 | U17: 138 | V17: 162 | W17: 54 | X17: 13.5 | AH17: =IF($B17="","",$B17) ->  | AI17: =IF($C17="","",$C17) ->  | AJ17: =IF($D17="","",$D17) ->  | AK17: =IF($E17="","",$E17) ->  | AL17: =IF($F17="","",$F17) ->  | AM17: =IF($AH17="","",IFERROR(IF(INDIRECT("'対策個票"&$AH17&"'!CH95")="","",INDIRECT("'対策個票"&$AH17&"'!CH95")),"―")) ->  | AN17: =IF($AH17="","",IFERROR(IF(INDIRECT("'対策個票"&$AH17&"'!CH102")="","",INDIRECT("'対策個票"&$AH17&"'!CH102")),"―")) ->  | AO17: =IF($AH17="","",IFERROR($AM17-$AN17,"---")) ->  | AP17: =IF($AH17="","",IFERROR($AO17/$AM17*100,"---")) ->  | AQ17: =IF($AH17="","",IFERROR($AO17/$AP$9*100,"---")) -> 
C18: =IF($B18="","",IFERROR(IF(INDIRECT("'対策個票"&$B18&"'!G9")="","",INDIRECT("'対策個票"&$B18&"'!G9")),"―")) ->  | D18: =IF($B18="","",IFERROR(IF(INDIRECT("'対策個票"&$B18&"'!AB13")="","",INDIRECT("'対策個票"&$B18&"'!AB13")),"―")) ->  | E18: =IF($B18="","",IFERROR(IF(INDIRECT("'対策個票"&$B18&"'!B294")="","",INDIRECT("'対策個票"&$B18&"'!B294")),"―")) ->  | G18: =IF($B18="","",IFERROR(IF(INDIRECT("'対策個票"&$B18&"'!X98")="","",INDIRECT("'対策個票"&$B18&"'!X98")),"―")) ->  | H18: =IF($B18="","",IFERROR(IF(INDIRECT("'対策個票"&$B18&"'!X119")="","",INDIRECT("'対策個票"&$B18&"'!X119")),"―")) ->  | O18: 4 | P18: 蒸気配管・蒸気バルブ・フランジ等の断熱強化 | Q18: 保温材 | R18: 予定なし | T18: 820 | U18: 810 | V18: 10 | W18: 1.22 | X18: 0.83 | AM18: =IF($AH18="","",IFERROR(IF(INDIRECT("'対策個票"&$AH18&"'!CH95")="","",INDIRECT("'対策個票"&$AH18&"'!CH95")),"―")) ->  | AN18: =IF($AH18="","",IFERROR(IF(INDIRECT("'対策個票"&$AH18&"'!CH102")="","",INDIRECT("'対策個票"&$AH18&"'!CH102")),"―")) -> 
C19: =IF($B19="","",IFERROR(IF(INDIRECT("'対策個票"&$B19&"'!G9")="","",INDIRECT("'対策個票"&$B19&"'!G9")),"―")) ->  | D19: =IF($B19="","",IFERROR(IF(INDIRECT("'対策個票"&$B19&"'!AB13")="","",INDIRECT("'対策個票"&$B19&"'!AB13")),"―")) ->  | E19: =IF($B19="","",IFERROR(IF(INDIRECT("'対策個票"&$B19&"'!B294")="","",INDIRECT("'対策個票"&$B19&"'!B294")),"―")) ->  | G19: =IF($B19="","",IFERROR(IF(INDIRECT("'対策個票"&$B19&"'!X98")="","",INDIRECT("'対策個票"&$B19&"'!X98")),"―")) ->  | H19: =IF($B19="","",IFERROR(IF(INDIRECT("'対策個票"&$B19&"'!X119")="","",INDIRECT("'対策個票"&$B19&"'!X119")),"―")) ->  | I19: =IF($B19="","",IFERROR($G19-$H19,"---")) ->  | J19: =IF($B19="","",IFERROR($I19/$G19*100,"---")) ->  | K19: =IF($B19="","",IFERROR($I19/$J$9*100,"---")) ->  | AM19: =IF($AH19="","",IFERROR(IF(INDIRECT("'対策個票"&$AH19&"'!CH95")="","",INDIRECT("'対策個票"&$AH19&"'!CH95")),"―")) ->  | AN19: =IF($AH19="","",IFERROR(IF(INDIRECT("'対策個票"&$AH19&"'!CH102")="","",INDIRECT("'対策個票"&$AH19&"'!CH102")),"―")) -> 
C20: =IF($B20="","",IFERROR(IF(INDIRECT("'対策個票"&$B20&"'!G9")="","",INDIRECT("'対策個票"&$B20&"'!G9")),"―")) ->  | D20: =IF($B20="","",IFERROR(IF(INDIRECT("'対策個票"&$B20&"'!AB13")="","",INDIRECT("'対策個票"&$B20&"'!AB13")),"―")) ->  | E20: =IF($B20="","",IFERROR(IF(INDIRECT("'対策個票"&$B20&"'!B294")="","",INDIRECT("'対策個票"&$B20&"'!B294")),"―")) ->  | G20: =IF($B20="","",IFERROR(IF(INDIRECT("'対策個票"&$B20&"'!X98")="","",INDIRECT("'対策個票"&$B20&"'!X98")),"―")) ->  | H20: =IF($B20="","",IFERROR(IF(INDIRECT("'対策個票"&$B20&"'!X119")="","",INDIRECT("'対策個票"&$B20&"'!X119")),"―")) ->  | I20: =IF($B20="","",IFERROR($G20-$H20,"---")) ->  | J20: =IF($B20="","",IFERROR($I20/$G20*100,"---")) ->  | K20: =IF($B20="","",IFERROR($I20/$J$9*100,"---")) ->  | AM20: =IF($AH20="","",IFERROR(IF(INDIRECT("'対策個票"&$AH20&"'!CH95")="","",INDIRECT("'対策個票"&$AH20&"'!CH95")),"―")) ->  | AN20: =IF($AH20="","",IFERROR(IF(INDIRECT("'対策個票"&$AH20&"'!CH102")="","",INDIRECT("'対策個票"&$AH20&"'!CH102")),"―")) -> 
C21: =IF($B21="","",IFERROR(IF(INDIRECT("'対策個票"&$B21&"'!G9")="","",INDIRECT("'対策個票"&$B21&"'!G9")),"―")) ->  | D21: =IF($B21="","",IFERROR(IF(INDIRECT("'対策個票"&$B21&"'!AB13")="","",INDIRECT("'対策個票"&$B21&"'!AB13")),"―")) ->  | E21: =IF($B21="","",IFERROR(IF(INDIRECT("'対策個票"&$B21&"'!B294")="","",INDIRECT("'対策個票"&$B21&"'!B294")),"―")) ->  | G21: =IF($B21="","",IFERROR(IF(INDIRECT("'対策個票"&$B21&"'!X98")="","",INDIRECT("'対策個票"&$B21&"'!X98")),"―")) ->  | H21: =IF($B21="","",IFERROR(IF(INDIRECT("'対策個票"&$B21&"'!X119")="","",INDIRECT("'対策個票"&$B21&"'!X119")),"―")) ->  | AM21: =IF($AH21="","",IFERROR(IF(INDIRECT("'対策個票"&$AH21&"'!CH95")="","",INDIRECT("'対策個票"&$AH21&"'!CH95")),"―")) ->  | AN21: =IF($AH21="","",IFERROR(IF(INDIRECT("'対策個票"&$AH21&"'!CH102")="","",INDIRECT("'対策個票"&$AH21&"'!CH102")),"―")) -> 
C22: =IF($B22="","",IFERROR(IF(INDIRECT("'対策個票"&$B22&"'!G9")="","",INDIRECT("'対策個票"&$B22&"'!G9")),"―")) ->  | D22: =IF($B22="","",IFERROR(IF(INDIRECT("'対策個票"&$B22&"'!AB13")="","",INDIRECT("'対策個票"&$B22&"'!AB13")),"―")) ->  | E22: =IF($B22="","",IFERROR(IF(INDIRECT("'対策個票"&$B22&"'!B294")="","",INDIRECT("'対策個票"&$B22&"'!B294")),"―")) ->  | G22: =IF($B22="","",IFERROR(IF(INDIRECT("'対策個票"&$B22&"'!X98")="","",INDIRECT("'対策個票"&$B22&"'!X98")),"―")) ->  | H22: =IF($B22="","",IFERROR(IF(INDIRECT("'対策個票"&$B22&"'!X119")="","",INDIRECT("'対策個票"&$B22&"'!X119")),"―")) ->  | AM22: =IF($AH22="","",IFERROR(IF(INDIRECT("'対策個票"&$AH22&"'!CH95")="","",INDIRECT("'対策個票"&$AH22&"'!CH95")),"―")) ->  | AN22: =IF($AH22="","",IFERROR(IF(INDIRECT("'対策個票"&$AH22&"'!CH102")="","",INDIRECT("'対策個票"&$AH22&"'!CH102")),"―")) -> 
C23: =IF($B23="","",IFERROR(IF(INDIRECT("'対策個票"&$B23&"'!G9")="","",INDIRECT("'対策個票"&$B23&"'!G9")),"―")) ->  | D23: =IF($B23="","",IFERROR(IF(INDIRECT("'対策個票"&$B23&"'!AB13")="","",INDIRECT("'対策個票"&$B23&"'!AB13")),"―")) ->  | E23: =IF($B23="","",IFERROR(IF(INDIRECT("'対策個票"&$B23&"'!B294")="","",INDIRECT("'対策個票"&$B23&"'!B294")),"―")) ->  | G23: =IF($B23="","",IFERROR(IF(INDIRECT("'対策個票"&$B23&"'!X98")="","",INDIRECT("'対策個票"&$B23&"'!X98")),"―")) ->  | H23: =IF($B23="","",IFERROR(IF(INDIRECT("'対策個票"&$B23&"'!X119")="","",INDIRECT("'対策個票"&$B23&"'!X119")),"―")) ->  | AM23: =IF($AH23="","",IFERROR(IF(INDIRECT("'対策個票"&$AH23&"'!CH95")="","",INDIRECT("'対策個票"&$AH23&"'!CH95")),"―")) ->  | AN23: =IF($AH23="","",IFERROR(IF(INDIRECT("'対策個票"&$AH23&"'!CH102")="","",INDIRECT("'対策個票"&$AH23&"'!CH102")),"―")) -> 
C24: =IF($B24="","",IFERROR(IF(INDIRECT("'対策個票"&$B24&"'!G9")="","",INDIRECT("'対策個票"&$B24&"'!G9")),"―")) ->  | D24: =IF($B24="","",IFERROR(IF(INDIRECT("'対策個票"&$B24&"'!AB13")="","",INDIRECT("'対策個票"&$B24&"'!AB13")),"―")) ->  | E24: =IF($B24="","",IFERROR(IF(INDIRECT("'対策個票"&$B24&"'!B294")="","",INDIRECT("'対策個票"&$B24&"'!B294")),"―")) ->  | G24: =IF($B24="","",IFERROR(IF(INDIRECT("'対策個票"&$B24&"'!X98")="","",INDIRECT("'対策個票"&$B24&"'!X98")),"―")) ->  | H24: =IF($B24="","",IFERROR(IF(INDIRECT("'対策個票"&$B24&"'!X119")="","",INDIRECT("'対策個票"&$B24&"'!X119")),"―")) ->  | AM24: =IF($AH24="","",IFERROR(IF(INDIRECT("'対策個票"&$AH24&"'!CH95")="","",INDIRECT("'対策個票"&$AH24&"'!CH95")),"―")) ->  | AN24: =IF($AH24="","",IFERROR(IF(INDIRECT("'対策個票"&$AH24&"'!CH102")="","",INDIRECT("'対策個票"&$AH24&"'!CH102")),"―")) -> 
C25: =IF($B25="","",IFERROR(IF(INDIRECT("'対策個票"&$B25&"'!G9")="","",INDIRECT("'対策個票"&$B25&"'!G9")),"―")) ->  | D25: =IF($B25="","",IFERROR(IF(INDIRECT("'対策個票"&$B25&"'!AB13")="","",INDIRECT("'対策個票"&$B25&"'!AB13")),"―")) ->  | E25: =IF($B25="","",IFERROR(IF(INDIRECT("'対策個票"&$B25&"'!B294")="","",INDIRECT("'対策個票"&$B25&"'!B294")),"―")) ->  | G25: =IF($B25="","",IFERROR(IF(INDIRECT("'対策個票"&$B25&"'!X98")="","",INDIRECT("'対策個票"&$B25&"'!X98")),"―")) ->  | H25: =IF($B25="","",IFERROR(IF(INDIRECT("'対策個票"&$B25&"'!X119")="","",INDIRECT("'対策個票"&$B25&"'!X119")),"―")) ->  | AM25: =IF($AH25="","",IFERROR(IF(INDIRECT("'対策個票"&$AH25&"'!CH95")="","",INDIRECT("'対策個票"&$AH25&"'!CH95")),"―")) ->  | AN25: =IF($AH25="","",IFERROR(IF(INDIRECT("'対策個票"&$AH25&"'!CH102")="","",INDIRECT("'対策個票"&$AH25&"'!CH102")),"―")) ->  | AO25: =IF($AH25="","",IFERROR($AM25-$AN25,"---")) ->  | AP25: =IF($AH25="","",IFERROR($AO25/$AM25*100,"---")) -> 
B26: 小計(1) | C26: 申請予定補助金：国（SHIFT） | D26: 設備導入対策（LED照明設備・再エネ設備を除く） | I26: =IF(SUM($B$16:$B$25)=0,"",SUMIFS($I$16:$I$25,$E$16:$E$25,"*SHIFT*",$F$16:$F$25,"")) ->  | K26: =IF(SUM($B$16:$B$25)=0,"",IFERROR($I26/$J$9*100,"---")) ->  | O26: 小計(1) | P26: 申請予定補助金：国（SHIFT） | Q26: 設備導入対策（LED照明設備・再エネ設備を除く） | V26: 200 | X26: 16.67 | AH26: 小計(1) | AI26: 申請予定補助金：国（SHIFT） | AJ26: 設備導入対策（LED照明設備・再エネ設備を除く） | AO26: =IF(SUM($AH$16:$AH$25)=0,"",SUMIFS($AO$16:$AO$25,$AK$16:$AK$25,"*SHIFT*",$AL$16:$AL$25,"")) ->  | AQ26: =IF(SUM($AH$16:$AH$25)=0,"",IFERROR($AO26/$AP$9*100,"---")) -> 
B27: 小計(2) | C27: 申請予定補助金：国（SHIFT） | D27: LED照明設備・再生可能エネルギー設備導入対策 | I27: =IF(SUM($B$16:$B$25)=0,"",SUMIFS($I$16:$I$25,$E$16:$E$25,"*SHIFT*",$F$16:$F$25,"該当")) ->  | K27: =IF(SUM($B$16:$B$25)=0,"",IFERROR($I27/$J$9*100,"---")) ->  | O27: 小計(2) | P27: 申請予定補助金：国（SHIFT） | Q27: LED照明設備・再生可能エネルギー設備導入対策 | V27: 162 | X27: 13.5 | AH27: 小計(2) | AI27: 申請予定補助金：国（SHIFT） | AJ27: LED照明設備・再生可能エネルギー設備導入対策 | AO27: =IF(SUM($AH$16:$AH$25)=0,"",SUMIFS($AO$16:$AO$25,$AK$16:$AK$25,"*SHIFT*",$AL$16:$AL$25,"該当")) ->  | AQ27: =IF(SUM($AH$16:$AH$25)=0,"",IFERROR($AO27/$AP$9*100,"---")) -> 
B28: 合計 ((1)＋(2)) | I28: =IF(SUM($B$16:$B$25)=0,"",SUM($I$26:$I$27)) ->  | K28: =IF(SUM($B$16:$B$25)=0,"",IFERROR($I28/$J$9*100,"---")) ->  | O28: 合計 ((1)＋(2)) | V28: 362 | X28: 30.17 | AH28: 合計 ((1)＋(2)) | AO28: =IF(SUM($AH$16:$AH$25)=0,"",SUM($AO$26:$AO$27)) ->  | AQ28: =IF(SUM($AH$16:$AH$25)=0,"",IFERROR($AO28/$AP$9*100,"---")) -> 
B29: 小計(3) | C29: 自主的対策 | D29: SHIFT設備更新支援の補助対象外の対策 | I29: =IF(SUM($B$16:$B$25)=0,"",SUMIFS($I$16:$I$25,$E$16:$E$25,"<>*SHIFT*")) ->  | K29: =IF(SUM($B$16:$B$25)=0,"",IFERROR($I29/$J$9*100,"---")) ->  | O29: 小計(3) | P29: 自主的対策 | Q29: SHIFT設備更新支援の補助対象外の対策 | V29: 10 | X29: 0.83 | AH29: 小計(3) | AI29: 自主的対策 | AJ29: SHIFT設備更新支援の補助対象外の対策 | AO29: =IF(SUM($AH$16:$AH$25)=0,"",SUMIFS($AO$16:$AO$25,$AK$16:$AK$25,"<>*SHIFT*")) ->  | AQ29: =IF(SUM($AH$16:$AH$25)=0,"",IFERROR($AO29/$AP$9*100,"---")) -> 
B30: 合計 ((1)＋(2)＋(3)) | I30: =IF(SUM($B$16:$B$25)=0,"",SUM($I$28:$I$29)) ->  | K30: =IF(SUM($B$16:$B$25)=0,"",IFERROR($I30/$J$9*100,"---")) ->  | O30: 合計 ((1)＋(2)＋(3)) | V30: 372 | X30: 31 | AH30: 合計 ((1)＋(2)＋(3)) | AO30: =IF(SUM($AH$16:$AH$25)=0,"",SUM($AO$28:$AO$29)) ->  | AQ30: =IF(SUM($AH$16:$AH$25)=0,"",IFERROR($AO30/$AP$9*100,"---")) -> 
H33: 2．設備CO2削減量（小数点以下切り捨て）
H34: 個票番号 | I34: ③
I35: 設備
I36: CO2削減量
I37: (①-②)
H38: =IF($B16="","",$B16) ->  | I38: =IF(H38="","",INT(I16)) -> 
H39: =IF($B17="","",$B17) ->  | I39: =IF(H39="","",INT(I17)) -> 
I40: =IF(H40="","",INT(I18)) -> 

Sheet 521実施体制
B4: 5．実施計画書 | K4: 52．実施計画 | AO4: 記入例及び注記 | AW4: セル色凡例 | BC4: 直接入力 | BH4: 選択 | BL4: 自動計算 | CE4: セル色の表示／非表示
B5: 521．実施体制 | AO5: （セルのメモやテキストボックスによる注記は移動できます） | CE5: FALSE
B7: 脱炭素化計画推進者 | AO7: 脱炭素化計画推進者
B8: 推進責任者 | H8: 氏名 | S8: 所属 | AO8: 推進責任者 | AU8: 氏名 | BF8: 所属
B10: 推進担当者 | H10: 氏名 | S10: 所属 | AO10: 推進担当者 | AU10: 氏名 | BF10: 所属
B13: 推進体制図 | AO13: 推進体制図
AP15: ※推進体制に関する注記 ■推進体制を図表で示し、各構成員の氏名、所属部署と役職、計画推進における役割（対策の実施責任者の場合には、 担当する対策番号）を明記してください。 ■構成員の変更があった場合には、速やかに氏名、所属部署と役職を更新し、更新履歴を残せるようにしてください。 ■個票に記載している実施責任者、実施担当者名と整合がとれているか確認してください。
AP46: 更新履歴
AO48: 更新日 | AU48: 変更前 | BJ48: 変更後
AO49: 2021-12-31

Sheet 522実施計画
B4: 5．実施計画書 | K4: 52．実施計画 | AO4: 記入例及び注記 | AW4: セル色凡例 | BC4: 直接入力 | BH4: 選択 | BL4: 自動計算 | CE4: セル色の表示／非表示
B5: 522．実施計画 | AO5: （セルのメモやテキストボックスによる注記は移動できます） | CE5: FALSE
B7: ■ | C7: 実施計画
B8: 対策の種類 [対策個票番号] | G8: 対策名称 | P8: 補助金申請 予定 | R8: 計画年度 | AO8: 対策の種類 [対策個票番号] | AT8: 対策名称 | BC8: 補助金申請 予定 | BE8: 計画年度 | CE8: INDIRECT用
R9: =IF('511脱炭素化計画'!AQ24="","",'511脱炭素化計画'!AQ24) ->  | V9: =IF('511脱炭素化計画'!AT24="","",'511脱炭素化計画'!AT24) -> 目標年度 | Z9: =IF('511脱炭素化計画'!AW24="","",'511脱炭素化計画'!AW24) ->  | AD9: =IF('511脱炭素化計画'!AZ24="","",'511脱炭素化計画'!AZ24) ->  | AH9: =IF('511脱炭素化計画'!BC24="","",'511脱炭素化計画'!BC24) ->  | BI9: 目標年度 | CE9: 511脱炭素化計画
R10: =IF('511脱炭素化計画'!AQ25="","",'511脱炭素化計画'!AQ25) -> 令和6年度 | V10: =IF('511脱炭素化計画'!AT25="","",'511脱炭素化計画'!AT25) -> 令和7年度 | Z10: =IF('511脱炭素化計画'!AW25="","",'511脱炭素化計画'!AW25) -> 令和8年度 | AD10: =IF('511脱炭素化計画'!AZ25="","",'511脱炭素化計画'!AZ25) -> 令和9年度 | AH10: =IF('511脱炭素化計画'!BC25="","",'511脱炭素化計画'!BC25) -> 令和10年度 | BE10: 令和6年度 | BI10: 令和7年度 | BM10: 令和8年度 | BQ10: 令和9年度 | BU10: 令和10年度 | CE10: 対策個票
B11: 省エネルギー | AO11: 省エネルギー
C12: =IF('511脱炭素化計画'!C27="","",'511脱炭素化計画'!C27) ->  | D12: =IF($C12="","",IFERROR(IF(INDIRECT("'"&$CE$10&$C12&"'!C9")="","",INDIRECT("'"&$CE$10&$C12&"'!C9")),"―")) ->  | G12: =IF($C12="","",IFERROR(IF(INDIRECT("'"&$CE$10&$C12&"'!G9")="","",INDIRECT("'"&$CE$10&$C12&"'!G9")),"―")) ->  | P12: =IF($C12="","",IFERROR(IF(INDIRECT("'"&$CE$10&$C12&"'!CK294")=TRUE,"有り","無し"),"―")) ->  | R12: =IF($C12="","",IFERROR(IF(INDIRECT("'"&$CE$10&$C12&"'!R271")="","",INDIRECT("'"&$CE$10&$C12&"'!R271")),"―")) ->  | T12: =IF($C12="","",IFERROR(IF(INDIRECT("'"&$CE$10&$C12&"'!T271")="","",INDIRECT("'"&$CE$10&$C12&"'!T271")),"―")) ->  | V12: =IF($C12="","",IFERROR(IF(INDIRECT("'"&$CE$10&$C12&"'!V271")="","",INDIRECT("'"&$CE$10&$C12&"'!V271")),"―")) ->  | X12: =IF($C12="","",IFERROR(IF(INDIRECT("'"&$CE$10&$C12&"'!X271")="","",INDIRECT("'"&$CE$10&$C12&"'!X271")),"―")) ->  | Z12: =IF($C12="","",IFERROR(IF(INDIRECT("'"&$CE$10&$C12&"'!Z271")="","",INDIRECT("'"&$CE$10&$C12&"'!Z271")),"―")) ->  | AB12: =IF($C12="","",IFERROR(IF(INDIRECT("'"&$CE$10&$C12&"'!AB271")="","",INDIRECT("'"&$CE$10&$C12&"'!AB271")),"―")) ->  | AD12: =IF($C12="","",IFERROR(IF(INDIRECT("'"&$CE$10&$C12&"'!AD271")="","",INDIRECT("'"&$CE$10&$C12&"'!AD271")),"―")) ->  | AF12: =IF($C12="","",IFERROR(IF(INDIRECT("'"&$CE$10&$C12&"'!AF271")="","",INDIRECT("'"&$CE$10&$C12&"'!AF271")),"―")) ->  | AH12: =IF($C12="","",IFERROR(IF(INDIRECT("'"&$CE$10&$C12&"'!AH271")="","",INDIRECT("'"&$CE$10&$C12&"'!AH271")),"―")) ->  | AJ12: =IF($C12="","",IFERROR(IF(INDIRECT("'"&$CE$10&$C12&"'!AJ271")="","",INDIRECT("'"&$CE$10&$C12&"'!AJ271")),"―")) ->  | AP12: 1 | AQ12: 部分更新・ 機能付加 | AT12: 蒸気配管・蒸気バルブ・フランジ等の断熱強化 | BC12: 無し | BI12: 12月 | BK12: 3月
R13: =IF($C12="","",IFERROR(IF(INDIRECT("'"&$CE$10&$C12&"'!R272")="","",INDIRECT("'"&$CE$10&$C12&"'!R272")),"―")) ->  | T13: =IF($C12="","",IFERROR(IF(INDIRECT("'"&$CE$10&$C12&"'!T272")="","",INDIRECT("'"&$CE$10&$C12&"'!T272")),"―")) ->  | V13: =IF($C12="","",IFERROR(IF(INDIRECT("'"&$CE$10&$C12&"'!V272")="","",INDIRECT("'"&$CE$10&$C12&"'!V272")),"―")) ->  | X13: =IF($C12="","",IFERROR(IF(INDIRECT("'"&$CE$10&$C12&"'!X272")="","",INDIRECT("'"&$CE$10&$C12&"'!X272")),"―")) ->  | Z13: =IF($C12="","",IFERROR(IF(INDIRECT("'"&$CE$10&$C12&"'!Z272")="","",INDIRECT("'"&$CE$10&$C12&"'!Z272")),"―")) ->  | AB13: =IF($C12="","",IFERROR(IF(INDIRECT("'"&$CE$10&$C12&"'!AB272")="","",INDIRECT("'"&$CE$10&$C12&"'!AB272")),"―")) ->  | AD13: =IF($C12="","",IFERROR(IF(INDIRECT("'"&$CE$10&$C12&"'!AD272")="","",INDIRECT("'"&$CE$10&$C12&"'!AD272")),"―")) ->  | AF13: =IF($C12="","",IFERROR(IF(INDIRECT("'"&$CE$10&$C12&"'!AF272")="","",INDIRECT("'"&$CE$10&$C12&"'!AF272")),"―")) ->  | AH13: =IF($C12="","",IFERROR(IF(INDIRECT("'"&$CE$10&$C12&"'!AH272")="","",INDIRECT("'"&$CE$10&$C12&"'!AH272")),"―")) ->  | AJ13: =IF($C12="","",IFERROR(IF(INDIRECT("'"&$CE$10&$C12&"'!AJ272")="","",INDIRECT("'"&$CE$10&$C12&"'!AJ272")),"―")) ->  | BI13: 着手 | BK13: 完了
R14: =IF($C12="","",IFERROR(IF(INDIRECT("'"&$CE$10&$C12&"'!R273")="","",INDIRECT("'"&$CE$10&$C12&"'!R273")),"―")) ->  | BE14: 令和7年12月～現状確認、令和8年1月～段階的に施工、令和8年3月完了（ボイラ更新と同時に完了）
C16: =IF('511脱炭素化計画'!C28="","",'511脱炭素化計画'!C28) ->  | D16: =IF($C16="","",IFERROR(IF(INDIRECT("'"&$CE$10&$C16&"'!C9")="","",INDIRECT("'"&$CE$10&$C16&"'!C9")),"―")) ->  | G16: =IF($C16="","",IFERROR(IF(INDIRECT("'"&$CE$10&$C16&"'!G9")="","",INDIRECT("'"&$CE$10&$C16&"'!G9")),"―")) ->  | P16: =IF($C16="","",IFERROR(IF(INDIRECT("'"&$CE$10&$C16&"'!CK294")=TRUE,"有り","無し"),"―")) ->  | R16: =IF($C16="","",IFERROR(IF(INDIRECT("'"&$CE$10&$C16&"'!R271")="","",INDIRECT("'"&$CE$10&$C16&"'!R271")),"―")) ->  | T16: =IF($C16="","",IFERROR(IF(INDIRECT("'"&$CE$10&$C16&"'!T271")="","",INDIRECT("'"&$CE$10&$C16&"'!T271")),"―")) ->  | V16: =IF($C16="","",IFERROR(IF(INDIRECT("'"&$CE$10&$C16&"'!V271")="","",INDIRECT("'"&$CE$10&$C16&"'!V271")),"―")) ->  | X16: =IF($C16="","",IFERROR(IF(INDIRECT("'"&$CE$10&$C16&"'!X271")="","",INDIRECT("'"&$CE$10&$C16&"'!X271")),"―")) ->  | Z16: =IF($C16="","",IFERROR(IF(INDIRECT("'"&$CE$10&$C16&"'!Z271")="","",INDIRECT("'"&$CE$10&$C16&"'!Z271")),"―")) ->  | AB16: =IF($C16="","",IFERROR(IF(INDIRECT("'"&$CE$10&$C16&"'!AB271")="","",INDIRECT("'"&$CE$10&$C16&"'!AB271")),"―")) ->  | AD16: =IF($C16="","",IFERROR(IF(INDIRECT("'"&$CE$10&$C16&"'!AD271")="","",INDIRECT("'"&$CE$10&$C16&"'!AD271")),"―")) ->  | AF16: =IF($C16="","",IFERROR(IF(INDIRECT("'"&$CE$10&$C16&"'!AF271")="","",INDIRECT("'"&$CE$10&$C16&"'!AF271")),"―")) ->  | AH16: =IF($C16="","",IFERROR(IF(INDIRECT("'"&$CE$10&$C16&"'!AH271")="","",INDIRECT("'"&$CE$10&$C16&"'!AH271")),"―")) ->  | AJ16: =IF($C16="","",IFERROR(IF(INDIRECT("'"&$CE$10&$C16&"'!AJ271")="","",INDIRECT("'"&$CE$10&$C16&"'!AJ271")),"―")) ->  | AP16: 2 | AQ16: 運用改善 | AT16: ボイラー圧力の調整 | BC16: 無し | BI16: 1月 | BK16: 3月
R17: =IF($C16="","",IFERROR(IF(INDIRECT("'"&$CE$10&$C16&"'!R272")="","",INDIRECT("'"&$CE$10&$C16&"'!R272")),"―")) ->  | T17: =IF($C16="","",IFERROR(IF(INDIRECT("'"&$CE$10&$C16&"'!T272")="","",INDIRECT("'"&$CE$10&$C16&"'!T272")),"―")) ->  | V17: =IF($C16="","",IFERROR(IF(INDIRECT("'"&$CE$10&$C16&"'!V272")="","",INDIRECT("'"&$CE$10&$C16&"'!V272")),"―")) ->  | X17: =IF($C16="","",IFERROR(IF(INDIRECT("'"&$CE$10&$C16&"'!X272")="","",INDIRECT("'"&$CE$10&$C16&"'!X272")),"―")) ->  | Z17: =IF($C16="","",IFERROR(IF(INDIRECT("'"&$CE$10&$C16&"'!Z272")="","",INDIRECT("'"&$CE$10&$C16&"'!Z272")),"―")) ->  | AB17: =IF($C16="","",IFERROR(IF(INDIRECT("'"&$CE$10&$C16&"'!AB272")="","",INDIRECT("'"&$CE$10&$C16&"'!AB272")),"―")) ->  | AD17: =IF($C16="","",IFERROR(IF(INDIRECT("'"&$CE$10&$C16&"'!AD272")="","",INDIRECT("'"&$CE$10&$C16&"'!AD272")),"―")) ->  | AF17: =IF($C16="","",IFERROR(IF(INDIRECT("'"&$CE$10&$C16&"'!AF272")="","",INDIRECT("'"&$CE$10&$C16&"'!AF272")),"―")) ->  | AH17: =IF($C16="","",IFERROR(IF(INDIRECT("'"&$CE$10&$C16&"'!AH272")="","",INDIRECT("'"&$CE$10&$C16&"'!AH272")),"―")) ->  | AJ17: =IF($C16="","",IFERROR(IF(INDIRECT("'"&$CE$10&$C16&"'!AJ272")="","",INDIRECT("'"&$CE$10&$C16&"'!AJ272")),"―")) ->  | BI17: 着手 | BK17: 完了
R18: =IF($C16="","",IFERROR(IF(INDIRECT("'"&$CE$10&$C16&"'!R273")="","",INDIRECT("'"&$CE$10&$C16&"'!R273")),"―")) ->  | BE18: 令和8年1月：試行、2月：マニュアル作成、3月ボイラ更新と同時に完了
C20: =IF('511脱炭素化計画'!C29="","",'511脱炭素化計画'!C29) ->  | D20: =IF($C20="","",IFERROR(IF(INDIRECT("'"&$CE$10&$C20&"'!C9")="","",INDIRECT("'"&$CE$10&$C20&"'!C9")),"―")) ->  | G20: =IF($C20="","",IFERROR(IF(INDIRECT("'"&$CE$10&$C20&"'!G9")="","",INDIRECT("'"&$CE$10&$C20&"'!G9")),"―")) ->  | P20: =IF($C20="","",IFERROR(IF(INDIRECT("'"&$CE$10&$C20&"'!CK294")=TRUE,"有り","無し"),"―")) ->  | R20: =IF($C20="","",IFERROR(IF(INDIRECT("'"&$CE$10&$C20&"'!R271")="","",INDIRECT("'"&$CE$10&$C20&"'!R271")),"―")) ->  | T20: =IF($C20="","",IFERROR(IF(INDIRECT("'"&$CE$10&$C20&"'!T271")="","",INDIRECT("'"&$CE$10&$C20&"'!T271")),"―")) ->  | V20: =IF($C20="","",IFERROR(IF(INDIRECT("'"&$CE$10&$C20&"'!V271")="","",INDIRECT("'"&$CE$10&$C20&"'!V271")),"―")) ->  | X20: =IF($C20="","",IFERROR(IF(INDIRECT("'"&$CE$10&$C20&"'!X271")="","",INDIRECT("'"&$CE$10&$C20&"'!X271")),"―")) ->  | Z20: =IF($C20="","",IFERROR(IF(INDIRECT("'"&$CE$10&$C20&"'!Z271")="","",INDIRECT("'"&$CE$10&$C20&"'!Z271")),"―")) ->  | AB20: =IF($C20="","",IFERROR(IF(INDIRECT("'"&$CE$10&$C20&"'!AB271")="","",INDIRECT("'"&$CE$10&$C20&"'!AB271")),"―")) ->  | AD20: =IF($C20="","",IFERROR(IF(INDIRECT("'"&$CE$10&$C20&"'!AD271")="","",INDIRECT("'"&$CE$10&$C20&"'!AD271")),"―")) ->  | AF20: =IF($C20="","",IFERROR(IF(INDIRECT("'"&$CE$10&$C20&"'!AF271")="","",INDIRECT("'"&$CE$10&$C20&"'!AF271")),"―")) ->  | AH20: =IF($C20="","",IFERROR(IF(INDIRECT("'"&$CE$10&$C20&"'!AH271")="","",INDIRECT("'"&$CE$10&$C20&"'!AH271")),"―")) ->  | AJ20: =IF($C20="","",IFERROR(IF(INDIRECT("'"&$CE$10&$C20&"'!AJ271")="","",INDIRECT("'"&$CE$10&$C20&"'!AJ271")),"―")) ->  | AP20: 3 | AQ20: 設備導入 | AT20: コンプレッサーの更新 | BC20: 有り | BE20: 1月 | BG20: 3月
R21: =IF($C20="","",IFERROR(IF(INDIRECT("'"&$CE$10&$C20&"'!R272")="","",INDIRECT("'"&$CE$10&$C20&"'!R272")),"―")) ->  | T21: =IF($C20="","",IFERROR(IF(INDIRECT("'"&$CE$10&$C20&"'!T272")="","",INDIRECT("'"&$CE$10&$C20&"'!T272")),"―")) ->  | V21: =IF($C20="","",IFERROR(IF(INDIRECT("'"&$CE$10&$C20&"'!V272")="","",INDIRECT("'"&$CE$10&$C20&"'!V272")),"―")) ->  | X21: =IF($C20="","",IFERROR(IF(INDIRECT("'"&$CE$10&$C20&"'!X272")="","",INDIRECT("'"&$CE$10&$C20&"'!X272")),"―")) ->  | Z21: =IF($C20="","",IFERROR(IF(INDIRECT("'"&$CE$10&$C20&"'!Z272")="","",INDIRECT("'"&$CE$10&$C20&"'!Z272")),"―")) ->  | AB21: =IF($C20="","",IFERROR(IF(INDIRECT("'"&$CE$10&$C20&"'!AB272")="","",INDIRECT("'"&$CE$10&$C20&"'!AB272")),"―")) ->  | AD21: =IF($C20="","",IFERROR(IF(INDIRECT("'"&$CE$10&$C20&"'!AD272")="","",INDIRECT("'"&$CE$10&$C20&"'!AD272")),"―")) ->  | AF21: =IF($C20="","",IFERROR(IF(INDIRECT("'"&$CE$10&$C20&"'!AF272")="","",INDIRECT("'"&$CE$10&$C20&"'!AF272")),"―")) ->  | AH21: =IF($C20="","",IFERROR(IF(INDIRECT("'"&$CE$10&$C20&"'!AH272")="","",INDIRECT("'"&$CE$10&$C20&"'!AH272")),"―")) ->  | AJ21: =IF($C20="","",IFERROR(IF(INDIRECT("'"&$CE$10&$C20&"'!AJ272")="","",INDIRECT("'"&$CE$10&$C20&"'!AJ272")),"―")) ->  | BE21: 着手 | BG21: 完了
R22: =IF($C20="","",IFERROR(IF(INDIRECT("'"&$CE$10&$C20&"'!R273")="","",INDIRECT("'"&$CE$10&$C20&"'!R273")),"―")) -> 
C24: =IF('511脱炭素化計画'!C30="","",'511脱炭素化計画'!C30) ->  | D24: =IF($C24="","",IFERROR(IF(INDIRECT("'"&$CE$10&$C24&"'!C9")="","",INDIRECT("'"&$CE$10&$C24&"'!C9")),"―")) ->  | G24: =IF($C24="","",IFERROR(IF(INDIRECT("'"&$CE$10&$C24&"'!G9")="","",INDIRECT("'"&$CE$10&$C24&"'!G9")),"―")) ->  | P24: =IF($C24="","",IFERROR(IF(INDIRECT("'"&$CE$10&$C24&"'!CK294")=TRUE,"有り","無し"),"―")) ->  | R24: =IF($C24="","",IFERROR(IF(INDIRECT("'"&$CE$10&$C24&"'!R271")="","",INDIRECT("'"&$CE$10&$C24&"'!R271")),"―")) ->  | T24: =IF($C24="","",IFERROR(IF(INDIRECT("'"&$CE$10&$C24&"'!T271")="","",INDIRECT("'"&$CE$10&$C24&"'!T271")),"―")) ->  | V24: =IF($C24="","",IFERROR(IF(INDIRECT("'"&$CE$10&$C24&"'!V271")="","",INDIRECT("'"&$CE$10&$C24&"'!V271")),"―")) ->  | X24: =IF($C24="","",IFERROR(IF(INDIRECT("'"&$CE$10&$C24&"'!X271")="","",INDIRECT("'"&$CE$10&$C24&"'!X271")),"―")) ->  | Z24: =IF($C24="","",IFERROR(IF(INDIRECT("'"&$CE$10&$C24&"'!Z271")="","",INDIRECT("'"&$CE$10&$C24&"'!Z271")),"―")) ->  | AB24: =IF($C24="","",IFERROR(IF(INDIRECT("'"&$CE$10&$C24&"'!AB271")="","",INDIRECT("'"&$CE$10&$C24&"'!AB271")),"―")) ->  | AD24: =IF($C24="","",IFERROR(IF(INDIRECT("'"&$CE$10&$C24&"'!AD271")="","",INDIRECT("'"&$CE$10&$C24&"'!AD271")),"―")) ->  | AF24: =IF($C24="","",IFERROR(IF(INDIRECT("'"&$CE$10&$C24&"'!AF271")="","",INDIRECT("'"&$CE$10&$C24&"'!AF271")),"―")) ->  | AH24: =IF($C24="","",IFERROR(IF(INDIRECT("'"&$CE$10&$C24&"'!AH271")="","",INDIRECT("'"&$CE$10&$C24&"'!AH271")),"―")) ->  | AJ24: =IF($C24="","",IFERROR(IF(INDIRECT("'"&$CE$10&$C24&"'!AJ271")="","",INDIRECT("'"&$CE$10&$C24&"'!AJ271")),"―")) ->  | AP24: 4 | AQ24: 部分更新・ 機能付加 | AT24: 曝気ブロアのインバーター化 | BC24: 無し | BE24: 12月 | BG24: 3月
R25: =IF($C24="","",IFERROR(IF(INDIRECT("'"&$CE$10&$C24&"'!R272")="","",INDIRECT("'"&$CE$10&$C24&"'!R272")),"―")) ->  | T25: =IF($C24="","",IFERROR(IF(INDIRECT("'"&$CE$10&$C24&"'!T272")="","",INDIRECT("'"&$CE$10&$C24&"'!T272")),"―")) ->  | V25: =IF($C24="","",IFERROR(IF(INDIRECT("'"&$CE$10&$C24&"'!V272")="","",INDIRECT("'"&$CE$10&$C24&"'!V272")),"―")) ->  | X25: =IF($C24="","",IFERROR(IF(INDIRECT("'"&$CE$10&$C24&"'!X272")="","",INDIRECT("'"&$CE$10&$C24&"'!X272")),"―")) ->  | Z25: =IF($C24="","",IFERROR(IF(INDIRECT("'"&$CE$10&$C24&"'!Z272")="","",INDIRECT("'"&$CE$10&$C24&"'!Z272")),"―")) ->  | AB25: =IF($C24="","",IFERROR(IF(INDIRECT("'"&$CE$10&$C24&"'!AB272")="","",INDIRECT("'"&$CE$10&$C24&"'!AB272")),"―")) ->  | AD25: =IF($C24="","",IFERROR(IF(INDIRECT("'"&$CE$10&$C24&"'!AD272")="","",INDIRECT("'"&$CE$10&$C24&"'!AD272")),"―")) ->  | AF25: =IF($C24="","",IFERROR(IF(INDIRECT("'"&$CE$10&$C24&"'!AF272")="","",INDIRECT("'"&$CE$10&$C24&"'!AF272")),"―")) ->  | AH25: =IF($C24="","",IFERROR(IF(INDIRECT("'"&$CE$10&$C24&"'!AH272")="","",INDIRECT("'"&$CE$10&$C24&"'!AH272")),"―")) ->  | AJ25: =IF($C24="","",IFERROR(IF(INDIRECT("'"&$CE$10&$C24&"'!AJ272")="","",INDIRECT("'"&$CE$10&$C24&"'!AJ272")),"―")) ->  | BE25: 着手 | BG25: 完了
R26: =IF($C24="","",IFERROR(IF(INDIRECT("'"&$CE$10&$C24&"'!R273")="","",INDIRECT("'"&$CE$10&$C24&"'!R273")),"―")) -> 
C28: =IF('511脱炭素化計画'!C31="","",'511脱炭素化計画'!C31) ->  | D28: =IF($C28="","",IFERROR(IF(INDIRECT("'"&$CE$10&$C28&"'!C9")="","",INDIRECT("'"&$CE$10&$C28&"'!C9")),"―")) ->  | G28: =IF($C28="","",IFERROR(IF(INDIRECT("'"&$CE$10&$C28&"'!G9")="","",INDIRECT("'"&$CE$10&$C28&"'!G9")),"―")) ->  | P28: =IF($C28="","",IFERROR(IF(INDIRECT("'"&$CE$10&$C28&"'!CK294")=TRUE,"有り","無し"),"―")) ->  | R28: =IF($C28="","",IFERROR(IF(INDIRECT("'"&$CE$10&$C28&"'!R271")="","",INDIRECT("'"&$CE$10&$C28&"'!R271")),"―")) ->  | T28: =IF($C28="","",IFERROR(IF(INDIRECT("'"&$CE$10&$C28&"'!T271")="","",INDIRECT("'"&$CE$10&$C28&"'!T271")),"―")) ->  | V28: =IF($C28="","",IFERROR(IF(INDIRECT("'"&$CE$10&$C28&"'!V271")="","",INDIRECT("'"&$CE$10&$C28&"'!V271")),"―")) ->  | X28: =IF($C28="","",IFERROR(IF(INDIRECT("'"&$CE$10&$C28&"'!X271")="","",INDIRECT("'"&$CE$10&$C28&"'!X271")),"―")) ->  | Z28: =IF($C28="","",IFERROR(IF(INDIRECT("'"&$CE$10&$C28&"'!Z271")="","",INDIRECT("'"&$CE$10&$C28&"'!Z271")),"―")) ->  | AB28: =IF($C28="","",IFERROR(IF(INDIRECT("'"&$CE$10&$C28&"'!AB271")="","",INDIRECT("'"&$CE$10&$C28&"'!AB271")),"―")) ->  | AD28: =IF($C28="","",IFERROR(IF(INDIRECT("'"&$CE$10&$C28&"'!AD271")="","",INDIRECT("'"&$CE$10&$C28&"'!AD271")),"―")) ->  | AF28: =IF($C28="","",IFERROR(IF(INDIRECT("'"&$CE$10&$C28&"'!AF271")="","",INDIRECT("'"&$CE$10&$C28&"'!AF271")),"―")) ->  | AH28: =IF($C28="","",IFERROR(IF(INDIRECT("'"&$CE$10&$C28&"'!AH271")="","",INDIRECT("'"&$CE$10&$C28&"'!AH271")),"―")) ->  | AJ28: =IF($C28="","",IFERROR(IF(INDIRECT("'"&$CE$10&$C28&"'!AJ271")="","",INDIRECT("'"&$CE$10&$C28&"'!AJ271")),"―")) ->  | AP28: 5 | AQ28: 運用改善 | AT28: 空調設定温度の緩和 | BC28: 無し | BE28: 11月 | BG28: 12月
R29: =IF($C28="","",IFERROR(IF(INDIRECT("'"&$CE$10&$C28&"'!R272")="","",INDIRECT("'"&$CE$10&$C28&"'!R272")),"―")) ->  | T29: =IF($C28="","",IFERROR(IF(INDIRECT("'"&$CE$10&$C28&"'!T272")="","",INDIRECT("'"&$CE$10&$C28&"'!T272")),"―")) ->  | V29: =IF($C28="","",IFERROR(IF(INDIRECT("'"&$CE$10&$C28&"'!V272")="","",INDIRECT("'"&$CE$10&$C28&"'!V272")),"―")) ->  | X29: =IF($C28="","",IFERROR(IF(INDIRECT("'"&$CE$10&$C28&"'!X272")="","",INDIRECT("'"&$CE$10&$C28&"'!X272")),"―")) ->  | Z29: =IF($C28="","",IFERROR(IF(INDIRECT("'"&$CE$10&$C28&"'!Z272")="","",INDIRECT("'"&$CE$10&$C28&"'!Z272")),"―")) ->  | AB29: =IF($C28="","",IFERROR(IF(INDIRECT("'"&$CE$10&$C28&"'!AB272")="","",INDIRECT("'"&$CE$10&$C28&"'!AB272")),"―")) ->  | AD29: =IF($C28="","",IFERROR(IF(INDIRECT("'"&$CE$10&$C28&"'!AD272")="","",INDIRECT("'"&$CE$10&$C28&"'!AD272")),"―")) ->  | AF29: =IF($C28="","",IFERROR(IF(INDIRECT("'"&$CE$10&$C28&"'!AF272")="","",INDIRECT("'"&$CE$10&$C28&"'!AF272")),"―")) ->  | AH29: =IF($C28="","",IFERROR(IF(INDIRECT("'"&$CE$10&$C28&"'!AH272")="","",INDIRECT("'"&$CE$10&$C28&"'!AH272")),"―")) ->  | AJ29: =IF($C28="","",IFERROR(IF(INDIRECT("'"&$CE$10&$C28&"'!AJ272")="","",INDIRECT("'"&$CE$10&$C28&"'!AJ272")),"―")) ->  | BE29: 着手 | BG29: 完了
R30: =IF($C28="","",IFERROR(IF(INDIRECT("'"&$CE$10&$C28&"'!R273")="","",INDIRECT("'"&$CE$10&$C28&"'!R273")),"―")) -> 
C32: =IF('511脱炭素化計画'!C32="","",'511脱炭素化計画'!C32) ->  | D32: =IF($C32="","",IFERROR(IF(INDIRECT("'"&$CE$10&$C32&"'!C9")="","",INDIRECT("'"&$CE$10&$C32&"'!C9")),"―")) ->  | G32: =IF($C32="","",IFERROR(IF(INDIRECT("'"&$CE$10&$C32&"'!G9")="","",INDIRECT("'"&$CE$10&$C32&"'!G9")),"―")) ->  | P32: =IF($C32="","",IFERROR(IF(INDIRECT("'"&$CE$10&$C32&"'!CK294")=TRUE,"有り","無し"),"―")) ->  | R32: =IF($C32="","",IFERROR(IF(INDIRECT("'"&$CE$10&$C32&"'!R271")="","",INDIRECT("'"&$CE$10&$C32&"'!R271")),"―")) ->  | T32: =IF($C32="","",IFERROR(IF(INDIRECT("'"&$CE$10&$C32&"'!T271")="","",INDIRECT("'"&$CE$10&$C32&"'!T271")),"―")) ->  | V32: =IF($C32="","",IFERROR(IF(INDIRECT("'"&$CE$10&$C32&"'!V271")="","",INDIRECT("'"&$CE$10&$C32&"'!V271")),"―")) ->  | X32: =IF($C32="","",IFERROR(IF(INDIRECT("'"&$CE$10&$C32&"'!X271")="","",INDIRECT("'"&$CE$10&$C32&"'!X271")),"―")) ->  | Z32: =IF($C32="","",IFERROR(IF(INDIRECT("'"&$CE$10&$C32&"'!Z271")="","",INDIRECT("'"&$CE$10&$C32&"'!Z271")),"―")) ->  | AB32: =IF($C32="","",IFERROR(IF(INDIRECT("'"&$CE$10&$C32&"'!AB271")="","",INDIRECT("'"&$CE$10&$C32&"'!AB271")),"―")) ->  | AD32: =IF($C32="","",IFERROR(IF(INDIRECT("'"&$CE$10&$C32&"'!AD271")="","",INDIRECT("'"&$CE$10&$C32&"'!AD271")),"―")) ->  | AF32: =IF($C32="","",IFERROR(IF(INDIRECT("'"&$CE$10&$C32&"'!AF271")="","",INDIRECT("'"&$CE$10&$C32&"'!AF271")),"―")) ->  | AH32: =IF($C32="","",IFERROR(IF(INDIRECT("'"&$CE$10&$C32&"'!AH271")="","",INDIRECT("'"&$CE$10&$C32&"'!AH271")),"―")) ->  | AJ32: =IF($C32="","",IFERROR(IF(INDIRECT("'"&$CE$10&$C32&"'!AJ271")="","",INDIRECT("'"&$CE$10&$C32&"'!AJ271")),"―")) -> 
R33: =IF($C32="","",IFERROR(IF(INDIRECT("'"&$CE$10&$C32&"'!R272")="","",INDIRECT("'"&$CE$10&$C32&"'!R272")),"―")) ->  | T33: =IF($C32="","",IFERROR(IF(INDIRECT("'"&$CE$10&$C32&"'!T272")="","",INDIRECT("'"&$CE$10&$C32&"'!T272")),"―")) ->  | V33: =IF($C32="","",IFERROR(IF(INDIRECT("'"&$CE$10&$C32&"'!V272")="","",INDIRECT("'"&$CE$10&$C32&"'!V272")),"―")) ->  | X33: =IF($C32="","",IFERROR(IF(INDIRECT("'"&$CE$10&$C32&"'!X272")="","",INDIRECT("'"&$CE$10&$C32&"'!X272")),"―")) ->  | Z33: =IF($C32="","",IFERROR(IF(INDIRECT("'"&$CE$10&$C32&"'!Z272")="","",INDIRECT("'"&$CE$10&$C32&"'!Z272")),"―")) ->  | AB33: =IF($C32="","",IFERROR(IF(INDIRECT("'"&$CE$10&$C32&"'!AB272")="","",INDIRECT("'"&$CE$10&$C32&"'!AB272")),"―")) ->  | AD33: =IF($C32="","",IFERROR(IF(INDIRECT("'"&$CE$10&$C32&"'!AD272")="","",INDIRECT("'"&$CE$10&$C32&"'!AD272")),"―")) ->  | AF33: =IF($C32="","",IFERROR(IF(INDIRECT("'"&$CE$10&$C32&"'!AF272")="","",INDIRECT("'"&$CE$10&$C32&"'!AF272")),"―")) ->  | AH33: =IF($C32="","",IFERROR(IF(INDIRECT("'"&$CE$10&$C32&"'!AH272")="","",INDIRECT("'"&$CE$10&$C32&"'!AH272")),"―")) ->  | AJ33: =IF($C32="","",IFERROR(IF(INDIRECT("'"&$CE$10&$C32&"'!AJ272")="","",INDIRECT("'"&$CE$10&$C32&"'!AJ272")),"―")) -> 
R34: =IF($C32="","",IFERROR(IF(INDIRECT("'"&$CE$10&$C32&"'!R273")="","",INDIRECT("'"&$CE$10&$C32&"'!R273")),"―")) -> 
C36: =IF('511脱炭素化計画'!C33="","",'511脱炭素化計画'!C33) ->  | D36: =IF($C36="","",IFERROR(IF(INDIRECT("'"&$CE$10&$C36&"'!C9")="","",INDIRECT("'"&$CE$10&$C36&"'!C9")),"―")) ->  | G36: =IF($C36="","",IFERROR(IF(INDIRECT("'"&$CE$10&$C36&"'!G9")="","",INDIRECT("'"&$CE$10&$C36&"'!G9")),"―")) ->  | P36: =IF($C36="","",IFERROR(IF(INDIRECT("'"&$CE$10&$C36&"'!CK294")=TRUE,"有り","無し"),"―")) ->  | R36: =IF($C36="","",IFERROR(IF(INDIRECT("'"&$CE$10&$C36&"'!R271")="","",INDIRECT("'"&$CE$10&$C36&"'!R271")),"―")) ->  | T36: =IF($C36="","",IFERROR(IF(INDIRECT("'"&$CE$10&$C36&"'!T271")="","",INDIRECT("'"&$CE$10&$C36&"'!T271")),"―")) ->  | V36: =IF($C36="","",IFERROR(IF(INDIRECT("'"&$CE$10&$C36&"'!V271")="","",INDIRECT("'"&$CE$10&$C36&"'!V271")),"―")) ->  | X36: =IF($C36="","",IFERROR(IF(INDIRECT("'"&$CE$10&$C36&"'!X271")="","",INDIRECT("'"&$CE$10&$C36&"'!X271")),"―")) ->  | Z36: =IF($C36="","",IFERROR(IF(INDIRECT("'"&$CE$10&$C36&"'!Z271")="","",INDIRECT("'"&$CE$10&$C36&"'!Z271")),"―")) ->  | AB36: =IF($C36="","",IFERROR(IF(INDIRECT("'"&$CE$10&$C36&"'!AB271")="","",INDIRECT("'"&$CE$10&$C36&"'!AB271")),"―")) ->  | AD36: =IF($C36="","",IFERROR(IF(INDIRECT("'"&$CE$10&$C36&"'!AD271")="","",INDIRECT("'"&$CE$10&$C36&"'!AD271")),"―")) ->  | AF36: =IF($C36="","",IFERROR(IF(INDIRECT("'"&$CE$10&$C36&"'!AF271")="","",INDIRECT("'"&$CE$10&$C36&"'!AF271")),"―")) ->  | AH36: =IF($C36="","",IFERROR(IF(INDIRECT("'"&$CE$10&$C36&"'!AH271")="","",INDIRECT("'"&$CE$10&$C36&"'!AH271")),"―")) ->  | AJ36: =IF($C36="","",IFERROR(IF(INDIRECT("'"&$CE$10&$C36&"'!AJ271")="","",INDIRECT("'"&$CE$10&$C36&"'!AJ271")),"―")) -> 
R37: =IF($C36="","",IFERROR(IF(INDIRECT("'"&$CE$10&$C36&"'!R272")="","",INDIRECT("'"&$CE$10&$C36&"'!R272")),"―")) ->  | T37: =IF($C36="","",IFERROR(IF(INDIRECT("'"&$CE$10&$C36&"'!T272")="","",INDIRECT("'"&$CE$10&$C36&"'!T272")),"―")) ->  | V37: =IF($C36="","",IFERROR(IF(INDIRECT("'"&$CE$10&$C36&"'!V272")="","",INDIRECT("'"&$CE$10&$C36&"'!V272")),"―")) ->  | X37: =IF($C36="","",IFERROR(IF(INDIRECT("'"&$CE$10&$C36&"'!X272")="","",INDIRECT("'"&$CE$10&$C36&"'!X272")),"―")) ->  | Z37: =IF($C36="","",IFERROR(IF(INDIRECT("'"&$CE$10&$C36&"'!Z272")="","",INDIRECT("'"&$CE$10&$C36&"'!Z272")),"―")) ->  | AB37: =IF($C36="","",IFERROR(IF(INDIRECT("'"&$CE$10&$C36&"'!AB272")="","",INDIRECT("'"&$CE$10&$C36&"'!AB272")),"―")) ->  | AD37: =IF($C36="","",IFERROR(IF(INDIRECT("'"&$CE$10&$C36&"'!AD272")="","",INDIRECT("'"&$CE$10&$C36&"'!AD272")),"―")) ->  | AF37: =IF($C36="","",IFERROR(IF(INDIRECT("'"&$CE$10&$C36&"'!AF272")="","",INDIRECT("'"&$CE$10&$C36&"'!AF272")),"―")) ->  | AH37: =IF($C36="","",IFERROR(IF(INDIRECT("'"&$CE$10&$C36&"'!AH272")="","",INDIRECT("'"&$CE$10&$C36&"'!AH272")),"―")) ->  | AJ37: =IF($C36="","",IFERROR(IF(INDIRECT("'"&$CE$10&$C36&"'!AJ272")="","",INDIRECT("'"&$CE$10&$C36&"'!AJ272")),"―")) -> 
R38: =IF($C36="","",IFERROR(IF(INDIRECT("'"&$CE$10&$C36&"'!R273")="","",INDIRECT("'"&$CE$10&$C36&"'!R273")),"―")) -> 
B40: 脱炭素化：燃料低炭素化または電化、太陽光発電等の再生可能エネルギー利用など | AO40: 脱炭素化：燃料低炭素化または電化、太陽光発電等の再生可能エネルギー利用など
C41: =IF('511脱炭素化計画'!C35="","",'511脱炭素化計画'!C35) ->  | D41: =IF($C41="","",IFERROR(IF(INDIRECT("'"&$CE$10&$C41&"'!C9")="","",INDIRECT("'"&$CE$10&$C41&"'!C9")),"―")) ->  | G41: =IF($C41="","",IFERROR(IF(INDIRECT("'"&$CE$10&$C41&"'!G9")="","",INDIRECT("'"&$CE$10&$C41&"'!G9")),"―")) ->  | P41: =IF($C41="","",IFERROR(IF(INDIRECT("'"&$CE$10&$C41&"'!CK294")=TRUE,"有り","無し"),"―")) ->  | R41: =IF($C41="","",IFERROR(IF(INDIRECT("'"&$CE$10&$C41&"'!R271")="","",INDIRECT("'"&$CE$10&$C41&"'!R271")),"―")) ->  | T41: =IF($C41="","",IFERROR(IF(INDIRECT("'"&$CE$10&$C41&"'!T271")="","",INDIRECT("'"&$CE$10&$C41&"'!T271")),"―")) ->  | V41: =IF($C41="","",IFERROR(IF(INDIRECT("'"&$CE$10&$C41&"'!V271")="","",INDIRECT("'"&$CE$10&$C41&"'!V271")),"―")) ->  | X41: =IF($C41="","",IFERROR(IF(INDIRECT("'"&$CE$10&$C41&"'!X271")="","",INDIRECT("'"&$CE$10&$C41&"'!X271")),"―")) ->  | Z41: =IF($C41="","",IFERROR(IF(INDIRECT("'"&$CE$10&$C41&"'!Z271")="","",INDIRECT("'"&$CE$10&$C41&"'!Z271")),"―")) ->  | AB41: =IF($C41="","",IFERROR(IF(INDIRECT("'"&$CE$10&$C41&"'!AB271")="","",INDIRECT("'"&$CE$10&$C41&"'!AB271")),"―")) ->  | AD41: =IF($C41="","",IFERROR(IF(INDIRECT("'"&$CE$10&$C41&"'!AD271")="","",INDIRECT("'"&$CE$10&$C41&"'!AD271")),"―")) ->  | AF41: =IF($C41="","",IFERROR(IF(INDIRECT("'"&$CE$10&$C41&"'!AF271")="","",INDIRECT("'"&$CE$10&$C41&"'!AF271")),"―")) ->  | AH41: =IF($C41="","",IFERROR(IF(INDIRECT("'"&$CE$10&$C41&"'!AH271")="","",INDIRECT("'"&$CE$10&$C41&"'!AH271")),"―")) ->  | AJ41: =IF($C41="","",IFERROR(IF(INDIRECT("'"&$CE$10&$C41&"'!AJ271")="","",INDIRECT("'"&$CE$10&$C41&"'!AJ271")),"―")) ->  | AP41: 6 | AQ41: 燃料転換 | AT41: ボイラーの燃料転換 | BC41: 有り | BE41: 9月 | BG41: 1月
R42: =IF($C41="","",IFERROR(IF(INDIRECT("'"&$CE$10&$C41&"'!R272")="","",INDIRECT("'"&$CE$10&$C41&"'!R272")),"―")) ->  | T42: =IF($C41="","",IFERROR(IF(INDIRECT("'"&$CE$10&$C41&"'!T272")="","",INDIRECT("'"&$CE$10&$C41&"'!T272")),"―")) ->  | V42: =IF($C41="","",IFERROR(IF(INDIRECT("'"&$CE$10&$C41&"'!V272")="","",INDIRECT("'"&$CE$10&$C41&"'!V272")),"―")) ->  | X42: =IF($C41="","",IFERROR(IF(INDIRECT("'"&$CE$10&$C41&"'!X272")="","",INDIRECT("'"&$CE$10&$C41&"'!X272")),"―")) ->  | Z42: =IF($C41="","",IFERROR(IF(INDIRECT("'"&$CE$10&$C41&"'!Z272")="","",INDIRECT("'"&$CE$10&$C41&"'!Z272")),"―")) ->  | AB42: =IF($C41="","",IFERROR(IF(INDIRECT("'"&$CE$10&$C41&"'!AB272")="","",INDIRECT("'"&$CE$10&$C41&"'!AB272")),"―")) ->  | AD42: =IF($C41="","",IFERROR(IF(INDIRECT("'"&$CE$10&$C41&"'!AD272")="","",INDIRECT("'"&$CE$10&$C41&"'!AD272")),"―")) ->  | AF42: =IF($C41="","",IFERROR(IF(INDIRECT("'"&$CE$10&$C41&"'!AF272")="","",INDIRECT("'"&$CE$10&$C41&"'!AF272")),"―")) ->  | AH42: =IF($C41="","",IFERROR(IF(INDIRECT("'"&$CE$10&$C41&"'!AH272")="","",INDIRECT("'"&$CE$10&$C41&"'!AH272")),"―")) ->  | AJ42: =IF($C41="","",IFERROR(IF(INDIRECT("'"&$CE$10&$C41&"'!AJ272")="","",INDIRECT("'"&$CE$10&$C41&"'!AJ272")),"―")) ->  | BE42: 着手 | BG42: 完了
R43: =IF($C41="","",IFERROR(IF(INDIRECT("'"&$CE$10&$C41&"'!R273")="","",INDIRECT("'"&$CE$10&$C41&"'!R273")),"―")) ->  | BE43: 契約・設計：令和6年9月～、施工：令和6年12月～、完了：令和7年1月、運用開始：令和7年2月～
C45: =IF('511脱炭素化計画'!C36="","",'511脱炭素化計画'!C36) ->  | D45: =IF($C45="","",IFERROR(IF(INDIRECT("'"&$CE$10&$C45&"'!C9")="","",INDIRECT("'"&$CE$10&$C45&"'!C9")),"―")) ->  | G45: =IF($C45="","",IFERROR(IF(INDIRECT("'"&$CE$10&$C45&"'!G9")="","",INDIRECT("'"&$CE$10&$C45&"'!G9")),"―")) ->  | P45: =IF($C45="","",IFERROR(IF(INDIRECT("'"&$CE$10&$C45&"'!CK294")=TRUE,"有り","無し"),"―")) ->  | R45: =IF($C45="","",IFERROR(IF(INDIRECT("'"&$CE$10&$C45&"'!R271")="","",INDIRECT("'"&$CE$10&$C45&"'!R271")),"―")) ->  | T45: =IF($C45="","",IFERROR(IF(INDIRECT("'"&$CE$10&$C45&"'!T271")="","",INDIRECT("'"&$CE$10&$C45&"'!T271")),"―")) ->  | V45: =IF($C45="","",IFERROR(IF(INDIRECT("'"&$CE$10&$C45&"'!V271")="","",INDIRECT("'"&$CE$10&$C45&"'!V271")),"―")) ->  | X45: =IF($C45="","",IFERROR(IF(INDIRECT("'"&$CE$10&$C45&"'!X271")="","",INDIRECT("'"&$CE$10&$C45&"'!X271")),"―")) ->  | Z45: =IF($C45="","",IFERROR(IF(INDIRECT("'"&$CE$10&$C45&"'!Z271")="","",INDIRECT("'"&$CE$10&$C45&"'!Z271")),"―")) ->  | AB45: =IF($C45="","",IFERROR(IF(INDIRECT("'"&$CE$10&$C45&"'!AB271")="","",INDIRECT("'"&$CE$10&$C45&"'!AB271")),"―")) ->  | AD45: =IF($C45="","",IFERROR(IF(INDIRECT("'"&$CE$10&$C45&"'!AD271")="","",INDIRECT("'"&$CE$10&$C45&"'!AD271")),"―")) ->  | AF45: =IF($C45="","",IFERROR(IF(INDIRECT("'"&$CE$10&$C45&"'!AF271")="","",INDIRECT("'"&$CE$10&$C45&"'!AF271")),"―")) ->  | AH45: =IF($C45="","",IFERROR(IF(INDIRECT("'"&$CE$10&$C45&"'!AH271")="","",INDIRECT("'"&$CE$10&$C45&"'!AH271")),"―")) ->  | AJ45: =IF($C45="","",IFERROR(IF(INDIRECT("'"&$CE$10&$C45&"'!AJ271")="","",INDIRECT("'"&$CE$10&$C45&"'!AJ271")),"―")) ->  | AP45: 7 | AQ45: 電力低炭素化 | AT45: 太陽光発電システムの設置 | BC45: 有り | BK45: 12月 | BM45: 4月 | BO45: 6月
R46: =IF($C45="","",IFERROR(IF(INDIRECT("'"&$CE$10&$C45&"'!R272")="","",INDIRECT("'"&$CE$10&$C45&"'!R272")),"―")) ->  | T46: =IF($C45="","",IFERROR(IF(INDIRECT("'"&$CE$10&$C45&"'!T272")="","",INDIRECT("'"&$CE$10&$C45&"'!T272")),"―")) ->  | V46: =IF($C45="","",IFERROR(IF(INDIRECT("'"&$CE$10&$C45&"'!V272")="","",INDIRECT("'"&$CE$10&$C45&"'!V272")),"―")) ->  | X46: =IF($C45="","",IFERROR(IF(INDIRECT("'"&$CE$10&$C45&"'!X272")="","",INDIRECT("'"&$CE$10&$C45&"'!X272")),"―")) ->  | Z46: =IF($C45="","",IFERROR(IF(INDIRECT("'"&$CE$10&$C45&"'!Z272")="","",INDIRECT("'"&$CE$10&$C45&"'!Z272")),"―")) ->  | AB46: =IF($C45="","",IFERROR(IF(INDIRECT("'"&$CE$10&$C45&"'!AB272")="","",INDIRECT("'"&$CE$10&$C45&"'!AB272")),"―")) ->  | AD46: =IF($C45="","",IFERROR(IF(INDIRECT("'"&$CE$10&$C45&"'!AD272")="","",INDIRECT("'"&$CE$10&$C45&"'!AD272")),"―")) ->  | AF46: =IF($C45="","",IFERROR(IF(INDIRECT("'"&$CE$10&$C45&"'!AF272")="","",INDIRECT("'"&$CE$10&$C45&"'!AF272")),"―")) ->  | AH46: =IF($C45="","",IFERROR(IF(INDIRECT("'"&$CE$10&$C45&"'!AH272")="","",INDIRECT("'"&$CE$10&$C45&"'!AH272")),"―")) ->  | AJ46: =IF($C45="","",IFERROR(IF(INDIRECT("'"&$CE$10&$C45&"'!AJ272")="","",INDIRECT("'"&$CE$10&$C45&"'!AJ272")),"―")) ->  | BK46: 着手 | BM46: → | BO46: 完了
R47: =IF($C45="","",IFERROR(IF(INDIRECT("'"&$CE$10&$C45&"'!R273")="","",INDIRECT("'"&$CE$10&$C45&"'!R273")),"―")) -> 
C49: =IF('511脱炭素化計画'!C37="","",'511脱炭素化計画'!C37) ->  | D49: =IF($C49="","",IFERROR(IF(INDIRECT("'"&$CE$10&$C49&"'!C9")="","",INDIRECT("'"&$CE$10&$C49&"'!C9")),"―")) ->  | G49: =IF($C49="","",IFERROR(IF(INDIRECT("'"&$CE$10&$C49&"'!G9")="","",INDIRECT("'"&$CE$10&$C49&"'!G9")),"―")) ->  | P49: =IF($C49="","",IFERROR(IF(INDIRECT("'"&$CE$10&$C49&"'!CK294")=TRUE,"有り","無し"),"―")) ->  | R49: =IF($C49="","",IFERROR(IF(INDIRECT("'"&$CE$10&$C49&"'!R271")="","",INDIRECT("'"&$CE$10&$C49&"'!R271")),"―")) ->  | T49: =IF($C49="","",IFERROR(IF(INDIRECT("'"&$CE$10&$C49&"'!T271")="","",INDIRECT("'"&$CE$10&$C49&"'!T271")),"―")) ->  | V49: =IF($C49="","",IFERROR(IF(INDIRECT("'"&$CE$10&$C49&"'!V271")="","",INDIRECT("'"&$CE$10&$C49&"'!V271")),"―")) ->  | X49: =IF($C49="","",IFERROR(IF(INDIRECT("'"&$CE$10&$C49&"'!X271")="","",INDIRECT("'"&$CE$10&$C49&"'!X271")),"―")) ->  | Z49: =IF($C49="","",IFERROR(IF(INDIRECT("'"&$CE$10&$C49&"'!Z271")="","",INDIRECT("'"&$CE$10&$C49&"'!Z271")),"―")) ->  | AB49: =IF($C49="","",IFERROR(IF(INDIRECT("'"&$CE$10&$C49&"'!AB271")="","",INDIRECT("'"&$CE$10&$C49&"'!AB271")),"―")) ->  | AD49: =IF($C49="","",IFERROR(IF(INDIRECT("'"&$CE$10&$C49&"'!AD271")="","",INDIRECT("'"&$CE$10&$C49&"'!AD271")),"―")) ->  | AF49: =IF($C49="","",IFERROR(IF(INDIRECT("'"&$CE$10&$C49&"'!AF271")="","",INDIRECT("'"&$CE$10&$C49&"'!AF271")),"―")) ->  | AH49: =IF($C49="","",IFERROR(IF(INDIRECT("'"&$CE$10&$C49&"'!AH271")="","",INDIRECT("'"&$CE$10&$C49&"'!AH271")),"―")) ->  | AJ49: =IF($C49="","",IFERROR(IF(INDIRECT("'"&$CE$10&$C49&"'!AJ271")="","",INDIRECT("'"&$CE$10&$C49&"'!AJ271")),"―")) -> 
R50: =IF($C49="","",IFERROR(IF(INDIRECT("'"&$CE$10&$C49&"'!R272")="","",INDIRECT("'"&$CE$10&$C49&"'!R272")),"―")) ->  | T50: =IF($C49="","",IFERROR(IF(INDIRECT("'"&$CE$10&$C49&"'!T272")="","",INDIRECT("'"&$CE$10&$C49&"'!T272")),"―")) ->  | V50: =IF($C49="","",IFERROR(IF(INDIRECT("'"&$CE$10&$C49&"'!V272")="","",INDIRECT("'"&$CE$10&$C49&"'!V272")),"―")) ->  | X50: =IF($C49="","",IFERROR(IF(INDIRECT("'"&$CE$10&$C49&"'!X272")="","",INDIRECT("'"&$CE$10&$C49&"'!X272")),"―")) ->  | Z50: =IF($C49="","",IFERROR(IF(INDIRECT("'"&$CE$10&$C49&"'!Z272")="","",INDIRECT("'"&$CE$10&$C49&"'!Z272")),"―")) ->  | AB50: =IF($C49="","",IFERROR(IF(INDIRECT("'"&$CE$10&$C49&"'!AB272")="","",INDIRECT("'"&$CE$10&$C49&"'!AB272")),"―")) ->  | AD50: =IF($C49="","",IFERROR(IF(INDIRECT("'"&$CE$10&$C49&"'!AD272")="","",INDIRECT("'"&$CE$10&$C49&"'!AD272")),"―")) ->  | AF50: =IF($C49="","",IFERROR(IF(INDIRECT("'"&$CE$10&$C49&"'!AF272")="","",INDIRECT("'"&$CE$10&$C49&"'!AF272")),"―")) ->  | AH50: =IF($C49="","",IFERROR(IF(INDIRECT("'"&$CE$10&$C49&"'!AH272")="","",INDIRECT("'"&$CE$10&$C49&"'!AH272")),"―")) ->  | AJ50: =IF($C49="","",IFERROR(IF(INDIRECT("'"&$CE$10&$C49&"'!AJ272")="","",INDIRECT("'"&$CE$10&$C49&"'!AJ272")),"―")) -> 
R51: =IF($C49="","",IFERROR(IF(INDIRECT("'"&$CE$10&$C49&"'!R273")="","",INDIRECT("'"&$CE$10&$C49&"'!R273")),"―")) -> 
B53: 脱炭素化：低炭素系統電力への変更 | AO53: 脱炭素化：低炭素系統電力への変更
C54: =IF('511脱炭素化計画'!C39="","",'511脱炭素化計画'!C39) ->  | D54: =IF($C54="","",IFERROR(IF(INDIRECT("'"&$CE$10&$C54&"'!C9")="","",INDIRECT("'"&$CE$10&$C54&"'!C9")),"―")) ->  | G54: =IF($C54="","",IFERROR(IF(INDIRECT("'"&$CE$10&$C54&"'!G9")="","",INDIRECT("'"&$CE$10&$C54&"'!G9")),"―")) ->  | P54: =IF($C54="","",IFERROR(IF(INDIRECT("'"&$CE$10&$C54&"'!CK294")=TRUE,"有り","無し"),"―")) ->  | R54: =IF($C54="","",IFERROR(IF(INDIRECT("'"&$CE$10&$C54&"'!R271")="","",INDIRECT("'"&$CE$10&$C54&"'!R271")),"―")) ->  | T54: =IF($C54="","",IFERROR(IF(INDIRECT("'"&$CE$10&$C54&"'!T271")="","",INDIRECT("'"&$CE$10&$C54&"'!T271")),"―")) ->  | V54: =IF($C54="","",IFERROR(IF(INDIRECT("'"&$CE$10&$C54&"'!V271")="","",INDIRECT("'"&$CE$10&$C54&"'!V271")),"―")) ->  | X54: =IF($C54="","",IFERROR(IF(INDIRECT("'"&$CE$10&$C54&"'!X271")="","",INDIRECT("'"&$CE$10&$C54&"'!X271")),"―")) ->  | Z54: =IF($C54="","",IFERROR(IF(INDIRECT("'"&$CE$10&$C54&"'!Z271")="","",INDIRECT("'"&$CE$10&$C54&"'!Z271")),"―")) ->  | AB54: =IF($C54="","",IFERROR(IF(INDIRECT("'"&$CE$10&$C54&"'!AB271")="","",INDIRECT("'"&$CE$10&$C54&"'!AB271")),"―")) ->  | AD54: =IF($C54="","",IFERROR(IF(INDIRECT("'"&$CE$10&$C54&"'!AD271")="","",INDIRECT("'"&$CE$10&$C54&"'!AD271")),"―")) ->  | AF54: =IF($C54="","",IFERROR(IF(INDIRECT("'"&$CE$10&$C54&"'!AF271")="","",INDIRECT("'"&$CE$10&$C54&"'!AF271")),"―")) ->  | AH54: =IF($C54="","",IFERROR(IF(INDIRECT("'"&$CE$10&$C54&"'!AH271")="","",INDIRECT("'"&$CE$10&$C54&"'!AH271")),"―")) ->  | AJ54: =IF($C54="","",IFERROR(IF(INDIRECT("'"&$CE$10&$C54&"'!AJ271")="","",INDIRECT("'"&$CE$10&$C54&"'!AJ271")),"―")) ->  | AP54: 8 | AQ54: 電力低炭素化 | AT54: 電力供給会社の変更 | BC54: 無し | BM54: 2月 | BO54: 2月
R55: =IF($C54="","",IFERROR(IF(INDIRECT("'"&$CE$10&$C54&"'!R272")="","",INDIRECT("'"&$CE$10&$C54&"'!R272")),"―")) ->  | T55: =IF($C54="","",IFERROR(IF(INDIRECT("'"&$CE$10&$C54&"'!T272")="","",INDIRECT("'"&$CE$10&$C54&"'!T272")),"―")) ->  | V55: =IF($C54="","",IFERROR(IF(INDIRECT("'"&$CE$10&$C54&"'!V272")="","",INDIRECT("'"&$CE$10&$C54&"'!V272")),"―")) ->  | X55: =IF($C54="","",IFERROR(IF(INDIRECT("'"&$CE$10&$C54&"'!X272")="","",INDIRECT("'"&$CE$10&$C54&"'!X272")),"―")) ->  | Z55: =IF($C54="","",IFERROR(IF(INDIRECT("'"&$CE$10&$C54&"'!Z272")="","",INDIRECT("'"&$CE$10&$C54&"'!Z272")),"―")) ->  | AB55: =IF($C54="","",IFERROR(IF(INDIRECT("'"&$CE$10&$C54&"'!AB272")="","",INDIRECT("'"&$CE$10&$C54&"'!AB272")),"―")) ->  | AD55: =IF($C54="","",IFERROR(IF(INDIRECT("'"&$CE$10&$C54&"'!AD272")="","",INDIRECT("'"&$CE$10&$C54&"'!AD272")),"―")) ->  | AF55: =IF($C54="","",IFERROR(IF(INDIRECT("'"&$CE$10&$C54&"'!AF272")="","",INDIRECT("'"&$CE$10&$C54&"'!AF272")),"―")) ->  | AH55: =IF($C54="","",IFERROR(IF(INDIRECT("'"&$CE$10&$C54&"'!AH272")="","",INDIRECT("'"&$CE$10&$C54&"'!AH272")),"―")) ->  | AJ55: =IF($C54="","",IFERROR(IF(INDIRECT("'"&$CE$10&$C54&"'!AJ272")="","",INDIRECT("'"&$CE$10&$C54&"'!AJ272")),"―")) ->  | BM55: 着手 | BO55: 完了
R56: =IF($C54="","",IFERROR(IF(INDIRECT("'"&$CE$10&$C54&"'!R273")="","",INDIRECT("'"&$CE$10&$C54&"'!R273")),"―")) -> 
C58: =IF('511脱炭素化計画'!C40="","",'511脱炭素化計画'!C40) ->  | D58: =IF($C58="","",IFERROR(IF(INDIRECT("'"&$CE$10&$C58&"'!C9")="","",INDIRECT("'"&$CE$10&$C58&"'!C9")),"―")) ->  | G58: =IF($C58="","",IFERROR(IF(INDIRECT("'"&$CE$10&$C58&"'!G9")="","",INDIRECT("'"&$CE$10&$C58&"'!G9")),"―")) ->  | P58: =IF($C58="","",IFERROR(IF(INDIRECT("'"&$CE$10&$C58&"'!CK294")=TRUE,"有り","無し"),"―")) ->  | R58: =IF($C58="","",IFERROR(IF(INDIRECT("'"&$CE$10&$C58&"'!R271")="","",INDIRECT("'"&$CE$10&$C58&"'!R271")),"―")) ->  | T58: =IF($C58="","",IFERROR(IF(INDIRECT("'"&$CE$10&$C58&"'!T271")="","",INDIRECT("'"&$CE$10&$C58&"'!T271")),"―")) ->  | V58: =IF($C58="","",IFERROR(IF(INDIRECT("'"&$CE$10&$C58&"'!V271")="","",INDIRECT("'"&$CE$10&$C58&"'!V271")),"―")) ->  | X58: =IF($C58="","",IFERROR(IF(INDIRECT("'"&$CE$10&$C58&"'!X271")="","",INDIRECT("'"&$CE$10&$C58&"'!X271")),"―")) ->  | Z58: =IF($C58="","",IFERROR(IF(INDIRECT("'"&$CE$10&$C58&"'!Z271")="","",INDIRECT("'"&$CE$10&$C58&"'!Z271")),"―")) ->  | AB58: =IF($C58="","",IFERROR(IF(INDIRECT("'"&$CE$10&$C58&"'!AB271")="","",INDIRECT("'"&$CE$10&$C58&"'!AB271")),"―")) ->  | AD58: =IF($C58="","",IFERROR(IF(INDIRECT("'"&$CE$10&$C58&"'!AD271")="","",INDIRECT("'"&$CE$10&$C58&"'!AD271")),"―")) ->  | AF58: =IF($C58="","",IFERROR(IF(INDIRECT("'"&$CE$10&$C58&"'!AF271")="","",INDIRECT("'"&$CE$10&$C58&"'!AF271")),"―")) ->  | AH58: =IF($C58="","",IFERROR(IF(INDIRECT("'"&$CE$10&$C58&"'!AH271")="","",INDIRECT("'"&$CE$10&$C58&"'!AH271")),"―")) ->  | AJ58: =IF($C58="","",IFERROR(IF(INDIRECT("'"&$CE$10&$C58&"'!AJ271")="","",INDIRECT("'"&$CE$10&$C58&"'!AJ271")),"―")) -> 
R59: =IF($C58="","",IFERROR(IF(INDIRECT("'"&$CE$10&$C58&"'!R272")="","",INDIRECT("'"&$CE$10&$C58&"'!R272")),"―")) ->  | T59: =IF($C58="","",IFERROR(IF(INDIRECT("'"&$CE$10&$C58&"'!T272")="","",INDIRECT("'"&$CE$10&$C58&"'!T272")),"―")) ->  | V59: =IF($C58="","",IFERROR(IF(INDIRECT("'"&$CE$10&$C58&"'!V272")="","",INDIRECT("'"&$CE$10&$C58&"'!V272")),"―")) ->  | X59: =IF($C58="","",IFERROR(IF(INDIRECT("'"&$CE$10&$C58&"'!X272")="","",INDIRECT("'"&$CE$10&$C58&"'!X272")),"―")) ->  | Z59: =IF($C58="","",IFERROR(IF(INDIRECT("'"&$CE$10&$C58&"'!Z272")="","",INDIRECT("'"&$CE$10&$C58&"'!Z272")),"―")) ->  | AB59: =IF($C58="","",IFERROR(IF(INDIRECT("'"&$CE$10&$C58&"'!AB272")="","",INDIRECT("'"&$CE$10&$C58&"'!AB272")),"―")) ->  | AD59: =IF($C58="","",IFERROR(IF(INDIRECT("'"&$CE$10&$C58&"'!AD272")="","",INDIRECT("'"&$CE$10&$C58&"'!AD272")),"―")) ->  | AF59: =IF($C58="","",IFERROR(IF(INDIRECT("'"&$CE$10&$C58&"'!AF272")="","",INDIRECT("'"&$CE$10&$C58&"'!AF272")),"―")) ->  | AH59: =IF($C58="","",IFERROR(IF(INDIRECT("'"&$CE$10&$C58&"'!AH272")="","",INDIRECT("'"&$CE$10&$C58&"'!AH272")),"―")) ->  | AJ59: =IF($C58="","",IFERROR(IF(INDIRECT("'"&$CE$10&$C58&"'!AJ272")="","",INDIRECT("'"&$CE$10&$C58&"'!AJ272")),"―")) -> 
R60: =IF($C58="","",IFERROR(IF(INDIRECT("'"&$CE$10&$C58&"'!R273")="","",INDIRECT("'"&$CE$10&$C58&"'!R273")),"―")) -> 
B68: ■ | C68: 実施計画【2ページ目】
B69: 対策の種類 [対策個票番号] | G69: 対策名称 | P69: 補助金申請 予定 | R69: 計画年度
R70: =IF('511脱炭素化計画'!AQ24="","",'511脱炭素化計画'!AQ24) ->  | V70: =IF('511脱炭素化計画'!AT24="","",'511脱炭素化計画'!AT24) -> 目標年度 | Z70: =IF('511脱炭素化計画'!AW24="","",'511脱炭素化計画'!AW24) ->  | AD70: =IF('511脱炭素化計画'!AZ24="","",'511脱炭素化計画'!AZ24) ->  | AH70: =IF('511脱炭素化計画'!BC24="","",'511脱炭素化計画'!BC24) -> 
R71: =IF('511脱炭素化計画'!AQ25="","",'511脱炭素化計画'!AQ25) -> 令和6年度 | V71: =IF('511脱炭素化計画'!AT25="","",'511脱炭素化計画'!AT25) -> 令和7年度 | Z71: =IF('511脱炭素化計画'!AW25="","",'511脱炭素化計画'!AW25) -> 令和8年度 | AD71: =IF('511脱炭素化計画'!AZ25="","",'511脱炭素化計画'!AZ25) -> 令和9年度 | AH71: =IF('511脱炭素化計画'!BC25="","",'511脱炭素化計画'!BC25) -> 令和10年度
B72: 省エネルギー
C73: =IF('511脱炭素化計画'!C47="","",'511脱炭素化計画'!C47) ->  | D73: =IF($C73="","",IFERROR(IF(INDIRECT("'"&$CE$10&$C73&"'!C9")="","",INDIRECT("'"&$CE$10&$C73&"'!C9")),"―")) ->  | G73: =IF($C73="","",IFERROR(IF(INDIRECT("'"&$CE$10&$C73&"'!G9")="","",INDIRECT("'"&$CE$10&$C73&"'!G9")),"―")) ->  | P73: =IF($C73="","",IFERROR(IF(INDIRECT("'"&$CE$10&$C73&"'!CK294")=TRUE,"有り","無し"),"―")) ->  | R73: =IF($C73="","",IFERROR(IF(INDIRECT("'"&$CE$10&$C73&"'!R271")="","",INDIRECT("'"&$CE$10&$C73&"'!R271")),"―")) ->  | T73: =IF($C73="","",IFERROR(IF(INDIRECT("'"&$CE$10&$C73&"'!T271")="","",INDIRECT("'"&$CE$10&$C73&"'!T271")),"―")) ->  | V73: =IF($C73="","",IFERROR(IF(INDIRECT("'"&$CE$10&$C73&"'!V271")="","",INDIRECT("'"&$CE$10&$C73&"'!V271")),"―")) ->  | X73: =IF($C73="","",IFERROR(IF(INDIRECT("'"&$CE$10&$C73&"'!X271")="","",INDIRECT("'"&$CE$10&$C73&"'!X271")),"―")) ->  | Z73: =IF($C73="","",IFERROR(IF(INDIRECT("'"&$CE$10&$C73&"'!Z271")="","",INDIRECT("'"&$CE$10&$C73&"'!Z271")),"―")) ->  | AB73: =IF($C73="","",IFERROR(IF(INDIRECT("'"&$CE$10&$C73&"'!AB271")="","",INDIRECT("'"&$CE$10&$C73&"'!AB271")),"―")) ->  | AD73: =IF($C73="","",IFERROR(IF(INDIRECT("'"&$CE$10&$C73&"'!AD271")="","",INDIRECT("'"&$CE$10&$C73&"'!AD271")),"―")) ->  | AF73: =IF($C73="","",IFERROR(IF(INDIRECT("'"&$CE$10&$C73&"'!AF271")="","",INDIRECT("'"&$CE$10&$C73&"'!AF271")),"―")) ->  | AH73: =IF($C73="","",IFERROR(IF(INDIRECT("'"&$CE$10&$C73&"'!AH271")="","",INDIRECT("'"&$CE$10&$C73&"'!AH271")),"―")) ->  | AJ73: =IF($C73="","",IFERROR(IF(INDIRECT("'"&$CE$10&$C73&"'!AJ271")="","",INDIRECT("'"&$CE$10&$C73&"'!AJ271")),"―")) -> 
R74: =IF($C73="","",IFERROR(IF(INDIRECT("'"&$CE$10&$C73&"'!R272")="","",INDIRECT("'"&$CE$10&$C73&"'!R272")),"―")) ->  | T74: =IF($C73="","",IFERROR(IF(INDIRECT("'"&$CE$10&$C73&"'!T272")="","",INDIRECT("'"&$CE$10&$C73&"'!T272")),"―")) ->  | V74: =IF($C73="","",IFERROR(IF(INDIRECT("'"&$CE$10&$C73&"'!V272")="","",INDIRECT("'"&$CE$10&$C73&"'!V272")),"―")) ->  | X74: =IF($C73="","",IFERROR(IF(INDIRECT("'"&$CE$10&$C73&"'!X272")="","",INDIRECT("'"&$CE$10&$C73&"'!X272")),"―")) ->  | Z74: =IF($C73="","",IFERROR(IF(INDIRECT("'"&$CE$10&$C73&"'!Z272")="","",INDIRECT("'"&$CE$10&$C73&"'!Z272")),"―")) ->  | AB74: =IF($C73="","",IFERROR(IF(INDIRECT("'"&$CE$10&$C73&"'!AB272")="","",INDIRECT("'"&$CE$10&$C73&"'!AB272")),"―")) ->  | AD74: =IF($C73="","",IFERROR(IF(INDIRECT("'"&$CE$10&$C73&"'!AD272")="","",INDIRECT("'"&$CE$10&$C73&"'!AD272")),"―")) ->  | AF74: =IF($C73="","",IFERROR(IF(INDIRECT("'"&$CE$10&$C73&"'!AF272")="","",INDIRECT("'"&$CE$10&$C73&"'!AF272")),"―")) ->  | AH74: =IF($C73="","",IFERROR(IF(INDIRECT("'"&$CE$10&$C73&"'!AH272")="","",INDIRECT("'"&$CE$10&$C73&"'!AH272")),"―")) ->  | AJ74: =IF($C73="","",IFERROR(IF(INDIRECT("'"&$CE$10&$C73&"'!AJ272")="","",INDIRECT("'"&$CE$10&$C73&"'!AJ272")),"―")) -> 
R75: =IF($C73="","",IFERROR(IF(INDIRECT("'"&$CE$10&$C73&"'!R273")="","",INDIRECT("'"&$CE$10&$C73&"'!R273")),"―")) -> 
C77: =IF('511脱炭素化計画'!C48="","",'511脱炭素化計画'!C48) ->  | D77: =IF($C77="","",IFERROR(IF(INDIRECT("'"&$CE$10&$C77&"'!C9")="","",INDIRECT("'"&$CE$10&$C77&"'!C9")),"―")) ->  | G77: =IF($C77="","",IFERROR(IF(INDIRECT("'"&$CE$10&$C77&"'!G9")="","",INDIRECT("'"&$CE$10&$C77&"'!G9")),"―")) ->  | P77: =IF($C77="","",IFERROR(IF(INDIRECT("'"&$CE$10&$C77&"'!CK294")=TRUE,"有り","無し"),"―")) ->  | R77: =IF($C77="","",IFERROR(IF(INDIRECT("'"&$CE$10&$C77&"'!R271")="","",INDIRECT("'"&$CE$10&$C77&"'!R271")),"―")) ->  | T77: =IF($C77="","",IFERROR(IF(INDIRECT("'"&$CE$10&$C77&"'!T271")="","",INDIRECT("'"&$CE$10&$C77&"'!T271")),"―")) ->  | V77: =IF($C77="","",IFERROR(IF(INDIRECT("'"&$CE$10&$C77&"'!V271")="","",INDIRECT("'"&$CE$10&$C77&"'!V271")),"―")) ->  | X77: =IF($C77="","",IFERROR(IF(INDIRECT("'"&$CE$10&$C77&"'!X271")="","",INDIRECT("'"&$CE$10&$C77&"'!X271")),"―")) ->  | Z77: =IF($C77="","",IFERROR(IF(INDIRECT("'"&$CE$10&$C77&"'!Z271")="","",INDIRECT("'"&$CE$10&$C77&"'!Z271")),"―")) ->  | AB77: =IF($C77="","",IFERROR(IF(INDIRECT("'"&$CE$10&$C77&"'!AB271")="","",INDIRECT("'"&$CE$10&$C77&"'!AB271")),"―")) ->  | AD77: =IF($C77="","",IFERROR(IF(INDIRECT("'"&$CE$10&$C77&"'!AD271")="","",INDIRECT("'"&$CE$10&$C77&"'!AD271")),"―")) ->  | AF77: =IF($C77="","",IFERROR(IF(INDIRECT("'"&$CE$10&$C77&"'!AF271")="","",INDIRECT("'"&$CE$10&$C77&"'!AF271")),"―")) ->  | AH77: =IF($C77="","",IFERROR(IF(INDIRECT("'"&$CE$10&$C77&"'!AH271")="","",INDIRECT("'"&$CE$10&$C77&"'!AH271")),"―")) ->  | AJ77: =IF($C77="","",IFERROR(IF(INDIRECT("'"&$CE$10&$C77&"'!AJ271")="","",INDIRECT("'"&$CE$10&$C77&"'!AJ271")),"―")) -> 
R78: =IF($C77="","",IFERROR(IF(INDIRECT("'"&$CE$10&$C77&"'!R272")="","",INDIRECT("'"&$CE$10&$C77&"'!R272")),"―")) ->  | T78: =IF($C77="","",IFERROR(IF(INDIRECT("'"&$CE$10&$C77&"'!T272")="","",INDIRECT("'"&$CE$10&$C77&"'!T272")),"―")) ->  | V78: =IF($C77="","",IFERROR(IF(INDIRECT("'"&$CE$10&$C77&"'!V272")="","",INDIRECT("'"&$CE$10&$C77&"'!V272")),"―")) ->  | X78: =IF($C77="","",IFERROR(IF(INDIRECT("'"&$CE$10&$C77&"'!X272")="","",INDIRECT("'"&$CE$10&$C77&"'!X272")),"―")) ->  | Z78: =IF($C77="","",IFERROR(IF(INDIRECT("'"&$CE$10&$C77&"'!Z272")="","",INDIRECT("'"&$CE$10&$C77&"'!Z272")),"―")) ->  | AB78: =IF($C77="","",IFERROR(IF(INDIRECT("'"&$CE$10&$C77&"'!AB272")="","",INDIRECT("'"&$CE$10&$C77&"'!AB272")),"―")) ->  | AD78: =IF($C77="","",IFERROR(IF(INDIRECT("'"&$CE$10&$C77&"'!AD272")="","",INDIRECT("'"&$CE$10&$C77&"'!AD272")),"―")) ->  | AF78: =IF($C77="","",IFERROR(IF(INDIRECT("'"&$CE$10&$C77&"'!AF272")="","",INDIRECT("'"&$CE$10&$C77&"'!AF272")),"―")) ->  | AH78: =IF($C77="","",IFERROR(IF(INDIRECT("'"&$CE$10&$C77&"'!AH272")="","",INDIRECT("'"&$CE$10&$C77&"'!AH272")),"―")) ->  | AJ78: =IF($C77="","",IFERROR(IF(INDIRECT("'"&$CE$10&$C77&"'!AJ272")="","",INDIRECT("'"&$CE$10&$C77&"'!AJ272")),"―")) -> 
R79: =IF($C77="","",IFERROR(IF(INDIRECT("'"&$CE$10&$C77&"'!R273")="","",INDIRECT("'"&$CE$10&$C77&"'!R273")),"―")) -> 
C81: =IF('511脱炭素化計画'!C49="","",'511脱炭素化計画'!C49) ->  | D81: =IF($C81="","",IFERROR(IF(INDIRECT("'"&$CE$10&$C81&"'!C9")="","",INDIRECT("'"&$CE$10&$C81&"'!C9")),"―")) ->  | G81: =IF($C81="","",IFERROR(IF(INDIRECT("'"&$CE$10&$C81&"'!G9")="","",INDIRECT("'"&$CE$10&$C81&"'!G9")),"―")) ->  | P81: =IF($C81="","",IFERROR(IF(INDIRECT("'"&$CE$10&$C81&"'!CK294")=TRUE,"有り","無し"),"―")) ->  | R81: =IF($C81="","",IFERROR(IF(INDIRECT("'"&$CE$10&$C81&"'!R271")="","",INDIRECT("'"&$CE$10&$C81&"'!R271")),"―")) ->  | T81: =IF($C81="","",IFERROR(IF(INDIRECT("'"&$CE$10&$C81&"'!T271")="","",INDIRECT("'"&$CE$10&$C81&"'!T271")),"―")) ->  | V81: =IF($C81="","",IFERROR(IF(INDIRECT("'"&$CE$10&$C81&"'!V271")="","",INDIRECT("'"&$CE$10&$C81&"'!V271")),"―")) ->  | X81: =IF($C81="","",IFERROR(IF(INDIRECT("'"&$CE$10&$C81&"'!X271")="","",INDIRECT("'"&$CE$10&$C81&"'!X271")),"―")) ->  | Z81: =IF($C81="","",IFERROR(IF(INDIRECT("'"&$CE$10&$C81&"'!Z271")="","",INDIRECT("'"&$CE$10&$C81&"'!Z271")),"―")) ->  | AB81: =IF($C81="","",IFERROR(IF(INDIRECT("'"&$CE$10&$C81&"'!AB271")="","",INDIRECT("'"&$CE$10&$C81&"'!AB271")),"―")) ->  | AD81: =IF($C81="","",IFERROR(IF(INDIRECT("'"&$CE$10&$C81&"'!AD271")="","",INDIRECT("'"&$CE$10&$C81&"'!AD271")),"―")) ->  | AF81: =IF($C81="","",IFERROR(IF(INDIRECT("'"&$CE$10&$C81&"'!AF271")="","",INDIRECT("'"&$CE$10&$C81&"'!AF271")),"―")) ->  | AH81: =IF($C81="","",IFERROR(IF(INDIRECT("'"&$CE$10&$C81&"'!AH271")="","",INDIRECT("'"&$CE$10&$C81&"'!AH271")),"―")) ->  | AJ81: =IF($C81="","",IFERROR(IF(INDIRECT("'"&$CE$10&$C81&"'!AJ271")="","",INDIRECT("'"&$CE$10&$C81&"'!AJ271")),"―")) -> 
R82: =IF($C81="","",IFERROR(IF(INDIRECT("'"&$CE$10&$C81&"'!R272")="","",INDIRECT("'"&$CE$10&$C81&"'!R272")),"―")) ->  | T82: =IF($C81="","",IFERROR(IF(INDIRECT("'"&$CE$10&$C81&"'!T272")="","",INDIRECT("'"&$CE$10&$C81&"'!T272")),"―")) ->  | V82: =IF($C81="","",IFERROR(IF(INDIRECT("'"&$CE$10&$C81&"'!V272")="","",INDIRECT("'"&$CE$10&$C81&"'!V272")),"―")) ->  | X82: =IF($C81="","",IFERROR(IF(INDIRECT("'"&$CE$10&$C81&"'!X272")="","",INDIRECT("'"&$CE$10&$C81&"'!X272")),"―")) ->  | Z82: =IF($C81="","",IFERROR(IF(INDIRECT("'"&$CE$10&$C81&"'!Z272")="","",INDIRECT("'"&$CE$10&$C81&"'!Z272")),"―")) ->  | AB82: =IF($C81="","",IFERROR(IF(INDIRECT("'"&$CE$10&$C81&"'!AB272")="","",INDIRECT("'"&$CE$10&$C81&"'!AB272")),"―")) ->  | AD82: =IF($C81="","",IFERROR(IF(INDIRECT("'"&$CE$10&$C81&"'!AD272")="","",INDIRECT("'"&$CE$10&$C81&"'!AD272")),"―")) ->  | AF82: =IF($C81="","",IFERROR(IF(INDIRECT("'"&$CE$10&$C81&"'!AF272")="","",INDIRECT("'"&$CE$10&$C81&"'!AF272")),"―")) ->  | AH82: =IF($C81="","",IFERROR(IF(INDIRECT("'"&$CE$10&$C81&"'!AH272")="","",INDIRECT("'"&$CE$10&$C81&"'!AH272")),"―")) ->  | AJ82: =IF($C81="","",IFERROR(IF(INDIRECT("'"&$CE$10&$C81&"'!AJ272")="","",INDIRECT("'"&$CE$10&$C81&"'!AJ272")),"―")) -> 
R83: =IF($C81="","",IFERROR(IF(INDIRECT("'"&$CE$10&$C81&"'!R273")="","",INDIRECT("'"&$CE$10&$C81&"'!R273")),"―")) -> 
C85: =IF('511脱炭素化計画'!C50="","",'511脱炭素化計画'!C50) ->  | D85: =IF($C85="","",IFERROR(IF(INDIRECT("'"&$CE$10&$C85&"'!C9")="","",INDIRECT("'"&$CE$10&$C85&"'!C9")),"―")) ->  | G85: =IF($C85="","",IFERROR(IF(INDIRECT("'"&$CE$10&$C85&"'!G9")="","",INDIRECT("'"&$CE$10&$C85&"'!G9")),"―")) ->  | P85: =IF($C85="","",IFERROR(IF(INDIRECT("'"&$CE$10&$C85&"'!CK294")=TRUE,"有り","無し"),"―")) ->  | R85: =IF($C85="","",IFERROR(IF(INDIRECT("'"&$CE$10&$C85&"'!R271")="","",INDIRECT("'"&$CE$10&$C85&"'!R271")),"―")) ->  | T85: =IF($C85="","",IFERROR(IF(INDIRECT("'"&$CE$10&$C85&"'!T271")="","",INDIRECT("'"&$CE$10&$C85&"'!T271")),"―")) ->  | V85: =IF($C85="","",IFERROR(IF(INDIRECT("'"&$CE$10&$C85&"'!V271")="","",INDIRECT("'"&$CE$10&$C85&"'!V271")),"―")) ->  | X85: =IF($C85="","",IFERROR(IF(INDIRECT("'"&$CE$10&$C85&"'!X271")="","",INDIRECT("'"&$CE$10&$C85&"'!X271")),"―")) ->  | Z85: =IF($C85="","",IFERROR(IF(INDIRECT("'"&$CE$10&$C85&"'!Z271")="","",INDIRECT("'"&$CE$10&$C85&"'!Z271")),"―")) ->  | AB85: =IF($C85="","",IFERROR(IF(INDIRECT("'"&$CE$10&$C85&"'!AB271")="","",INDIRECT("'"&$CE$10&$C85&"'!AB271")),"―")) ->  | AD85: =IF($C85="","",IFERROR(IF(INDIRECT("'"&$CE$10&$C85&"'!AD271")="","",INDIRECT("'"&$CE$10&$C85&"'!AD271")),"―")) ->  | AF85: =IF($C85="","",IFERROR(IF(INDIRECT("'"&$CE$10&$C85&"'!AF271")="","",INDIRECT("'"&$CE$10&$C85&"'!AF271")),"―")) ->  | AH85: =IF($C85="","",IFERROR(IF(INDIRECT("'"&$CE$10&$C85&"'!AH271")="","",INDIRECT("'"&$CE$10&$C85&"'!AH271")),"―")) ->  | AJ85: =IF($C85="","",IFERROR(IF(INDIRECT("'"&$CE$10&$C85&"'!AJ271")="","",INDIRECT("'"&$CE$10&$C85&"'!AJ271")),"―")) -> 
R86: =IF($C85="","",IFERROR(IF(INDIRECT("'"&$CE$10&$C85&"'!R272")="","",INDIRECT("'"&$CE$10&$C85&"'!R272")),"―")) ->  | T86: =IF($C85="","",IFERROR(IF(INDIRECT("'"&$CE$10&$C85&"'!T272")="","",INDIRECT("'"&$CE$10&$C85&"'!T272")),"―")) ->  | V86: =IF($C85="","",IFERROR(IF(INDIRECT("'"&$CE$10&$C85&"'!V272")="","",INDIRECT("'"&$CE$10&$C85&"'!V272")),"―")) ->  | X86: =IF($C85="","",IFERROR(IF(INDIRECT("'"&$CE$10&$C85&"'!X272")="","",INDIRECT("'"&$CE$10&$C85&"'!X272")),"―")) ->  | Z86: =IF($C85="","",IFERROR(IF(INDIRECT("'"&$CE$10&$C85&"'!Z272")="","",INDIRECT("'"&$CE$10&$C85&"'!Z272")),"―")) ->  | AB86: =IF($C85="","",IFERROR(IF(INDIRECT("'"&$CE$10&$C85&"'!AB272")="","",INDIRECT("'"&$CE$10&$C85&"'!AB272")),"―")) ->  | AD86: =IF($C85="","",IFERROR(IF(INDIRECT("'"&$CE$10&$C85&"'!AD272")="","",INDIRECT("'"&$CE$10&$C85&"'!AD272")),"―")) ->  | AF86: =IF($C85="","",IFERROR(IF(INDIRECT("'"&$CE$10&$C85&"'!AF272")="","",INDIRECT("'"&$CE$10&$C85&"'!AF272")),"―")) ->  | AH86: =IF($C85="","",IFERROR(IF(INDIRECT("'"&$CE$10&$C85&"'!AH272")="","",INDIRECT("'"&$CE$10&$C85&"'!AH272")),"―")) ->  | AJ86: =IF($C85="","",IFERROR(IF(INDIRECT("'"&$CE$10&$C85&"'!AJ272")="","",INDIRECT("'"&$CE$10&$C85&"'!AJ272")),"―")) -> 
R87: =IF($C85="","",IFERROR(IF(INDIRECT("'"&$CE$10&$C85&"'!R273")="","",INDIRECT("'"&$CE$10&$C85&"'!R273")),"―")) -> 
C89: =IF('511脱炭素化計画'!C51="","",'511脱炭素化計画'!C51) ->  | D89: =IF($C89="","",IFERROR(IF(INDIRECT("'"&$CE$10&$C89&"'!C9")="","",INDIRECT("'"&$CE$10&$C89&"'!C9")),"―")) ->  | G89: =IF($C89="","",IFERROR(IF(INDIRECT("'"&$CE$10&$C89&"'!G9")="","",INDIRECT("'"&$CE$10&$C89&"'!G9")),"―")) ->  | P89: =IF($C89="","",IFERROR(IF(INDIRECT("'"&$CE$10&$C89&"'!CK294")=TRUE,"有り","無し"),"―")) ->  | R89: =IF($C89="","",IFERROR(IF(INDIRECT("'"&$CE$10&$C89&"'!R271")="","",INDIRECT("'"&$CE$10&$C89&"'!R271")),"―")) ->  | T89: =IF($C89="","",IFERROR(IF(INDIRECT("'"&$CE$10&$C89&"'!T271")="","",INDIRECT("'"&$CE$10&$C89&"'!T271")),"―")) ->  | V89: =IF($C89="","",IFERROR(IF(INDIRECT("'"&$CE$10&$C89&"'!V271")="","",INDIRECT("'"&$CE$10&$C89&"'!V271")),"―")) ->  | X89: =IF($C89="","",IFERROR(IF(INDIRECT("'"&$CE$10&$C89&"'!X271")="","",INDIRECT("'"&$CE$10&$C89&"'!X271")),"―")) ->  | Z89: =IF($C89="","",IFERROR(IF(INDIRECT("'"&$CE$10&$C89&"'!Z271")="","",INDIRECT("'"&$CE$10&$C89&"'!Z271")),"―")) ->  | AB89: =IF($C89="","",IFERROR(IF(INDIRECT("'"&$CE$10&$C89&"'!AB271")="","",INDIRECT("'"&$CE$10&$C89&"'!AB271")),"―")) ->  | AD89: =IF($C89="","",IFERROR(IF(INDIRECT("'"&$CE$10&$C89&"'!AD271")="","",INDIRECT("'"&$CE$10&$C89&"'!AD271")),"―")) ->  | AF89: =IF($C89="","",IFERROR(IF(INDIRECT("'"&$CE$10&$C89&"'!AF271")="","",INDIRECT("'"&$CE$10&$C89&"'!AF271")),"―")) ->  | AH89: =IF($C89="","",IFERROR(IF(INDIRECT("'"&$CE$10&$C89&"'!AH271")="","",INDIRECT("'"&$CE$10&$C89&"'!AH271")),"―")) ->  | AJ89: =IF($C89="","",IFERROR(IF(INDIRECT("'"&$CE$10&$C89&"'!AJ271")="","",INDIRECT("'"&$CE$10&$C89&"'!AJ271")),"―")) -> 
R90: =IF($C89="","",IFERROR(IF(INDIRECT("'"&$CE$10&$C89&"'!R272")="","",INDIRECT("'"&$CE$10&$C89&"'!R272")),"―")) ->  | T90: =IF($C89="","",IFERROR(IF(INDIRECT("'"&$CE$10&$C89&"'!T272")="","",INDIRECT("'"&$CE$10&$C89&"'!T272")),"―")) ->  | V90: =IF($C89="","",IFERROR(IF(INDIRECT("'"&$CE$10&$C89&"'!V272")="","",INDIRECT("'"&$CE$10&$C89&"'!V272")),"―")) ->  | X90: =IF($C89="","",IFERROR(IF(INDIRECT("'"&$CE$10&$C89&"'!X272")="","",INDIRECT("'"&$CE$10&$C89&"'!X272")),"―")) ->  | Z90: =IF($C89="","",IFERROR(IF(INDIRECT("'"&$CE$10&$C89&"'!Z272")="","",INDIRECT("'"&$CE$10&$C89&"'!Z272")),"―")) ->  | AB90: =IF($C89="","",IFERROR(IF(INDIRECT("'"&$CE$10&$C89&"'!AB272")="","",INDIRECT("'"&$CE$10&$C89&"'!AB272")),"―")) ->  | AD90: =IF($C89="","",IFERROR(IF(INDIRECT("'"&$CE$10&$C89&"'!AD272")="","",INDIRECT("'"&$CE$10&$C89&"'!AD272")),"―")) ->  | AF90: =IF($C89="","",IFERROR(IF(INDIRECT("'"&$CE$10&$C89&"'!AF272")="","",INDIRECT("'"&$CE$10&$C89&"'!AF272")),"―")) ->  | AH90: =IF($C89="","",IFERROR(IF(INDIRECT("'"&$CE$10&$C89&"'!AH272")="","",INDIRECT("'"&$CE$10&$C89&"'!AH272")),"―")) ->  | AJ90: =IF($C89="","",IFERROR(IF(INDIRECT("'"&$CE$10&$C89&"'!AJ272")="","",INDIRECT("'"&$CE$10&$C89&"'!AJ272")),"―")) -> 
R91: =IF($C89="","",IFERROR(IF(INDIRECT("'"&$CE$10&$C89&"'!R273")="","",INDIRECT("'"&$CE$10&$C89&"'!R273")),"―")) -> 
